Workbook

Sheet 1. Information Sheet
V1: Algoma Power Inc.
V2: Atikokan Hydro Inc.
V3: Bluewater Power Distribution Corporation
V4: Brant County Power Inc.
V5: Brantford Power Inc.
V6: Burlington Hydro Inc.
V7: Cambridge and North Dumfries Hydro Inc.
V8: Canadian Niagara Power Inc.
V9: Centre Wellington Hydro Ltd.
V10: Chapleau Public Utilities Corporation
V11: Collus PowerStream Corporation
M12: Version | N12: 2.4 | V12: Cooperative Hydro Embrun Inc.
V13: E.L.K. Energy Inc.
E14: Utility Name | F14: Waterloo North Hydro Inc. | V14: Enersource Hydro Mississauga Inc.
V15: Entegrus Powerlines Inc.
E16: Service Territory | F16: (if applicable) | V16: Entegrus Powerlines Inc. - Dutton Service Area
V17: Entegrus Powerlines Inc. - former Chatham-Kent Hydro Service Area
E18: Assigned EB Number | F18: EB-2015-0108 | V18: Entegrus Powerlines Inc. - Newbury Service Area
V19: Entegrus Powerlines Inc. - Strathroy, Mount Brydges and Parkhill Service Areas
E20: Name of Contact and Title | F20: Albert P. Singh | V20: ENWIN Utilities Ltd.
V21: Erie Thames Powerlines Corporation
E22: Phone Number | F22: 519-888-5542 | V22: Espanola Regional Hydro Distribution Corporation
V23: Essex Powerlines Corporation
E24: Email Address | F24: asingh@wnhydro.com | V24: Festival Hydro Inc.
V25: Fort Frances Power Corporation
V26: Greater Sudbury Hydro Inc.
B27: General Notes 1. Please ensure that your macros have been enabled. (Tools -> Macro -> Security) 2. Due to the time lag of deferral/variance account dispositions, this model assumes that all opening balances include previously disposed of amounts. Accordingly, all "Board Approved Dispositions" are deducted from the opening balance. 3. Please provide information in this model since the last time your balances were disposed. 4. For all Board-Approved dispositions, please ensure that the disposition amount has the same sign (e.g: debit balances are to have a positive figure and credit balance are to have a negative figure) as per the related Board decision. | V27: Grimsby Power Inc.
V28: Guelph Hydro Electric Systems Inc.
B29: Notes | V29: Haldimand County Hydro Inc.
V30: Halton Hills Hydro Inc.
C31: Pale green cells represent input cells. | V31: Hearst Power Distribution Company Limited
V32: Horizon Utilities Corporation
C33: Pale blue cells represent drop-down lists. The applicant should select the appropriate item from the drop-down list. | V33: Hydro 2000 Inc.
V34: Hydro Hawkesbury Inc.
C35: White cells contain fixed values, automatically generated values or formulae. | V35: Hydro One Brampton Networks Inc.
V36: Hydro One Networks Inc.
V37: Hydro Ottawa Limited
V38: Innisfil Hydro Distribution Systems Limited
V39: Kenora Hydro Electric Corporation Ltd.
V40: Kingston Hydro Corporation
V41: Kitchener-Wilmot Hydro Inc.
V42: Lakefront Utilities Inc.
V43: Lakeland Power Distribution Ltd.
V44: London Hydro Inc.
V45: Midland Power Utility Corporation
V46: Milton Hydro Distribution Inc.
V47: Newmarket - Tay Power Distribution Ltd.
V48: Niagara Peninsula Energy Inc.
V49: Niagara-on-the-Lake Hydro Inc.
V50: Norfolk Power Distribution Inc.
V51: North Bay Hydro Distribution Limited
V52: Northern Ontario Wires Inc.
V53: Oakville Hydro Electricity Distribution Inc.
V54: Orangeville Hydro Limited
V55: Orillia Power Distribution Corporation
V56: Oshawa PUC Networks Inc.
V57: Ottawa River Power Corporation
V58: Parry Sound Power Corporation
V59: Peterborough Distribution Incorporated
V60: PowerStream Inc.
V61: PUC Distribution Inc.
V62: Renfrew Hydro Inc.
V63: Rideau St. Lawrence Distribution Inc.
V64: Sioux Lookout Hydro Inc.
V65: St. Thomas Energy Inc.
V66: Thunder Bay Hydro Electricity Distribution Inc.
V67: Tillsonburg Hydro Inc.
V68: Toronto Hydro-Electric System Limited
V69: Veridian Connections Inc.
V70: Wasaga Distribution Inc.
V71: Waterloo North Hydro Inc.
V72: Welland Hydro-Electric System Corp.
V73: Wellington North Power Inc.
V74: West Coast Huron Energy Inc.
V75: Westario Power Inc.
V76: Whitby Hydro Electric Corporation
V77: Woodstock Hydro Services Inc.

Sheet 2. 2014 Continuity Schedule
E19: 2009 | O19: 2010 | Y19: 2011 | AI19: 2012 | AV19: 2013 | BI19: 2014 | BO19: 2015 | BS19: Projected Interest on Dec-31-13 Balances | BV19: 2.1.7 RRR
C20: Account Descriptions | D20: Account Number | E20: Opening Principal Amounts as of Jan-1-09 | F20: Transactions Debit / (Credit) during 2009 excluding interest and adjustments 3 | G20: Board-Approved Disposition during 2009 | H20: Adjustments during 2009 - other 2 | I20: Closing Principal Balance as of Dec-31-09 | J20: Opening Interest Amounts as of Jan-1-09 | K20: Interest Jan-1 to Dec-31-09 | L20: Board-Approved Disposition during 2009 | M20: Adjustments during 2009 - other 2 | N20: Closing Interest Amounts as of Dec-31-09 | O20: Opening Principal Amounts as of Jan-1-10 | P20: Transactions Debit / (Credit) during 2010 excluding interest and adjustments 3 | Q20: Board-Approved Disposition during 2010 | R20: Adjustments during 2010 - other 2 | S20: Closing Principal Balance as of Dec-31-10 | T20: Opening Interest Amounts as of Jan-1-10 | U20: Interest Jan-1 to Dec-31-10 | V20: Board-Approved Disposition during 2010 | W20: Adjustments during 2010 - other 2 | X20: Closing Interest Amounts as of Dec-31-10 | Y20: Opening Principal Amounts as of Jan-1-11 | Z20: Transactions Debit / (Credit) during 2011 excluding interest and adjustments 3 | AA20: Board-Approved Disposition during 2011 | AB20: Adjustments during 2010 - other 2 | AC20: Closing Principal Balance as of Dec-31-11 | AD20: Opening Interest Amounts as of Jan-1-11 | AE20: Interest Jan-1 to Dec-31-11 | AF20: Board-Approved Disposition during 2011 | AG20: Adjustments during 2011 - other 2 | AH20: Closing Interest Amounts as of Dec-31-11 | AI20: Opening Principal Amounts as of Jan-1-12 | AJ20: Transactions Debit / (Credit) during 2012 excluding interest and adjustments 3 | AK20: Board-Approved Disposition during 2012 | AL20: Other 2 Adjustments during Q1 2012 | AM20: Other 2 Adjustments during Q2 2012 | AN20: Other 2 Adjustments during Q3 2012 | AO20: Other 2 Adjustments during Q4 2012 | AP20: Closing Principal Balance as of Dec-31-12 | AQ20: Opening Interest Amounts as of Jan-1-12 | AR20: Interest Jan-1 to Dec-31-12 | AS20: Board-Approved Disposition during 2012 | AT20: Adjustments during 2012 - other 2 | AU20: Closing Interest Amounts as of Dec-31-12 | AV20: Opening Principal Amounts as of Jan-1-13 | AW20: Transactions Debit / (Credit) during 2013 excluding interest and adjustments 3 | AX20: Board-Approved Disposition during 2013 | AY20: Other 2 Adjustments during Q1 2013 | AZ20: Other 2 Adjustments during Q2 2013 | BA20: Other 2 Adjustments during Q3 2013 | BB20: Other 2 Adjustments during Q4 2013 | BC20: Closing Principal Balance as of Dec-31-13 | BD20: Opening Interest Amounts as of Jan-1-13 | BE20: Interest Jan-1 to Dec-31-13 | BF20: Board-Approved Disposition during 2013 | BG20: Adjustments during 2013 - other 2 | BH20: Closing Interest Amounts as of Dec-31-13 | BI20: Opening Principal Amounts as of Jan-1-14 | BJ20: Transactions Debit / (Credit) during 2014 excluding interest and adjustments 3 | BK20: Closing Principal Balance as of Dec-31-14 | BL20: Opening Interest Amounts as of Jan-1-14 | BM20: Interest Jan-1 to Dec-31-14 | BN20: Closing Interest Amounts as of Dec-31-14 | BO20: Principal Disposition during 2015 - instructed by Board | BP20: Interest Disposition during 2015 - instructed by Board | BQ20: Closing Principal Balances as of Dec 31-14 Adjusted for Dispositions during 2015 | BR20: Closing Interest Balances as of Dec 31-14 Adjusted for Dispositions during 2015 | BS20: Projected Interest from Jan 1, 2015 to December 31, 2015 on Dec 31 -14 balance adjusted for disposition during 2015 6 | BT20: Projected Interest from January 1, 2015 to April 30, 2015 on Dec 31 -13 balance adjusted for disposition during 2014 6 N/A | BU20: Total Claim | BV20: As of Dec 31-14 | BW20: Variance RRR vs. 2013 Balance (Principal + Interest)
BU22: Claim before Forecasted Transactions
C23: Group 1 Accounts | H23: 2009 - RCVA 1548/1518, Incremental approved 2011 COS | M23: 2009 - RCVA 1548/1518, Incremental approved 2011 COS | R23: Trsfr in / Approved | W23: Trsfr in / Approved | AB23: Transfer In / Approved | AG23: Transfer In / Approved | AM23: Transfer In / Approved | AT23: Transfer In / Approved | AZ23: Transfer In / Approved | BF23: Transfer In / Approved 1595 | BG23: Proj Jan-Apr/15 Interest - 2015 IRM - Grp 1
A24: 1 | C24: LV Variance Account | D24: 1550 | I24: =E24+F24-G24+H24 -> 0 | N24: =J24+K24-L24+M24 -> 0 | O24: =I24 -> 0 | S24: =O24+P24-Q24+R24 -> 0 | T24: =N24 -> 0 | X24: =T24+U24-V24+W24 -> 0 | Y24: =S24 -> 0 | AC24: =Y24+Z24-AA24+SUM(AB24:AB24) -> 0 | AD24: =X24 -> 0 | AH24: =AD24+AE24-AF24+AG24 -> 0 | AI24: =AC24 -> 0 | AP24: =AI24+AJ24-AK24+SUM(AL24:AO24) -> 0 | AQ24: =AH24 -> 0 | AU24: =AQ24+AR24-AS24+AT24 -> 0 | AV24: =AP24 -> 0 | BB24: 101650.3524 | BC24: =AV24+AW24-AX24+SUM(AY24:BB24) -> 101650.3524 | BD24: =AU24 -> 0 | BE24: 561.6039656 | BG24: 1992.346908 | BH24: =BD24+BE24-BF24+BG24 -> 2553.950874 | BI24: =+BC24 -> 101650.3524 | BJ24: 99110.5969 | BK24: =+BI24+BJ24 -> 200760.9494 | BL24: =+BH24 -> 2553.950874 | BM24: 843.3542724 | BN24: =+BL24+BM24 -> 3397.305146 | BO24: 101650.3524 | BP24: 2553.950874 | BQ24: =BK24-BO24 -> 99110.5969 | BR24: =BN24-BP24 -> 843.3542724 | BS24: 1181.893868 | BU24: =SUM(BQ24:BT24) -> 101135.845 | BV24: 203745.85 | BW24: =BV24-SUM(BK24,BN24) -> -412.4044981
A25: 2 | C25: Smart Metering Entity Charge Variance Account | D25: 1551 | I25: =E25+F25-G25+H25 -> 0 | N25: =J25+K25-L25+M25 -> 0 | O25: =I25 -> 0 | S25: =O25+P25-Q25+SUM(R25:R25) -> 0 | T25: =N25 -> 0 | X25: =T25+U25-V25+W25 -> 0 | Y25: =S25 -> 0 | AC25: =Y25+Z25-AA25+SUM(AB25:AB25) -> 0 | AD25: =X25 -> 0 | AH25: =AD25+AE25-AF25+AG25 -> 0 | AI25: =AC25 -> 0 | AP25: =AI25+AJ25-AK25+SUM(AL25:AO25) -> 0 | AQ25: =AH25 -> 0 | AU25: =AQ25+AR25-AS25+AT25 -> 0 | AV25: =AP25 -> 0 | BB25: 32300.53 | BC25: =AV25+AW25-AX25+SUM(AY25:BB25) -> 32300.53 | BD25: =AU25 -> 0 | BE25: 314.0442673 | BG25: 633.090388 | BH25: =BD25+BE25-BF25+BG25 -> 947.1346553 | BI25: =+BC25 -> 32300.53 | BJ25: -10037.71 | BK25: =+BI25+BJ25 -> 22262.82 | BL25: =+BH25 -> 947.1346553 | BM25: -63.46679868 | BN25: =+BL25+BM25 -> 883.6678566 | BO25: 32300.53 | BP25: 947.1346553 | BQ25: =BK25-BO25 -> -10037.71 | BR25: -63.46679868 | BS25: -119.6996918 | BU25: =SUM(BQ25:BT25) -> -10220.87649 | BV25: 22988.1 | BW25: -158.3878566
A26: 3 | C26: RSVA - Wholesale Market Service Charge | D26: 1580 | I26: =E26+F26-G26+H26 -> 0 | N26: =J26+K26-L26+M26 -> 0 | O26: =I26 -> 0 | S26: =O26+P26-Q26+SUM(R26:R26) -> 0 | T26: =N26 -> 0 | X26: =T26+U26-V26+W26 -> 0 | Y26: =S26 -> 0 | AC26: 0 | AD26: 0 | AH26: =AD26+AE26-AF26+AG26 -> 0 | AI26: =AC26 -> 0 | AP26: =AI26+AJ26-AK26+SUM(AL26:AO26) -> 0 | AQ26: =AH26 -> 0 | AU26: =AQ26+AR26-AS26+AT26 -> 0 | AV26: =AP26 -> 0 | BB26: -926112.7101 | BC26: =AV26+AW26-AX26+SUM(AY26:BB26) -> -926112.7101 | BD26: =AU26 -> 0 | BE26: -9907.392365 | BG26: -18151.80912 | BH26: =BD26+BE26-BF26+BG26 -> -28059.20148 | BI26: -926112.7101 | BJ26: -177404.1799 | BK26: -1103516.89 | BL26: -28059.20148 | BM26: 9862.395416 | BN26: -18196.80607 | BO26: -926112.7101 | BP26: -28059.20148 | BQ26: =BK26-BO26 -> -177404.1799 | BR26: =BN26-BP26 -> 9862.395416 | BS26: -2115.544845 | BU26: =SUM(BQ26:BT26) -> -169657.3293 | BV26: -1117175.96 | BW26: =BV26-SUM(BK26,BN26) -> 4537.736068
A27: 4 | C27: RSVA - Retail Transmission Network Charge | D27: 1584 | I27: 0 | N27: 0 | O27: 0 | S27: 0 | T27: 0 | X27: 0 | Y27: 0 | AC27: 0 | AD27: 0 | AH27: 0 | AI27: 0 | AP27: 0 | AQ27: 0 | AU27: 0 | AV27: 0 | BB27: -422797.578 | BC27: -422797.578 | BD27: 0 | BE27: -2707.502819 | BG27: -8286.832529 | BH27: -10994.33535 | BI27: -422797.578 | BJ27: -251888.012 | BK27: -674685.59 | BL27: -10994.33535 | BM27: -2633.993353 | BN27: -13628.3287 | BO27: -422797.578 | BP27: -10994.33535 | BQ27: =BK27-BO27 -> -251888.012 | BR27: =BN27-BP27 -> -2633.993353 | BS27: -3003.764543 | BU27: -257525.7699 | BV27: -686242.01 | BW27: =BV27-SUM(BK27,BN27) -> 2071.908702
A28: 5 | C28: RSVA - Retail Transmission Connection Charge | D28: 1586 | I28: 0 | N28: 0 | O28: 0 | S28: 0 | T28: 0 | X28: 0 | Y28: 0 | AC28: 0 | AD28: 0 | AH28: 0 | AI28: 0 | AP28: 0 | AQ28: 0 | AU28: 0 | AV28: 0 | BB28: -267572.4552 | BC28: -267572.4552 | BD28: 0 | BE28: -2097.5975 | BG28: -5244.420122 | BH28: -7342.017623 | BI28: -267572.4552 | BJ28: -33233.76477 | BK28: -300806.22 | BL28: -7342.017623 | BM28: -121.0871693 | BN28: -7463.104792 | BO28: -267572.4552 | BP28: -7342.017623 | BQ28: -33233.76477 | BR28: -121.0871693 | BS28: -396.3126449 | BU28: -33751.16459 | BV28: -306958.25 | BW28: 1311.074792
A29: 6 | C29: RSVA - Power (excluding Global Adjustment) | D29: 1588 | I29: 0 | N29: 0 | O29: 0 | S29: 0 | T29: 0 | X29: 0 | Y29: 0 | AC29: 0 | AD29: 0 | AH29: 0 | AI29: 0 | AP29: 0 | AQ29: 0 | AU29: 0 | AV29: 0 | BB29: -462830.8893 | BC29: -462830.8893 | BD29: 0 | BE29: 594.5703101 | BG29: -9071.485431 | BH29: -8476.915121 | BI29: -462830.8893 | BJ29: 1040209.866 | BK29: 577378.9763 | BL29: -8476.915121 | BM29: 3907.279502 | BN29: -4569.635619 | BO29: -462830.8893 | BP29: -8476.915121 | BQ29: 1040209.866 | BR29: 3907.279502 | BS29: 12404.50265 | BU29: 1056521.648 | BV29: 575077.19 | BW29: 2267.849286
A30: 7 | C30: RSVA - Global Adjustment | D30: 1589 | I30: 0 | N30: 0 | O30: 0 | S30: 0 | T30: 0 | X30: 0 | Y30: 0 | AC30: 0 | AD30: 0 | AH30: 0 | AI30: 0 | AP30: 0 | AQ30: 0 | AU30: 0 | AV30: 0 | BB30: 430529.5112 | BC30: 430529.5112 | BD30: 0 | BE30: 17178.12107 | BG30: 8438.371559 | BH30: 25616.49263 | BI30: 430529.5112 | BJ30: 2293410.991 | BK30: 2723940.503 | BL30: 25616.49263 | BM30: 13175.18043 | BN30: 38791.67306 | BO30: 430529.5112 | BP30: 25616.49263 | BQ30: 2293410.991 | BR30: 13175.18043 | BS30: 27348.92607 | BU30: 2333935.098 | BV30: 2760622.228 | BW30: -2109.947551
A31: 8 | C31: Disposition and Recovery/Refund of Regulatory Balances (2008) | D31: 1595 | I31: 0 | N31: 0 | O31: =I31 -> 0 | S31: 0 | T31: =N31 -> 0 | X31: 0 | Y31: =S31 -> 0 | AC31: 0 | AD31: 0 | AH31: 0 | AI31: =AC31 -> 0 | AP31: 0 | AQ31: =AH31 -> 0 | AU31: 0 | AV31: =AP31 -> 0 | BC31: 0 | BD31: =AU31 -> 0 | BH31: 0 | BI31: 0 | BK31: 0 | BL31: 0 | BN31: 0 | BQ31: 0 | BR31: 0 | BU31: 0 | BW31: 0
A32: 9 | C32: Disposition and Recovery/Refund of Regulatory Balances (2009) | D32: 1595 | I32: 0 | N32: 0 | O32: 0 | S32: 0 | T32: 0 | X32: 0 | Y32: 0 | AC32: 0 | AD32: 0 | AH32: 0 | AI32: =AC32 -> 0 | AP32: 0 | AQ32: 0 | AU32: 0 | AV32: 0 | BC32: 0 | BD32: 0 | BH32: 0 | BI32: 0 | BK32: 0 | BL32: 0 | BN32: 0 | BQ32: 0 | BR32: 0 | BU32: 0 | BW32: 0
A33: 10 | C33: Disposition and Recovery/Refund of Regulatory Balances (2010) | D33: 1595 | I33: =E33+F33-G33+H33 -> 0 | N33: =J33+K33-L33+M33 -> 0 | O33: =I33 -> 0 | P33: 2451270.51 | R33: -12472653 | S33: -10021382.49 | T33: =N33 -> 0 | U33: -68941.52726 | W33: -1214175 | X33: =T33+U33-V33+W33 -> -1283116.527 | Y33: -10021382.49 | Z33: 3687136.753 | AC33: -6334245.737 | AD33: -1283116.527 | AE33: -122130.3529 | AH33: =AD33+AE33-AF33+AG33 -> -1405246.88 | AI33: =AC33 -> -6334245.737 | AJ33: 3694955.173 | AP33: =AI33+AJ33-AK33+SUM(AL33:AO33) -> -2639290.564 | AQ33: -1405246.88 | AR33: -68060.43141 | AU33: =AQ33+AR33-AS33+AT33 -> -1473307.312 | AV33: -2639290.564 | AW33: 3685142.014 | BC33: =AV33+AW33-AX33+SUM(AY33:BB33) -> 1045851.45 | BD33: -1473307.312 | BE33: -13948.83257 | BH33: =BD33+BE33-BF33+BG33 -> -1487256.144 | BI33: 1045851.45 | BJ33: 1239998.29 | BK33: 2285849.74 | BL33: -1487256.144 | BM33: 30133.07185 | BN33: -1457123.072 | BQ33: 2285849.74 | BR33: -1457123.072 | BS33: 27258.782 | BU33: 855985.4497 | BV33: 828727.1 | BW33: 0.4322739682
A34: 11 | C34: Disposition and Recovery/Refund of Regulatory Balances (2011) | D34: 1595 | I34: =E34+F34-G34+H34 -> 0 | N34: =J34+K34-L34+M34 -> 0 | O34: =I34 -> 0 | S34: =O34+P34-Q34+SUM(R34:R34) -> 0 | T34: =N34 -> 0 | X34: =T34+U34-V34+W34 -> 0 | Y34: 0 | Z34: -254190.6076 | AB34: 1151115 | AC34: =Y34+Z34-AA34+SUM(AB34:AB34) -> 896924.3924 | AD34: =X34 -> 0 | AE34: 9504.424316 | AG34: 127965 | AH34: =AD34+AE34-AF34+AG34 -> 137469.4243 | AI34: =AC34 -> 896924.3924 | AJ34: -421457.0026 | AP34: =AI34+AJ34-AK34+SUM(AL34:AO34) -> 475467.3898 | AQ34: 137469.4243 | AR34: 10339.78631 | AU34: =AQ34+AR34-AS34+AT34 -> 147809.2106 | AV34: 475467.3898 | AW34: -412336.6998 | BC34: =AV34+AW34-AX34+SUM(AY34:BB34) -> 63130.69 | BD34: 147809.2106 | BE34: 4248.425998 | BH34: =BD34+BE34-BF34+BG34 -> 152057.6366 | BI34: 63130.69 | BJ34: -128124.08 | BK34: -64993.39 | BL34: 152057.6366 | BM34: -563.331538 | BN34: 151494.3051 | BQ34: -64993.39 | BR34: 151494.3051 | BS34: -774.9746257 | BU34: 85725.94045 | BV34: 86501.4 | BW34: 0.4849192759
A35: 12 | C35: Disposition and Recovery/Refund of Regulatory Balances (2012) | D35: 1595 | I35: =E35+F35-G35+H35 -> 0 | N35: =J35+K35-L35+M35 -> 0 | O35: =I35 -> 0 | S35: =O35+P35-Q35+SUM(R35:R35) -> 0 | T35: =N35 -> 0 | X35: =T35+U35-V35+W35 -> 0 | Y35: 0 | AC35: 0 | AD35: 0 | AH35: 0 | AI35: 0 | AJ35: 1758133.796 | AM35: -4597499 | AP35: =AI35+AJ35-AK35+SUM(AL35:AO35) -> -2839365.204 | AQ35: 0 | AR35: -37281.78373 | AT35: -187943 | AU35: =AQ35+AR35-AS35+AT35 -> -225224.7837 | AV35: -2839365.204 | AW35: 2598269.14 | BC35: =AV35+AW35-AX35+SUM(AY35:BB35) -> -241096.0639 | BD35: -225224.7837 | BE35: -24247.14968 | BH35: =BD35+BE35-BF35+BG35 -> -249471.9334 | BI35: -241096.0639 | BJ35: 866995.1739 | BK35: 625899.11 | BL35: -249471.9334 | BM35: 6814.298278 | BN35: -242657.6351 | BQ35: 625899.11 | BR35: -242657.6351 | BS35: 7463.882662 | BU35: 390705.3575 | BV35: 383241.89 | BW35: 0.4151249148
C36: Disposition and Recovery/Refund of Regulatory Balances (2013) | D36: 1595 | I36: =E36+F36-G36+H36 -> 0 | N36: =J36+K36-L36+M36 -> 0 | O36: =I36 -> 0 | S36: =O36+P36-Q36+SUM(R36:R36) -> 0 | T36: =N36 -> 0 | X36: =T36+U36-V36+W36 -> 0 | Y36: 0 | AC36: =Y36+Z36-AA36+SUM(AB36:AB36) -> 0 | AD36: =X36 -> 0 | AH36: =AD36+AE36-AF36+AG36 -> 0 | AI36: =AC36 -> 0 | AP36: =AI36+AJ36-AK36+SUM(AL36:AO36) -> 0 | AQ36: 0 | AU36: =AQ36+AR36-AS36+AT36 -> 0 | AV36: 0 | AW36: 1355619.006 | AZ36: -1824804 | BC36: =AV36+AW36-AX36+SUM(AY36:BB36) -> -469184.9941 | BD36: 0 | BE36: -12222.26795 | BG36: -45811 | BH36: =BD36+BE36-BF36+BG36 -> -58033.26795 | BI36: =+BC36 -> -469184.9941 | BJ36: 737214.1441 | BK36: =+BI36+BJ36 -> 268029.15 | BL36: =+BH36 -> -58033.26795 | BM36: 1578.910881 | BN36: =+BL36+BM36 -> -56454.35707 | BQ36: =BK36-BO36 -> 268029.15 | BR36: =BN36-BP36 -> -56454.35707 | BS36: 3196.247614 | BU36: =SUM(BQ36:BT36) -> 214771.0405 | BV36: 211574.84 | BW36: =BV36-SUM(BK36,BN36) -> 0.04706724157
C37: Disposition and Recovery/Refund of Regulatory Balances (2014) | D37: 1595 | BJ37: -696113.7 | BK37: -696113.7 | BM37: -90388.77917 | BN37: -90388.77917 | BQ37: =BK37-BO37 -> -696113.7 | BR37: =BN37-BP37 -> -90388.77917 | BV37: -786501 | BW37: 1.4791725
C38: Group 1 Sub-Total (including Account 1589 - Global Adjustment) | E38: =SUM(E24:E36) -> 0 | F38: 0 | G38: 0 | H38: 0 | I38: 0 | J38: 0 | K38: 0 | L38: 0 | M38: 0 | N38: 0 | O38: 0 | P38: 2451270.51 | Q38: 0 | R38: -12472653 | S38: -10021382.49 | T38: 0 | U38: -68941.52726 | V38: 0 | W38: -1214175 | X38: -1283116.527 | Y38: -10021382.49 | Z38: 3432946.145 | AA38: 0 | AB38: 1151115 | AC38: -5437321.345 | AD38: -1283116.527 | AE38: -112625.9286 | AF38: 0 | AG38: 127965 | AH38: -1267777.456 | AI38: -5437321.345 | AJ38: 5031631.966 | AK38: 0 | AL38: 0 | AM38: -4597499 | AN38: 0 | AO38: 0 | AP38: -5003188.379 | AQ38: -1267777.456 | AR38: -95002.42883 | AS38: 0 | AT38: -187943 | AU38: -1550722.885 | AV38: -5003188.379 | AW38: 7226693.461 | AX38: 0 | AY38: 0 | AZ38: -1824804 | BA38: 0 | BB38: -1514833.239 | BC38: -1116132.157 | BD38: -1550722.885 | BE38: -42233.97727 | BF38: 0 | BG38: -75501.73835 | BH38: =SUM(BH24:BH36) -> -1668458.6 | BI38: -1116132.157 | BJ38: 5676251.315 | BK38: 4560119.158 | BL38: -1668458.6 | BM38: 62932.61177 | BN38: -1605525.989 | BO38: -1514833.239 | BP38: -25754.89142 | BQ38: 6074952.397 | BR38: -1579771.097 | BS38: 72443.93851 | BT38: 0 | BU38: 4567625.239 | BV38: 2962102.378 | BW38: 7509.208327
C39: Group 1 Sub-Total (excluding Account 1589 - Global Adjustment) | E39: =E38-E40 -> 0 | F39: 0 | G39: 0 | H39: 0 | I39: 0 | J39: 0 | K39: 0 | L39: =L38-L40 -> 0 | M39: =M38-M40 -> 0 | N39: =N38-N40 -> 0 | O39: 0 | P39: 2451270.51 | Q39: 0 | R39: -12472653 | S39: -10021382.49 | T39: 0 | U39: -68941.52726 | V39: =V38-V40 -> 0 | W39: -1214175 | X39: -1283116.527 | Y39: -10021382.49 | Z39: 3432946.145 | AA39: 0 | AB39: 1151115 | AC39: -5437321.345 | AD39: -1283116.527 | AE39: -112625.9286 | AF39: 0 | AG39: 127965 | AH39: -1267777.456 | AI39: =AI38-AI40 -> -5437321.345 | AJ39: 5031631.966 | AK39: 0 | AL39: 0 | AM39: -4597499 | AN39: 0 | AO39: 0 | AP39: -5003188.379 | AQ39: -1267777.456 | AR39: -95002.42883 | AS39: 0 | AT39: -187943 | AU39: -1550722.885 | AV39: =AV38-AV40 -> -5003188.379 | AW39: 7226693.461 | AX39: 0 | AY39: 0 | AZ39: -1824804 | BA39: 0 | BB39: -1945362.75 | BC39: -1546661.668 | BD39: -1550722.885 | BE39: -59412.09834 | BF39: 0 | BG39: -83940.1099 | BH39: -1694075.093 | BI39: =BI38-BI40 -> -1546661.668 | BJ39: 3382840.324 | BK39: 1836178.656 | BL39: -1694075.093 | BM39: 49757.43134 | BN39: -1644317.662 | BO39: -1945362.75 | BP39: -51371.38405 | BQ39: 3781541.406 | BR39: -1592946.278 | BS39: 45095.01244 | BT39: 0 | BU39: 2233690.141 | BV39: =BV38-BV40 -> 201480.15 | BW39: 9619.155878
C40: =C30 -> RSVA - Global Adjustment | D40: 1589 | E40: =E30 -> 0 | F40: 0 | G40: 0 | H40: 0 | I40: 0 | J40: 0 | K40: 0 | L40: 0 | M40: 0 | N40: 0 | O40: 0 | P40: 0 | Q40: 0 | R40: 0 | S40: 0 | T40: 0 | U40: 0 | V40: 0 | W40: 0 | X40: 0 | Y40: 0 | Z40: 0 | AA40: 0 | AB40: 0 | AC40: 0 | AD40: 0 | AE40: 0 | AF40: 0 | AG40: 0 | AH40: 0 | AI40: 0 | AJ40: 0 | AK40: =AK30 -> 0 | AL40: 0 | AM40: 0 | AN40: 0 | AO40: 0 | AP40: 0 | AQ40: 0 | AR40: 0 | AS40: 0 | AT40: 0 | AU40: 0 | AV40: 0 | AW40: 0 | AX40: 0 | AY40: 0 | AZ40: 0 | BA40: 0 | BB40: 430529.5112 | BC40: 430529.5112 | BD40: 0 | BE40: 17178.12107 | BF40: 0 | BG40: 8438.371559 | BH40: 25616.49263 | BI40: 430529.5112 | BJ40: 2293410.991 | BK40: 2723940.503 | BL40: 25616.49263 | BM40: 13175.18043 | BN40: 38791.67306 | BO40: 430529.5112 | BP40: 25616.49263 | BQ40: 2293410.991 | BR40: 13175.18043 | BS40: 27348.92607 | BT40: 0 | BU40: 2333935.098 | BV40: =BV30 -> 2760622.228 | BW40: -2109.947551
C42: Group 2 Accounts
A43: 13 | C43: Other Regulatory Assets - Sub-Account - Deferred IFRS Transition Costs | D43: 1508 | F43: 44169.5 | I43: =E43+F43-G43+H43 -> 44169.5 | K43: 160.7883646 | N43: =J43+K43-L43+M43 -> 160.7883646 | O43: =I43 -> 44169.5 | P43: 47281.79 | S43: =O43+P43-Q43+SUM(R43:R43) -> 91451.29 | T43: =N43 -> 160.7883646 | U43: 620.1066702 | X43: =T43+U43-V43+W43 -> 780.8950348 | Y43: =S43 -> 91451.29 | Z43: 3000 | AC43: =Y43+Z43-AA43+SUM(AB43:AB43) -> 94451.29 | AD43: =X43 -> 780.8950348 | AE43: 1355.358963 | AH43: =AD43+AE43-AF43+AG43 -> 2136.253998 | AI43: =AC43 -> 94451.29 | AP43: =AI43+AJ43-AK43+SUM(AL43:AO43) -> 94451.29 | AQ43: =AH43 -> 2136.253998 | AR43: 1388.433963 | AU43: =AQ43+AR43-AS43+AT43 -> 3524.687961 | AV43: =AP43 -> 94451.29 | AW43: 6685 | BC43: =AV43+AW43-AX43+SUM(AY43:BB43) -> 101136.29 | BD43: =AU43 -> 3524.687961 | BE43: 1462.136088 | BH43: =BD43+BE43-BF43+BG43 -> 4986.824049 | BI43: =+BC43 -> 101136.29 | BK43: =+BI43+BJ43 -> 101136.29 | BL43: =+BH43 -> 4986.824049 | BM43: 1486.703463 | BN43: =+BL43+BM43 -> 6473.527512 | BQ43: =BK43-BO43 -> 101136.29 | BR43: =BN43-BP43 -> 6473.527512 | BS43: 1206.050258 | BU43: 108815.8678 | BV43: 107609.79 | BW43: =BV43-SUM(BK43,BN43) -> -0.02751183334
A44: 14 | C44: Other Regulatory Assets - Sub-Account - Incremental Capital Charges | D44: 1508 | H44: 750 | I44: =E44+F44-G44+H44 -> 750 | M44: 8 | N44: =J44+K44-L44+M44 -> 8 | O44: =I44 -> 750 | P44: 686.03 | S44: 1436.03 | T44: 8 | U44: 10.15396433 | X44: =T44+U44-V44+W44 -> 18.15396433 | Y44: 1436.03 | AA44: 750 | AC44: 686.03 | AD44: 18.15396433 | AE44: 5.757877 | AF44: 8 | AH44: 15.91184133 | AI44: 686.03 | AP44: 686.03 | AQ44: 15.91184133 | AR44: 10.082877 | AU44: 25.99471833 | AV44: 686.03 | AW44: 1053.62 | BC44: 1739.65 | BD44: 25.99471833 | BE44: 15.1298525 | BH44: 41.12457083 | BI44: 1739.65 | BJ44: 894.69 | BK44: 2634.34 | BL44: 41.12457083 | BM44: 32.0742975 | BN44: 73.19886833 | BQ44: 2634.34 | BR44: 73.19886833 | BS44: 31.4145045 | BU44: 2738.953373 | BV44: 2708.49 | BW44: 0.9511316667
A45: 15 | C45: Other Regulatory Assets - Sub-Account - Financial Assistance Payment and Recovery Variance - Ontario Clean Energy Benefit Act8 | D45: 1508 | Y45: 0 | AC45: 0 | AD45: 0 | AH45: 0 | AI45: 0 | AP45: =AI45+AJ45-AK45+SUM(AL45:AO45) -> 0 | AQ45: =AH45 -> 0 | AU45: 0 | AV45: 0 | BC45: =AV45+AW45-AX45+SUM(AY45:BB45) -> 0 | BD45: =AU45 -> 0 | BH45: 0 | BI45: 0 | BK45: 0 | BL45: 0 | BN45: 0 | BQ45: 0 | BR45: 0 | BU45: 0 | BW45: 0
A46: 16 | C46: Other Regulatory Assets - Sub-Account - Financial Assistance Payment and Recovery Carrying Charges | D46: 1508 | Y46: 0 | AC46: 0 | AD46: 0 | AH46: 0 | AI46: 0 | AP46: =AI46+AJ46-AK46+SUM(AL46:AO46) -> 0 | AQ46: =AH46 -> 0 | AU46: 0 | AV46: 0 | BC46: =AV46+AW46-AX46+SUM(AY46:BB46) -> 0 | BD46: =AU46 -> 0 | BH46: 0 | BI46: 0 | BK46: 0 | BL46: 0 | BN46: 0 | BQ46: 0 | BR46: 0 | BU46: 0 | BW46: 0
A47: 17 | C47: Other Regulatory Assets - Sub-Account - Other 4 OMERS Difference - 2011 COS Settlement Agreement Item | D47: 1508 | I47: 0 | N47: 0 | O47: 0 | S47: 0 | T47: 0 | X47: 0 | Y47: =S47 -> 0 | Z47: 48310.26 | AC47: 48310.26 | AD47: 0 | AH47: =AD47+AE47-AF47+AG47 -> 0 | AI47: 48310.26 | AJ47: 29828.84 | AP47: =AI47+AJ47-AK47+SUM(AL47:AO47) -> 78139.1 | AQ47: =AH47 -> 0 | AU47: 0 | AV47: 78139.1 | AW47: -3461.65 | BC47: =AV47+AW47-AX47+SUM(AY47:BB47) -> 74677.45 | BD47: =AU47 -> 0 | BH47: 0 | BI47: 74677.45 | BK47: 74677.45 | BL47: 0 | BN47: 0 | BQ47: 74677.45 | BR47: 0 | BU47: 74677.45 | BV47: 74677.19 | BW47: -0.26
C48: Other Regulatory Assets - Sub-Account - Other 4 Capital Gain Variance - 2011 COS Settlement Agreement Item | D48: 1508 | I48: 0 | N48: =J48+K48-L48+M48 -> 0 | O48: =I48 -> 0 | S48: =O48+P48-Q48+SUM(R48:R48) -> 0 | T48: =N48 -> 0 | X48: =T48+U48-V48+W48 -> 0 | Y48: =S48 -> 0 | Z48: 310845.5905 | AC48: =Y48+Z48-AA48+SUM(AB48:AB48) -> 310845.5905 | AD48: =X48 -> 0 | AH48: =AD48+AE48-AF48+AG48 -> 0 | AI48: =AC48 -> 310845.5905 | AJ48: 539052.2266 | AP48: =AI48+AJ48-AK48+SUM(AL48:AO48) -> 849897.8171 | AQ48: =AH48 -> 0 | AU48: =AQ48+AR48-AS48+AT48 -> 0 | AV48: =AP48 -> 849897.8171 | AW48: -612752.5859 | BB48: -16920 | BC48: =AV48+AW48-AX48+SUM(AY48:BB48) -> 220225.2312 | BD48: =AU48 -> 0 | BH48: =BD48+BE48-BF48+BG48 -> 0 | BI48: =+BC48 -> 220225.2312 | BJ48: 195712.2189 | BK48: =+BI48+BJ48 -> 415937.4501 | BL48: =+BH48 -> 0 | BN48: =+BL48+BM48 -> 0 | BQ48: =BK48-BO48 -> 415937.4501 | BR48: 0 | BU48: =SUM(BQ48:BT48) -> 415937.4501 | BV48: 432854.29 | BW48: =BV48-SUM(BK48,BN48) -> 16916.83985
A49: 18 | C49: Retail Cost Variance Account - Retail | D49: 1518 | H49: -256141.85 | I49: -256141.85 | M49: -20620 | N49: -20620 | O49: -256141.85 | P49: -46314.4 | S49: -302456.25 | T49: -20620 | U49: -208.3074367 | X49: -20828.30744 | Y49: -302456.25 | Z49: -30750.14 | AA49: -256141.85 | AC49: -77064.54 | AD49: -20828.30744 | AE49: -862.1143177 | AF49: -20620 | AH49: -1070.421754 | AI49: -77064.54 | AJ49: -21201.59 | AP49: -98266.13 | AQ49: -1070.421754 | AR49: -1256.417771 | AU49: -2326.839525 | AV49: -98266.13 | AW49: -17814.6 | BC49: -116080.73 | BD49: -2326.839525 | BE49: -1533.727881 | BH49: -3860.567406 | BI49: -116080.73 | BJ49: -14631.47 | BK49: -130712.2 | BL49: -3860.567406 | BM49: -1770.359404 | BN49: -5630.92681 | BQ49: -130712.2 | BR49: -5630.92681 | BS49: -1558.742985 | BU49: -137901.8698 | BV49: -136342.57 | BW49: 0.5568101667
A50: 19 | C50: Misc. Deferred Debits | D50: 1525 | I50: 0 | N50: 0 | O50: 0 | S50: 0 | T50: 0 | X50: 0 | Y50: 0 | AC50: 0 | AD50: 0 | AH50: 0 | AI50: 0 | AP50: 0 | AQ50: 0 | AU50: 0 | AV50: 0 | BC50: 0 | BD50: 0 | BH50: 0 | BI50: 0 | BJ50: 8176.4 | BK50: 8176.4 | BL50: 0 | BN50: 0 | BQ50: 8176.4 | BR50: 0 | BU50: 8176.4 | BV50: 8176.4 | BW50: 0
A51: 20 | C51: Renewable Generation Connection Capital Deferral Account | D51: 1531 | I51: 0 | N51: 0 | O51: 0 | S51: 0 | T51: 0 | X51: 0 | Y51: 0 | AC51: 0 | AD51: 0 | AH51: 0 | AI51: 0 | AP51: 0 | AQ51: 0 | AU51: 0 | AV51: 0 | BC51: 0 | BD51: 0 | BH51: 0 | BI51: 0 | BK51: 0 | BL51: 0 | BN51: 0 | BQ51: 0 | BR51: 0 | BU51: 0 | BW51: 0
A52: 21 | C52: Renewable Generation Connection OM&A Deferral Account | D52: 1532 | I52: 0 | N52: 0 | O52: 0 | S52: 0 | T52: 0 | X52: 0 | Y52: 0 | AC52: 0 | AD52: 0 | AH52: 0 | AI52: 0 | AP52: 0 | AQ52: 0 | AU52: 0 | AV52: 0 | BC52: 0 | BD52: 0 | BH52: 0 | BI52: 0 | BK52: 0 | BL52: 0 | BN52: 0 | BQ52: 0 | BR52: 0 | BU52: 0 | BW52: 0
A53: 22 | C53: Renewable Generation Connection Funding Adder Deferral Account | D53: 1533 | I53: 0 | N53: 0 | O53: 0 | S53: 0 | T53: 0 | X53: 0 | Y53: 0 | AC53: 0 | AD53: 0 | AH53: 0 | AI53: 0 | AP53: 0 | AQ53: 0 | AU53: 0 | AV53: 0 | BC53: 0 | BD53: 0 | BH53: 0 | BI53: 0 | BK53: 0 | BL53: 0 | BN53: 0 | BQ53: 0 | BR53: 0 | BU53: 0 | BW53: 0
A54: 23 | C54: Smart Grid Capital Deferral Account | D54: 1534 | I54: 0 | N54: 0 | O54: 0 | S54: 0 | T54: 0 | X54: 0 | Y54: 0 | AC54: 0 | AD54: 0 | AH54: 0 | AI54: 0 | AP54: 0 | AQ54: 0 | AU54: 0 | AV54: 0 | BC54: 0 | BD54: 0 | BH54: 0 | BI54: 0 | BK54: 0 | BL54: 0 | BN54: 0 | BQ54: 0 | BR54: 0 | BU54: 0 | BW54: 0
A55: 24 | C55: Smart Grid OM&A Deferral Account | D55: 1535 | I55: 0 | N55: 0 | O55: 0 | S55: 0 | T55: 0 | X55: 0 | Y55: 0 | AC55: 0 | AD55: 0 | AH55: 0 | AI55: 0 | AP55: 0 | AQ55: 0 | AU55: 0 | AV55: 0 | BC55: 0 | BD55: 0 | BH55: 0 | BI55: 0 | BK55: 0 | BL55: 0 | BN55: 0 | BQ55: 0 | BR55: 0 | BU55: 0 | BW55: 0
A56: 25 | C56: Smart Grid Funding Adder Deferral Account | D56: 1536 | I56: 0 | N56: 0 | O56: 0 | S56: 0 | T56: 0 | X56: 0 | Y56: 0 | AC56: 0 | AD56: 0 | AH56: 0 | AI56: 0 | AP56: 0 | AQ56: 0 | AU56: 0 | AV56: 0 | BC56: 0 | BD56: 0 | BH56: 0 | BI56: 0 | BK56: 0 | BL56: 0 | BN56: 0 | BQ56: 0 | BR56: 0 | BU56: 0 | BW56: 0
A57: 26 | C57: Retail Cost Variance Account - STR | D57: 1548 | H57: -13478.19833 | I57: -13478.19833 | M57: -1220 | N57: -1220 | O57: -13478.19833 | P57: -2223.75 | S57: -15701.94833 | T57: -1220 | U57: -10.519025 | X57: -1230.519025 | Y57: -15701.94833 | Z57: -1587 | AA57: -13478.19833 | AC57: =Y57+Z57-AA57+SUM(AB57:AB57) -> -3810.75 | AD57: -1230.519025 | AE57: -44.2255625 | AF57: -1220 | AH57: -54.7445875 | AI57: -3810.75 | AJ57: -1279.75 | AP57: -5090.5 | AQ57: -54.7445875 | AR57: -64.04759375 | AU57: -118.7921813 | AV57: -5090.5 | AW57: -794 | BC57: -5884.5 | BD57: -118.7921813 | BE57: -80.76333125 | BH57: -199.5555125 | BI57: -5884.5 | BJ57: -901.5 | BK57: -6786 | BL57: -199.5555125 | BM57: -93.78079375 | BN57: -293.3363063 | BQ57: -6786 | BR57: -293.3363063 | BS57: -80.92305 | BU57: -7160.259356 | BV57: -7079.33 | BW57: 0.00630625
A58: 27 | C58: Board-Approved CDM Variance Account | D58: 1567 | N58: 0 | S58: 0 | T58: 0 | X58: =T58+U58-V58+W58 -> 0 | Y58: 0 | AC58: 0 | AD58: 0 | AH58: =AD58+AE58-AF58+AG58 -> 0 | AI58: 0 | AP58: =AI58+AJ58-AK58+SUM(AL58:AO58) -> 0 | AQ58: =AH58 -> 0 | AU58: =AQ58+AR58-AS58+AT58 -> 0 | AV58: 0 | BC58: =AV58+AW58-AX58+SUM(AY58:BB58) -> 0 | BD58: =AU58 -> 0 | BH58: =BD58+BE58-BF58+BG58 -> 0 | BI58: 0 | BK58: 0 | BL58: 0 | BN58: 0 | BQ58: 0 | BR58: 0 | BU58: 0 | BW58: 0
A59: 28 | C59: Extra-Ordinary Event Costs | D59: 1572 | I59: 0 | N59: 0 | O59: =I59 -> 0 | S59: 0 | T59: 0 | X59: 0 | Y59: =S59 -> 0 | AC59: 0 | AD59: 0 | AH59: =AD59+AE59-AF59+AG59 -> 0 | AI59: =AC59 -> 0 | AP59: =AI59+AJ59-AK59+SUM(AL59:AO59) -> 0 | AQ59: =AH59 -> 0 | AU59: =AQ59+AR59-AS59+AT59 -> 0 | AV59: =AP59 -> 0 | BC59: =AV59+AW59-AX59+SUM(AY59:BB59) -> 0 | BD59: =AU59 -> 0 | BH59: =BD59+BE59-BF59+BG59 -> 0 | BI59: 0 | BK59: 0 | BL59: 0 | BN59: 0 | BQ59: 0 | BR59: 0 | BU59: 0 | BW59: 0
A60: 29 | C60: Deferred Rate Impact Amounts | D60: 1574 | I60: 0 | N60: 0 | O60: =I60 -> 0 | S60: 0 | T60: 0 | X60: 0 | Y60: =S60 -> 0 | AC60: 0 | AD60: 0 | AH60: =AD60+AE60-AF60+AG60 -> 0 | AI60: =AC60 -> 0 | AP60: 0 | AQ60: 0 | AU60: =AQ60+AR60-AS60+AT60 -> 0 | AV60: =AP60 -> 0 | BC60: 0 | BD60: 0 | BH60: =BD60+BE60-BF60+BG60 -> 0 | BI60: 0 | BK60: 0 | BL60: 0 | BN60: 0 | BQ60: 0 | BR60: 0 | BU60: 0 | BW60: 0
A61: 30 | C61: RSVA - One-time | D61: 1582 | I61: 0 | N61: 0 | O61: =I61 -> 0 | S61: 0 | T61: 0 | X61: 0 | Y61: =S61 -> 0 | AC61: 0 | AD61: 0 | AH61: =AD61+AE61-AF61+AG61 -> 0 | AI61: =AC61 -> 0 | AP61: 0 | AQ61: 0 | AU61: =AQ61+AR61-AS61+AT61 -> 0 | AV61: =AP61 -> 0 | BC61: 0 | BD61: 0 | BH61: =BD61+BE61-BF61+BG61 -> 0 | BI61: 0 | BK61: 0 | BL61: 0 | BN61: 0 | BQ61: 0 | BR61: 0 | BU61: 0 | BW61: 0
A62: 31 | C62: Other Deferred Credits | D62: 2425 | I62: 0 | N62: 0 | O62: =I62 -> 0 | S62: 0 | T62: 0 | X62: 0 | Y62: =S62 -> 0 | AC62: 0 | AD62: 0 | AH62: =AD62+AE62-AF62+AG62 -> 0 | AI62: =AC62 -> 0 | AP62: 0 | AQ62: 0 | AU62: =AQ62+AR62-AS62+AT62 -> 0 | AV62: =AP62 -> 0 | BC62: 0 | BD62: 0 | BH62: =BD62+BE62-BF62+BG62 -> 0 | BI62: 0 | BK62: 0 | BL62: 0 | BN62: 0 | BQ62: 0 | BR62: 0 | BU62: 0 | BW62: 0
BW63: 0
C64: Group 2 Sub-Total | E64: =SUM(E43:E62) -> 0 | F64: 44169.5 | G64: 0 | H64: -268870.0483 | I64: -224700.5483 | J64: 0 | K64: 160.7883646 | L64: 0 | M64: -21832 | N64: -21671.21164 | O64: -224700.5483 | P64: -570.33 | Q64: 0 | R64: 0 | S64: -225270.8783 | T64: -21671.21164 | U64: 411.4341729 | V64: 0 | W64: 0 | X64: -21259.77746 | Y64: -225270.8783 | Z64: 329818.7105 | AA64: -268870.0483 | AB64: 0 | AC64: 373417.8805 | AD64: -21259.77746 | AE64: 454.7769598 | AF64: -21832 | AG64: 0 | AH64: 1026.999497 | AI64: 373417.8805 | AJ64: 546399.7266 | AK64: =SUM(AK43:AK62) -> 0 | AL64: 0 | AM64: 0 | AN64: 0 | AO64: 0 | AP64: 919817.6071 | AQ64: 1026.999497 | AR64: 78.05147525 | AS64: 0 | AT64: 0 | AU64: 1105.050972 | AV64: 919817.6071 | AW64: -627084.2159 | AX64: 0 | AY64: 0 | AZ64: 0 | BA64: 0 | BB64: -16920 | BC64: 275813.3912 | BD64: 1105.050972 | BE64: -137.2252718 | BF64: 0 | BG64: 0 | BH64: 967.8257008 | BI64: 275813.3912 | BO64: 0 | BP64: 0 | BQ64: 465063.7301 | BR64: 622.4632638 | BS64: -402.2012722 | BT64: 0 | BU64: 465283.9921 | BV64: =SUM(BV43:BV62) -> 482604.26 | BW64: =SUM(BW43:BW62) -> 16918.06659
BW65: 0
A66: 32 | C66: Deferred Payments in Lieu of Taxes | D66: 1562 | I66: =E66+F66-G66+H66 -> 0 | N66: =J66+K66-L66+M66 -> 0 | O66: =I66 -> 0 | S66: =O66+P66-Q66+SUM(R66:R66) -> 0 | T66: =N66 -> 0 | X66: =T66+U66-V66+W66 -> 0 | Y66: =S66 -> 0 | AC66: =Y66+Z66-AA66+SUM(AB66:AB66) -> 0 | AD66: =X66 -> 0 | AH66: =AD66+AE66-AF66+AG66 -> 0 | AI66: =AC66 -> 0 | AP66: =AI66+AJ66-AK66+SUM(AL66:AO66) -> 0 | AQ66: =AH66 -> 0 | AU66: =AQ66+AR66-AS66+AT66 -> 0 | AV66: =AP66 -> 0 | BC66: =AV66+AW66-AX66+SUM(AY66:BB66) -> 0 | BD66: =AU66 -> 0 | BH66: =BD66+BE66-BF66+BG66 -> 0 | BI66: 0 | BK66: =+BI66+BJ66 -> 0 | BL66: =+BH66 -> 0 | BN66: =+BL66+BM66 -> 0 | BQ66: =BK66-BO66 -> 0 | BR66: =BN66-BP66 -> 0 | BU66: 0 | BW66: 0
A67: 33 | C67: PILs and Tax Variance for 2006 and Subsequent Years (excludes sub-account and contra account below) | D67: 1592 | I67: =E67+F67-G67+H67 -> 0 | N67: =J67+K67-L67+M67 -> 0 | O67: =I67 -> 0 | P67: -39415.85653 | S67: =O67+P67-Q67+SUM(R67:R67) -> -39415.85653 | T67: =N67 -> 0 | U67: -205.9478504 | X67: =T67+U67-V67+W67 -> -205.9478504 | Y67: =S67 -> -39415.85653 | Z67: -13178.0347 | AC67: =Y67+Z67-AA67+SUM(AB67:AB67) -> -52593.89123 | AD67: =X67 -> -205.9478504 | AE67: -676.271646 | AH67: =AD67+AE67-AF67+AG67 -> -882.2194964 | AI67: =AC67 -> -52593.89123 | AP67: =AI67+AJ67-AK67+SUM(AL67:AO67) -> -52593.89123 | AQ67: =AH67 -> -882.2194964 | AR67: -773.1302011 | AU67: =AQ67+AR67-AS67+AT67 -> -1655.349697 | AV67: =AP67 -> -52593.89123 | BC67: =AV67+AW67-AX67+SUM(AY67:BB67) -> -52593.89123 | BD67: =AU67 -> -1655.349697 | BE67: -773.1302011 | BH67: =BD67+BE67-BF67+BG67 -> -2428.479899 | BI67: -52593.89123 | BJ67: -773.1302011 | BK67: -53367.02143 | BL67: -2428.479899 | BN67: -2428.479899 | BQ67: -53367.02143 | BR67: -2428.479899 | BS67: -636.4017306 | BU67: -56431.90306 | BV67: -55795.48 | BW67: 0.02132866542
A68: 34 | C68: PILs and Tax Variance for 2006 and Subsequent Years - Sub-Account HST/OVAT Input Tax Credits (ITCs) | D68: 1592 | I68: =E68+F68-G68+H68 -> 0 | N68: =J68+K68-L68+M68 -> 0 | O68: =I68 -> 0 | P68: -30733.38881 | S68: =O68+P68-Q68+SUM(R68:R68) -> -30733.38881 | T68: =N68 -> 0 | U68: -72.86374264 | X68: =T68+U68-V68+W68 -> -72.86374264 | Y68: =S68 -> -30733.38881 | AC68: =Y68+Z68-AA68+SUM(AB68:AB68) -> -30733.38881 | AD68: =X68 -> -72.86374264 | AE68: -451.7808155 | AH68: =AD68+AE68-AF68+AG68 -> -524.6445581 | AI68: =AC68 -> -30733.38881 | AP68: =AI68+AJ68-AK68+SUM(AL68:AO68) -> -30733.38881 | AQ68: =AH68 -> -524.6445581 | AR68: -451.7808155 | AU68: =AQ68+AR68-AS68+AT68 -> -976.4253736 | AV68: =AP68 -> -30733.38881 | BC68: =AV68+AW68-AX68+SUM(AY68:BB68) -> -30733.38881 | BD68: =AU68 -> -976.4253736 | BE68: -451.7808155 | BH68: =BD68+BE68-BF68+BG68 -> -1428.206189 | BI68: -30733.38881 | BK68: -30733.38881 | BL68: -1428.206189 | BM68: -451.7808155 | BN68: -1879.987005 | BQ68: -30733.38881 | BR68: -1879.987005 | BS68: -366.4956615 | BU68: -32979.87148 | BV68: 0 | BW68: 32613.37581
BN69: 0 | BW69: 0
C70: Total of Group 1 and Group 2 Accounts (including 1562 and 1592) | E70: =+E64+E38+E66+E67+E68 -> 0 | F70: 44169.5 | G70: 0 | H70: -268870.0483 | I70: -224700.5483 | J70: 0 | K70: 160.7883646 | L70: 0 | M70: -21832 | N70: -21671.21164 | O70: -224700.5483 | P70: 2380550.935 | Q70: 0 | R70: -12472653 | S70: -10316802.61 | T70: -21671.21164 | U70: -68808.90468 | V70: 0 | W70: -1214175 | X70: -1304655.116 | Y70: -10316802.61 | Z70: 3749586.821 | AA70: -268870.0483 | AB70: 1151115 | AC70: -5147230.745 | AD70: -1304655.116 | AE70: -113299.2041 | AF70: -21832 | AG70: 127965 | AH70: -1268157.32 | AI70: -5147230.745 | AJ70: 5578031.693 | AK70: =+AK64+AK38+AK66+AK67+AK68 -> 0 | AL70: 0 | AM70: -4597499 | AN70: 0 | AO70: 0 | AP70: -4166698.052 | AQ70: -1268157.32 | AR70: -96149.28837 | AS70: 0 | AT70: -187943 | AU70: -1552249.609 | AV70: -4166698.052 | AW70: 6599609.245 | AX70: 0 | AY70: 0 | AZ70: -1824804 | BA70: 0 | BB70: -1531753.239 | BC70: -923646.0459 | BD70: -1552249.609 | BE70: -43596.11356 | BF70: 0 | BG70: -75501.73835 | BH70: -1671347.461 | BI70: -923646.0459 | BL70: -1671347.461 | BO70: -1514833.239 | BP70: -25754.89142 | BQ70: 6455915.717 | BR70: -1583457.101 | BS70: 71038.83985 | BT70: 0 | BU70: =+BU64+BU38+BU66+BU67+BU68 -> 4943497.456 | BV70: 3388911.158 | BW70: 3388911.158
BW71: 0
BW72: 0
A73: 35 | C73: LRAM Variance Account | D73: 1568 | S73: =O73+P73-Q73+SUM(R73:R73) -> 0 | X73: =T73+U73-V73+W73 -> 0 | Y73: =S73 -> 0 | Z73: 20555.56999 | AC73: =Y73+Z73-AA73+SUM(AB73:AB73) -> 20555.56999 | AD73: =X73 -> 0 | AE73: 138.4931528 | AH73: =AD73+AE73-AF73+AG73 -> 138.4931528 | AI73: =AC73 -> 20555.56999 | AJ73: 131964.6804 | AP73: =AI73+AJ73-AK73+SUM(AL73:AO73) -> 152520.2504 | AQ73: =AH73 -> 138.4931528 | AR73: 1191.278913 | AU73: =AQ73+AR73-AS73+AT73 -> 1329.772066 | AV73: =AP73 -> 152520.2504 | AW73: 203442.8352 | BC73: =AV73+AW73-AX73+SUM(AY73:BB73) -> 355963.0857 | BD73: =AU73 -> 1329.772066 | BE73: 3612.743784 | BH73: =BD73+BE73-BF73+BG73 -> 4942.51585 | BI73: =+BC73 -> 355963.0857 | BK73: =+BI73+BJ73 -> 355963.0857 | BL73: =+BH73 -> 4942.51585 | BM73: 5232.657359 | BN73: =+BL73+BM73 -> 10175.17321 | BQ73: =BK73-BO73 -> 355963.0857 | BR73: =BN73-BP73 -> 10175.17321 | BS73: 4244.859796 | BU73: =SUM(BQ73:BT73) -> 370383.1187 | BV73: 378524.55 | BW73: 12386.29113
BW74: 0
BW75: 0
C76: Total including Account 1568 | E76: =E70+E73 -> 0 | F76: 44169.5 | G76: 0 | H76: -268870.0483 | I76: -224700.5483 | J76: 0 | K76: 160.7883646 | L76: 0 | M76: -21832 | N76: -21671.21164 | O76: -224700.5483 | P76: 2380550.935 | Q76: 0 | R76: -12472653 | S76: -10316802.61 | T76: -21671.21164 | U76: -68808.90468 | V76: 0 | W76: -1214175 | X76: -1304655.116 | Y76: -10316802.61 | Z76: 3770142.391 | AA76: -268870.0483 | AB76: 1151115 | AC76: =AC70+AC73 -> -5126675.175 | AD76: -1304655.116 | AE76: -113160.7109 | AF76: -21832 | AG76: 127965 | AH76: -1268018.827 | AI76: -5126675.175 | AJ76: 5709996.373 | AK76: 0 | AL76: 0 | AM76: -4597499 | AN76: 0 | AO76: 0 | AP76: -4014177.801 | AQ76: -1268018.827 | AR76: -94958.00945 | AS76: 0 | AT76: -187943 | AU76: -1550919.837 | AV76: =AV70+AV73 -> -4014177.801 | AW76: 6803052.08 | AX76: 0 | AY76: 0 | AZ76: -1824804 | BA76: 0 | BB76: -1531753.239 | BC76: -567682.9603 | BD76: -1550919.837 | BE76: -39983.36978 | BF76: 0 | BG76: -75501.73835 | BH76: -1666404.945 | BI76: =+BC76 -> -567682.9603 | BL76: =+BH76 -> -1666404.945 | BN76: =+BL76+BM76 -> -1666404.945 | BO76: -1514833.239 | BP76: -25754.89142 | BQ76: 6811878.803 | BR76: -1573281.928 | BS76: 75283.69965 | BT76: 0 | BU76: 5313880.575 | BV76: 3767435.708 | BW76: 5433840.653
BW77: 0
A78: 36 | C78: Smart Meter Capital and Recovery Offset Variance - Sub-Account - Capital10 | D78: 1555 | I78: =E78+F78-G78+H78 -> 0 | N78: =J78+K78-L78+M78 -> 0 | O78: =I78 -> 0 | S78: =O78+P78-Q78+SUM(R78:R78) -> 0 | T78: =N78 -> 0 | X78: =T78+U78-V78+W78 -> 0 | Y78: =S78 -> 0 | AC78: =Y78+Z78-AA78+SUM(AB78:AB78) -> 0 | AD78: =X78 -> 0 | AH78: =AD78+AE78-AF78+AG78 -> 0 | AI78: =AC78 -> 0 | AP78: =AI78+AJ78-AK78+SUM(AL78:AO78) -> 0 | AQ78: =AH78 -> 0 | AU78: =AQ78+AR78-AS78+AT78 -> 0 | AV78: =AP78 -> 0 | BC78: =AV78+AW78-AX78+SUM(AY78:BB78) -> 0 | BD78: =AU78 -> 0 | BH78: =BD78+BE78-BF78+BG78 -> 0 | BI78: =+BC78 -> 0 | BK78: =+BI78+BJ78 -> 0 | BL78: =+BH78 -> 0 | BN78: =+BL78+BM78 -> 0 | BQ78: =BK78-BO78 -> 0 | BR78: =BN78-BP78 -> 0 | BU78: 0 | BW78: 0
A79: 37 | C79: Smart Meter Capital and Recovery Offset Variance - Sub-Account - Recoveries10 | D79: 1555 | I79: =E79+F79-G79+H79 -> 0 | N79: =J79+K79-L79+M79 -> 0 | O79: =I79 -> 0 | S79: =O79+P79-Q79+SUM(R79:R79) -> 0 | T79: =N79 -> 0 | X79: =T79+U79-V79+W79 -> 0 | Y79: =S79 -> 0 | AC79: =Y79+Z79-AA79+SUM(AB79:AB79) -> 0 | AD79: =X79 -> 0 | AH79: =AD79+AE79-AF79+AG79 -> 0 | AI79: =AC79 -> 0 | AP79: =AI79+AJ79-AK79+SUM(AL79:AO79) -> 0 | AQ79: =AH79 -> 0 | AU79: =AQ79+AR79-AS79+AT79 -> 0 | AV79: =AP79 -> 0 | BC79: =AV79+AW79-AX79+SUM(AY79:BB79) -> 0 | BD79: =AU79 -> 0 | BH79: =BD79+BE79-BF79+BG79 -> 0 | BI79: 0 | BK79: 0 | BL79: 0 | BN79: 0 | BQ79: 0 | BR79: 0 | BU79: 0 | BW79: 0
A80: 38 | C80: Smart Meter Capital and Recovery Offset Variance - Sub-Account - Stranded Meter Costs10 | D80: 1555 | I80: =E80+F80-G80+H80 -> 0 | N80: =J80+K80-L80+M80 -> 0 | O80: =I80 -> 0 | S80: =O80+P80-Q80+SUM(R80:R80) -> 0 | T80: =N80 -> 0 | X80: =T80+U80-V80+W80 -> 0 | Y80: =S80 -> 0 | AC80: =Y80+Z80-AA80+SUM(AB80:AB80) -> 0 | AD80: =X80 -> 0 | AH80: =AD80+AE80-AF80+AG80 -> 0 | AI80: =AC80 -> 0 | AP80: =AI80+AJ80-AK80+SUM(AL80:AO80) -> 0 | AQ80: =AH80 -> 0 | AU80: =AQ80+AR80-AS80+AT80 -> 0 | AV80: =AP80 -> 0 | BC80: =AV80+AW80-AX80+SUM(AY80:BB80) -> 0 | BD80: =AU80 -> 0 | BH80: =BD80+BE80-BF80+BG80 -> 0 | BI80: 0 | BJ80: 1363996.758 | BK80: 1363996.758 | BL80: 0 | BN80: 0 | BQ80: 1363996.758 | BR80: 0 | BU80: 1363996.758 | BV80: 1363996.41 | BW80: -0.3479030835
A81: 39 | C81: Smart Meter OM&A Variance10 | D81: 1556 | I81: =E81+F81-G81+H81 -> 0 | N81: =J81+K81-L81+M81 -> 0 | O81: =I81 -> 0 | S81: =O81+P81-Q81+SUM(R81:R81) -> 0 | T81: =N81 -> 0 | X81: =T81+U81-V81+W81 -> 0 | Y81: =S81 -> 0 | AC81: =Y81+Z81-AA81+SUM(AB81:AB81) -> 0 | AD81: =X81 -> 0 | AH81: =AD81+AE81-AF81+AG81 -> 0 | AI81: =AC81 -> 0 | AP81: =AI81+AJ81-AK81+SUM(AL81:AO81) -> 0 | AQ81: =AH81 -> 0 | AU81: =AQ81+AR81-AS81+AT81 -> 0 | AV81: =AP81 -> 0 | BC81: =AV81+AW81-AX81+SUM(AY81:BB81) -> 0 | BD81: =AU81 -> 0 | BH81: =BD81+BE81-BF81+BG81 -> 0 | BI81: 0 | BK81: 0 | BL81: 0 | BN81: 0 | BQ81: 0 | BR81: 0 | BU81: 0 | BW81: 0
BK82: 0 | BN82: 0 | BW82: 0
A83: 40 | C83: IFRS-CGAAP Transition PP&E Amounts Balance + Return Component9 | D83: 1575 | AP83: =AI83+AJ83-AK83+SUM(AL83:AO83) -> 0 | AQ83: =AH83 -> 0 | AU83: =AQ83+AR83-AS83+AT83 -> 0 | BC83: =AV83+AW83-AX83+SUM(AY83:BB83) -> 0 | BD83: =AU83 -> 0 | BH83: =BD83+BE83-BF83+BG83 -> 0 | BI83: 0 | BK83: 0 | BL83: =+BH83 -> 0 | BN83: 0 | BQ83: =BK83-BO83 -> 0 | BR83: =BN83-BP83 -> 0 | BU83: =SUM(BQ83:BT83) -> 0 | BW83: 0
A84: 41 | C84: Accounting Changes Under CGAAP Balance + Return Component9 | D84: 1576 | AO84: -853444.1065 | AP84: =AI84+AJ84-AK84+SUM(AL84:AO84) -> -853444.1065 | AQ84: =AH84 -> 0 | AU84: =AQ84+AR84-AS84+AT84 -> 0 | BC84: =AV84+AW84-AX84+SUM(AY84:BB84) -> 0 | BD84: =AU84 -> 0 | BH84: =BD84+BE84-BF84+BG84 -> 0 | BI84: 0 | BK84: 0 | BL84: 0 | BN84: 0 | BQ84: 0 | BR84: 0 | BU84: =SUM(BQ84:BT84) -> 0 | BW84: 0
C88: For all Board-Approved dispositions, please ensure that the disposition amount has the same sign (e.g: debit balances are to have a positive figure and credit balance are to have a negative figure) as per the related Board decision.
B89: 1 | C89: Provide supporting statement indicating whether due to denial of costs in 2006 EDR by the Board, 10% transition costs write-off, etc.
B90: 1A | C90: Adjustments Instructed by the Board include deferral/variance account balances moved to Account 1590 as a result of the 2006 EDR and account 1595 during the 2008 EDR and subsequent years as ordered by the Board.
B91: 2 | C91: Please provide explanations for the nature of the adjustments. If the adjustment relates to previously Board Approved disposed balances, please provide amounts for adjustments and include supporting documentations.
B92: 3 | C92: For RSVA accounts only, report the net variance to the account during the year. For all other accounts, record the transactions during the year.
B93: 4 | C93: Please describe "other" components of 1508 and add more component lines if necessary.
B94: 5 | C94: 1563 is a contra-account and is not included in the total but is shown on a memo basis. Account 1562 establishes the obligation to the ratepayer.
B95: 6 | C95: If the LDC’s 2014 rate year begins January 1, 2014, the projected interest is recorded from January 1, 2013 to December 31, 2013 on the December 31, 2012 balance adjusted for the disposed balances approved by the Board in the 2013 rate decision. If the LDC’s 2013 rate year begins May 1, 2014 the projected interest is recorded from January 1, 2013 to April 30, 2014 on the December 31, 2012 balance adjusted for the disposed balances approved by the Board in the 2013 rate decision.
B98: 8 | C98: As per the January 6, 2011 Letter from the Board, regarding the implementation of the Ontario Clean Energy Benefit:
C99: "By way of exception... The Board does acticipate that licensed distributors that cannot adapt their invoices as of January 1, 2011 will require a variance account for OCEB purposes... The Board expects that any principal
C100: balances in "Sub account Financial Assistance Payment and Recovery Variance - Ontario Clean Energy Benefit Act" will be addressed through the monthly settlement process with the IESO or the host distributor, as applicable.
B101: 9 | C101: The Board requires that disposition of Account 1575 and Account 1576 shall require the use of separate rate riders. In the "Other Adjustments during Q4 2012" column of the continuity schedule, please enter the amounts to be included in the Account 1575 and 1576 rate rider calculation from the applicable Chapter 2 appendices. For Account 1575, please provide the value in cell F39 from the relevant Chapter 2 Appendix (i.e. 2-EA, 2-EB or 2-EC). For Account 1576, please provide the value in cell F39 from the relevant Chapter 2 Appendix (i.e. 2-ED or 2-EE).
B102: 10 | C102: Deferral accounts related to Smart Meter deployment are not to be recovered/refunded through the Deferral and Variance Account rate rider. For details on how to dispose of balances in Smart Meter accounts see the Board's
C103: Guideline: Smart Meter Disposition and Cost Recovery (G-2011-0001)

Sheet 3. Appendix A
B16: Accounts that produced a variance on the 2014 continuity schedule are listed below. Please provide a detailed explanation for each variance below.
C20: Account Descriptions | D20: Account Number | E20: Variance RRR vs. 2013 Balance (Principal + Interest) | F20: Explanation
C23: Group 1 Accounts
A24: 1 | C24: LV Variance Account | D24: 1550 | E24: =IF(ISERROR(VLOOKUP($A24, '2. 2014 Continuity Schedule'!$A$20:$BW$87, MATCH('3. Appendix A'!$E$20, '2. 2014 Continuity Schedule'!$A$20:$BW$20,0),FALSE)), 0, VLOOKUP($A24, '2. 2014 Continuity Schedule'!$A$20:$BW$87, MATCH('3. Appendix A'!$E$20, '2. 2014 Continuity Schedule'!$A$20:$BW$20,0),FALSE)) -> -412.4044981 | F24: Difference is $498 Projected Jan-Apr 2015 Interest in Column BG which was approved by the Board in the 2015 IRM 2014-0119 and a correction adjustment of $86 interest
A25: 2 | C25: Smart Metering Entity Charge Variance Account | D25: 1551 | E25: =IF(ISERROR(VLOOKUP($A25, '2. 2014 Continuity Schedule'!$A$20:$BW$87, MATCH('3. Appendix A'!$E$20, '2. 2014 Continuity Schedule'!$A$20:$BW$20,0),FALSE)), 0, VLOOKUP($A25, '2. 2014 Continuity Schedule'!$A$20:$BW$87, MATCH('3. Appendix A'!$E$20, '2. 2014 Continuity Schedule'!$A$20:$BW$20,0),FALSE)) -> -158.3878566 | F25: Difference is Projected Jan-Apr 2015 Interest in Column BG which was approved by the Board in the 2015 IRM 2014-0119
A26: 3 | C26: RSVA - Wholesale Market Service Charge | D26: 1580 | E26: =IF(ISERROR(VLOOKUP($A26, '2. 2014 Continuity Schedule'!$A$20:$BW$87, MATCH('3. Appendix A'!$E$20, '2. 2014 Continuity Schedule'!$A$20:$BW$20,0),FALSE)), 0, VLOOKUP($A26, '2. 2014 Continuity Schedule'!$A$20:$BW$87, MATCH('3. Appendix A'!$E$20, '2. 2014 Continuity Schedule'!$A$20:$BW$20,0),FALSE)) -> 4537.736068 | F26: Difference is Projected Jan-Apr 2015 Interest in Column BG which was approved by the Board in the 2015 IRM 2014-0119
A27: 4 | C27: RSVA - Retail Transmission Network Charge | D27: 1584 | E27: =IF(ISERROR(VLOOKUP($A27, '2. 2014 Continuity Schedule'!$A$20:$BW$87, MATCH('3. Appendix A'!$E$20, '2. 2014 Continuity Schedule'!$A$20:$BW$20,0),FALSE)), 0, VLOOKUP($A27, '2. 2014 Continuity Schedule'!$A$20:$BW$87, MATCH('3. Appendix A'!$E$20, '2. 2014 Continuity Schedule'!$A$20:$BW$20,0),FALSE)) -> 2071.908702 | F27: Difference is Projected Jan-Apr 2015 Interest in Column BG which was approved by the Board in the 2015 IRM 2014-0119
A28: 5 | C28: RSVA - Retail Transmission Connection Charge | D28: 1586 | E28: =IF(ISERROR(VLOOKUP($A28, '2. 2014 Continuity Schedule'!$A$20:$BW$87, MATCH('3. Appendix A'!$E$20, '2. 2014 Continuity Schedule'!$A$20:$BW$20,0),FALSE)), 0, VLOOKUP($A28, '2. 2014 Continuity Schedule'!$A$20:$BW$87, MATCH('3. Appendix A'!$E$20, '2. 2014 Continuity Schedule'!$A$20:$BW$20,0),FALSE)) -> 1311.074792 | F28: Difference is Projected Jan-Apr 2015 Interest in Column BG which was approved by the Board in the 2015 IRM 2014-0119
A29: 6 | C29: RSVA - Power (excluding Global Adjustment) | D29: 1588 | E29: =IF(ISERROR(VLOOKUP($A29, '2. 2014 Continuity Schedule'!$A$20:$BW$87, MATCH('3. Appendix A'!$E$20, '2. 2014 Continuity Schedule'!$A$20:$BW$20,0),FALSE)), 0, VLOOKUP($A29, '2. 2014 Continuity Schedule'!$A$20:$BW$87, MATCH('3. Appendix A'!$E$20, '2. 2014 Continuity Schedule'!$A$20:$BW$20,0),FALSE)) -> 2267.849286 | F29: Difference is Projected Jan-Apr 2015 Interest in Column BG which was approved by the Board in the 2015 IRM 2014-0119
A30: 7 | C30: RSVA - Global Adjustment | D30: 1589 | E30: =IF(ISERROR(VLOOKUP($A30, '2. 2014 Continuity Schedule'!$A$20:$BW$87, MATCH('3. Appendix A'!$E$20, '2. 2014 Continuity Schedule'!$A$20:$BW$20,0),FALSE)), 0, VLOOKUP($A30, '2. 2014 Continuity Schedule'!$A$20:$BW$87, MATCH('3. Appendix A'!$E$20, '2. 2014 Continuity Schedule'!$A$20:$BW$20,0),FALSE)) -> -2109.947551 | F30: Difference is Projected Jan-Apr 2015 Interest in Column BG which was approved by the Board in the 2015 IRM 2014-0119
A31: 8 | C31: Disposition and Recovery/Refund of Regulatory Balances (2008) | D31: 1595 | E31: =IF(ISERROR(VLOOKUP($A31, '2. 2014 Continuity Schedule'!$A$20:$BW$87, MATCH('3. Appendix A'!$E$20, '2. 2014 Continuity Schedule'!$A$20:$BW$20,0),FALSE)), 0, VLOOKUP($A31, '2. 2014 Continuity Schedule'!$A$20:$BW$87, MATCH('3. Appendix A'!$E$20, '2. 2014 Continuity Schedule'!$A$20:$BW$20,0),FALSE)) -> 0
A32: 9 | C32: Disposition and Recovery/Refund of Regulatory Balances (2009) | D32: 1595 | E32: =IF(ISERROR(VLOOKUP($A32, '2. 2014 Continuity Schedule'!$A$20:$BW$87, MATCH('3. Appendix A'!$E$20, '2. 2014 Continuity Schedule'!$A$20:$BW$20,0),FALSE)), 0, VLOOKUP($A32, '2. 2014 Continuity Schedule'!$A$20:$BW$87, MATCH('3. Appendix A'!$E$20, '2. 2014 Continuity Schedule'!$A$20:$BW$20,0),FALSE)) -> 0
A33: 10 | C33: Disposition and Recovery/Refund of Regulatory Balances (2010) | D33: 1595 | E33: =IF(ISERROR(VLOOKUP($A33, '2. 2014 Continuity Schedule'!$A$20:$BW$87, MATCH('3. Appendix A'!$E$20, '2. 2014 Continuity Schedule'!$A$20:$BW$20,0),FALSE)), 0, VLOOKUP($A33, '2. 2014 Continuity Schedule'!$A$20:$BW$87, MATCH('3. Appendix A'!$E$20, '2. 2014 Continuity Schedule'!$A$20:$BW$20,0),FALSE)) -> 0.4322739682
A34: 11 | C34: Disposition and Recovery/Refund of Regulatory Balances (2011) | D34: 1595 | E34: =IF(ISERROR(VLOOKUP($A34, '2. 2014 Continuity Schedule'!$A$20:$BW$87, MATCH('3. Appendix A'!$E$20, '2. 2014 Continuity Schedule'!$A$20:$BW$20,0),FALSE)), 0, VLOOKUP($A34, '2. 2014 Continuity Schedule'!$A$20:$BW$87, MATCH('3. Appendix A'!$E$20, '2. 2014 Continuity Schedule'!$A$20:$BW$20,0),FALSE)) -> 0.4849192759
A35: 12 | C35: Disposition and Recovery/Refund of Regulatory Balances (2012) | D35: 1595 | E35: =IF(ISERROR(VLOOKUP($A35, '2. 2014 Continuity Schedule'!$A$20:$BW$87, MATCH('3. Appendix A'!$E$20, '2. 2014 Continuity Schedule'!$A$20:$BW$20,0),FALSE)), 0, VLOOKUP($A35, '2. 2014 Continuity Schedule'!$A$20:$BW$87, MATCH('3. Appendix A'!$E$20, '2. 2014 Continuity Schedule'!$A$20:$BW$20,0),FALSE)) -> 0.4151249148
C36: Disposition and Recovery/Refund of Regulatory Balances (2013) | D36: 1595 | E36: =+'2. 2014 Continuity Schedule'!BW36 -> 0.04706724157
C37: Group 2 Accounts
A38: 13 | C38: Other Regulatory Assets - Sub-Account - Deferred IFRS Transition Costs | D38: 1508 | E38: =IF(ISERROR(VLOOKUP($A38, '2. 2014 Continuity Schedule'!$A$20:$BW$87, MATCH('3. Appendix A'!$E$20, '2. 2014 Continuity Schedule'!$A$20:$BW$20,0),FALSE)), 0, VLOOKUP($A38, '2. 2014 Continuity Schedule'!$A$20:$BW$87, MATCH('3. Appendix A'!$E$20, '2. 2014 Continuity Schedule'!$A$20:$BW$20,0),FALSE)) -> -0.02751183334
A39: 14 | C39: Other Regulatory Assets - Sub-Account - Incremental Capital Charges | D39: 1508 | E39: =IF(ISERROR(VLOOKUP($A39, '2. 2014 Continuity Schedule'!$A$20:$BW$87, MATCH('3. Appendix A'!$E$20, '2. 2014 Continuity Schedule'!$A$20:$BW$20,0),FALSE)), 0, VLOOKUP($A39, '2. 2014 Continuity Schedule'!$A$20:$BW$87, MATCH('3. Appendix A'!$E$20, '2. 2014 Continuity Schedule'!$A$20:$BW$20,0),FALSE)) -> 0.9511316667 | F39: Rounding
A40: 15 | C40: Other Regulatory Assets - Sub-Account - Financial Assistance Payment and Recovery Variance - Ontario Clean Energy Benefit Act | D40: 1508 | E40: =IF(ISERROR(VLOOKUP($A40, '2. 2014 Continuity Schedule'!$A$20:$BW$87, MATCH('3. Appendix A'!$E$20, '2. 2014 Continuity Schedule'!$A$20:$BW$20,0),FALSE)), 0, VLOOKUP($A40, '2. 2014 Continuity Schedule'!$A$20:$BW$87, MATCH('3. Appendix A'!$E$20, '2. 2014 Continuity Schedule'!$A$20:$BW$20,0),FALSE)) -> 0
A41: 16 | C41: Other Regulatory Assets - Sub-Account - Financial Assistance Payment and Recovery Carrying Charges | D41: 1508 | E41: =IF(ISERROR(VLOOKUP($A41, '2. 2014 Continuity Schedule'!$A$20:$BW$87, MATCH('3. Appendix A'!$E$20, '2. 2014 Continuity Schedule'!$A$20:$BW$20,0),FALSE)), 0, VLOOKUP($A41, '2. 2014 Continuity Schedule'!$A$20:$BW$87, MATCH('3. Appendix A'!$E$20, '2. 2014 Continuity Schedule'!$A$20:$BW$20,0),FALSE)) -> 0
A42: 17 | C42: Other Regulatory Assets - Sub-Account - Other 4 OMERS Difference - 2011 COS Settlement Agreement Item | D42: 1508 | E42: =IF(ISERROR(VLOOKUP($A42, '2. 2014 Continuity Schedule'!$A$20:$BW$87, MATCH('3. Appendix A'!$E$20, '2. 2014 Continuity Schedule'!$A$20:$BW$20,0),FALSE)), 0, VLOOKUP($A42, '2. 2014 Continuity Schedule'!$A$20:$BW$87, MATCH('3. Appendix A'!$E$20, '2. 2014 Continuity Schedule'!$A$20:$BW$20,0),FALSE)) -> -0.26
C43: Other Regulatory Assets - Sub-Account - Other 4 Capital Gain Variance - 2011 COS Settlement Agreement Item | D43: 1508 | E43: =IF(ISERROR(VLOOKUP($A43, '2. 2014 Continuity Schedule'!$A$20:$BW$87, MATCH('3. Appendix A'!$E$20, '2. 2014 Continuity Schedule'!$A$20:$BW$20,0),FALSE)), 0, VLOOKUP($A43, '2. 2014 Continuity Schedule'!$A$20:$BW$87, MATCH('3. Appendix A'!$E$20, '2. 2014 Continuity Schedule'!$A$20:$BW$20,0),FALSE)) -> 0
A44: 18 | C44: Retail Cost Variance Account - Retail | D44: 1518 | E44: =IF(ISERROR(VLOOKUP($A44, '2. 2014 Continuity Schedule'!$A$20:$BW$87, MATCH('3. Appendix A'!$E$20, '2. 2014 Continuity Schedule'!$A$20:$BW$20,0),FALSE)), 0, VLOOKUP($A44, '2. 2014 Continuity Schedule'!$A$20:$BW$87, MATCH('3. Appendix A'!$E$20, '2. 2014 Continuity Schedule'!$A$20:$BW$20,0),FALSE)) -> 0.5568101667 | F44: Rounding
A45: 19 | C45: Misc. Deferred Debits | D45: 1525 | E45: =IF(ISERROR(VLOOKUP($A45, '2. 2014 Continuity Schedule'!$A$20:$BW$87, MATCH('3. Appendix A'!$E$20, '2. 2014 Continuity Schedule'!$A$20:$BW$20,0),FALSE)), 0, VLOOKUP($A45, '2. 2014 Continuity Schedule'!$A$20:$BW$87, MATCH('3. Appendix A'!$E$20, '2. 2014 Continuity Schedule'!$A$20:$BW$20,0),FALSE)) -> 0
A46: 20 | C46: Renewable Generation Connection Capital Deferral Account | D46: 1531 | E46: =IF(ISERROR(VLOOKUP($A46, '2. 2014 Continuity Schedule'!$A$20:$BW$87, MATCH('3. Appendix A'!$E$20, '2. 2014 Continuity Schedule'!$A$20:$BW$20,0),FALSE)), 0, VLOOKUP($A46, '2. 2014 Continuity Schedule'!$A$20:$BW$87, MATCH('3. Appendix A'!$E$20, '2. 2014 Continuity Schedule'!$A$20:$BW$20,0),FALSE)) -> 0
A47: 21 | C47: Renewable Generation Connection OM&A Deferral Account | D47: 1532 | E47: =IF(ISERROR(VLOOKUP($A47, '2. 2014 Continuity Schedule'!$A$20:$BW$87, MATCH('3. Appendix A'!$E$20, '2. 2014 Continuity Schedule'!$A$20:$BW$20,0),FALSE)), 0, VLOOKUP($A47, '2. 2014 Continuity Schedule'!$A$20:$BW$87, MATCH('3. Appendix A'!$E$20, '2. 2014 Continuity Schedule'!$A$20:$BW$20,0),FALSE)) -> 0
A48: 22 | C48: Renewable Generation Connection Funding Adder Deferral Account | D48: 1533 | E48: =IF(ISERROR(VLOOKUP($A48, '2. 2014 Continuity Schedule'!$A$20:$BW$87, MATCH('3. Appendix A'!$E$20, '2. 2014 Continuity Schedule'!$A$20:$BW$20,0),FALSE)), 0, VLOOKUP($A48, '2. 2014 Continuity Schedule'!$A$20:$BW$87, MATCH('3. Appendix A'!$E$20, '2. 2014 Continuity Schedule'!$A$20:$BW$20,0),FALSE)) -> 0
A49: 23 | C49: Smart Grid Capital Deferral Account | D49: 1534 | E49: =IF(ISERROR(VLOOKUP($A49, '2. 2014 Continuity Schedule'!$A$20:$BW$87, MATCH('3. Appendix A'!$E$20, '2. 2014 Continuity Schedule'!$A$20:$BW$20,0),FALSE)), 0, VLOOKUP($A49, '2. 2014 Continuity Schedule'!$A$20:$BW$87, MATCH('3. Appendix A'!$E$20, '2. 2014 Continuity Schedule'!$A$20:$BW$20,0),FALSE)) -> 0
A50: 24 | C50: Smart Grid OM&A Deferral Account | D50: 1535 | E50: =IF(ISERROR(VLOOKUP($A50, '2. 2014 Continuity Schedule'!$A$20:$BW$87, MATCH('3. Appendix A'!$E$20, '2. 2014 Continuity Schedule'!$A$20:$BW$20,0),FALSE)), 0, VLOOKUP($A50, '2. 2014 Continuity Schedule'!$A$20:$BW$87, MATCH('3. Appendix A'!$E$20, '2. 2014 Continuity Schedule'!$A$20:$BW$20,0),FALSE)) -> 0
A51: 25 | C51: Smart Grid Funding Adder Deferral Account | D51: 1536 | E51: =IF(ISERROR(VLOOKUP($A51, '2. 2014 Continuity Schedule'!$A$20:$BW$87, MATCH('3. Appendix A'!$E$20, '2. 2014 Continuity Schedule'!$A$20:$BW$20,0),FALSE)), 0, VLOOKUP($A51, '2. 2014 Continuity Schedule'!$A$20:$BW$87, MATCH('3. Appendix A'!$E$20, '2. 2014 Continuity Schedule'!$A$20:$BW$20,0),FALSE)) -> 0
A52: 26 | C52: Retail Cost Variance Account - STR | D52: 1548 | E52: =IF(ISERROR(VLOOKUP($A52, '2. 2014 Continuity Schedule'!$A$20:$BW$87, MATCH('3. Appendix A'!$E$20, '2. 2014 Continuity Schedule'!$A$20:$BW$20,0),FALSE)), 0, VLOOKUP($A52, '2. 2014 Continuity Schedule'!$A$20:$BW$87, MATCH('3. Appendix A'!$E$20, '2. 2014 Continuity Schedule'!$A$20:$BW$20,0),FALSE)) -> 0.00630625
A53: 27 | C53: Board-Approved CDM Variance Account | D53: 1567 | E53: =IF(ISERROR(VLOOKUP($A53, '2. 2014 Continuity Schedule'!$A$20:$BW$87, MATCH('3. Appendix A'!$E$20, '2. 2014 Continuity Schedule'!$A$20:$BW$20,0),FALSE)), 0, VLOOKUP($A53, '2. 2014 Continuity Schedule'!$A$20:$BW$87, MATCH('3. Appendix A'!$E$20, '2. 2014 Continuity Schedule'!$A$20:$BW$20,0),FALSE)) -> 0
A54: 28 | C54: Extra-Ordinary Event Costs | D54: 1572 | E54: =IF(ISERROR(VLOOKUP($A54, '2. 2014 Continuity Schedule'!$A$20:$BW$87, MATCH('3. Appendix A'!$E$20, '2. 2014 Continuity Schedule'!$A$20:$BW$20,0),FALSE)), 0, VLOOKUP($A54, '2. 2014 Continuity Schedule'!$A$20:$BW$87, MATCH('3. Appendix A'!$E$20, '2. 2014 Continuity Schedule'!$A$20:$BW$20,0),FALSE)) -> 0
A55: 29 | C55: Deferred Rate Impact Amounts | D55: 1574 | E55: =IF(ISERROR(VLOOKUP($A55, '2. 2014 Continuity Schedule'!$A$20:$BW$87, MATCH('3. Appendix A'!$E$20, '2. 2014 Continuity Schedule'!$A$20:$BW$20,0),FALSE)), 0, VLOOKUP($A55, '2. 2014 Continuity Schedule'!$A$20:$BW$87, MATCH('3. Appendix A'!$E$20, '2. 2014 Continuity Schedule'!$A$20:$BW$20,0),FALSE)) -> 0
A56: 30 | C56: RSVA - One-time | D56: 1582 | E56: =IF(ISERROR(VLOOKUP($A56, '2. 2014 Continuity Schedule'!$A$20:$BW$87, MATCH('3. Appendix A'!$E$20, '2. 2014 Continuity Schedule'!$A$20:$BW$20,0),FALSE)), 0, VLOOKUP($A56, '2. 2014 Continuity Schedule'!$A$20:$BW$87, MATCH('3. Appendix A'!$E$20, '2. 2014 Continuity Schedule'!$A$20:$BW$20,0),FALSE)) -> 0
A57: 31 | C57: Other Deferred Credits | D57: 2425 | E57: =IF(ISERROR(VLOOKUP($A57, '2. 2014 Continuity Schedule'!$A$20:$BW$87, MATCH('3. Appendix A'!$E$20, '2. 2014 Continuity Schedule'!$A$20:$BW$20,0),FALSE)), 0, VLOOKUP($A57, '2. 2014 Continuity Schedule'!$A$20:$BW$87, MATCH('3. Appendix A'!$E$20, '2. 2014 Continuity Schedule'!$A$20:$BW$20,0),FALSE)) -> 0
A58: 32 | C58: Deferred Payments in Lieu of Taxes | D58: 1562 | E58: =IF(ISERROR(VLOOKUP($A58, '2. 2014 Continuity Schedule'!$A$20:$BW$87, MATCH('3. Appendix A'!$E$20, '2. 2014 Continuity Schedule'!$A$20:$BW$20,0),FALSE)), 0, VLOOKUP($A58, '2. 2014 Continuity Schedule'!$A$20:$BW$87, MATCH('3. Appendix A'!$E$20, '2. 2014 Continuity Schedule'!$A$20:$BW$20,0),FALSE)) -> 0
A59: 33 | C59: PILs and Tax Variance for 2006 and Subsequent Years (excludes sub-account and contra account below) | D59: 1592 | E59: =IF(ISERROR(VLOOKUP($A59, '2. 2014 Continuity Schedule'!$A$20:$BW$87, MATCH('3. Appendix A'!$E$20, '2. 2014 Continuity Schedule'!$A$20:$BW$20,0),FALSE)), 0, VLOOKUP($A59, '2. 2014 Continuity Schedule'!$A$20:$BW$87, MATCH('3. Appendix A'!$E$20, '2. 2014 Continuity Schedule'!$A$20:$BW$20,0),FALSE)) -> 0.02132866542
A60: 34 | C60: PILs and Tax Variance for 2006 and Subsequent Years - Sub-Account HST/OVAT Input Tax Credits (ITCs) | D60: 1592 | E60: =IF(ISERROR(VLOOKUP($A60, '2. 2014 Continuity Schedule'!$A$20:$BW$87, MATCH('3. Appendix A'!$E$20, '2. 2014 Continuity Schedule'!$A$20:$BW$20,0),FALSE)), 0, VLOOKUP($A60, '2. 2014 Continuity Schedule'!$A$20:$BW$87, MATCH('3. Appendix A'!$E$20, '2. 2014 Continuity Schedule'!$A$20:$BW$20,0),FALSE)) -> 32613.37581 | F60: As per the Board FAQ December 2010 for RRR Purposes the 1592 and its offsetting 1592 contra sub-account are to zero out, only upon disposition should the balance to customers be reflected. This represents 50% of the HST difference.
A61: 35 | C61: LRAM Variance Account | D61: 1568 | E61: =IF(ISERROR(VLOOKUP($A61, '2. 2014 Continuity Schedule'!$A$20:$BW$87, MATCH('3. Appendix A'!$E$20, '2. 2014 Continuity Schedule'!$A$20:$BW$20,0),FALSE)), 0, VLOOKUP($A61, '2. 2014 Continuity Schedule'!$A$20:$BW$87, MATCH('3. Appendix A'!$E$20, '2. 2014 Continuity Schedule'!$A$20:$BW$20,0),FALSE)) -> 12386.29113
A62: 36 | C62: Smart Meter Capital and Recovery Offset Variance - Sub-Account - Capital | D62: 1555 | E62: =IF(ISERROR(VLOOKUP($A62, '2. 2014 Continuity Schedule'!$A$20:$BW$87, MATCH('3. Appendix A'!$E$20, '2. 2014 Continuity Schedule'!$A$20:$BW$20,0),FALSE)), 0, VLOOKUP($A62, '2. 2014 Continuity Schedule'!$A$20:$BW$87, MATCH('3. Appendix A'!$E$20, '2. 2014 Continuity Schedule'!$A$20:$BW$20,0),FALSE)) -> 0
A63: 37 | C63: Smart Meter Capital and Recovery Offset Variance - Sub-Account - Recoveries | D63: 1555 | E63: =IF(ISERROR(VLOOKUP($A63, '2. 2014 Continuity Schedule'!$A$20:$BW$87, MATCH('3. Appendix A'!$E$20, '2. 2014 Continuity Schedule'!$A$20:$BW$20,0),FALSE)), 0, VLOOKUP($A63, '2. 2014 Continuity Schedule'!$A$20:$BW$87, MATCH('3. Appendix A'!$E$20, '2. 2014 Continuity Schedule'!$A$20:$BW$20,0),FALSE)) -> 0
A64: 38 | C64: Smart Meter Capital and Recovery Offset Variance - Sub-Account - Stranded Meter Costs | D64: 1555 | E64: =IF(ISERROR(VLOOKUP($A64, '2. 2014 Continuity Schedule'!$A$20:$BW$87, MATCH('3. Appendix A'!$E$20, '2. 2014 Continuity Schedule'!$A$20:$BW$20,0),FALSE)), 0, VLOOKUP($A64, '2. 2014 Continuity Schedule'!$A$20:$BW$87, MATCH('3. Appendix A'!$E$20, '2. 2014 Continuity Schedule'!$A$20:$BW$20,0),FALSE)) -> -0.3479030835
A65: 39 | C65: Smart Meter OM&A Variance | D65: 1556 | E65: =IF(ISERROR(VLOOKUP($A65, '2. 2014 Continuity Schedule'!$A$20:$BW$87, MATCH('3. Appendix A'!$E$20, '2. 2014 Continuity Schedule'!$A$20:$BW$20,0),FALSE)), 0, VLOOKUP($A65, '2. 2014 Continuity Schedule'!$A$20:$BW$87, MATCH('3. Appendix A'!$E$20, '2. 2014 Continuity Schedule'!$A$20:$BW$20,0),FALSE)) -> 0
A66: 40 | C66: IFRS-CGAAP Transition PP&E Amounts Balance + Return Component | D66: 1575 | E66: =IF(ISERROR(VLOOKUP($A66, '2. 2014 Continuity Schedule'!$A$20:$BW$87, MATCH('3. Appendix A'!$E$20, '2. 2014 Continuity Schedule'!$A$20:$BW$20,0),FALSE)), 0, VLOOKUP($A66, '2. 2014 Continuity Schedule'!$A$20:$BW$87, MATCH('3. Appendix A'!$E$20, '2. 2014 Continuity Schedule'!$A$20:$BW$20,0),FALSE)) -> 0
A67: 41 | C67: Accounting Changes Under CGAAP Balance + Return Component | D67: 1576 | E67: =IF(ISERROR(VLOOKUP($A67, '2. 2014 Continuity Schedule'!$A$20:$BW$87, MATCH('3. Appendix A'!$E$20, '2. 2014 Continuity Schedule'!$A$20:$BW$20,0),FALSE)), 0, VLOOKUP($A67, '2. 2014 Continuity Schedule'!$A$20:$BW$87, MATCH('3. Appendix A'!$E$20, '2. 2014 Continuity Schedule'!$A$20:$BW$20,0),FALSE)) -> 0

Sheet 4. Billing Determinants
B16: In the green shaded cells, enter the most recent Board Approved volumetric forecast. If there is a material difference between the latest Board-approved volumetric forecast and the most recent 12-month actual volumetric data, use the most recent 12-month actual data. Do not enter data for the MicroFit class.
B19: Rate Class (Enter Rate Classes in cells below) | C19: Units | D19: # of Customers | E19: Metered kWh | F19: Metered kW | G19: Billed kWh for Non-RPP Customers | H19: Estimated kW for Non-RPP Customers | I19: Distribution Revenue 1 | J19: 1590 Recovery Share Proportion | K19: 1595 Recovery Share Proportion (2008) 2 | L19: 1595 Recovery Share Proportion (2009) 2 | M19: 1595 Recovery Share Proportion (2010) 2 | N19: 1595 Recovery Share Proportion (2011) 2 | O19: 1595 Recovery Share Proportion (2012) 2 | P19: 1595 Recovery Share Proportion (2013) 2 | Q19: 1568 LRAM Variance Account Class Allocation ($ amounts)
B21: Residential | C21: kWh | D21: 49305 | E21: 399471640.3 | G21: 19654182.58 | H21: =IF(ISERROR(F21/E21*G21), 0, F21/E21*G21) -> 0 | M21: 0.3117036268 | N21: 0.1011515918 | O21: 0.2632186997 | P21: 0.3267859481 | Q21: 1282.303835
B22: General Service Less Than 50 kW | C22: kWh | D22: 5632 | E22: 192172348.4 | G22: 33236983.22 | H22: =IF(ISERROR(F22/E22*G22), 0, F22/E22*G22) -> 0 | M22: 0.139751168 | N22: -0.01138861149 | O22: 0.1206559103 | P22: 0.1459793735 | Q22: 97382.76366
B23: General Service 50 to 4,999 kW | C23: kW | D23: =695-2 -> 693 | E23: 712810798.6 | F23: 1752802.277 | G23: 656095388.4 | H23: 1613339.042 | M23: 0.4732803885 | N23: 0.809670196 | O23: 0.5272832369 | P23: 0.4364921268 | Q23: 247451.5607
B24: Large Use | C24: kW | D24: 1 | E24: 92802320.07 | F24: 169451.2885 | G24: 0 | H24: 0 | M24: 0.06796906324 | N24: 0.09147921175 | O24: 0.0600848536 | P24: 0.06799038014 | Q24: 24266.49045
B25: Unmetered Scattered Load | C25: kWh | D25: 14 | E25: 3140371.995 | G25: 2746.68 | H25: 0 | M25: 0.001387698634 | N25: 0.00645065182 | O25: 0.001123835936 | P25: 0.001301281819
B26: Street Lighting | C26: kW | D26: 6 | E26: 7594659.601 | F26: 21114.61309 | G26: 7800435.22 | H26: 21686.70885 | M26: 0.005908054792 | N26: 0.002636960089 | O26: 0.005839160373 | P26: 0.004780240748
B27: Embedded Distributor | C27: kW | D27: 1 | E27: 31378863.31 | F27: 71405.70063 | G27: 33007641.96 | H27: 75112.14722 | O27: 0.02179430312 | P27: 0.01667064886
B28: General Service Greater than 50 kW - MP | C28: kW | D28: 2 | E28: 6823514.014 | F28: 12620.49019 | H28: 0
H29: 0
H30: 0
H31: 0
H32: 0
H33: 0
H34: 0
H35: 0
H36: 0
H37: 0
H38: 0
H39: 0
H40: 0
B41: Total | D41: =SUM(D21:D40) -> 55654 | E41: =SUM(E21:E40) -> 1446194516 | F41: =SUM(F21:F40) -> 2027394.37 | G41: 749797378 | H41: 1710137.898 | I41: 0 | J41: 0 | K41: 0 | L41: 0 | M41: 1 | N41: 1 | O41: =SUM(O21:O40) -> 1 | Q41: 370383.1187
O42: Balance as per Sheet 2 | Q42: ='2. 2014 Continuity Schedule'!BU73 -> 370383.1187
B43: Residential | D43: =+D21 -> 49305 | E43: =+D43/D45 -> 0.8974825709 | O43: Variance | Q43: =Q41-Q42 -> 0
B44: General Service Less Than 50 kW | D44: =+D22 -> 5632 | E44: =+D44/D45 -> 0.1025174291
D45: =SUM(D43:D44) -> 54937 | E45: =SUM(E43:E44) -> 1
A49: 1 For Account 1562, the allocation to customer classes should be performed on the basis of the test year distribution revenue allocation to customer classes found in the Applicant’s Cost of Service application that was most recently approved at the time of disposition of the 1562 account balances
A51: 2 Residual Account balance to be allocated to rate classes in proportion to the recovery share as established when rate riders were implemented.
B53: 1576 Allocation - No Allocation to Embedded Distributor
B54: Residential | E54: =+E21 -> 399471640.3 | F54: =+E54/$E$62 -> 0.2823488979
B55: General Service Less Than 50 kW | E55: =+E22 -> 192172348.4 | F55: =+E55/$E$62 -> 0.1358285427
B56: General Service 50 to 4,999 kW | E56: 712810798.6 | F56: 0.5038188524
B57: Large Use | E57: 92802320.07 | F57: 0.06559322402
B58: Unmetered Scattered Load | E58: 3140371.995 | F58: 0.002219633341
B59: Street Lighting | E59: 7594659.601 | F59: 0.005367949941
B60: Embedded Distributor | E60: 0 | F60: 0
B61: General Service Greater than 50 kW - MP | E61: 6823514.014 | F61: 0.004822899719
E62: =SUM(E54:E61) -> 1414815653 | F62: =SUM(F54:F61) -> 1

Sheet 5. Allocation of Balances
D4: Amounts from Sheet 2 | E4: Allocator | F4: =IF(LEN(TRIM('4. Billing Determinants'!$B21))=0, "", '4. Billing Determinants'!$B21) -> Residential | G4: =IF(LEN(TRIM('4. Billing Determinants'!$B22))=0, "", '4. Billing Determinants'!$B22) -> General Service Less Than 50 kW | H4: =IF(LEN(TRIM('4. Billing Determinants'!$B23))=0, "", '4. Billing Determinants'!$B23) -> General Service 50 to 4,999 kW | I4: =IF(LEN(TRIM('4. Billing Determinants'!$B24))=0, "", '4. Billing Determinants'!$B24) -> Large Use | J4: =IF(LEN(TRIM('4. Billing Determinants'!$B25))=0, "", '4. Billing Determinants'!$B25) -> Unmetered Scattered Load | K4: =IF(LEN(TRIM('4. Billing Determinants'!$B26))=0, "", '4. Billing Determinants'!$B26) -> Street Lighting | L4: =IF(LEN(TRIM('4. Billing Determinants'!$B27))=0, "", '4. Billing Determinants'!$B27) -> Embedded Distributor | M4: =IF(LEN(TRIM('4. Billing Determinants'!$B28))=0, "", '4. Billing Determinants'!$B28) -> General Service Greater than 50 kW - MP | N4: =IF(LEN(TRIM('4. Billing Determinants'!$B29))=0, "", '4. Billing Determinants'!$B29) ->  | O4: =IF(LEN(TRIM('4. Billing Determinants'!$B30))=0, "", '4. Billing Determinants'!$B30) ->  | P4: =IF(LEN(TRIM('4. Billing Determinants'!$B31))=0, "", '4. Billing Determinants'!$B31) ->  | Q4: =IF(LEN(TRIM('4. Billing Determinants'!$B32))=0, "", '4. Billing Determinants'!$B32) ->  | R4: =IF(LEN(TRIM('4. Billing Determinants'!$B33))=0, "", '4. Billing Determinants'!$B33) ->  | S4: =IF(LEN(TRIM('4. Billing Determinants'!$B34))=0, "", '4. Billing Determinants'!$B34) ->  | T4: =IF(LEN(TRIM('4. Billing Determinants'!$B35))=0, "", '4. Billing Determinants'!$B35) ->  | U4: =IF(LEN(TRIM('4. Billing Determinants'!$B36))=0, "", '4. Billing Determinants'!$B36) ->  | V4: =IF(LEN(TRIM('4. Billing Determinants'!$B37))=0, "", '4. Billing Determinants'!$B37) ->  | W4: =IF(LEN(TRIM('4. Billing Determinants'!$B38))=0, "", '4. Billing Determinants'!$B38) ->  | X4: =IF(LEN(TRIM('4. Billing Determinants'!$B39))=0, "", '4. Billing Determinants'!$B39) ->  | Y4: =IF(LEN(TRIM('4. Billing Determinants'!$B40))=0, "", '4. Billing Determinants'!$B40) -> 
B5: LV Variance Account | C5: 1550 | D5: ='2. 2014 Continuity Schedule'!BU24 -> 101135.845 | E5: kWh | F5: =IFERROR(IF(F$4="",0,IF($E5="kWh",VLOOKUP(F$4,'4. Billing Determinants'!$B$19:$Q$41,4,0)/'4. Billing Determinants'!$E$41*$D5,IF($E5="kW",VLOOKUP(F$4,'4. Billing Determinants'!$B$19:$Q$41,5,0)/'4. Billing Determinants'!$F$41*$D5,IF($E5="Non-RPP kWh",VLOOKUP(F$4,'4. Billing Determinants'!$B$19:$Q$41,6,0)/'4. Billing Determinants'!$G$41*$D5,IF($E5="Distribution Rev.",VLOOKUP(F$4,'4. Billing Determinants'!$B$19:$Q$41,8,0)/'4. Billing Determinants'!$I$41*$D5, VLOOKUP(F$4,'4. Billing Determinants'!$B$19:$Q$41,3,0)/'4. Billing Determinants'!$D$41*$D5))))),0) -> 27936.00823 | G5: =IFERROR(IF(G$4="",0,IF($E5="kWh",VLOOKUP(G$4,'4. Billing Determinants'!$B$19:$Q$41,4,0)/'4. Billing Determinants'!$E$41*$D5,IF($E5="kW",VLOOKUP(G$4,'4. Billing Determinants'!$B$19:$Q$41,5,0)/'4. Billing Determinants'!$F$41*$D5,IF($E5="Non-RPP kWh",VLOOKUP(G$4,'4. Billing Determinants'!$B$19:$Q$41,6,0)/'4. Billing Determinants'!$G$41*$D5,IF($E5="Distribution Rev.",VLOOKUP(G$4,'4. Billing Determinants'!$B$19:$Q$41,8,0)/'4. Billing Determinants'!$I$41*$D5, VLOOKUP(G$4,'4. Billing Determinants'!$B$19:$Q$41,3,0)/'4. Billing Determinants'!$D$41*$D5))))),0) -> 13439.07243 | H5: =IFERROR(IF(H$4="",0,IF($E5="kWh",VLOOKUP(H$4,'4. Billing Determinants'!$B$19:$Q$41,4,0)/'4. Billing Determinants'!$E$41*$D5,IF($E5="kW",VLOOKUP(H$4,'4. Billing Determinants'!$B$19:$Q$41,5,0)/'4. Billing Determinants'!$F$41*$D5,IF($E5="Non-RPP kWh",VLOOKUP(H$4,'4. Billing Determinants'!$B$19:$Q$41,6,0)/'4. Billing Determinants'!$G$41*$D5,IF($E5="Distribution Rev.",VLOOKUP(H$4,'4. Billing Determinants'!$B$19:$Q$41,8,0)/'4. Billing Determinants'!$I$41*$D5, VLOOKUP(H$4,'4. Billing Determinants'!$B$19:$Q$41,3,0)/'4. Billing Determinants'!$D$41*$D5))))),0) -> 49848.56578 | I5: =IFERROR(IF(I$4="",0,IF($E5="kWh",VLOOKUP(I$4,'4. Billing Determinants'!$B$19:$Q$41,4,0)/'4. Billing Determinants'!$E$41*$D5,IF($E5="kW",VLOOKUP(I$4,'4. Billing Determinants'!$B$19:$Q$41,5,0)/'4. Billing Determinants'!$F$41*$D5,IF($E5="Non-RPP kWh",VLOOKUP(I$4,'4. Billing Determinants'!$B$19:$Q$41,6,0)/'4. Billing Determinants'!$G$41*$D5,IF($E5="Distribution Rev.",VLOOKUP(I$4,'4. Billing Determinants'!$B$19:$Q$41,8,0)/'4. Billing Determinants'!$I$41*$D5, VLOOKUP(I$4,'4. Billing Determinants'!$B$19:$Q$41,3,0)/'4. Billing Determinants'!$D$41*$D5))))),0) -> 6489.888433 | J5: =IFERROR(IF(J$4="",0,IF($E5="kWh",VLOOKUP(J$4,'4. Billing Determinants'!$B$19:$Q$41,4,0)/'4. Billing Determinants'!$E$41*$D5,IF($E5="kW",VLOOKUP(J$4,'4. Billing Determinants'!$B$19:$Q$41,5,0)/'4. Billing Determinants'!$F$41*$D5,IF($E5="Non-RPP kWh",VLOOKUP(J$4,'4. Billing Determinants'!$B$19:$Q$41,6,0)/'4. Billing Determinants'!$G$41*$D5,IF($E5="Distribution Rev.",VLOOKUP(J$4,'4. Billing Determinants'!$B$19:$Q$41,8,0)/'4. Billing Determinants'!$I$41*$D5, VLOOKUP(J$4,'4. Billing Determinants'!$B$19:$Q$41,3,0)/'4. Billing Determinants'!$D$41*$D5))))),0) -> 219.6137324 | K5: =IFERROR(IF(K$4="",0,IF($E5="kWh",VLOOKUP(K$4,'4. Billing Determinants'!$B$19:$Q$41,4,0)/'4. Billing Determinants'!$E$41*$D5,IF($E5="kW",VLOOKUP(K$4,'4. Billing Determinants'!$B$19:$Q$41,5,0)/'4. Billing Determinants'!$F$41*$D5,IF($E5="Non-RPP kWh",VLOOKUP(K$4,'4. Billing Determinants'!$B$19:$Q$41,6,0)/'4. Billing Determinants'!$G$41*$D5,IF($E5="Distribution Rev.",VLOOKUP(K$4,'4. Billing Determinants'!$B$19:$Q$41,8,0)/'4. Billing Determinants'!$I$41*$D5, VLOOKUP(K$4,'4. Billing Determinants'!$B$19:$Q$41,3,0)/'4. Billing Determinants'!$D$41*$D5))))),0) -> 531.1127292 | L5: =IFERROR(IF(L$4="",0,IF($E5="kWh",VLOOKUP(L$4,'4. Billing Determinants'!$B$19:$Q$41,4,0)/'4. Billing Determinants'!$E$41*$D5,IF($E5="kW",VLOOKUP(L$4,'4. Billing Determinants'!$B$19:$Q$41,5,0)/'4. Billing Determinants'!$F$41*$D5,IF($E5="Non-RPP kWh",VLOOKUP(L$4,'4. Billing Determinants'!$B$19:$Q$41,6,0)/'4. Billing Determinants'!$G$41*$D5,IF($E5="Distribution Rev.",VLOOKUP(L$4,'4. Billing Determinants'!$B$19:$Q$41,8,0)/'4. Billing Determinants'!$I$41*$D5, VLOOKUP(L$4,'4. Billing Determinants'!$B$19:$Q$41,3,0)/'4. Billing Determinants'!$D$41*$D5))))),0) -> 2194.399039 | M5: =IFERROR(IF(M$4="",0,IF($E5="kWh",VLOOKUP(M$4,'4. Billing Determinants'!$B$19:$Q$41,4,0)/'4. Billing Determinants'!$E$41*$D5,IF($E5="kW",VLOOKUP(M$4,'4. Billing Determinants'!$B$19:$Q$41,5,0)/'4. Billing Determinants'!$F$41*$D5,IF($E5="Non-RPP kWh",VLOOKUP(M$4,'4. Billing Determinants'!$B$19:$Q$41,6,0)/'4. Billing Determinants'!$G$41*$D5,IF($E5="Distribution Rev.",VLOOKUP(M$4,'4. Billing Determinants'!$B$19:$Q$41,8,0)/'4. Billing Determinants'!$I$41*$D5, VLOOKUP(M$4,'4. Billing Determinants'!$B$19:$Q$41,3,0)/'4. Billing Determinants'!$D$41*$D5))))),0) -> 477.1846721 | N5: =IFERROR(IF(N$4="",0,IF($E5="kWh",VLOOKUP(N$4,'4. Billing Determinants'!$B$19:$Q$41,4,0)/'4. Billing Determinants'!$E$41*$D5,IF($E5="kW",VLOOKUP(N$4,'4. Billing Determinants'!$B$19:$Q$41,5,0)/'4. Billing Determinants'!$F$41*$D5,IF($E5="Non-RPP kWh",VLOOKUP(N$4,'4. Billing Determinants'!$B$19:$Q$41,6,0)/'4. Billing Determinants'!$G$41*$D5,IF($E5="Distribution Rev.",VLOOKUP(N$4,'4. Billing Determinants'!$B$19:$Q$41,8,0)/'4. Billing Determinants'!$I$41*$D5, VLOOKUP(N$4,'4. Billing Determinants'!$B$19:$Q$41,3,0)/'4. Billing Determinants'!$D$41*$D5))))),0) -> 0 | O5: =IFERROR(IF(O$4="",0,IF($E5="kWh",VLOOKUP(O$4,'4. Billing Determinants'!$B$19:$Q$41,4,0)/'4. Billing Determinants'!$E$41*$D5,IF($E5="kW",VLOOKUP(O$4,'4. Billing Determinants'!$B$19:$Q$41,5,0)/'4. Billing Determinants'!$F$41*$D5,IF($E5="Non-RPP kWh",VLOOKUP(O$4,'4. Billing Determinants'!$B$19:$Q$41,6,0)/'4. Billing Determinants'!$G$41*$D5,IF($E5="Distribution Rev.",VLOOKUP(O$4,'4. Billing Determinants'!$B$19:$Q$41,8,0)/'4. Billing Determinants'!$I$41*$D5, VLOOKUP(O$4,'4. Billing Determinants'!$B$19:$Q$41,3,0)/'4. Billing Determinants'!$D$41*$D5))))),0) -> 0 | P5: =IFERROR(IF(P$4="",0,IF($E5="kWh",VLOOKUP(P$4,'4. Billing Determinants'!$B$19:$Q$41,4,0)/'4. Billing Determinants'!$E$41*$D5,IF($E5="kW",VLOOKUP(P$4,'4. Billing Determinants'!$B$19:$Q$41,5,0)/'4. Billing Determinants'!$F$41*$D5,IF($E5="Non-RPP kWh",VLOOKUP(P$4,'4. Billing Determinants'!$B$19:$Q$41,6,0)/'4. Billing Determinants'!$G$41*$D5,IF($E5="Distribution Rev.",VLOOKUP(P$4,'4. Billing Determinants'!$B$19:$Q$41,8,0)/'4. Billing Determinants'!$I$41*$D5, VLOOKUP(P$4,'4. Billing Determinants'!$B$19:$Q$41,3,0)/'4. Billing Determinants'!$D$41*$D5))))),0) -> 0 | Q5: =IFERROR(IF(Q$4="",0,IF($E5="kWh",VLOOKUP(Q$4,'4. Billing Determinants'!$B$19:$Q$41,4,0)/'4. Billing Determinants'!$E$41*$D5,IF($E5="kW",VLOOKUP(Q$4,'4. Billing Determinants'!$B$19:$Q$41,5,0)/'4. Billing Determinants'!$F$41*$D5,IF($E5="Non-RPP kWh",VLOOKUP(Q$4,'4. Billing Determinants'!$B$19:$Q$41,6,0)/'4. Billing Determinants'!$G$41*$D5,IF($E5="Distribution Rev.",VLOOKUP(Q$4,'4. Billing Determinants'!$B$19:$Q$41,8,0)/'4. Billing Determinants'!$I$41*$D5, VLOOKUP(Q$4,'4. Billing Determinants'!$B$19:$Q$41,3,0)/'4. Billing Determinants'!$D$41*$D5))))),0) -> 0 | R5: =IFERROR(IF(R$4="",0,IF($E5="kWh",VLOOKUP(R$4,'4. Billing Determinants'!$B$19:$Q$41,4,0)/'4. Billing Determinants'!$E$41*$D5,IF($E5="kW",VLOOKUP(R$4,'4. Billing Determinants'!$B$19:$Q$41,5,0)/'4. Billing Determinants'!$F$41*$D5,IF($E5="Non-RPP kWh",VLOOKUP(R$4,'4. Billing Determinants'!$B$19:$Q$41,6,0)/'4. Billing Determinants'!$G$41*$D5,IF($E5="Distribution Rev.",VLOOKUP(R$4,'4. Billing Determinants'!$B$19:$Q$41,8,0)/'4. Billing Determinants'!$I$41*$D5, VLOOKUP(R$4,'4. Billing Determinants'!$B$19:$Q$41,3,0)/'4. Billing Determinants'!$D$41*$D5))))),0) -> 0 | S5: =IFERROR(IF(S$4="",0,IF($E5="kWh",VLOOKUP(S$4,'4. Billing Determinants'!$B$19:$Q$41,4,0)/'4. Billing Determinants'!$E$41*$D5,IF($E5="kW",VLOOKUP(S$4,'4. Billing Determinants'!$B$19:$Q$41,5,0)/'4. Billing Determinants'!$F$41*$D5,IF($E5="Non-RPP kWh",VLOOKUP(S$4,'4. Billing Determinants'!$B$19:$Q$41,6,0)/'4. Billing Determinants'!$G$41*$D5,IF($E5="Distribution Rev.",VLOOKUP(S$4,'4. Billing Determinants'!$B$19:$Q$41,8,0)/'4. Billing Determinants'!$I$41*$D5, VLOOKUP(S$4,'4. Billing Determinants'!$B$19:$Q$41,3,0)/'4. Billing Determinants'!$D$41*$D5))))),0) -> 0 | T5: =IFERROR(IF(T$4="",0,IF($E5="kWh",VLOOKUP(T$4,'4. Billing Determinants'!$B$19:$Q$41,4,0)/'4. Billing Determinants'!$E$41*$D5,IF($E5="kW",VLOOKUP(T$4,'4. Billing Determinants'!$B$19:$Q$41,5,0)/'4. Billing Determinants'!$F$41*$D5,IF($E5="Non-RPP kWh",VLOOKUP(T$4,'4. Billing Determinants'!$B$19:$Q$41,6,0)/'4. Billing Determinants'!$G$41*$D5,IF($E5="Distribution Rev.",VLOOKUP(T$4,'4. Billing Determinants'!$B$19:$Q$41,8,0)/'4. Billing Determinants'!$I$41*$D5, VLOOKUP(T$4,'4. Billing Determinants'!$B$19:$Q$41,3,0)/'4. Billing Determinants'!$D$41*$D5))))),0) -> 0 | U5: =IFERROR(IF(U$4="",0,IF($E5="kWh",VLOOKUP(U$4,'4. Billing Determinants'!$B$19:$Q$41,4,0)/'4. Billing Determinants'!$E$41*$D5,IF($E5="kW",VLOOKUP(U$4,'4. Billing Determinants'!$B$19:$Q$41,5,0)/'4. Billing Determinants'!$F$41*$D5,IF($E5="Non-RPP kWh",VLOOKUP(U$4,'4. Billing Determinants'!$B$19:$Q$41,6,0)/'4. Billing Determinants'!$G$41*$D5,IF($E5="Distribution Rev.",VLOOKUP(U$4,'4. Billing Determinants'!$B$19:$Q$41,8,0)/'4. Billing Determinants'!$I$41*$D5, VLOOKUP(U$4,'4. Billing Determinants'!$B$19:$Q$41,3,0)/'4. Billing Determinants'!$D$41*$D5))))),0) -> 0 | V5: =IFERROR(IF(V$4="",0,IF($E5="kWh",VLOOKUP(V$4,'4. Billing Determinants'!$B$19:$Q$41,4,0)/'4. Billing Determinants'!$E$41*$D5,IF($E5="kW",VLOOKUP(V$4,'4. Billing Determinants'!$B$19:$Q$41,5,0)/'4. Billing Determinants'!$F$41*$D5,IF($E5="Non-RPP kWh",VLOOKUP(V$4,'4. Billing Determinants'!$B$19:$Q$41,6,0)/'4. Billing Determinants'!$G$41*$D5,IF($E5="Distribution Rev.",VLOOKUP(V$4,'4. Billing Determinants'!$B$19:$Q$41,8,0)/'4. Billing Determinants'!$I$41*$D5, VLOOKUP(V$4,'4. Billing Determinants'!$B$19:$Q$41,3,0)/'4. Billing Determinants'!$D$41*$D5))))),0) -> 0 | W5: =IFERROR(IF(W$4="",0,IF($E5="kWh",VLOOKUP(W$4,'4. Billing Determinants'!$B$19:$Q$41,4,0)/'4. Billing Determinants'!$E$41*$D5,IF($E5="kW",VLOOKUP(W$4,'4. Billing Determinants'!$B$19:$Q$41,5,0)/'4. Billing Determinants'!$F$41*$D5,IF($E5="Non-RPP kWh",VLOOKUP(W$4,'4. Billing Determinants'!$B$19:$Q$41,6,0)/'4. Billing Determinants'!$G$41*$D5,IF($E5="Distribution Rev.",VLOOKUP(W$4,'4. Billing Determinants'!$B$19:$Q$41,8,0)/'4. Billing Determinants'!$I$41*$D5, VLOOKUP(W$4,'4. Billing Determinants'!$B$19:$Q$41,3,0)/'4. Billing Determinants'!$D$41*$D5))))),0) -> 0 | X5: =IFERROR(IF(X$4="",0,IF($E5="kWh",VLOOKUP(X$4,'4. Billing Determinants'!$B$19:$Q$41,4,0)/'4. Billing Determinants'!$E$41*$D5,IF($E5="kW",VLOOKUP(X$4,'4. Billing Determinants'!$B$19:$Q$41,5,0)/'4. Billing Determinants'!$F$41*$D5,IF($E5="Non-RPP kWh",VLOOKUP(X$4,'4. Billing Determinants'!$B$19:$Q$41,6,0)/'4. Billing Determinants'!$G$41*$D5,IF($E5="Distribution Rev.",VLOOKUP(X$4,'4. Billing Determinants'!$B$19:$Q$41,8,0)/'4. Billing Determinants'!$I$41*$D5, VLOOKUP(X$4,'4. Billing Determinants'!$B$19:$Q$41,3,0)/'4. Billing Determinants'!$D$41*$D5))))),0) -> 0 | Y5: =IFERROR(IF(Y$4="",0,IF($E5="kWh",VLOOKUP(Y$4,'4. Billing Determinants'!$B$19:$Q$41,4,0)/'4. Billing Determinants'!$E$41*$D5,IF($E5="kW",VLOOKUP(Y$4,'4. Billing Determinants'!$B$19:$Q$41,5,0)/'4. Billing Determinants'!$F$41*$D5,IF($E5="Non-RPP kWh",VLOOKUP(Y$4,'4. Billing Determinants'!$B$19:$Q$41,6,0)/'4. Billing Determinants'!$G$41*$D5,IF($E5="Distribution Rev.",VLOOKUP(Y$4,'4. Billing Determinants'!$B$19:$Q$41,8,0)/'4. Billing Determinants'!$I$41*$D5, VLOOKUP(Y$4,'4. Billing Determinants'!$B$19:$Q$41,3,0)/'4. Billing Determinants'!$D$41*$D5))))),0) -> 0
B6: Smart Metering Entity Charge Variance Account | C6: 1551 | D6: ='2. 2014 Continuity Schedule'!BU25 -> -10220.87649 | E6: kWh | F6: =+'4. Billing Determinants'!E43*'5. Allocation of Balances'!D6 -> -9173.05851 | G6: =+'4. Billing Determinants'!E44*'5. Allocation of Balances'!D6 -> -1047.81798 | N6: =IFERROR(IF(N$4="",0,IF($E6="kWh",VLOOKUP(N$4,'4. Billing Determinants'!$B$19:$Q$41,4,0)/'4. Billing Determinants'!$E$41*$D6,IF($E6="kW",VLOOKUP(N$4,'4. Billing Determinants'!$B$19:$Q$41,5,0)/'4. Billing Determinants'!$F$41*$D6,IF($E6="Non-RPP kWh",VLOOKUP(N$4,'4. Billing Determinants'!$B$19:$Q$41,6,0)/'4. Billing Determinants'!$G$41*$D6,IF($E6="Distribution Rev.",VLOOKUP(N$4,'4. Billing Determinants'!$B$19:$Q$41,8,0)/'4. Billing Determinants'!$I$41*$D6, VLOOKUP(N$4,'4. Billing Determinants'!$B$19:$Q$41,3,0)/'4. Billing Determinants'!$D$41*$D6))))),0) -> 0 | O6: =IFERROR(IF(O$4="",0,IF($E6="kWh",VLOOKUP(O$4,'4. Billing Determinants'!$B$19:$Q$41,4,0)/'4. Billing Determinants'!$E$41*$D6,IF($E6="kW",VLOOKUP(O$4,'4. Billing Determinants'!$B$19:$Q$41,5,0)/'4. Billing Determinants'!$F$41*$D6,IF($E6="Non-RPP kWh",VLOOKUP(O$4,'4. Billing Determinants'!$B$19:$Q$41,6,0)/'4. Billing Determinants'!$G$41*$D6,IF($E6="Distribution Rev.",VLOOKUP(O$4,'4. Billing Determinants'!$B$19:$Q$41,8,0)/'4. Billing Determinants'!$I$41*$D6, VLOOKUP(O$4,'4. Billing Determinants'!$B$19:$Q$41,3,0)/'4. Billing Determinants'!$D$41*$D6))))),0) -> 0 | P6: =IFERROR(IF(P$4="",0,IF($E6="kWh",VLOOKUP(P$4,'4. Billing Determinants'!$B$19:$Q$41,4,0)/'4. Billing Determinants'!$E$41*$D6,IF($E6="kW",VLOOKUP(P$4,'4. Billing Determinants'!$B$19:$Q$41,5,0)/'4. Billing Determinants'!$F$41*$D6,IF($E6="Non-RPP kWh",VLOOKUP(P$4,'4. Billing Determinants'!$B$19:$Q$41,6,0)/'4. Billing Determinants'!$G$41*$D6,IF($E6="Distribution Rev.",VLOOKUP(P$4,'4. Billing Determinants'!$B$19:$Q$41,8,0)/'4. Billing Determinants'!$I$41*$D6, VLOOKUP(P$4,'4. Billing Determinants'!$B$19:$Q$41,3,0)/'4. Billing Determinants'!$D$41*$D6))))),0) -> 0 | Q6: =IFERROR(IF(Q$4="",0,IF($E6="kWh",VLOOKUP(Q$4,'4. Billing Determinants'!$B$19:$Q$41,4,0)/'4. Billing Determinants'!$E$41*$D6,IF($E6="kW",VLOOKUP(Q$4,'4. Billing Determinants'!$B$19:$Q$41,5,0)/'4. Billing Determinants'!$F$41*$D6,IF($E6="Non-RPP kWh",VLOOKUP(Q$4,'4. Billing Determinants'!$B$19:$Q$41,6,0)/'4. Billing Determinants'!$G$41*$D6,IF($E6="Distribution Rev.",VLOOKUP(Q$4,'4. Billing Determinants'!$B$19:$Q$41,8,0)/'4. Billing Determinants'!$I$41*$D6, VLOOKUP(Q$4,'4. Billing Determinants'!$B$19:$Q$41,3,0)/'4. Billing Determinants'!$D$41*$D6))))),0) -> 0 | R6: =IFERROR(IF(R$4="",0,IF($E6="kWh",VLOOKUP(R$4,'4. Billing Determinants'!$B$19:$Q$41,4,0)/'4. Billing Determinants'!$E$41*$D6,IF($E6="kW",VLOOKUP(R$4,'4. Billing Determinants'!$B$19:$Q$41,5,0)/'4. Billing Determinants'!$F$41*$D6,IF($E6="Non-RPP kWh",VLOOKUP(R$4,'4. Billing Determinants'!$B$19:$Q$41,6,0)/'4. Billing Determinants'!$G$41*$D6,IF($E6="Distribution Rev.",VLOOKUP(R$4,'4. Billing Determinants'!$B$19:$Q$41,8,0)/'4. Billing Determinants'!$I$41*$D6, VLOOKUP(R$4,'4. Billing Determinants'!$B$19:$Q$41,3,0)/'4. Billing Determinants'!$D$41*$D6))))),0) -> 0 | S6: =IFERROR(IF(S$4="",0,IF($E6="kWh",VLOOKUP(S$4,'4. Billing Determinants'!$B$19:$Q$41,4,0)/'4. Billing Determinants'!$E$41*$D6,IF($E6="kW",VLOOKUP(S$4,'4. Billing Determinants'!$B$19:$Q$41,5,0)/'4. Billing Determinants'!$F$41*$D6,IF($E6="Non-RPP kWh",VLOOKUP(S$4,'4. Billing Determinants'!$B$19:$Q$41,6,0)/'4. Billing Determinants'!$G$41*$D6,IF($E6="Distribution Rev.",VLOOKUP(S$4,'4. Billing Determinants'!$B$19:$Q$41,8,0)/'4. Billing Determinants'!$I$41*$D6, VLOOKUP(S$4,'4. Billing Determinants'!$B$19:$Q$41,3,0)/'4. Billing Determinants'!$D$41*$D6))))),0) -> 0 | T6: =IFERROR(IF(T$4="",0,IF($E6="kWh",VLOOKUP(T$4,'4. Billing Determinants'!$B$19:$Q$41,4,0)/'4. Billing Determinants'!$E$41*$D6,IF($E6="kW",VLOOKUP(T$4,'4. Billing Determinants'!$B$19:$Q$41,5,0)/'4. Billing Determinants'!$F$41*$D6,IF($E6="Non-RPP kWh",VLOOKUP(T$4,'4. Billing Determinants'!$B$19:$Q$41,6,0)/'4. Billing Determinants'!$G$41*$D6,IF($E6="Distribution Rev.",VLOOKUP(T$4,'4. Billing Determinants'!$B$19:$Q$41,8,0)/'4. Billing Determinants'!$I$41*$D6, VLOOKUP(T$4,'4. Billing Determinants'!$B$19:$Q$41,3,0)/'4. Billing Determinants'!$D$41*$D6))))),0) -> 0 | U6: =IFERROR(IF(U$4="",0,IF($E6="kWh",VLOOKUP(U$4,'4. Billing Determinants'!$B$19:$Q$41,4,0)/'4. Billing Determinants'!$E$41*$D6,IF($E6="kW",VLOOKUP(U$4,'4. Billing Determinants'!$B$19:$Q$41,5,0)/'4. Billing Determinants'!$F$41*$D6,IF($E6="Non-RPP kWh",VLOOKUP(U$4,'4. Billing Determinants'!$B$19:$Q$41,6,0)/'4. Billing Determinants'!$G$41*$D6,IF($E6="Distribution Rev.",VLOOKUP(U$4,'4. Billing Determinants'!$B$19:$Q$41,8,0)/'4. Billing Determinants'!$I$41*$D6, VLOOKUP(U$4,'4. Billing Determinants'!$B$19:$Q$41,3,0)/'4. Billing Determinants'!$D$41*$D6))))),0) -> 0 | V6: =IFERROR(IF(V$4="",0,IF($E6="kWh",VLOOKUP(V$4,'4. Billing Determinants'!$B$19:$Q$41,4,0)/'4. Billing Determinants'!$E$41*$D6,IF($E6="kW",VLOOKUP(V$4,'4. Billing Determinants'!$B$19:$Q$41,5,0)/'4. Billing Determinants'!$F$41*$D6,IF($E6="Non-RPP kWh",VLOOKUP(V$4,'4. Billing Determinants'!$B$19:$Q$41,6,0)/'4. Billing Determinants'!$G$41*$D6,IF($E6="Distribution Rev.",VLOOKUP(V$4,'4. Billing Determinants'!$B$19:$Q$41,8,0)/'4. Billing Determinants'!$I$41*$D6, VLOOKUP(V$4,'4. Billing Determinants'!$B$19:$Q$41,3,0)/'4. Billing Determinants'!$D$41*$D6))))),0) -> 0 | W6: =IFERROR(IF(W$4="",0,IF($E6="kWh",VLOOKUP(W$4,'4. Billing Determinants'!$B$19:$Q$41,4,0)/'4. Billing Determinants'!$E$41*$D6,IF($E6="kW",VLOOKUP(W$4,'4. Billing Determinants'!$B$19:$Q$41,5,0)/'4. Billing Determinants'!$F$41*$D6,IF($E6="Non-RPP kWh",VLOOKUP(W$4,'4. Billing Determinants'!$B$19:$Q$41,6,0)/'4. Billing Determinants'!$G$41*$D6,IF($E6="Distribution Rev.",VLOOKUP(W$4,'4. Billing Determinants'!$B$19:$Q$41,8,0)/'4. Billing Determinants'!$I$41*$D6, VLOOKUP(W$4,'4. Billing Determinants'!$B$19:$Q$41,3,0)/'4. Billing Determinants'!$D$41*$D6))))),0) -> 0 | X6: =IFERROR(IF(X$4="",0,IF($E6="kWh",VLOOKUP(X$4,'4. Billing Determinants'!$B$19:$Q$41,4,0)/'4. Billing Determinants'!$E$41*$D6,IF($E6="kW",VLOOKUP(X$4,'4. Billing Determinants'!$B$19:$Q$41,5,0)/'4. Billing Determinants'!$F$41*$D6,IF($E6="Non-RPP kWh",VLOOKUP(X$4,'4. Billing Determinants'!$B$19:$Q$41,6,0)/'4. Billing Determinants'!$G$41*$D6,IF($E6="Distribution Rev.",VLOOKUP(X$4,'4. Billing Determinants'!$B$19:$Q$41,8,0)/'4. Billing Determinants'!$I$41*$D6, VLOOKUP(X$4,'4. Billing Determinants'!$B$19:$Q$41,3,0)/'4. Billing Determinants'!$D$41*$D6))))),0) -> 0 | Y6: =IFERROR(IF(Y$4="",0,IF($E6="kWh",VLOOKUP(Y$4,'4. Billing Determinants'!$B$19:$Q$41,4,0)/'4. Billing Determinants'!$E$41*$D6,IF($E6="kW",VLOOKUP(Y$4,'4. Billing Determinants'!$B$19:$Q$41,5,0)/'4. Billing Determinants'!$F$41*$D6,IF($E6="Non-RPP kWh",VLOOKUP(Y$4,'4. Billing Determinants'!$B$19:$Q$41,6,0)/'4. Billing Determinants'!$G$41*$D6,IF($E6="Distribution Rev.",VLOOKUP(Y$4,'4. Billing Determinants'!$B$19:$Q$41,8,0)/'4. Billing Determinants'!$I$41*$D6, VLOOKUP(Y$4,'4. Billing Determinants'!$B$19:$Q$41,3,0)/'4. Billing Determinants'!$D$41*$D6))))),0) -> 0
B7: RSVA - Wholesale Market Service Charge | C7: 1580 | D7: ='2. 2014 Continuity Schedule'!BU26 -> -169657.3293 | E7: kWh | F7: =IFERROR(IF(F$4="",0,IF($E7="kWh",VLOOKUP(F$4,'4. Billing Determinants'!$B$19:$Q$41,4,0)/'4. Billing Determinants'!$E$41*$D7,IF($E7="kW",VLOOKUP(F$4,'4. Billing Determinants'!$B$19:$Q$41,5,0)/'4. Billing Determinants'!$F$41*$D7,IF($E7="Non-RPP kWh",VLOOKUP(F$4,'4. Billing Determinants'!$B$19:$Q$41,6,0)/'4. Billing Determinants'!$G$41*$D7,IF($E7="Distribution Rev.",VLOOKUP(F$4,'4. Billing Determinants'!$B$19:$Q$41,8,0)/'4. Billing Determinants'!$I$41*$D7, VLOOKUP(F$4,'4. Billing Determinants'!$B$19:$Q$41,3,0)/'4. Billing Determinants'!$D$41*$D7))))),0) -> -46863.19224 | G7: =IFERROR(IF(G$4="",0,IF($E7="kWh",VLOOKUP(G$4,'4. Billing Determinants'!$B$19:$Q$41,4,0)/'4. Billing Determinants'!$E$41*$D7,IF($E7="kW",VLOOKUP(G$4,'4. Billing Determinants'!$B$19:$Q$41,5,0)/'4. Billing Determinants'!$F$41*$D7,IF($E7="Non-RPP kWh",VLOOKUP(G$4,'4. Billing Determinants'!$B$19:$Q$41,6,0)/'4. Billing Determinants'!$G$41*$D7,IF($E7="Distribution Rev.",VLOOKUP(G$4,'4. Billing Determinants'!$B$19:$Q$41,8,0)/'4. Billing Determinants'!$I$41*$D7, VLOOKUP(G$4,'4. Billing Determinants'!$B$19:$Q$41,3,0)/'4. Billing Determinants'!$D$41*$D7))))),0) -> -22544.30302 | H7: =IFERROR(IF(H$4="",0,IF($E7="kWh",VLOOKUP(H$4,'4. Billing Determinants'!$B$19:$Q$41,4,0)/'4. Billing Determinants'!$E$41*$D7,IF($E7="kW",VLOOKUP(H$4,'4. Billing Determinants'!$B$19:$Q$41,5,0)/'4. Billing Determinants'!$F$41*$D7,IF($E7="Non-RPP kWh",VLOOKUP(H$4,'4. Billing Determinants'!$B$19:$Q$41,6,0)/'4. Billing Determinants'!$G$41*$D7,IF($E7="Distribution Rev.",VLOOKUP(H$4,'4. Billing Determinants'!$B$19:$Q$41,8,0)/'4. Billing Determinants'!$I$41*$D7, VLOOKUP(H$4,'4. Billing Determinants'!$B$19:$Q$41,3,0)/'4. Billing Determinants'!$D$41*$D7))))),0)-801 -> -84422.92985 | I7: =IFERROR(IF(I$4="",0,IF($E7="kWh",VLOOKUP(I$4,'4. Billing Determinants'!$B$19:$Q$41,4,0)/'4. Billing Determinants'!$E$41*$D7,IF($E7="kW",VLOOKUP(I$4,'4. Billing Determinants'!$B$19:$Q$41,5,0)/'4. Billing Determinants'!$F$41*$D7,IF($E7="Non-RPP kWh",VLOOKUP(I$4,'4. Billing Determinants'!$B$19:$Q$41,6,0)/'4. Billing Determinants'!$G$41*$D7,IF($E7="Distribution Rev.",VLOOKUP(I$4,'4. Billing Determinants'!$B$19:$Q$41,8,0)/'4. Billing Determinants'!$I$41*$D7, VLOOKUP(I$4,'4. Billing Determinants'!$B$19:$Q$41,3,0)/'4. Billing Determinants'!$D$41*$D7))))),0) -> -10886.91293 | J7: =IFERROR(IF(J$4="",0,IF($E7="kWh",VLOOKUP(J$4,'4. Billing Determinants'!$B$19:$Q$41,4,0)/'4. Billing Determinants'!$E$41*$D7,IF($E7="kW",VLOOKUP(J$4,'4. Billing Determinants'!$B$19:$Q$41,5,0)/'4. Billing Determinants'!$F$41*$D7,IF($E7="Non-RPP kWh",VLOOKUP(J$4,'4. Billing Determinants'!$B$19:$Q$41,6,0)/'4. Billing Determinants'!$G$41*$D7,IF($E7="Distribution Rev.",VLOOKUP(J$4,'4. Billing Determinants'!$B$19:$Q$41,8,0)/'4. Billing Determinants'!$I$41*$D7, VLOOKUP(J$4,'4. Billing Determinants'!$B$19:$Q$41,3,0)/'4. Billing Determinants'!$D$41*$D7))))),0) -> -368.4062688 | K7: =IFERROR(IF(K$4="",0,IF($E7="kWh",VLOOKUP(K$4,'4. Billing Determinants'!$B$19:$Q$41,4,0)/'4. Billing Determinants'!$E$41*$D7,IF($E7="kW",VLOOKUP(K$4,'4. Billing Determinants'!$B$19:$Q$41,5,0)/'4. Billing Determinants'!$F$41*$D7,IF($E7="Non-RPP kWh",VLOOKUP(K$4,'4. Billing Determinants'!$B$19:$Q$41,6,0)/'4. Billing Determinants'!$G$41*$D7,IF($E7="Distribution Rev.",VLOOKUP(K$4,'4. Billing Determinants'!$B$19:$Q$41,8,0)/'4. Billing Determinants'!$I$41*$D7, VLOOKUP(K$4,'4. Billing Determinants'!$B$19:$Q$41,3,0)/'4. Billing Determinants'!$D$41*$D7))))),0) -> -890.9518398 | L7: =IFERROR(IF(L$4="",0,IF($E7="kWh",VLOOKUP(L$4,'4. Billing Determinants'!$B$19:$Q$41,4,0)/'4. Billing Determinants'!$E$41*$D7,IF($E7="kW",VLOOKUP(L$4,'4. Billing Determinants'!$B$19:$Q$41,5,0)/'4. Billing Determinants'!$F$41*$D7,IF($E7="Non-RPP kWh",VLOOKUP(L$4,'4. Billing Determinants'!$B$19:$Q$41,6,0)/'4. Billing Determinants'!$G$41*$D7,IF($E7="Distribution Rev.",VLOOKUP(L$4,'4. Billing Determinants'!$B$19:$Q$41,8,0)/'4. Billing Determinants'!$I$41*$D7, VLOOKUP(L$4,'4. Billing Determinants'!$B$19:$Q$41,3,0)/'4. Billing Determinants'!$D$41*$D7))))),0) -> -3681.146683 | N7: =IFERROR(IF(N$4="",0,IF($E7="kWh",VLOOKUP(N$4,'4. Billing Determinants'!$B$19:$Q$41,4,0)/'4. Billing Determinants'!$E$41*$D7,IF($E7="kW",VLOOKUP(N$4,'4. Billing Determinants'!$B$19:$Q$41,5,0)/'4. Billing Determinants'!$F$41*$D7,IF($E7="Non-RPP kWh",VLOOKUP(N$4,'4. Billing Determinants'!$B$19:$Q$41,6,0)/'4. Billing Determinants'!$G$41*$D7,IF($E7="Distribution Rev.",VLOOKUP(N$4,'4. Billing Determinants'!$B$19:$Q$41,8,0)/'4. Billing Determinants'!$I$41*$D7, VLOOKUP(N$4,'4. Billing Determinants'!$B$19:$Q$41,3,0)/'4. Billing Determinants'!$D$41*$D7))))),0) -> 0 | O7: =IFERROR(IF(O$4="",0,IF($E7="kWh",VLOOKUP(O$4,'4. Billing Determinants'!$B$19:$Q$41,4,0)/'4. Billing Determinants'!$E$41*$D7,IF($E7="kW",VLOOKUP(O$4,'4. Billing Determinants'!$B$19:$Q$41,5,0)/'4. Billing Determinants'!$F$41*$D7,IF($E7="Non-RPP kWh",VLOOKUP(O$4,'4. Billing Determinants'!$B$19:$Q$41,6,0)/'4. Billing Determinants'!$G$41*$D7,IF($E7="Distribution Rev.",VLOOKUP(O$4,'4. Billing Determinants'!$B$19:$Q$41,8,0)/'4. Billing Determinants'!$I$41*$D7, VLOOKUP(O$4,'4. Billing Determinants'!$B$19:$Q$41,3,0)/'4. Billing Determinants'!$D$41*$D7))))),0) -> 0 | P7: =IFERROR(IF(P$4="",0,IF($E7="kWh",VLOOKUP(P$4,'4. Billing Determinants'!$B$19:$Q$41,4,0)/'4. Billing Determinants'!$E$41*$D7,IF($E7="kW",VLOOKUP(P$4,'4. Billing Determinants'!$B$19:$Q$41,5,0)/'4. Billing Determinants'!$F$41*$D7,IF($E7="Non-RPP kWh",VLOOKUP(P$4,'4. Billing Determinants'!$B$19:$Q$41,6,0)/'4. Billing Determinants'!$G$41*$D7,IF($E7="Distribution Rev.",VLOOKUP(P$4,'4. Billing Determinants'!$B$19:$Q$41,8,0)/'4. Billing Determinants'!$I$41*$D7, VLOOKUP(P$4,'4. Billing Determinants'!$B$19:$Q$41,3,0)/'4. Billing Determinants'!$D$41*$D7))))),0) -> 0 | Q7: =IFERROR(IF(Q$4="",0,IF($E7="kWh",VLOOKUP(Q$4,'4. Billing Determinants'!$B$19:$Q$41,4,0)/'4. Billing Determinants'!$E$41*$D7,IF($E7="kW",VLOOKUP(Q$4,'4. Billing Determinants'!$B$19:$Q$41,5,0)/'4. Billing Determinants'!$F$41*$D7,IF($E7="Non-RPP kWh",VLOOKUP(Q$4,'4. Billing Determinants'!$B$19:$Q$41,6,0)/'4. Billing Determinants'!$G$41*$D7,IF($E7="Distribution Rev.",VLOOKUP(Q$4,'4. Billing Determinants'!$B$19:$Q$41,8,0)/'4. Billing Determinants'!$I$41*$D7, VLOOKUP(Q$4,'4. Billing Determinants'!$B$19:$Q$41,3,0)/'4. Billing Determinants'!$D$41*$D7))))),0) -> 0 | R7: =IFERROR(IF(R$4="",0,IF($E7="kWh",VLOOKUP(R$4,'4. Billing Determinants'!$B$19:$Q$41,4,0)/'4. Billing Determinants'!$E$41*$D7,IF($E7="kW",VLOOKUP(R$4,'4. Billing Determinants'!$B$19:$Q$41,5,0)/'4. Billing Determinants'!$F$41*$D7,IF($E7="Non-RPP kWh",VLOOKUP(R$4,'4. Billing Determinants'!$B$19:$Q$41,6,0)/'4. Billing Determinants'!$G$41*$D7,IF($E7="Distribution Rev.",VLOOKUP(R$4,'4. Billing Determinants'!$B$19:$Q$41,8,0)/'4. Billing Determinants'!$I$41*$D7, VLOOKUP(R$4,'4. Billing Determinants'!$B$19:$Q$41,3,0)/'4. Billing Determinants'!$D$41*$D7))))),0) -> 0 | S7: =IFERROR(IF(S$4="",0,IF($E7="kWh",VLOOKUP(S$4,'4. Billing Determinants'!$B$19:$Q$41,4,0)/'4. Billing Determinants'!$E$41*$D7,IF($E7="kW",VLOOKUP(S$4,'4. Billing Determinants'!$B$19:$Q$41,5,0)/'4. Billing Determinants'!$F$41*$D7,IF($E7="Non-RPP kWh",VLOOKUP(S$4,'4. Billing Determinants'!$B$19:$Q$41,6,0)/'4. Billing Determinants'!$G$41*$D7,IF($E7="Distribution Rev.",VLOOKUP(S$4,'4. Billing Determinants'!$B$19:$Q$41,8,0)/'4. Billing Determinants'!$I$41*$D7, VLOOKUP(S$4,'4. Billing Determinants'!$B$19:$Q$41,3,0)/'4. Billing Determinants'!$D$41*$D7))))),0) -> 0 | T7: =IFERROR(IF(T$4="",0,IF($E7="kWh",VLOOKUP(T$4,'4. Billing Determinants'!$B$19:$Q$41,4,0)/'4. Billing Determinants'!$E$41*$D7,IF($E7="kW",VLOOKUP(T$4,'4. Billing Determinants'!$B$19:$Q$41,5,0)/'4. Billing Determinants'!$F$41*$D7,IF($E7="Non-RPP kWh",VLOOKUP(T$4,'4. Billing Determinants'!$B$19:$Q$41,6,0)/'4. Billing Determinants'!$G$41*$D7,IF($E7="Distribution Rev.",VLOOKUP(T$4,'4. Billing Determinants'!$B$19:$Q$41,8,0)/'4. Billing Determinants'!$I$41*$D7, VLOOKUP(T$4,'4. Billing Determinants'!$B$19:$Q$41,3,0)/'4. Billing Determinants'!$D$41*$D7))))),0) -> 0 | U7: =IFERROR(IF(U$4="",0,IF($E7="kWh",VLOOKUP(U$4,'4. Billing Determinants'!$B$19:$Q$41,4,0)/'4. Billing Determinants'!$E$41*$D7,IF($E7="kW",VLOOKUP(U$4,'4. Billing Determinants'!$B$19:$Q$41,5,0)/'4. Billing Determinants'!$F$41*$D7,IF($E7="Non-RPP kWh",VLOOKUP(U$4,'4. Billing Determinants'!$B$19:$Q$41,6,0)/'4. Billing Determinants'!$G$41*$D7,IF($E7="Distribution Rev.",VLOOKUP(U$4,'4. Billing Determinants'!$B$19:$Q$41,8,0)/'4. Billing Determinants'!$I$41*$D7, VLOOKUP(U$4,'4. Billing Determinants'!$B$19:$Q$41,3,0)/'4. Billing Determinants'!$D$41*$D7))))),0) -> 0 | V7: =IFERROR(IF(V$4="",0,IF($E7="kWh",VLOOKUP(V$4,'4. Billing Determinants'!$B$19:$Q$41,4,0)/'4. Billing Determinants'!$E$41*$D7,IF($E7="kW",VLOOKUP(V$4,'4. Billing Determinants'!$B$19:$Q$41,5,0)/'4. Billing Determinants'!$F$41*$D7,IF($E7="Non-RPP kWh",VLOOKUP(V$4,'4. Billing Determinants'!$B$19:$Q$41,6,0)/'4. Billing Determinants'!$G$41*$D7,IF($E7="Distribution Rev.",VLOOKUP(V$4,'4. Billing Determinants'!$B$19:$Q$41,8,0)/'4. Billing Determinants'!$I$41*$D7, VLOOKUP(V$4,'4. Billing Determinants'!$B$19:$Q$41,3,0)/'4. Billing Determinants'!$D$41*$D7))))),0) -> 0 | W7: =IFERROR(IF(W$4="",0,IF($E7="kWh",VLOOKUP(W$4,'4. Billing Determinants'!$B$19:$Q$41,4,0)/'4. Billing Determinants'!$E$41*$D7,IF($E7="kW",VLOOKUP(W$4,'4. Billing Determinants'!$B$19:$Q$41,5,0)/'4. Billing Determinants'!$F$41*$D7,IF($E7="Non-RPP kWh",VLOOKUP(W$4,'4. Billing Determinants'!$B$19:$Q$41,6,0)/'4. Billing Determinants'!$G$41*$D7,IF($E7="Distribution Rev.",VLOOKUP(W$4,'4. Billing Determinants'!$B$19:$Q$41,8,0)/'4. Billing Determinants'!$I$41*$D7, VLOOKUP(W$4,'4. Billing Determinants'!$B$19:$Q$41,3,0)/'4. Billing Determinants'!$D$41*$D7))))),0) -> 0 | X7: =IFERROR(IF(X$4="",0,IF($E7="kWh",VLOOKUP(X$4,'4. Billing Determinants'!$B$19:$Q$41,4,0)/'4. Billing Determinants'!$E$41*$D7,IF($E7="kW",VLOOKUP(X$4,'4. Billing Determinants'!$B$19:$Q$41,5,0)/'4. Billing Determinants'!$F$41*$D7,IF($E7="Non-RPP kWh",VLOOKUP(X$4,'4. Billing Determinants'!$B$19:$Q$41,6,0)/'4. Billing Determinants'!$G$41*$D7,IF($E7="Distribution Rev.",VLOOKUP(X$4,'4. Billing Determinants'!$B$19:$Q$41,8,0)/'4. Billing Determinants'!$I$41*$D7, VLOOKUP(X$4,'4. Billing Determinants'!$B$19:$Q$41,3,0)/'4. Billing Determinants'!$D$41*$D7))))),0) -> 0 | Y7: =IFERROR(IF(Y$4="",0,IF($E7="kWh",VLOOKUP(Y$4,'4. Billing Determinants'!$B$19:$Q$41,4,0)/'4. Billing Determinants'!$E$41*$D7,IF($E7="kW",VLOOKUP(Y$4,'4. Billing Determinants'!$B$19:$Q$41,5,0)/'4. Billing Determinants'!$F$41*$D7,IF($E7="Non-RPP kWh",VLOOKUP(Y$4,'4. Billing Determinants'!$B$19:$Q$41,6,0)/'4. Billing Determinants'!$G$41*$D7,IF($E7="Distribution Rev.",VLOOKUP(Y$4,'4. Billing Determinants'!$B$19:$Q$41,8,0)/'4. Billing Determinants'!$I$41*$D7, VLOOKUP(Y$4,'4. Billing Determinants'!$B$19:$Q$41,3,0)/'4. Billing Determinants'!$D$41*$D7))))),0) -> 0
B8: RSVA - Retail Transmission Network Charge | C8: 1584 | D8: ='2. 2014 Continuity Schedule'!BU27 -> -257525.7699 | E8: kWh | F8: =IFERROR(IF(F$4="",0,IF($E8="kWh",VLOOKUP(F$4,'4. Billing Determinants'!$B$19:$Q$41,4,0)/'4. Billing Determinants'!$E$41*$D8,IF($E8="kW",VLOOKUP(F$4,'4. Billing Determinants'!$B$19:$Q$41,5,0)/'4. Billing Determinants'!$F$41*$D8,IF($E8="Non-RPP kWh",VLOOKUP(F$4,'4. Billing Determinants'!$B$19:$Q$41,6,0)/'4. Billing Determinants'!$G$41*$D8,IF($E8="Distribution Rev.",VLOOKUP(F$4,'4. Billing Determinants'!$B$19:$Q$41,8,0)/'4. Billing Determinants'!$I$41*$D8, VLOOKUP(F$4,'4. Billing Determinants'!$B$19:$Q$41,3,0)/'4. Billing Determinants'!$D$41*$D8))))),0) -> -71134.44323 | G8: =IFERROR(IF(G$4="",0,IF($E8="kWh",VLOOKUP(G$4,'4. Billing Determinants'!$B$19:$Q$41,4,0)/'4. Billing Determinants'!$E$41*$D8,IF($E8="kW",VLOOKUP(G$4,'4. Billing Determinants'!$B$19:$Q$41,5,0)/'4. Billing Determinants'!$F$41*$D8,IF($E8="Non-RPP kWh",VLOOKUP(G$4,'4. Billing Determinants'!$B$19:$Q$41,6,0)/'4. Billing Determinants'!$G$41*$D8,IF($E8="Distribution Rev.",VLOOKUP(G$4,'4. Billing Determinants'!$B$19:$Q$41,8,0)/'4. Billing Determinants'!$I$41*$D8, VLOOKUP(G$4,'4. Billing Determinants'!$B$19:$Q$41,3,0)/'4. Billing Determinants'!$D$41*$D8))))),0) -> -34220.3842 | H8: =IFERROR(IF(H$4="",0,IF($E8="kWh",VLOOKUP(H$4,'4. Billing Determinants'!$B$19:$Q$41,4,0)/'4. Billing Determinants'!$E$41*$D8,IF($E8="kW",VLOOKUP(H$4,'4. Billing Determinants'!$B$19:$Q$41,5,0)/'4. Billing Determinants'!$F$41*$D8,IF($E8="Non-RPP kWh",VLOOKUP(H$4,'4. Billing Determinants'!$B$19:$Q$41,6,0)/'4. Billing Determinants'!$G$41*$D8,IF($E8="Distribution Rev.",VLOOKUP(H$4,'4. Billing Determinants'!$B$19:$Q$41,8,0)/'4. Billing Determinants'!$I$41*$D8, VLOOKUP(H$4,'4. Billing Determinants'!$B$19:$Q$41,3,0)/'4. Billing Determinants'!$D$41*$D8))))),0) -> -126931.1615 | I8: =IFERROR(IF(I$4="",0,IF($E8="kWh",VLOOKUP(I$4,'4. Billing Determinants'!$B$19:$Q$41,4,0)/'4. Billing Determinants'!$E$41*$D8,IF($E8="kW",VLOOKUP(I$4,'4. Billing Determinants'!$B$19:$Q$41,5,0)/'4. Billing Determinants'!$F$41*$D8,IF($E8="Non-RPP kWh",VLOOKUP(I$4,'4. Billing Determinants'!$B$19:$Q$41,6,0)/'4. Billing Determinants'!$G$41*$D8,IF($E8="Distribution Rev.",VLOOKUP(I$4,'4. Billing Determinants'!$B$19:$Q$41,8,0)/'4. Billing Determinants'!$I$41*$D8, VLOOKUP(I$4,'4. Billing Determinants'!$B$19:$Q$41,3,0)/'4. Billing Determinants'!$D$41*$D8))))),0) -> -16525.43185 | J8: =IFERROR(IF(J$4="",0,IF($E8="kWh",VLOOKUP(J$4,'4. Billing Determinants'!$B$19:$Q$41,4,0)/'4. Billing Determinants'!$E$41*$D8,IF($E8="kW",VLOOKUP(J$4,'4. Billing Determinants'!$B$19:$Q$41,5,0)/'4. Billing Determinants'!$F$41*$D8,IF($E8="Non-RPP kWh",VLOOKUP(J$4,'4. Billing Determinants'!$B$19:$Q$41,6,0)/'4. Billing Determinants'!$G$41*$D8,IF($E8="Distribution Rev.",VLOOKUP(J$4,'4. Billing Determinants'!$B$19:$Q$41,8,0)/'4. Billing Determinants'!$I$41*$D8, VLOOKUP(J$4,'4. Billing Determinants'!$B$19:$Q$41,3,0)/'4. Billing Determinants'!$D$41*$D8))))),0) -> -559.2101938 | K8: =IFERROR(IF(K$4="",0,IF($E8="kWh",VLOOKUP(K$4,'4. Billing Determinants'!$B$19:$Q$41,4,0)/'4. Billing Determinants'!$E$41*$D8,IF($E8="kW",VLOOKUP(K$4,'4. Billing Determinants'!$B$19:$Q$41,5,0)/'4. Billing Determinants'!$F$41*$D8,IF($E8="Non-RPP kWh",VLOOKUP(K$4,'4. Billing Determinants'!$B$19:$Q$41,6,0)/'4. Billing Determinants'!$G$41*$D8,IF($E8="Distribution Rev.",VLOOKUP(K$4,'4. Billing Determinants'!$B$19:$Q$41,8,0)/'4. Billing Determinants'!$I$41*$D8, VLOOKUP(K$4,'4. Billing Determinants'!$B$19:$Q$41,3,0)/'4. Billing Determinants'!$D$41*$D8))))),0) -> -1352.391078 | L8: =IFERROR(IF(L$4="",0,IF($E8="kWh",VLOOKUP(L$4,'4. Billing Determinants'!$B$19:$Q$41,4,0)/'4. Billing Determinants'!$E$41*$D8,IF($E8="kW",VLOOKUP(L$4,'4. Billing Determinants'!$B$19:$Q$41,5,0)/'4. Billing Determinants'!$F$41*$D8,IF($E8="Non-RPP kWh",VLOOKUP(L$4,'4. Billing Determinants'!$B$19:$Q$41,6,0)/'4. Billing Determinants'!$G$41*$D8,IF($E8="Distribution Rev.",VLOOKUP(L$4,'4. Billing Determinants'!$B$19:$Q$41,8,0)/'4. Billing Determinants'!$I$41*$D8, VLOOKUP(L$4,'4. Billing Determinants'!$B$19:$Q$41,3,0)/'4. Billing Determinants'!$D$41*$D8))))),0) -> -5587.675683 | M8: =IFERROR(IF(M$4="",0,IF($E8="kWh",VLOOKUP(M$4,'4. Billing Determinants'!$B$19:$Q$41,4,0)/'4. Billing Determinants'!$E$41*$D8,IF($E8="kW",VLOOKUP(M$4,'4. Billing Determinants'!$B$19:$Q$41,5,0)/'4. Billing Determinants'!$F$41*$D8,IF($E8="Non-RPP kWh",VLOOKUP(M$4,'4. Billing Determinants'!$B$19:$Q$41,6,0)/'4. Billing Determinants'!$G$41*$D8,IF($E8="Distribution Rev.",VLOOKUP(M$4,'4. Billing Determinants'!$B$19:$Q$41,8,0)/'4. Billing Determinants'!$I$41*$D8, VLOOKUP(M$4,'4. Billing Determinants'!$B$19:$Q$41,3,0)/'4. Billing Determinants'!$D$41*$D8))))),0) -> -1215.072164 | N8: =IFERROR(IF(N$4="",0,IF($E8="kWh",VLOOKUP(N$4,'4. Billing Determinants'!$B$19:$Q$41,4,0)/'4. Billing Determinants'!$E$41*$D8,IF($E8="kW",VLOOKUP(N$4,'4. Billing Determinants'!$B$19:$Q$41,5,0)/'4. Billing Determinants'!$F$41*$D8,IF($E8="Non-RPP kWh",VLOOKUP(N$4,'4. Billing Determinants'!$B$19:$Q$41,6,0)/'4. Billing Determinants'!$G$41*$D8,IF($E8="Distribution Rev.",VLOOKUP(N$4,'4. Billing Determinants'!$B$19:$Q$41,8,0)/'4. Billing Determinants'!$I$41*$D8, VLOOKUP(N$4,'4. Billing Determinants'!$B$19:$Q$41,3,0)/'4. Billing Determinants'!$D$41*$D8))))),0) -> 0 | O8: =IFERROR(IF(O$4="",0,IF($E8="kWh",VLOOKUP(O$4,'4. Billing Determinants'!$B$19:$Q$41,4,0)/'4. Billing Determinants'!$E$41*$D8,IF($E8="kW",VLOOKUP(O$4,'4. Billing Determinants'!$B$19:$Q$41,5,0)/'4. Billing Determinants'!$F$41*$D8,IF($E8="Non-RPP kWh",VLOOKUP(O$4,'4. Billing Determinants'!$B$19:$Q$41,6,0)/'4. Billing Determinants'!$G$41*$D8,IF($E8="Distribution Rev.",VLOOKUP(O$4,'4. Billing Determinants'!$B$19:$Q$41,8,0)/'4. Billing Determinants'!$I$41*$D8, VLOOKUP(O$4,'4. Billing Determinants'!$B$19:$Q$41,3,0)/'4. Billing Determinants'!$D$41*$D8))))),0) -> 0 | P8: =IFERROR(IF(P$4="",0,IF($E8="kWh",VLOOKUP(P$4,'4. Billing Determinants'!$B$19:$Q$41,4,0)/'4. Billing Determinants'!$E$41*$D8,IF($E8="kW",VLOOKUP(P$4,'4. Billing Determinants'!$B$19:$Q$41,5,0)/'4. Billing Determinants'!$F$41*$D8,IF($E8="Non-RPP kWh",VLOOKUP(P$4,'4. Billing Determinants'!$B$19:$Q$41,6,0)/'4. Billing Determinants'!$G$41*$D8,IF($E8="Distribution Rev.",VLOOKUP(P$4,'4. Billing Determinants'!$B$19:$Q$41,8,0)/'4. Billing Determinants'!$I$41*$D8, VLOOKUP(P$4,'4. Billing Determinants'!$B$19:$Q$41,3,0)/'4. Billing Determinants'!$D$41*$D8))))),0) -> 0 | Q8: =IFERROR(IF(Q$4="",0,IF($E8="kWh",VLOOKUP(Q$4,'4. Billing Determinants'!$B$19:$Q$41,4,0)/'4. Billing Determinants'!$E$41*$D8,IF($E8="kW",VLOOKUP(Q$4,'4. Billing Determinants'!$B$19:$Q$41,5,0)/'4. Billing Determinants'!$F$41*$D8,IF($E8="Non-RPP kWh",VLOOKUP(Q$4,'4. Billing Determinants'!$B$19:$Q$41,6,0)/'4. Billing Determinants'!$G$41*$D8,IF($E8="Distribution Rev.",VLOOKUP(Q$4,'4. Billing Determinants'!$B$19:$Q$41,8,0)/'4. Billing Determinants'!$I$41*$D8, VLOOKUP(Q$4,'4. Billing Determinants'!$B$19:$Q$41,3,0)/'4. Billing Determinants'!$D$41*$D8))))),0) -> 0 | R8: =IFERROR(IF(R$4="",0,IF($E8="kWh",VLOOKUP(R$4,'4. Billing Determinants'!$B$19:$Q$41,4,0)/'4. Billing Determinants'!$E$41*$D8,IF($E8="kW",VLOOKUP(R$4,'4. Billing Determinants'!$B$19:$Q$41,5,0)/'4. Billing Determinants'!$F$41*$D8,IF($E8="Non-RPP kWh",VLOOKUP(R$4,'4. Billing Determinants'!$B$19:$Q$41,6,0)/'4. Billing Determinants'!$G$41*$D8,IF($E8="Distribution Rev.",VLOOKUP(R$4,'4. Billing Determinants'!$B$19:$Q$41,8,0)/'4. Billing Determinants'!$I$41*$D8, VLOOKUP(R$4,'4. Billing Determinants'!$B$19:$Q$41,3,0)/'4. Billing Determinants'!$D$41*$D8))))),0) -> 0 | S8: =IFERROR(IF(S$4="",0,IF($E8="kWh",VLOOKUP(S$4,'4. Billing Determinants'!$B$19:$Q$41,4,0)/'4. Billing Determinants'!$E$41*$D8,IF($E8="kW",VLOOKUP(S$4,'4. Billing Determinants'!$B$19:$Q$41,5,0)/'4. Billing Determinants'!$F$41*$D8,IF($E8="Non-RPP kWh",VLOOKUP(S$4,'4. Billing Determinants'!$B$19:$Q$41,6,0)/'4. Billing Determinants'!$G$41*$D8,IF($E8="Distribution Rev.",VLOOKUP(S$4,'4. Billing Determinants'!$B$19:$Q$41,8,0)/'4. Billing Determinants'!$I$41*$D8, VLOOKUP(S$4,'4. Billing Determinants'!$B$19:$Q$41,3,0)/'4. Billing Determinants'!$D$41*$D8))))),0) -> 0 | T8: =IFERROR(IF(T$4="",0,IF($E8="kWh",VLOOKUP(T$4,'4. Billing Determinants'!$B$19:$Q$41,4,0)/'4. Billing Determinants'!$E$41*$D8,IF($E8="kW",VLOOKUP(T$4,'4. Billing Determinants'!$B$19:$Q$41,5,0)/'4. Billing Determinants'!$F$41*$D8,IF($E8="Non-RPP kWh",VLOOKUP(T$4,'4. Billing Determinants'!$B$19:$Q$41,6,0)/'4. Billing Determinants'!$G$41*$D8,IF($E8="Distribution Rev.",VLOOKUP(T$4,'4. Billing Determinants'!$B$19:$Q$41,8,0)/'4. Billing Determinants'!$I$41*$D8, VLOOKUP(T$4,'4. Billing Determinants'!$B$19:$Q$41,3,0)/'4. Billing Determinants'!$D$41*$D8))))),0) -> 0 | U8: =IFERROR(IF(U$4="",0,IF($E8="kWh",VLOOKUP(U$4,'4. Billing Determinants'!$B$19:$Q$41,4,0)/'4. Billing Determinants'!$E$41*$D8,IF($E8="kW",VLOOKUP(U$4,'4. Billing Determinants'!$B$19:$Q$41,5,0)/'4. Billing Determinants'!$F$41*$D8,IF($E8="Non-RPP kWh",VLOOKUP(U$4,'4. Billing Determinants'!$B$19:$Q$41,6,0)/'4. Billing Determinants'!$G$41*$D8,IF($E8="Distribution Rev.",VLOOKUP(U$4,'4. Billing Determinants'!$B$19:$Q$41,8,0)/'4. Billing Determinants'!$I$41*$D8, VLOOKUP(U$4,'4. Billing Determinants'!$B$19:$Q$41,3,0)/'4. Billing Determinants'!$D$41*$D8))))),0) -> 0 | V8: =IFERROR(IF(V$4="",0,IF($E8="kWh",VLOOKUP(V$4,'4. Billing Determinants'!$B$19:$Q$41,4,0)/'4. Billing Determinants'!$E$41*$D8,IF($E8="kW",VLOOKUP(V$4,'4. Billing Determinants'!$B$19:$Q$41,5,0)/'4. Billing Determinants'!$F$41*$D8,IF($E8="Non-RPP kWh",VLOOKUP(V$4,'4. Billing Determinants'!$B$19:$Q$41,6,0)/'4. Billing Determinants'!$G$41*$D8,IF($E8="Distribution Rev.",VLOOKUP(V$4,'4. Billing Determinants'!$B$19:$Q$41,8,0)/'4. Billing Determinants'!$I$41*$D8, VLOOKUP(V$4,'4. Billing Determinants'!$B$19:$Q$41,3,0)/'4. Billing Determinants'!$D$41*$D8))))),0) -> 0 | W8: =IFERROR(IF(W$4="",0,IF($E8="kWh",VLOOKUP(W$4,'4. Billing Determinants'!$B$19:$Q$41,4,0)/'4. Billing Determinants'!$E$41*$D8,IF($E8="kW",VLOOKUP(W$4,'4. Billing Determinants'!$B$19:$Q$41,5,0)/'4. Billing Determinants'!$F$41*$D8,IF($E8="Non-RPP kWh",VLOOKUP(W$4,'4. Billing Determinants'!$B$19:$Q$41,6,0)/'4. Billing Determinants'!$G$41*$D8,IF($E8="Distribution Rev.",VLOOKUP(W$4,'4. Billing Determinants'!$B$19:$Q$41,8,0)/'4. Billing Determinants'!$I$41*$D8, VLOOKUP(W$4,'4. Billing Determinants'!$B$19:$Q$41,3,0)/'4. Billing Determinants'!$D$41*$D8))))),0) -> 0 | X8: =IFERROR(IF(X$4="",0,IF($E8="kWh",VLOOKUP(X$4,'4. Billing Determinants'!$B$19:$Q$41,4,0)/'4. Billing Determinants'!$E$41*$D8,IF($E8="kW",VLOOKUP(X$4,'4. Billing Determinants'!$B$19:$Q$41,5,0)/'4. Billing Determinants'!$F$41*$D8,IF($E8="Non-RPP kWh",VLOOKUP(X$4,'4. Billing Determinants'!$B$19:$Q$41,6,0)/'4. Billing Determinants'!$G$41*$D8,IF($E8="Distribution Rev.",VLOOKUP(X$4,'4. Billing Determinants'!$B$19:$Q$41,8,0)/'4. Billing Determinants'!$I$41*$D8, VLOOKUP(X$4,'4. Billing Determinants'!$B$19:$Q$41,3,0)/'4. Billing Determinants'!$D$41*$D8))))),0) -> 0 | Y8: =IFERROR(IF(Y$4="",0,IF($E8="kWh",VLOOKUP(Y$4,'4. Billing Determinants'!$B$19:$Q$41,4,0)/'4. Billing Determinants'!$E$41*$D8,IF($E8="kW",VLOOKUP(Y$4,'4. Billing Determinants'!$B$19:$Q$41,5,0)/'4. Billing Determinants'!$F$41*$D8,IF($E8="Non-RPP kWh",VLOOKUP(Y$4,'4. Billing Determinants'!$B$19:$Q$41,6,0)/'4. Billing Determinants'!$G$41*$D8,IF($E8="Distribution Rev.",VLOOKUP(Y$4,'4. Billing Determinants'!$B$19:$Q$41,8,0)/'4. Billing Determinants'!$I$41*$D8, VLOOKUP(Y$4,'4. Billing Determinants'!$B$19:$Q$41,3,0)/'4. Billing Determinants'!$D$41*$D8))))),0) -> 0
B9: RSVA - Retail Transmission Connection Charge | C9: 1586 | D9: ='2. 2014 Continuity Schedule'!BU28 -> -33751.16459 | E9: kWh | F9: =IFERROR(IF(F$4="",0,IF($E9="kWh",VLOOKUP(F$4,'4. Billing Determinants'!$B$19:$Q$41,4,0)/'4. Billing Determinants'!$E$41*$D9,IF($E9="kW",VLOOKUP(F$4,'4. Billing Determinants'!$B$19:$Q$41,5,0)/'4. Billing Determinants'!$F$41*$D9,IF($E9="Non-RPP kWh",VLOOKUP(F$4,'4. Billing Determinants'!$B$19:$Q$41,6,0)/'4. Billing Determinants'!$G$41*$D9,IF($E9="Distribution Rev.",VLOOKUP(F$4,'4. Billing Determinants'!$B$19:$Q$41,8,0)/'4. Billing Determinants'!$I$41*$D9, VLOOKUP(F$4,'4. Billing Determinants'!$B$19:$Q$41,3,0)/'4. Billing Determinants'!$D$41*$D9))))),0) -> -9322.835157 | G9: =IFERROR(IF(G$4="",0,IF($E9="kWh",VLOOKUP(G$4,'4. Billing Determinants'!$B$19:$Q$41,4,0)/'4. Billing Determinants'!$E$41*$D9,IF($E9="kW",VLOOKUP(G$4,'4. Billing Determinants'!$B$19:$Q$41,5,0)/'4. Billing Determinants'!$F$41*$D9,IF($E9="Non-RPP kWh",VLOOKUP(G$4,'4. Billing Determinants'!$B$19:$Q$41,6,0)/'4. Billing Determinants'!$G$41*$D9,IF($E9="Distribution Rev.",VLOOKUP(G$4,'4. Billing Determinants'!$B$19:$Q$41,8,0)/'4. Billing Determinants'!$I$41*$D9, VLOOKUP(G$4,'4. Billing Determinants'!$B$19:$Q$41,3,0)/'4. Billing Determinants'!$D$41*$D9))))),0) -> -4484.901918 | H9: =IFERROR(IF(H$4="",0,IF($E9="kWh",VLOOKUP(H$4,'4. Billing Determinants'!$B$19:$Q$41,4,0)/'4. Billing Determinants'!$E$41*$D9,IF($E9="kW",VLOOKUP(H$4,'4. Billing Determinants'!$B$19:$Q$41,5,0)/'4. Billing Determinants'!$F$41*$D9,IF($E9="Non-RPP kWh",VLOOKUP(H$4,'4. Billing Determinants'!$B$19:$Q$41,6,0)/'4. Billing Determinants'!$G$41*$D9,IF($E9="Distribution Rev.",VLOOKUP(H$4,'4. Billing Determinants'!$B$19:$Q$41,8,0)/'4. Billing Determinants'!$I$41*$D9, VLOOKUP(H$4,'4. Billing Determinants'!$B$19:$Q$41,3,0)/'4. Billing Determinants'!$D$41*$D9))))),0) -> -16635.51778 | I9: =IFERROR(IF(I$4="",0,IF($E9="kWh",VLOOKUP(I$4,'4. Billing Determinants'!$B$19:$Q$41,4,0)/'4. Billing Determinants'!$E$41*$D9,IF($E9="kW",VLOOKUP(I$4,'4. Billing Determinants'!$B$19:$Q$41,5,0)/'4. Billing Determinants'!$F$41*$D9,IF($E9="Non-RPP kWh",VLOOKUP(I$4,'4. Billing Determinants'!$B$19:$Q$41,6,0)/'4. Billing Determinants'!$G$41*$D9,IF($E9="Distribution Rev.",VLOOKUP(I$4,'4. Billing Determinants'!$B$19:$Q$41,8,0)/'4. Billing Determinants'!$I$41*$D9, VLOOKUP(I$4,'4. Billing Determinants'!$B$19:$Q$41,3,0)/'4. Billing Determinants'!$D$41*$D9))))),0) -> -2165.812651 | J9: =IFERROR(IF(J$4="",0,IF($E9="kWh",VLOOKUP(J$4,'4. Billing Determinants'!$B$19:$Q$41,4,0)/'4. Billing Determinants'!$E$41*$D9,IF($E9="kW",VLOOKUP(J$4,'4. Billing Determinants'!$B$19:$Q$41,5,0)/'4. Billing Determinants'!$F$41*$D9,IF($E9="Non-RPP kWh",VLOOKUP(J$4,'4. Billing Determinants'!$B$19:$Q$41,6,0)/'4. Billing Determinants'!$G$41*$D9,IF($E9="Distribution Rev.",VLOOKUP(J$4,'4. Billing Determinants'!$B$19:$Q$41,8,0)/'4. Billing Determinants'!$I$41*$D9, VLOOKUP(J$4,'4. Billing Determinants'!$B$19:$Q$41,3,0)/'4. Billing Determinants'!$D$41*$D9))))),0) -> -73.28973446 | K9: =IFERROR(IF(K$4="",0,IF($E9="kWh",VLOOKUP(K$4,'4. Billing Determinants'!$B$19:$Q$41,4,0)/'4. Billing Determinants'!$E$41*$D9,IF($E9="kW",VLOOKUP(K$4,'4. Billing Determinants'!$B$19:$Q$41,5,0)/'4. Billing Determinants'!$F$41*$D9,IF($E9="Non-RPP kWh",VLOOKUP(K$4,'4. Billing Determinants'!$B$19:$Q$41,6,0)/'4. Billing Determinants'!$G$41*$D9,IF($E9="Distribution Rev.",VLOOKUP(K$4,'4. Billing Determinants'!$B$19:$Q$41,8,0)/'4. Billing Determinants'!$I$41*$D9, VLOOKUP(K$4,'4. Billing Determinants'!$B$19:$Q$41,3,0)/'4. Billing Determinants'!$D$41*$D9))))),0) -> -177.2435197 | L9: =IFERROR(IF(L$4="",0,IF($E9="kWh",VLOOKUP(L$4,'4. Billing Determinants'!$B$19:$Q$41,4,0)/'4. Billing Determinants'!$E$41*$D9,IF($E9="kW",VLOOKUP(L$4,'4. Billing Determinants'!$B$19:$Q$41,5,0)/'4. Billing Determinants'!$F$41*$D9,IF($E9="Non-RPP kWh",VLOOKUP(L$4,'4. Billing Determinants'!$B$19:$Q$41,6,0)/'4. Billing Determinants'!$G$41*$D9,IF($E9="Distribution Rev.",VLOOKUP(L$4,'4. Billing Determinants'!$B$19:$Q$41,8,0)/'4. Billing Determinants'!$I$41*$D9, VLOOKUP(L$4,'4. Billing Determinants'!$B$19:$Q$41,3,0)/'4. Billing Determinants'!$D$41*$D9))))),0) -> -732.3172424 | M9: =IFERROR(IF(M$4="",0,IF($E9="kWh",VLOOKUP(M$4,'4. Billing Determinants'!$B$19:$Q$41,4,0)/'4. Billing Determinants'!$E$41*$D9,IF($E9="kW",VLOOKUP(M$4,'4. Billing Determinants'!$B$19:$Q$41,5,0)/'4. Billing Determinants'!$F$41*$D9,IF($E9="Non-RPP kWh",VLOOKUP(M$4,'4. Billing Determinants'!$B$19:$Q$41,6,0)/'4. Billing Determinants'!$G$41*$D9,IF($E9="Distribution Rev.",VLOOKUP(M$4,'4. Billing Determinants'!$B$19:$Q$41,8,0)/'4. Billing Determinants'!$I$41*$D9, VLOOKUP(M$4,'4. Billing Determinants'!$B$19:$Q$41,3,0)/'4. Billing Determinants'!$D$41*$D9))))),0) -> -159.2465896 | N9: =IFERROR(IF(N$4="",0,IF($E9="kWh",VLOOKUP(N$4,'4. Billing Determinants'!$B$19:$Q$41,4,0)/'4. Billing Determinants'!$E$41*$D9,IF($E9="kW",VLOOKUP(N$4,'4. Billing Determinants'!$B$19:$Q$41,5,0)/'4. Billing Determinants'!$F$41*$D9,IF($E9="Non-RPP kWh",VLOOKUP(N$4,'4. Billing Determinants'!$B$19:$Q$41,6,0)/'4. Billing Determinants'!$G$41*$D9,IF($E9="Distribution Rev.",VLOOKUP(N$4,'4. Billing Determinants'!$B$19:$Q$41,8,0)/'4. Billing Determinants'!$I$41*$D9, VLOOKUP(N$4,'4. Billing Determinants'!$B$19:$Q$41,3,0)/'4. Billing Determinants'!$D$41*$D9))))),0) -> 0 | O9: =IFERROR(IF(O$4="",0,IF($E9="kWh",VLOOKUP(O$4,'4. Billing Determinants'!$B$19:$Q$41,4,0)/'4. Billing Determinants'!$E$41*$D9,IF($E9="kW",VLOOKUP(O$4,'4. Billing Determinants'!$B$19:$Q$41,5,0)/'4. Billing Determinants'!$F$41*$D9,IF($E9="Non-RPP kWh",VLOOKUP(O$4,'4. Billing Determinants'!$B$19:$Q$41,6,0)/'4. Billing Determinants'!$G$41*$D9,IF($E9="Distribution Rev.",VLOOKUP(O$4,'4. Billing Determinants'!$B$19:$Q$41,8,0)/'4. Billing Determinants'!$I$41*$D9, VLOOKUP(O$4,'4. Billing Determinants'!$B$19:$Q$41,3,0)/'4. Billing Determinants'!$D$41*$D9))))),0) -> 0 | P9: =IFERROR(IF(P$4="",0,IF($E9="kWh",VLOOKUP(P$4,'4. Billing Determinants'!$B$19:$Q$41,4,0)/'4. Billing Determinants'!$E$41*$D9,IF($E9="kW",VLOOKUP(P$4,'4. Billing Determinants'!$B$19:$Q$41,5,0)/'4. Billing Determinants'!$F$41*$D9,IF($E9="Non-RPP kWh",VLOOKUP(P$4,'4. Billing Determinants'!$B$19:$Q$41,6,0)/'4. Billing Determinants'!$G$41*$D9,IF($E9="Distribution Rev.",VLOOKUP(P$4,'4. Billing Determinants'!$B$19:$Q$41,8,0)/'4. Billing Determinants'!$I$41*$D9, VLOOKUP(P$4,'4. Billing Determinants'!$B$19:$Q$41,3,0)/'4. Billing Determinants'!$D$41*$D9))))),0) -> 0 | Q9: =IFERROR(IF(Q$4="",0,IF($E9="kWh",VLOOKUP(Q$4,'4. Billing Determinants'!$B$19:$Q$41,4,0)/'4. Billing Determinants'!$E$41*$D9,IF($E9="kW",VLOOKUP(Q$4,'4. Billing Determinants'!$B$19:$Q$41,5,0)/'4. Billing Determinants'!$F$41*$D9,IF($E9="Non-RPP kWh",VLOOKUP(Q$4,'4. Billing Determinants'!$B$19:$Q$41,6,0)/'4. Billing Determinants'!$G$41*$D9,IF($E9="Distribution Rev.",VLOOKUP(Q$4,'4. Billing Determinants'!$B$19:$Q$41,8,0)/'4. Billing Determinants'!$I$41*$D9, VLOOKUP(Q$4,'4. Billing Determinants'!$B$19:$Q$41,3,0)/'4. Billing Determinants'!$D$41*$D9))))),0) -> 0 | R9: =IFERROR(IF(R$4="",0,IF($E9="kWh",VLOOKUP(R$4,'4. Billing Determinants'!$B$19:$Q$41,4,0)/'4. Billing Determinants'!$E$41*$D9,IF($E9="kW",VLOOKUP(R$4,'4. Billing Determinants'!$B$19:$Q$41,5,0)/'4. Billing Determinants'!$F$41*$D9,IF($E9="Non-RPP kWh",VLOOKUP(R$4,'4. Billing Determinants'!$B$19:$Q$41,6,0)/'4. Billing Determinants'!$G$41*$D9,IF($E9="Distribution Rev.",VLOOKUP(R$4,'4. Billing Determinants'!$B$19:$Q$41,8,0)/'4. Billing Determinants'!$I$41*$D9, VLOOKUP(R$4,'4. Billing Determinants'!$B$19:$Q$41,3,0)/'4. Billing Determinants'!$D$41*$D9))))),0) -> 0 | S9: =IFERROR(IF(S$4="",0,IF($E9="kWh",VLOOKUP(S$4,'4. Billing Determinants'!$B$19:$Q$41,4,0)/'4. Billing Determinants'!$E$41*$D9,IF($E9="kW",VLOOKUP(S$4,'4. Billing Determinants'!$B$19:$Q$41,5,0)/'4. Billing Determinants'!$F$41*$D9,IF($E9="Non-RPP kWh",VLOOKUP(S$4,'4. Billing Determinants'!$B$19:$Q$41,6,0)/'4. Billing Determinants'!$G$41*$D9,IF($E9="Distribution Rev.",VLOOKUP(S$4,'4. Billing Determinants'!$B$19:$Q$41,8,0)/'4. Billing Determinants'!$I$41*$D9, VLOOKUP(S$4,'4. Billing Determinants'!$B$19:$Q$41,3,0)/'4. Billing Determinants'!$D$41*$D9))))),0) -> 0 | T9: =IFERROR(IF(T$4="",0,IF($E9="kWh",VLOOKUP(T$4,'4. Billing Determinants'!$B$19:$Q$41,4,0)/'4. Billing Determinants'!$E$41*$D9,IF($E9="kW",VLOOKUP(T$4,'4. Billing Determinants'!$B$19:$Q$41,5,0)/'4. Billing Determinants'!$F$41*$D9,IF($E9="Non-RPP kWh",VLOOKUP(T$4,'4. Billing Determinants'!$B$19:$Q$41,6,0)/'4. Billing Determinants'!$G$41*$D9,IF($E9="Distribution Rev.",VLOOKUP(T$4,'4. Billing Determinants'!$B$19:$Q$41,8,0)/'4. Billing Determinants'!$I$41*$D9, VLOOKUP(T$4,'4. Billing Determinants'!$B$19:$Q$41,3,0)/'4. Billing Determinants'!$D$41*$D9))))),0) -> 0 | U9: =IFERROR(IF(U$4="",0,IF($E9="kWh",VLOOKUP(U$4,'4. Billing Determinants'!$B$19:$Q$41,4,0)/'4. Billing Determinants'!$E$41*$D9,IF($E9="kW",VLOOKUP(U$4,'4. Billing Determinants'!$B$19:$Q$41,5,0)/'4. Billing Determinants'!$F$41*$D9,IF($E9="Non-RPP kWh",VLOOKUP(U$4,'4. Billing Determinants'!$B$19:$Q$41,6,0)/'4. Billing Determinants'!$G$41*$D9,IF($E9="Distribution Rev.",VLOOKUP(U$4,'4. Billing Determinants'!$B$19:$Q$41,8,0)/'4. Billing Determinants'!$I$41*$D9, VLOOKUP(U$4,'4. Billing Determinants'!$B$19:$Q$41,3,0)/'4. Billing Determinants'!$D$41*$D9))))),0) -> 0 | V9: =IFERROR(IF(V$4="",0,IF($E9="kWh",VLOOKUP(V$4,'4. Billing Determinants'!$B$19:$Q$41,4,0)/'4. Billing Determinants'!$E$41*$D9,IF($E9="kW",VLOOKUP(V$4,'4. Billing Determinants'!$B$19:$Q$41,5,0)/'4. Billing Determinants'!$F$41*$D9,IF($E9="Non-RPP kWh",VLOOKUP(V$4,'4. Billing Determinants'!$B$19:$Q$41,6,0)/'4. Billing Determinants'!$G$41*$D9,IF($E9="Distribution Rev.",VLOOKUP(V$4,'4. Billing Determinants'!$B$19:$Q$41,8,0)/'4. Billing Determinants'!$I$41*$D9, VLOOKUP(V$4,'4. Billing Determinants'!$B$19:$Q$41,3,0)/'4. Billing Determinants'!$D$41*$D9))))),0) -> 0 | W9: =IFERROR(IF(W$4="",0,IF($E9="kWh",VLOOKUP(W$4,'4. Billing Determinants'!$B$19:$Q$41,4,0)/'4. Billing Determinants'!$E$41*$D9,IF($E9="kW",VLOOKUP(W$4,'4. Billing Determinants'!$B$19:$Q$41,5,0)/'4. Billing Determinants'!$F$41*$D9,IF($E9="Non-RPP kWh",VLOOKUP(W$4,'4. Billing Determinants'!$B$19:$Q$41,6,0)/'4. Billing Determinants'!$G$41*$D9,IF($E9="Distribution Rev.",VLOOKUP(W$4,'4. Billing Determinants'!$B$19:$Q$41,8,0)/'4. Billing Determinants'!$I$41*$D9, VLOOKUP(W$4,'4. Billing Determinants'!$B$19:$Q$41,3,0)/'4. Billing Determinants'!$D$41*$D9))))),0) -> 0 | X9: =IFERROR(IF(X$4="",0,IF($E9="kWh",VLOOKUP(X$4,'4. Billing Determinants'!$B$19:$Q$41,4,0)/'4. Billing Determinants'!$E$41*$D9,IF($E9="kW",VLOOKUP(X$4,'4. Billing Determinants'!$B$19:$Q$41,5,0)/'4. Billing Determinants'!$F$41*$D9,IF($E9="Non-RPP kWh",VLOOKUP(X$4,'4. Billing Determinants'!$B$19:$Q$41,6,0)/'4. Billing Determinants'!$G$41*$D9,IF($E9="Distribution Rev.",VLOOKUP(X$4,'4. Billing Determinants'!$B$19:$Q$41,8,0)/'4. Billing Determinants'!$I$41*$D9, VLOOKUP(X$4,'4. Billing Determinants'!$B$19:$Q$41,3,0)/'4. Billing Determinants'!$D$41*$D9))))),0) -> 0 | Y9: =IFERROR(IF(Y$4="",0,IF($E9="kWh",VLOOKUP(Y$4,'4. Billing Determinants'!$B$19:$Q$41,4,0)/'4. Billing Determinants'!$E$41*$D9,IF($E9="kW",VLOOKUP(Y$4,'4. Billing Determinants'!$B$19:$Q$41,5,0)/'4. Billing Determinants'!$F$41*$D9,IF($E9="Non-RPP kWh",VLOOKUP(Y$4,'4. Billing Determinants'!$B$19:$Q$41,6,0)/'4. Billing Determinants'!$G$41*$D9,IF($E9="Distribution Rev.",VLOOKUP(Y$4,'4. Billing Determinants'!$B$19:$Q$41,8,0)/'4. Billing Determinants'!$I$41*$D9, VLOOKUP(Y$4,'4. Billing Determinants'!$B$19:$Q$41,3,0)/'4. Billing Determinants'!$D$41*$D9))))),0) -> 0
B10: RSVA - Power (excluding Global Adjustment) | C10: 1588 | D10: ='2. 2014 Continuity Schedule'!BU29 -> 1056521.648 | E10: kWh | F10: =IFERROR(IF(F$4="",0,IF($E10="kWh",VLOOKUP(F$4,'4. Billing Determinants'!$B$19:$Q$41,4,0)/'4. Billing Determinants'!$E$41*$D10,IF($E10="kW",VLOOKUP(F$4,'4. Billing Determinants'!$B$19:$Q$41,5,0)/'4. Billing Determinants'!$F$41*$D10,IF($E10="Non-RPP kWh",VLOOKUP(F$4,'4. Billing Determinants'!$B$19:$Q$41,6,0)/'4. Billing Determinants'!$G$41*$D10,IF($E10="Distribution Rev.",VLOOKUP(F$4,'4. Billing Determinants'!$B$19:$Q$41,8,0)/'4. Billing Determinants'!$I$41*$D10, VLOOKUP(F$4,'4. Billing Determinants'!$B$19:$Q$41,3,0)/'4. Billing Determinants'!$D$41*$D10))))),0) -> 291835.1791 | G10: =IFERROR(IF(G$4="",0,IF($E10="kWh",VLOOKUP(G$4,'4. Billing Determinants'!$B$19:$Q$41,4,0)/'4. Billing Determinants'!$E$41*$D10,IF($E10="kW",VLOOKUP(G$4,'4. Billing Determinants'!$B$19:$Q$41,5,0)/'4. Billing Determinants'!$F$41*$D10,IF($E10="Non-RPP kWh",VLOOKUP(G$4,'4. Billing Determinants'!$B$19:$Q$41,6,0)/'4. Billing Determinants'!$G$41*$D10,IF($E10="Distribution Rev.",VLOOKUP(G$4,'4. Billing Determinants'!$B$19:$Q$41,8,0)/'4. Billing Determinants'!$I$41*$D10, VLOOKUP(G$4,'4. Billing Determinants'!$B$19:$Q$41,3,0)/'4. Billing Determinants'!$D$41*$D10))))),0) -> 140392.0731 | H10: =IFERROR(IF(H$4="",0,IF($E10="kWh",VLOOKUP(H$4,'4. Billing Determinants'!$B$19:$Q$41,4,0)/'4. Billing Determinants'!$E$41*$D10,IF($E10="kW",VLOOKUP(H$4,'4. Billing Determinants'!$B$19:$Q$41,5,0)/'4. Billing Determinants'!$F$41*$D10,IF($E10="Non-RPP kWh",VLOOKUP(H$4,'4. Billing Determinants'!$B$19:$Q$41,6,0)/'4. Billing Determinants'!$G$41*$D10,IF($E10="Distribution Rev.",VLOOKUP(H$4,'4. Billing Determinants'!$B$19:$Q$41,8,0)/'4. Billing Determinants'!$I$41*$D10, VLOOKUP(H$4,'4. Billing Determinants'!$B$19:$Q$41,3,0)/'4. Billing Determinants'!$D$41*$D10))))),0)+4986 -> 525732.0207 | I10: =IFERROR(IF(I$4="",0,IF($E10="kWh",VLOOKUP(I$4,'4. Billing Determinants'!$B$19:$Q$41,4,0)/'4. Billing Determinants'!$E$41*$D10,IF($E10="kW",VLOOKUP(I$4,'4. Billing Determinants'!$B$19:$Q$41,5,0)/'4. Billing Determinants'!$F$41*$D10,IF($E10="Non-RPP kWh",VLOOKUP(I$4,'4. Billing Determinants'!$B$19:$Q$41,6,0)/'4. Billing Determinants'!$G$41*$D10,IF($E10="Distribution Rev.",VLOOKUP(I$4,'4. Billing Determinants'!$B$19:$Q$41,8,0)/'4. Billing Determinants'!$I$41*$D10, VLOOKUP(I$4,'4. Billing Determinants'!$B$19:$Q$41,3,0)/'4. Billing Determinants'!$D$41*$D10))))),0) -> 67797.00726 | J10: =IFERROR(IF(J$4="",0,IF($E10="kWh",VLOOKUP(J$4,'4. Billing Determinants'!$B$19:$Q$41,4,0)/'4. Billing Determinants'!$E$41*$D10,IF($E10="kW",VLOOKUP(J$4,'4. Billing Determinants'!$B$19:$Q$41,5,0)/'4. Billing Determinants'!$F$41*$D10,IF($E10="Non-RPP kWh",VLOOKUP(J$4,'4. Billing Determinants'!$B$19:$Q$41,6,0)/'4. Billing Determinants'!$G$41*$D10,IF($E10="Distribution Rev.",VLOOKUP(J$4,'4. Billing Determinants'!$B$19:$Q$41,8,0)/'4. Billing Determinants'!$I$41*$D10, VLOOKUP(J$4,'4. Billing Determinants'!$B$19:$Q$41,3,0)/'4. Billing Determinants'!$D$41*$D10))))),0) -> 2294.207977 | K10: =IFERROR(IF(K$4="",0,IF($E10="kWh",VLOOKUP(K$4,'4. Billing Determinants'!$B$19:$Q$41,4,0)/'4. Billing Determinants'!$E$41*$D10,IF($E10="kW",VLOOKUP(K$4,'4. Billing Determinants'!$B$19:$Q$41,5,0)/'4. Billing Determinants'!$F$41*$D10,IF($E10="Non-RPP kWh",VLOOKUP(K$4,'4. Billing Determinants'!$B$19:$Q$41,6,0)/'4. Billing Determinants'!$G$41*$D10,IF($E10="Distribution Rev.",VLOOKUP(K$4,'4. Billing Determinants'!$B$19:$Q$41,8,0)/'4. Billing Determinants'!$I$41*$D10, VLOOKUP(K$4,'4. Billing Determinants'!$B$19:$Q$41,3,0)/'4. Billing Determinants'!$D$41*$D10))))),0) -> 5548.300858 | L10: =IFERROR(IF(L$4="",0,IF($E10="kWh",VLOOKUP(L$4,'4. Billing Determinants'!$B$19:$Q$41,4,0)/'4. Billing Determinants'!$E$41*$D10,IF($E10="kW",VLOOKUP(L$4,'4. Billing Determinants'!$B$19:$Q$41,5,0)/'4. Billing Determinants'!$F$41*$D10,IF($E10="Non-RPP kWh",VLOOKUP(L$4,'4. Billing Determinants'!$B$19:$Q$41,6,0)/'4. Billing Determinants'!$G$41*$D10,IF($E10="Distribution Rev.",VLOOKUP(L$4,'4. Billing Determinants'!$B$19:$Q$41,8,0)/'4. Billing Determinants'!$I$41*$D10, VLOOKUP(L$4,'4. Billing Determinants'!$B$19:$Q$41,3,0)/'4. Billing Determinants'!$D$41*$D10))))),0) -> 22923.92067 | N10: =IFERROR(IF(N$4="",0,IF($E10="kWh",VLOOKUP(N$4,'4. Billing Determinants'!$B$19:$Q$41,4,0)/'4. Billing Determinants'!$E$41*$D10,IF($E10="kW",VLOOKUP(N$4,'4. Billing Determinants'!$B$19:$Q$41,5,0)/'4. Billing Determinants'!$F$41*$D10,IF($E10="Non-RPP kWh",VLOOKUP(N$4,'4. Billing Determinants'!$B$19:$Q$41,6,0)/'4. Billing Determinants'!$G$41*$D10,IF($E10="Distribution Rev.",VLOOKUP(N$4,'4. Billing Determinants'!$B$19:$Q$41,8,0)/'4. Billing Determinants'!$I$41*$D10, VLOOKUP(N$4,'4. Billing Determinants'!$B$19:$Q$41,3,0)/'4. Billing Determinants'!$D$41*$D10))))),0) -> 0 | O10: =IFERROR(IF(O$4="",0,IF($E10="kWh",VLOOKUP(O$4,'4. Billing Determinants'!$B$19:$Q$41,4,0)/'4. Billing Determinants'!$E$41*$D10,IF($E10="kW",VLOOKUP(O$4,'4. Billing Determinants'!$B$19:$Q$41,5,0)/'4. Billing Determinants'!$F$41*$D10,IF($E10="Non-RPP kWh",VLOOKUP(O$4,'4. Billing Determinants'!$B$19:$Q$41,6,0)/'4. Billing Determinants'!$G$41*$D10,IF($E10="Distribution Rev.",VLOOKUP(O$4,'4. Billing Determinants'!$B$19:$Q$41,8,0)/'4. Billing Determinants'!$I$41*$D10, VLOOKUP(O$4,'4. Billing Determinants'!$B$19:$Q$41,3,0)/'4. Billing Determinants'!$D$41*$D10))))),0) -> 0 | P10: =IFERROR(IF(P$4="",0,IF($E10="kWh",VLOOKUP(P$4,'4. Billing Determinants'!$B$19:$Q$41,4,0)/'4. Billing Determinants'!$E$41*$D10,IF($E10="kW",VLOOKUP(P$4,'4. Billing Determinants'!$B$19:$Q$41,5,0)/'4. Billing Determinants'!$F$41*$D10,IF($E10="Non-RPP kWh",VLOOKUP(P$4,'4. Billing Determinants'!$B$19:$Q$41,6,0)/'4. Billing Determinants'!$G$41*$D10,IF($E10="Distribution Rev.",VLOOKUP(P$4,'4. Billing Determinants'!$B$19:$Q$41,8,0)/'4. Billing Determinants'!$I$41*$D10, VLOOKUP(P$4,'4. Billing Determinants'!$B$19:$Q$41,3,0)/'4. Billing Determinants'!$D$41*$D10))))),0) -> 0 | Q10: =IFERROR(IF(Q$4="",0,IF($E10="kWh",VLOOKUP(Q$4,'4. Billing Determinants'!$B$19:$Q$41,4,0)/'4. Billing Determinants'!$E$41*$D10,IF($E10="kW",VLOOKUP(Q$4,'4. Billing Determinants'!$B$19:$Q$41,5,0)/'4. Billing Determinants'!$F$41*$D10,IF($E10="Non-RPP kWh",VLOOKUP(Q$4,'4. Billing Determinants'!$B$19:$Q$41,6,0)/'4. Billing Determinants'!$G$41*$D10,IF($E10="Distribution Rev.",VLOOKUP(Q$4,'4. Billing Determinants'!$B$19:$Q$41,8,0)/'4. Billing Determinants'!$I$41*$D10, VLOOKUP(Q$4,'4. Billing Determinants'!$B$19:$Q$41,3,0)/'4. Billing Determinants'!$D$41*$D10))))),0) -> 0 | R10: =IFERROR(IF(R$4="",0,IF($E10="kWh",VLOOKUP(R$4,'4. Billing Determinants'!$B$19:$Q$41,4,0)/'4. Billing Determinants'!$E$41*$D10,IF($E10="kW",VLOOKUP(R$4,'4. Billing Determinants'!$B$19:$Q$41,5,0)/'4. Billing Determinants'!$F$41*$D10,IF($E10="Non-RPP kWh",VLOOKUP(R$4,'4. Billing Determinants'!$B$19:$Q$41,6,0)/'4. Billing Determinants'!$G$41*$D10,IF($E10="Distribution Rev.",VLOOKUP(R$4,'4. Billing Determinants'!$B$19:$Q$41,8,0)/'4. Billing Determinants'!$I$41*$D10, VLOOKUP(R$4,'4. Billing Determinants'!$B$19:$Q$41,3,0)/'4. Billing Determinants'!$D$41*$D10))))),0) -> 0 | S10: =IFERROR(IF(S$4="",0,IF($E10="kWh",VLOOKUP(S$4,'4. Billing Determinants'!$B$19:$Q$41,4,0)/'4. Billing Determinants'!$E$41*$D10,IF($E10="kW",VLOOKUP(S$4,'4. Billing Determinants'!$B$19:$Q$41,5,0)/'4. Billing Determinants'!$F$41*$D10,IF($E10="Non-RPP kWh",VLOOKUP(S$4,'4. Billing Determinants'!$B$19:$Q$41,6,0)/'4. Billing Determinants'!$G$41*$D10,IF($E10="Distribution Rev.",VLOOKUP(S$4,'4. Billing Determinants'!$B$19:$Q$41,8,0)/'4. Billing Determinants'!$I$41*$D10, VLOOKUP(S$4,'4. Billing Determinants'!$B$19:$Q$41,3,0)/'4. Billing Determinants'!$D$41*$D10))))),0) -> 0 | T10: =IFERROR(IF(T$4="",0,IF($E10="kWh",VLOOKUP(T$4,'4. Billing Determinants'!$B$19:$Q$41,4,0)/'4. Billing Determinants'!$E$41*$D10,IF($E10="kW",VLOOKUP(T$4,'4. Billing Determinants'!$B$19:$Q$41,5,0)/'4. Billing Determinants'!$F$41*$D10,IF($E10="Non-RPP kWh",VLOOKUP(T$4,'4. Billing Determinants'!$B$19:$Q$41,6,0)/'4. Billing Determinants'!$G$41*$D10,IF($E10="Distribution Rev.",VLOOKUP(T$4,'4. Billing Determinants'!$B$19:$Q$41,8,0)/'4. Billing Determinants'!$I$41*$D10, VLOOKUP(T$4,'4. Billing Determinants'!$B$19:$Q$41,3,0)/'4. Billing Determinants'!$D$41*$D10))))),0) -> 0 | U10: =IFERROR(IF(U$4="",0,IF($E10="kWh",VLOOKUP(U$4,'4. Billing Determinants'!$B$19:$Q$41,4,0)/'4. Billing Determinants'!$E$41*$D10,IF($E10="kW",VLOOKUP(U$4,'4. Billing Determinants'!$B$19:$Q$41,5,0)/'4. Billing Determinants'!$F$41*$D10,IF($E10="Non-RPP kWh",VLOOKUP(U$4,'4. Billing Determinants'!$B$19:$Q$41,6,0)/'4. Billing Determinants'!$G$41*$D10,IF($E10="Distribution Rev.",VLOOKUP(U$4,'4. Billing Determinants'!$B$19:$Q$41,8,0)/'4. Billing Determinants'!$I$41*$D10, VLOOKUP(U$4,'4. Billing Determinants'!$B$19:$Q$41,3,0)/'4. Billing Determinants'!$D$41*$D10))))),0) -> 0 | V10: =IFERROR(IF(V$4="",0,IF($E10="kWh",VLOOKUP(V$4,'4. Billing Determinants'!$B$19:$Q$41,4,0)/'4. Billing Determinants'!$E$41*$D10,IF($E10="kW",VLOOKUP(V$4,'4. Billing Determinants'!$B$19:$Q$41,5,0)/'4. Billing Determinants'!$F$41*$D10,IF($E10="Non-RPP kWh",VLOOKUP(V$4,'4. Billing Determinants'!$B$19:$Q$41,6,0)/'4. Billing Determinants'!$G$41*$D10,IF($E10="Distribution Rev.",VLOOKUP(V$4,'4. Billing Determinants'!$B$19:$Q$41,8,0)/'4. Billing Determinants'!$I$41*$D10, VLOOKUP(V$4,'4. Billing Determinants'!$B$19:$Q$41,3,0)/'4. Billing Determinants'!$D$41*$D10))))),0) -> 0 | W10: =IFERROR(IF(W$4="",0,IF($E10="kWh",VLOOKUP(W$4,'4. Billing Determinants'!$B$19:$Q$41,4,0)/'4. Billing Determinants'!$E$41*$D10,IF($E10="kW",VLOOKUP(W$4,'4. Billing Determinants'!$B$19:$Q$41,5,0)/'4. Billing Determinants'!$F$41*$D10,IF($E10="Non-RPP kWh",VLOOKUP(W$4,'4. Billing Determinants'!$B$19:$Q$41,6,0)/'4. Billing Determinants'!$G$41*$D10,IF($E10="Distribution Rev.",VLOOKUP(W$4,'4. Billing Determinants'!$B$19:$Q$41,8,0)/'4. Billing Determinants'!$I$41*$D10, VLOOKUP(W$4,'4. Billing Determinants'!$B$19:$Q$41,3,0)/'4. Billing Determinants'!$D$41*$D10))))),0) -> 0 | X10: =IFERROR(IF(X$4="",0,IF($E10="kWh",VLOOKUP(X$4,'4. Billing Determinants'!$B$19:$Q$41,4,0)/'4. Billing Determinants'!$E$41*$D10,IF($E10="kW",VLOOKUP(X$4,'4. Billing Determinants'!$B$19:$Q$41,5,0)/'4. Billing Determinants'!$F$41*$D10,IF($E10="Non-RPP kWh",VLOOKUP(X$4,'4. Billing Determinants'!$B$19:$Q$41,6,0)/'4. Billing Determinants'!$G$41*$D10,IF($E10="Distribution Rev.",VLOOKUP(X$4,'4. Billing Determinants'!$B$19:$Q$41,8,0)/'4. Billing Determinants'!$I$41*$D10, VLOOKUP(X$4,'4. Billing Determinants'!$B$19:$Q$41,3,0)/'4. Billing Determinants'!$D$41*$D10))))),0) -> 0 | Y10: =IFERROR(IF(Y$4="",0,IF($E10="kWh",VLOOKUP(Y$4,'4. Billing Determinants'!$B$19:$Q$41,4,0)/'4. Billing Determinants'!$E$41*$D10,IF($E10="kW",VLOOKUP(Y$4,'4. Billing Determinants'!$B$19:$Q$41,5,0)/'4. Billing Determinants'!$F$41*$D10,IF($E10="Non-RPP kWh",VLOOKUP(Y$4,'4. Billing Determinants'!$B$19:$Q$41,6,0)/'4. Billing Determinants'!$G$41*$D10,IF($E10="Distribution Rev.",VLOOKUP(Y$4,'4. Billing Determinants'!$B$19:$Q$41,8,0)/'4. Billing Determinants'!$I$41*$D10, VLOOKUP(Y$4,'4. Billing Determinants'!$B$19:$Q$41,3,0)/'4. Billing Determinants'!$D$41*$D10))))),0) -> 0
B11: RSVA - Global Adjustment | C11: 1589 | D11: ='2. 2014 Continuity Schedule'!BU30 -> 2333935.098 | E11: Non-RPP kWh | F11: =IFERROR(IF(F$4="",0,IF($E11="kWh",VLOOKUP(F$4,'4. Billing Determinants'!$B$19:$Q$41,4,0)/'4. Billing Determinants'!$E$41*$D11,IF($E11="kW",VLOOKUP(F$4,'4. Billing Determinants'!$B$19:$Q$41,5,0)/'4. Billing Determinants'!$F$41*$D11,IF($E11="Non-RPP kWh",VLOOKUP(F$4,'4. Billing Determinants'!$B$19:$Q$41,6,0)/'4. Billing Determinants'!$G$41*$D11,IF($E11="Distribution Rev.",VLOOKUP(F$4,'4. Billing Determinants'!$B$19:$Q$41,8,0)/'4. Billing Determinants'!$I$41*$D11, VLOOKUP(F$4,'4. Billing Determinants'!$B$19:$Q$41,3,0)/'4. Billing Determinants'!$D$41*$D11))))),0) -> 61178.64359 | G11: =IFERROR(IF(G$4="",0,IF($E11="kWh",VLOOKUP(G$4,'4. Billing Determinants'!$B$19:$Q$41,4,0)/'4. Billing Determinants'!$E$41*$D11,IF($E11="kW",VLOOKUP(G$4,'4. Billing Determinants'!$B$19:$Q$41,5,0)/'4. Billing Determinants'!$F$41*$D11,IF($E11="Non-RPP kWh",VLOOKUP(G$4,'4. Billing Determinants'!$B$19:$Q$41,6,0)/'4. Billing Determinants'!$G$41*$D11,IF($E11="Distribution Rev.",VLOOKUP(G$4,'4. Billing Determinants'!$B$19:$Q$41,8,0)/'4. Billing Determinants'!$I$41*$D11, VLOOKUP(G$4,'4. Billing Determinants'!$B$19:$Q$41,3,0)/'4. Billing Determinants'!$D$41*$D11))))),0) -> 103458.5662 | H11: =IFERROR(IF(H$4="",0,IF($E11="kWh",VLOOKUP(H$4,'4. Billing Determinants'!$B$19:$Q$41,4,0)/'4. Billing Determinants'!$E$41*$D11,IF($E11="kW",VLOOKUP(H$4,'4. Billing Determinants'!$B$19:$Q$41,5,0)/'4. Billing Determinants'!$F$41*$D11,IF($E11="Non-RPP kWh",VLOOKUP(H$4,'4. Billing Determinants'!$B$19:$Q$41,6,0)/'4. Billing Determinants'!$G$41*$D11,IF($E11="Distribution Rev.",VLOOKUP(H$4,'4. Billing Determinants'!$B$19:$Q$41,8,0)/'4. Billing Determinants'!$I$41*$D11, VLOOKUP(H$4,'4. Billing Determinants'!$B$19:$Q$41,3,0)/'4. Billing Determinants'!$D$41*$D11))))),0) -> 2042263.816 | I11: =IFERROR(IF(I$4="",0,IF($E11="kWh",VLOOKUP(I$4,'4. Billing Determinants'!$B$19:$Q$41,4,0)/'4. Billing Determinants'!$E$41*$D11,IF($E11="kW",VLOOKUP(I$4,'4. Billing Determinants'!$B$19:$Q$41,5,0)/'4. Billing Determinants'!$F$41*$D11,IF($E11="Non-RPP kWh",VLOOKUP(I$4,'4. Billing Determinants'!$B$19:$Q$41,6,0)/'4. Billing Determinants'!$G$41*$D11,IF($E11="Distribution Rev.",VLOOKUP(I$4,'4. Billing Determinants'!$B$19:$Q$41,8,0)/'4. Billing Determinants'!$I$41*$D11, VLOOKUP(I$4,'4. Billing Determinants'!$B$19:$Q$41,3,0)/'4. Billing Determinants'!$D$41*$D11))))),0) -> 0 | J11: =IFERROR(IF(J$4="",0,IF($E11="kWh",VLOOKUP(J$4,'4. Billing Determinants'!$B$19:$Q$41,4,0)/'4. Billing Determinants'!$E$41*$D11,IF($E11="kW",VLOOKUP(J$4,'4. Billing Determinants'!$B$19:$Q$41,5,0)/'4. Billing Determinants'!$F$41*$D11,IF($E11="Non-RPP kWh",VLOOKUP(J$4,'4. Billing Determinants'!$B$19:$Q$41,6,0)/'4. Billing Determinants'!$G$41*$D11,IF($E11="Distribution Rev.",VLOOKUP(J$4,'4. Billing Determinants'!$B$19:$Q$41,8,0)/'4. Billing Determinants'!$I$41*$D11, VLOOKUP(J$4,'4. Billing Determinants'!$B$19:$Q$41,3,0)/'4. Billing Determinants'!$D$41*$D11))))),0) -> 8.549740294 | K11: =IFERROR(IF(K$4="",0,IF($E11="kWh",VLOOKUP(K$4,'4. Billing Determinants'!$B$19:$Q$41,4,0)/'4. Billing Determinants'!$E$41*$D11,IF($E11="kW",VLOOKUP(K$4,'4. Billing Determinants'!$B$19:$Q$41,5,0)/'4. Billing Determinants'!$F$41*$D11,IF($E11="Non-RPP kWh",VLOOKUP(K$4,'4. Billing Determinants'!$B$19:$Q$41,6,0)/'4. Billing Determinants'!$G$41*$D11,IF($E11="Distribution Rev.",VLOOKUP(K$4,'4. Billing Determinants'!$B$19:$Q$41,8,0)/'4. Billing Determinants'!$I$41*$D11, VLOOKUP(K$4,'4. Billing Determinants'!$B$19:$Q$41,3,0)/'4. Billing Determinants'!$D$41*$D11))))),0) -> 24280.83916 | L11: =IFERROR(IF(L$4="",0,IF($E11="kWh",VLOOKUP(L$4,'4. Billing Determinants'!$B$19:$Q$41,4,0)/'4. Billing Determinants'!$E$41*$D11,IF($E11="kW",VLOOKUP(L$4,'4. Billing Determinants'!$B$19:$Q$41,5,0)/'4. Billing Determinants'!$F$41*$D11,IF($E11="Non-RPP kWh",VLOOKUP(L$4,'4. Billing Determinants'!$B$19:$Q$41,6,0)/'4. Billing Determinants'!$G$41*$D11,IF($E11="Distribution Rev.",VLOOKUP(L$4,'4. Billing Determinants'!$B$19:$Q$41,8,0)/'4. Billing Determinants'!$I$41*$D11, VLOOKUP(L$4,'4. Billing Determinants'!$B$19:$Q$41,3,0)/'4. Billing Determinants'!$D$41*$D11))))),0) -> 102744.6832 | M11: =IFERROR(IF(M$4="",0,IF($E11="kWh",VLOOKUP(M$4,'4. Billing Determinants'!$B$19:$Q$41,4,0)/'4. Billing Determinants'!$E$41*$D11,IF($E11="kW",VLOOKUP(M$4,'4. Billing Determinants'!$B$19:$Q$41,5,0)/'4. Billing Determinants'!$F$41*$D11,IF($E11="Non-RPP kWh",VLOOKUP(M$4,'4. Billing Determinants'!$B$19:$Q$41,6,0)/'4. Billing Determinants'!$G$41*$D11,IF($E11="Distribution Rev.",VLOOKUP(M$4,'4. Billing Determinants'!$B$19:$Q$41,8,0)/'4. Billing Determinants'!$I$41*$D11, VLOOKUP(M$4,'4. Billing Determinants'!$B$19:$Q$41,3,0)/'4. Billing Determinants'!$D$41*$D11))))),0) -> 0 | N11: =IFERROR(IF(N$4="",0,IF($E11="kWh",VLOOKUP(N$4,'4. Billing Determinants'!$B$19:$Q$41,4,0)/'4. Billing Determinants'!$E$41*$D11,IF($E11="kW",VLOOKUP(N$4,'4. Billing Determinants'!$B$19:$Q$41,5,0)/'4. Billing Determinants'!$F$41*$D11,IF($E11="Non-RPP kWh",VLOOKUP(N$4,'4. Billing Determinants'!$B$19:$Q$41,6,0)/'4. Billing Determinants'!$G$41*$D11,IF($E11="Distribution Rev.",VLOOKUP(N$4,'4. Billing Determinants'!$B$19:$Q$41,8,0)/'4. Billing Determinants'!$I$41*$D11, VLOOKUP(N$4,'4. Billing Determinants'!$B$19:$Q$41,3,0)/'4. Billing Determinants'!$D$41*$D11))))),0) -> 0 | O11: =IFERROR(IF(O$4="",0,IF($E11="kWh",VLOOKUP(O$4,'4. Billing Determinants'!$B$19:$Q$41,4,0)/'4. Billing Determinants'!$E$41*$D11,IF($E11="kW",VLOOKUP(O$4,'4. Billing Determinants'!$B$19:$Q$41,5,0)/'4. Billing Determinants'!$F$41*$D11,IF($E11="Non-RPP kWh",VLOOKUP(O$4,'4. Billing Determinants'!$B$19:$Q$41,6,0)/'4. Billing Determinants'!$G$41*$D11,IF($E11="Distribution Rev.",VLOOKUP(O$4,'4. Billing Determinants'!$B$19:$Q$41,8,0)/'4. Billing Determinants'!$I$41*$D11, VLOOKUP(O$4,'4. Billing Determinants'!$B$19:$Q$41,3,0)/'4. Billing Determinants'!$D$41*$D11))))),0) -> 0 | P11: =IFERROR(IF(P$4="",0,IF($E11="kWh",VLOOKUP(P$4,'4. Billing Determinants'!$B$19:$Q$41,4,0)/'4. Billing Determinants'!$E$41*$D11,IF($E11="kW",VLOOKUP(P$4,'4. Billing Determinants'!$B$19:$Q$41,5,0)/'4. Billing Determinants'!$F$41*$D11,IF($E11="Non-RPP kWh",VLOOKUP(P$4,'4. Billing Determinants'!$B$19:$Q$41,6,0)/'4. Billing Determinants'!$G$41*$D11,IF($E11="Distribution Rev.",VLOOKUP(P$4,'4. Billing Determinants'!$B$19:$Q$41,8,0)/'4. Billing Determinants'!$I$41*$D11, VLOOKUP(P$4,'4. Billing Determinants'!$B$19:$Q$41,3,0)/'4. Billing Determinants'!$D$41*$D11))))),0) -> 0 | Q11: =IFERROR(IF(Q$4="",0,IF($E11="kWh",VLOOKUP(Q$4,'4. Billing Determinants'!$B$19:$Q$41,4,0)/'4. Billing Determinants'!$E$41*$D11,IF($E11="kW",VLOOKUP(Q$4,'4. Billing Determinants'!$B$19:$Q$41,5,0)/'4. Billing Determinants'!$F$41*$D11,IF($E11="Non-RPP kWh",VLOOKUP(Q$4,'4. Billing Determinants'!$B$19:$Q$41,6,0)/'4. Billing Determinants'!$G$41*$D11,IF($E11="Distribution Rev.",VLOOKUP(Q$4,'4. Billing Determinants'!$B$19:$Q$41,8,0)/'4. Billing Determinants'!$I$41*$D11, VLOOKUP(Q$4,'4. Billing Determinants'!$B$19:$Q$41,3,0)/'4. Billing Determinants'!$D$41*$D11))))),0) -> 0 | R11: =IFERROR(IF(R$4="",0,IF($E11="kWh",VLOOKUP(R$4,'4. Billing Determinants'!$B$19:$Q$41,4,0)/'4. Billing Determinants'!$E$41*$D11,IF($E11="kW",VLOOKUP(R$4,'4. Billing Determinants'!$B$19:$Q$41,5,0)/'4. Billing Determinants'!$F$41*$D11,IF($E11="Non-RPP kWh",VLOOKUP(R$4,'4. Billing Determinants'!$B$19:$Q$41,6,0)/'4. Billing Determinants'!$G$41*$D11,IF($E11="Distribution Rev.",VLOOKUP(R$4,'4. Billing Determinants'!$B$19:$Q$41,8,0)/'4. Billing Determinants'!$I$41*$D11, VLOOKUP(R$4,'4. Billing Determinants'!$B$19:$Q$41,3,0)/'4. Billing Determinants'!$D$41*$D11))))),0) -> 0 | S11: =IFERROR(IF(S$4="",0,IF($E11="kWh",VLOOKUP(S$4,'4. Billing Determinants'!$B$19:$Q$41,4,0)/'4. Billing Determinants'!$E$41*$D11,IF($E11="kW",VLOOKUP(S$4,'4. Billing Determinants'!$B$19:$Q$41,5,0)/'4. Billing Determinants'!$F$41*$D11,IF($E11="Non-RPP kWh",VLOOKUP(S$4,'4. Billing Determinants'!$B$19:$Q$41,6,0)/'4. Billing Determinants'!$G$41*$D11,IF($E11="Distribution Rev.",VLOOKUP(S$4,'4. Billing Determinants'!$B$19:$Q$41,8,0)/'4. Billing Determinants'!$I$41*$D11, VLOOKUP(S$4,'4. Billing Determinants'!$B$19:$Q$41,3,0)/'4. Billing Determinants'!$D$41*$D11))))),0) -> 0 | T11: =IFERROR(IF(T$4="",0,IF($E11="kWh",VLOOKUP(T$4,'4. Billing Determinants'!$B$19:$Q$41,4,0)/'4. Billing Determinants'!$E$41*$D11,IF($E11="kW",VLOOKUP(T$4,'4. Billing Determinants'!$B$19:$Q$41,5,0)/'4. Billing Determinants'!$F$41*$D11,IF($E11="Non-RPP kWh",VLOOKUP(T$4,'4. Billing Determinants'!$B$19:$Q$41,6,0)/'4. Billing Determinants'!$G$41*$D11,IF($E11="Distribution Rev.",VLOOKUP(T$4,'4. Billing Determinants'!$B$19:$Q$41,8,0)/'4. Billing Determinants'!$I$41*$D11, VLOOKUP(T$4,'4. Billing Determinants'!$B$19:$Q$41,3,0)/'4. Billing Determinants'!$D$41*$D11))))),0) -> 0 | U11: =IFERROR(IF(U$4="",0,IF($E11="kWh",VLOOKUP(U$4,'4. Billing Determinants'!$B$19:$Q$41,4,0)/'4. Billing Determinants'!$E$41*$D11,IF($E11="kW",VLOOKUP(U$4,'4. Billing Determinants'!$B$19:$Q$41,5,0)/'4. Billing Determinants'!$F$41*$D11,IF($E11="Non-RPP kWh",VLOOKUP(U$4,'4. Billing Determinants'!$B$19:$Q$41,6,0)/'4. Billing Determinants'!$G$41*$D11,IF($E11="Distribution Rev.",VLOOKUP(U$4,'4. Billing Determinants'!$B$19:$Q$41,8,0)/'4. Billing Determinants'!$I$41*$D11, VLOOKUP(U$4,'4. Billing Determinants'!$B$19:$Q$41,3,0)/'4. Billing Determinants'!$D$41*$D11))))),0) -> 0 | V11: =IFERROR(IF(V$4="",0,IF($E11="kWh",VLOOKUP(V$4,'4. Billing Determinants'!$B$19:$Q$41,4,0)/'4. Billing Determinants'!$E$41*$D11,IF($E11="kW",VLOOKUP(V$4,'4. Billing Determinants'!$B$19:$Q$41,5,0)/'4. Billing Determinants'!$F$41*$D11,IF($E11="Non-RPP kWh",VLOOKUP(V$4,'4. Billing Determinants'!$B$19:$Q$41,6,0)/'4. Billing Determinants'!$G$41*$D11,IF($E11="Distribution Rev.",VLOOKUP(V$4,'4. Billing Determinants'!$B$19:$Q$41,8,0)/'4. Billing Determinants'!$I$41*$D11, VLOOKUP(V$4,'4. Billing Determinants'!$B$19:$Q$41,3,0)/'4. Billing Determinants'!$D$41*$D11))))),0) -> 0 | W11: =IFERROR(IF(W$4="",0,IF($E11="kWh",VLOOKUP(W$4,'4. Billing Determinants'!$B$19:$Q$41,4,0)/'4. Billing Determinants'!$E$41*$D11,IF($E11="kW",VLOOKUP(W$4,'4. Billing Determinants'!$B$19:$Q$41,5,0)/'4. Billing Determinants'!$F$41*$D11,IF($E11="Non-RPP kWh",VLOOKUP(W$4,'4. Billing Determinants'!$B$19:$Q$41,6,0)/'4. Billing Determinants'!$G$41*$D11,IF($E11="Distribution Rev.",VLOOKUP(W$4,'4. Billing Determinants'!$B$19:$Q$41,8,0)/'4. Billing Determinants'!$I$41*$D11, VLOOKUP(W$4,'4. Billing Determinants'!$B$19:$Q$41,3,0)/'4. Billing Determinants'!$D$41*$D11))))),0) -> 0 | X11: =IFERROR(IF(X$4="",0,IF($E11="kWh",VLOOKUP(X$4,'4. Billing Determinants'!$B$19:$Q$41,4,0)/'4. Billing Determinants'!$E$41*$D11,IF($E11="kW",VLOOKUP(X$4,'4. Billing Determinants'!$B$19:$Q$41,5,0)/'4. Billing Determinants'!$F$41*$D11,IF($E11="Non-RPP kWh",VLOOKUP(X$4,'4. Billing Determinants'!$B$19:$Q$41,6,0)/'4. Billing Determinants'!$G$41*$D11,IF($E11="Distribution Rev.",VLOOKUP(X$4,'4. Billing Determinants'!$B$19:$Q$41,8,0)/'4. Billing Determinants'!$I$41*$D11, VLOOKUP(X$4,'4. Billing Determinants'!$B$19:$Q$41,3,0)/'4. Billing Determinants'!$D$41*$D11))))),0) -> 0 | Y11: =IFERROR(IF(Y$4="",0,IF($E11="kWh",VLOOKUP(Y$4,'4. Billing Determinants'!$B$19:$Q$41,4,0)/'4. Billing Determinants'!$E$41*$D11,IF($E11="kW",VLOOKUP(Y$4,'4. Billing Determinants'!$B$19:$Q$41,5,0)/'4. Billing Determinants'!$F$41*$D11,IF($E11="Non-RPP kWh",VLOOKUP(Y$4,'4. Billing Determinants'!$B$19:$Q$41,6,0)/'4. Billing Determinants'!$G$41*$D11,IF($E11="Distribution Rev.",VLOOKUP(Y$4,'4. Billing Determinants'!$B$19:$Q$41,8,0)/'4. Billing Determinants'!$I$41*$D11, VLOOKUP(Y$4,'4. Billing Determinants'!$B$19:$Q$41,3,0)/'4. Billing Determinants'!$D$41*$D11))))),0) -> 0
B12: Disposition and Recovery/Refund of Regulatory Balances (2008) | C12: 1595 | D12: ='2. 2014 Continuity Schedule'!BU31 -> 0 | F12: =IFERROR(IF(F$4="",0,IF($E12="kWh",VLOOKUP(F$4,'4. Billing Determinants'!$B$19:$Q$41,4,0)/'4. Billing Determinants'!$E$41*$D12,IF($E12="kW",VLOOKUP(F$4,'4. Billing Determinants'!$B$19:$Q$41,5,0)/'4. Billing Determinants'!$F$41*$D12,IF($E12="Non-RPP kWh",VLOOKUP(F$4,'4. Billing Determinants'!$B$19:$Q$41,6,0)/'4. Billing Determinants'!$G$41*$D12,IF($E12="Distribution Rev.",VLOOKUP(F$4,'4. Billing Determinants'!$B$19:$Q$41,8,0)/'4. Billing Determinants'!$I$41*$D12, VLOOKUP(F$4,'4. Billing Determinants'!$B$19:$Q$41,3,0)/'4. Billing Determinants'!$D$41*$D12))))),0) -> 0 | G12: =IFERROR(IF(G$4="",0,IF($E12="kWh",VLOOKUP(G$4,'4. Billing Determinants'!$B$19:$Q$41,4,0)/'4. Billing Determinants'!$E$41*$D12,IF($E12="kW",VLOOKUP(G$4,'4. Billing Determinants'!$B$19:$Q$41,5,0)/'4. Billing Determinants'!$F$41*$D12,IF($E12="Non-RPP kWh",VLOOKUP(G$4,'4. Billing Determinants'!$B$19:$Q$41,6,0)/'4. Billing Determinants'!$G$41*$D12,IF($E12="Distribution Rev.",VLOOKUP(G$4,'4. Billing Determinants'!$B$19:$Q$41,8,0)/'4. Billing Determinants'!$I$41*$D12, VLOOKUP(G$4,'4. Billing Determinants'!$B$19:$Q$41,3,0)/'4. Billing Determinants'!$D$41*$D12))))),0) -> 0 | H12: =IFERROR(IF(H$4="",0,IF($E12="kWh",VLOOKUP(H$4,'4. Billing Determinants'!$B$19:$Q$41,4,0)/'4. Billing Determinants'!$E$41*$D12,IF($E12="kW",VLOOKUP(H$4,'4. Billing Determinants'!$B$19:$Q$41,5,0)/'4. Billing Determinants'!$F$41*$D12,IF($E12="Non-RPP kWh",VLOOKUP(H$4,'4. Billing Determinants'!$B$19:$Q$41,6,0)/'4. Billing Determinants'!$G$41*$D12,IF($E12="Distribution Rev.",VLOOKUP(H$4,'4. Billing Determinants'!$B$19:$Q$41,8,0)/'4. Billing Determinants'!$I$41*$D12, VLOOKUP(H$4,'4. Billing Determinants'!$B$19:$Q$41,3,0)/'4. Billing Determinants'!$D$41*$D12))))),0) -> 0 | I12: =IFERROR(IF(I$4="",0,IF($E12="kWh",VLOOKUP(I$4,'4. Billing Determinants'!$B$19:$Q$41,4,0)/'4. Billing Determinants'!$E$41*$D12,IF($E12="kW",VLOOKUP(I$4,'4. Billing Determinants'!$B$19:$Q$41,5,0)/'4. Billing Determinants'!$F$41*$D12,IF($E12="Non-RPP kWh",VLOOKUP(I$4,'4. Billing Determinants'!$B$19:$Q$41,6,0)/'4. Billing Determinants'!$G$41*$D12,IF($E12="Distribution Rev.",VLOOKUP(I$4,'4. Billing Determinants'!$B$19:$Q$41,8,0)/'4. Billing Determinants'!$I$41*$D12, VLOOKUP(I$4,'4. Billing Determinants'!$B$19:$Q$41,3,0)/'4. Billing Determinants'!$D$41*$D12))))),0) -> 0 | J12: =IFERROR(IF(J$4="",0,IF($E12="kWh",VLOOKUP(J$4,'4. Billing Determinants'!$B$19:$Q$41,4,0)/'4. Billing Determinants'!$E$41*$D12,IF($E12="kW",VLOOKUP(J$4,'4. Billing Determinants'!$B$19:$Q$41,5,0)/'4. Billing Determinants'!$F$41*$D12,IF($E12="Non-RPP kWh",VLOOKUP(J$4,'4. Billing Determinants'!$B$19:$Q$41,6,0)/'4. Billing Determinants'!$G$41*$D12,IF($E12="Distribution Rev.",VLOOKUP(J$4,'4. Billing Determinants'!$B$19:$Q$41,8,0)/'4. Billing Determinants'!$I$41*$D12, VLOOKUP(J$4,'4. Billing Determinants'!$B$19:$Q$41,3,0)/'4. Billing Determinants'!$D$41*$D12))))),0) -> 0 | K12: =IFERROR(IF(K$4="",0,IF($E12="kWh",VLOOKUP(K$4,'4. Billing Determinants'!$B$19:$Q$41,4,0)/'4. Billing Determinants'!$E$41*$D12,IF($E12="kW",VLOOKUP(K$4,'4. Billing Determinants'!$B$19:$Q$41,5,0)/'4. Billing Determinants'!$F$41*$D12,IF($E12="Non-RPP kWh",VLOOKUP(K$4,'4. Billing Determinants'!$B$19:$Q$41,6,0)/'4. Billing Determinants'!$G$41*$D12,IF($E12="Distribution Rev.",VLOOKUP(K$4,'4. Billing Determinants'!$B$19:$Q$41,8,0)/'4. Billing Determinants'!$I$41*$D12, VLOOKUP(K$4,'4. Billing Determinants'!$B$19:$Q$41,3,0)/'4. Billing Determinants'!$D$41*$D12))))),0) -> 0 | L12: =IFERROR(IF(L$4="",0,IF($E12="kWh",VLOOKUP(L$4,'4. Billing Determinants'!$B$19:$Q$41,4,0)/'4. Billing Determinants'!$E$41*$D12,IF($E12="kW",VLOOKUP(L$4,'4. Billing Determinants'!$B$19:$Q$41,5,0)/'4. Billing Determinants'!$F$41*$D12,IF($E12="Non-RPP kWh",VLOOKUP(L$4,'4. Billing Determinants'!$B$19:$Q$41,6,0)/'4. Billing Determinants'!$G$41*$D12,IF($E12="Distribution Rev.",VLOOKUP(L$4,'4. Billing Determinants'!$B$19:$Q$41,8,0)/'4. Billing Determinants'!$I$41*$D12, VLOOKUP(L$4,'4. Billing Determinants'!$B$19:$Q$41,3,0)/'4. Billing Determinants'!$D$41*$D12))))),0) -> 0 | M12: =IFERROR(IF(M$4="",0,IF($E12="kWh",VLOOKUP(M$4,'4. Billing Determinants'!$B$19:$Q$41,4,0)/'4. Billing Determinants'!$E$41*$D12,IF($E12="kW",VLOOKUP(M$4,'4. Billing Determinants'!$B$19:$Q$41,5,0)/'4. Billing Determinants'!$F$41*$D12,IF($E12="Non-RPP kWh",VLOOKUP(M$4,'4. Billing Determinants'!$B$19:$Q$41,6,0)/'4. Billing Determinants'!$G$41*$D12,IF($E12="Distribution Rev.",VLOOKUP(M$4,'4. Billing Determinants'!$B$19:$Q$41,8,0)/'4. Billing Determinants'!$I$41*$D12, VLOOKUP(M$4,'4. Billing Determinants'!$B$19:$Q$41,3,0)/'4. Billing Determinants'!$D$41*$D12))))),0) -> 0 | N12: =IFERROR(IF(N$4="",0,IF($E12="kWh",VLOOKUP(N$4,'4. Billing Determinants'!$B$19:$Q$41,4,0)/'4. Billing Determinants'!$E$41*$D12,IF($E12="kW",VLOOKUP(N$4,'4. Billing Determinants'!$B$19:$Q$41,5,0)/'4. Billing Determinants'!$F$41*$D12,IF($E12="Non-RPP kWh",VLOOKUP(N$4,'4. Billing Determinants'!$B$19:$Q$41,6,0)/'4. Billing Determinants'!$G$41*$D12,IF($E12="Distribution Rev.",VLOOKUP(N$4,'4. Billing Determinants'!$B$19:$Q$41,8,0)/'4. Billing Determinants'!$I$41*$D12, VLOOKUP(N$4,'4. Billing Determinants'!$B$19:$Q$41,3,0)/'4. Billing Determinants'!$D$41*$D12))))),0) -> 0 | O12: =IFERROR(IF(O$4="",0,IF($E12="kWh",VLOOKUP(O$4,'4. Billing Determinants'!$B$19:$Q$41,4,0)/'4. Billing Determinants'!$E$41*$D12,IF($E12="kW",VLOOKUP(O$4,'4. Billing Determinants'!$B$19:$Q$41,5,0)/'4. Billing Determinants'!$F$41*$D12,IF($E12="Non-RPP kWh",VLOOKUP(O$4,'4. Billing Determinants'!$B$19:$Q$41,6,0)/'4. Billing Determinants'!$G$41*$D12,IF($E12="Distribution Rev.",VLOOKUP(O$4,'4. Billing Determinants'!$B$19:$Q$41,8,0)/'4. Billing Determinants'!$I$41*$D12, VLOOKUP(O$4,'4. Billing Determinants'!$B$19:$Q$41,3,0)/'4. Billing Determinants'!$D$41*$D12))))),0) -> 0 | P12: =IFERROR(IF(P$4="",0,IF($E12="kWh",VLOOKUP(P$4,'4. Billing Determinants'!$B$19:$Q$41,4,0)/'4. Billing Determinants'!$E$41*$D12,IF($E12="kW",VLOOKUP(P$4,'4. Billing Determinants'!$B$19:$Q$41,5,0)/'4. Billing Determinants'!$F$41*$D12,IF($E12="Non-RPP kWh",VLOOKUP(P$4,'4. Billing Determinants'!$B$19:$Q$41,6,0)/'4. Billing Determinants'!$G$41*$D12,IF($E12="Distribution Rev.",VLOOKUP(P$4,'4. Billing Determinants'!$B$19:$Q$41,8,0)/'4. Billing Determinants'!$I$41*$D12, VLOOKUP(P$4,'4. Billing Determinants'!$B$19:$Q$41,3,0)/'4. Billing Determinants'!$D$41*$D12))))),0) -> 0 | Q12: =IFERROR(IF(Q$4="",0,IF($E12="kWh",VLOOKUP(Q$4,'4. Billing Determinants'!$B$19:$Q$41,4,0)/'4. Billing Determinants'!$E$41*$D12,IF($E12="kW",VLOOKUP(Q$4,'4. Billing Determinants'!$B$19:$Q$41,5,0)/'4. Billing Determinants'!$F$41*$D12,IF($E12="Non-RPP kWh",VLOOKUP(Q$4,'4. Billing Determinants'!$B$19:$Q$41,6,0)/'4. Billing Determinants'!$G$41*$D12,IF($E12="Distribution Rev.",VLOOKUP(Q$4,'4. Billing Determinants'!$B$19:$Q$41,8,0)/'4. Billing Determinants'!$I$41*$D12, VLOOKUP(Q$4,'4. Billing Determinants'!$B$19:$Q$41,3,0)/'4. Billing Determinants'!$D$41*$D12))))),0) -> 0 | R12: =IFERROR(IF(R$4="",0,IF($E12="kWh",VLOOKUP(R$4,'4. Billing Determinants'!$B$19:$Q$41,4,0)/'4. Billing Determinants'!$E$41*$D12,IF($E12="kW",VLOOKUP(R$4,'4. Billing Determinants'!$B$19:$Q$41,5,0)/'4. Billing Determinants'!$F$41*$D12,IF($E12="Non-RPP kWh",VLOOKUP(R$4,'4. Billing Determinants'!$B$19:$Q$41,6,0)/'4. Billing Determinants'!$G$41*$D12,IF($E12="Distribution Rev.",VLOOKUP(R$4,'4. Billing Determinants'!$B$19:$Q$41,8,0)/'4. Billing Determinants'!$I$41*$D12, VLOOKUP(R$4,'4. Billing Determinants'!$B$19:$Q$41,3,0)/'4. Billing Determinants'!$D$41*$D12))))),0) -> 0 | S12: =IFERROR(IF(S$4="",0,IF($E12="kWh",VLOOKUP(S$4,'4. Billing Determinants'!$B$19:$Q$41,4,0)/'4. Billing Determinants'!$E$41*$D12,IF($E12="kW",VLOOKUP(S$4,'4. Billing Determinants'!$B$19:$Q$41,5,0)/'4. Billing Determinants'!$F$41*$D12,IF($E12="Non-RPP kWh",VLOOKUP(S$4,'4. Billing Determinants'!$B$19:$Q$41,6,0)/'4. Billing Determinants'!$G$41*$D12,IF($E12="Distribution Rev.",VLOOKUP(S$4,'4. Billing Determinants'!$B$19:$Q$41,8,0)/'4. Billing Determinants'!$I$41*$D12, VLOOKUP(S$4,'4. Billing Determinants'!$B$19:$Q$41,3,0)/'4. Billing Determinants'!$D$41*$D12))))),0) -> 0 | T12: =IFERROR(IF(T$4="",0,IF($E12="kWh",VLOOKUP(T$4,'4. Billing Determinants'!$B$19:$Q$41,4,0)/'4. Billing Determinants'!$E$41*$D12,IF($E12="kW",VLOOKUP(T$4,'4. Billing Determinants'!$B$19:$Q$41,5,0)/'4. Billing Determinants'!$F$41*$D12,IF($E12="Non-RPP kWh",VLOOKUP(T$4,'4. Billing Determinants'!$B$19:$Q$41,6,0)/'4. Billing Determinants'!$G$41*$D12,IF($E12="Distribution Rev.",VLOOKUP(T$4,'4. Billing Determinants'!$B$19:$Q$41,8,0)/'4. Billing Determinants'!$I$41*$D12, VLOOKUP(T$4,'4. Billing Determinants'!$B$19:$Q$41,3,0)/'4. Billing Determinants'!$D$41*$D12))))),0) -> 0 | U12: =IFERROR(IF(U$4="",0,IF($E12="kWh",VLOOKUP(U$4,'4. Billing Determinants'!$B$19:$Q$41,4,0)/'4. Billing Determinants'!$E$41*$D12,IF($E12="kW",VLOOKUP(U$4,'4. Billing Determinants'!$B$19:$Q$41,5,0)/'4. Billing Determinants'!$F$41*$D12,IF($E12="Non-RPP kWh",VLOOKUP(U$4,'4. Billing Determinants'!$B$19:$Q$41,6,0)/'4. Billing Determinants'!$G$41*$D12,IF($E12="Distribution Rev.",VLOOKUP(U$4,'4. Billing Determinants'!$B$19:$Q$41,8,0)/'4. Billing Determinants'!$I$41*$D12, VLOOKUP(U$4,'4. Billing Determinants'!$B$19:$Q$41,3,0)/'4. Billing Determinants'!$D$41*$D12))))),0) -> 0 | V12: =IFERROR(IF(V$4="",0,IF($E12="kWh",VLOOKUP(V$4,'4. Billing Determinants'!$B$19:$Q$41,4,0)/'4. Billing Determinants'!$E$41*$D12,IF($E12="kW",VLOOKUP(V$4,'4. Billing Determinants'!$B$19:$Q$41,5,0)/'4. Billing Determinants'!$F$41*$D12,IF($E12="Non-RPP kWh",VLOOKUP(V$4,'4. Billing Determinants'!$B$19:$Q$41,6,0)/'4. Billing Determinants'!$G$41*$D12,IF($E12="Distribution Rev.",VLOOKUP(V$4,'4. Billing Determinants'!$B$19:$Q$41,8,0)/'4. Billing Determinants'!$I$41*$D12, VLOOKUP(V$4,'4. Billing Determinants'!$B$19:$Q$41,3,0)/'4. Billing Determinants'!$D$41*$D12))))),0) -> 0 | W12: =IFERROR(IF(W$4="",0,IF($E12="kWh",VLOOKUP(W$4,'4. Billing Determinants'!$B$19:$Q$41,4,0)/'4. Billing Determinants'!$E$41*$D12,IF($E12="kW",VLOOKUP(W$4,'4. Billing Determinants'!$B$19:$Q$41,5,0)/'4. Billing Determinants'!$F$41*$D12,IF($E12="Non-RPP kWh",VLOOKUP(W$4,'4. Billing Determinants'!$B$19:$Q$41,6,0)/'4. Billing Determinants'!$G$41*$D12,IF($E12="Distribution Rev.",VLOOKUP(W$4,'4. Billing Determinants'!$B$19:$Q$41,8,0)/'4. Billing Determinants'!$I$41*$D12, VLOOKUP(W$4,'4. Billing Determinants'!$B$19:$Q$41,3,0)/'4. Billing Determinants'!$D$41*$D12))))),0) -> 0 | X12: =IFERROR(IF(X$4="",0,IF($E12="kWh",VLOOKUP(X$4,'4. Billing Determinants'!$B$19:$Q$41,4,0)/'4. Billing Determinants'!$E$41*$D12,IF($E12="kW",VLOOKUP(X$4,'4. Billing Determinants'!$B$19:$Q$41,5,0)/'4. Billing Determinants'!$F$41*$D12,IF($E12="Non-RPP kWh",VLOOKUP(X$4,'4. Billing Determinants'!$B$19:$Q$41,6,0)/'4. Billing Determinants'!$G$41*$D12,IF($E12="Distribution Rev.",VLOOKUP(X$4,'4. Billing Determinants'!$B$19:$Q$41,8,0)/'4. Billing Determinants'!$I$41*$D12, VLOOKUP(X$4,'4. Billing Determinants'!$B$19:$Q$41,3,0)/'4. Billing Determinants'!$D$41*$D12))))),0) -> 0 | Y12: =IFERROR(IF(Y$4="",0,IF($E12="kWh",VLOOKUP(Y$4,'4. Billing Determinants'!$B$19:$Q$41,4,0)/'4. Billing Determinants'!$E$41*$D12,IF($E12="kW",VLOOKUP(Y$4,'4. Billing Determinants'!$B$19:$Q$41,5,0)/'4. Billing Determinants'!$F$41*$D12,IF($E12="Non-RPP kWh",VLOOKUP(Y$4,'4. Billing Determinants'!$B$19:$Q$41,6,0)/'4. Billing Determinants'!$G$41*$D12,IF($E12="Distribution Rev.",VLOOKUP(Y$4,'4. Billing Determinants'!$B$19:$Q$41,8,0)/'4. Billing Determinants'!$I$41*$D12, VLOOKUP(Y$4,'4. Billing Determinants'!$B$19:$Q$41,3,0)/'4. Billing Determinants'!$D$41*$D12))))),0) -> 0
B13: Disposition and Recovery/Refund of Regulatory Balances (2009) | C13: 1595 | D13: ='2. 2014 Continuity Schedule'!BU32 -> 0 | F13: =IFERROR(IF(F$4="",0,IF($E13="kWh",VLOOKUP(F$4,'4. Billing Determinants'!$B$19:$Q$41,4,0)/'4. Billing Determinants'!$E$41*$D13,IF($E13="kW",VLOOKUP(F$4,'4. Billing Determinants'!$B$19:$Q$41,5,0)/'4. Billing Determinants'!$F$41*$D13,IF($E13="Non-RPP kWh",VLOOKUP(F$4,'4. Billing Determinants'!$B$19:$Q$41,6,0)/'4. Billing Determinants'!$G$41*$D13,IF($E13="Distribution Rev.",VLOOKUP(F$4,'4. Billing Determinants'!$B$19:$Q$41,8,0)/'4. Billing Determinants'!$I$41*$D13, VLOOKUP(F$4,'4. Billing Determinants'!$B$19:$Q$41,3,0)/'4. Billing Determinants'!$D$41*$D13))))),0) -> 0 | G13: =IFERROR(IF(G$4="",0,IF($E13="kWh",VLOOKUP(G$4,'4. Billing Determinants'!$B$19:$Q$41,4,0)/'4. Billing Determinants'!$E$41*$D13,IF($E13="kW",VLOOKUP(G$4,'4. Billing Determinants'!$B$19:$Q$41,5,0)/'4. Billing Determinants'!$F$41*$D13,IF($E13="Non-RPP kWh",VLOOKUP(G$4,'4. Billing Determinants'!$B$19:$Q$41,6,0)/'4. Billing Determinants'!$G$41*$D13,IF($E13="Distribution Rev.",VLOOKUP(G$4,'4. Billing Determinants'!$B$19:$Q$41,8,0)/'4. Billing Determinants'!$I$41*$D13, VLOOKUP(G$4,'4. Billing Determinants'!$B$19:$Q$41,3,0)/'4. Billing Determinants'!$D$41*$D13))))),0) -> 0 | H13: =IFERROR(IF(H$4="",0,IF($E13="kWh",VLOOKUP(H$4,'4. Billing Determinants'!$B$19:$Q$41,4,0)/'4. Billing Determinants'!$E$41*$D13,IF($E13="kW",VLOOKUP(H$4,'4. Billing Determinants'!$B$19:$Q$41,5,0)/'4. Billing Determinants'!$F$41*$D13,IF($E13="Non-RPP kWh",VLOOKUP(H$4,'4. Billing Determinants'!$B$19:$Q$41,6,0)/'4. Billing Determinants'!$G$41*$D13,IF($E13="Distribution Rev.",VLOOKUP(H$4,'4. Billing Determinants'!$B$19:$Q$41,8,0)/'4. Billing Determinants'!$I$41*$D13, VLOOKUP(H$4,'4. Billing Determinants'!$B$19:$Q$41,3,0)/'4. Billing Determinants'!$D$41*$D13))))),0) -> 0 | I13: =IFERROR(IF(I$4="",0,IF($E13="kWh",VLOOKUP(I$4,'4. Billing Determinants'!$B$19:$Q$41,4,0)/'4. Billing Determinants'!$E$41*$D13,IF($E13="kW",VLOOKUP(I$4,'4. Billing Determinants'!$B$19:$Q$41,5,0)/'4. Billing Determinants'!$F$41*$D13,IF($E13="Non-RPP kWh",VLOOKUP(I$4,'4. Billing Determinants'!$B$19:$Q$41,6,0)/'4. Billing Determinants'!$G$41*$D13,IF($E13="Distribution Rev.",VLOOKUP(I$4,'4. Billing Determinants'!$B$19:$Q$41,8,0)/'4. Billing Determinants'!$I$41*$D13, VLOOKUP(I$4,'4. Billing Determinants'!$B$19:$Q$41,3,0)/'4. Billing Determinants'!$D$41*$D13))))),0) -> 0 | J13: =IFERROR(IF(J$4="",0,IF($E13="kWh",VLOOKUP(J$4,'4. Billing Determinants'!$B$19:$Q$41,4,0)/'4. Billing Determinants'!$E$41*$D13,IF($E13="kW",VLOOKUP(J$4,'4. Billing Determinants'!$B$19:$Q$41,5,0)/'4. Billing Determinants'!$F$41*$D13,IF($E13="Non-RPP kWh",VLOOKUP(J$4,'4. Billing Determinants'!$B$19:$Q$41,6,0)/'4. Billing Determinants'!$G$41*$D13,IF($E13="Distribution Rev.",VLOOKUP(J$4,'4. Billing Determinants'!$B$19:$Q$41,8,0)/'4. Billing Determinants'!$I$41*$D13, VLOOKUP(J$4,'4. Billing Determinants'!$B$19:$Q$41,3,0)/'4. Billing Determinants'!$D$41*$D13))))),0) -> 0 | K13: =IFERROR(IF(K$4="",0,IF($E13="kWh",VLOOKUP(K$4,'4. Billing Determinants'!$B$19:$Q$41,4,0)/'4. Billing Determinants'!$E$41*$D13,IF($E13="kW",VLOOKUP(K$4,'4. Billing Determinants'!$B$19:$Q$41,5,0)/'4. Billing Determinants'!$F$41*$D13,IF($E13="Non-RPP kWh",VLOOKUP(K$4,'4. Billing Determinants'!$B$19:$Q$41,6,0)/'4. Billing Determinants'!$G$41*$D13,IF($E13="Distribution Rev.",VLOOKUP(K$4,'4. Billing Determinants'!$B$19:$Q$41,8,0)/'4. Billing Determinants'!$I$41*$D13, VLOOKUP(K$4,'4. Billing Determinants'!$B$19:$Q$41,3,0)/'4. Billing Determinants'!$D$41*$D13))))),0) -> 0 | L13: =IFERROR(IF(L$4="",0,IF($E13="kWh",VLOOKUP(L$4,'4. Billing Determinants'!$B$19:$Q$41,4,0)/'4. Billing Determinants'!$E$41*$D13,IF($E13="kW",VLOOKUP(L$4,'4. Billing Determinants'!$B$19:$Q$41,5,0)/'4. Billing Determinants'!$F$41*$D13,IF($E13="Non-RPP kWh",VLOOKUP(L$4,'4. Billing Determinants'!$B$19:$Q$41,6,0)/'4. Billing Determinants'!$G$41*$D13,IF($E13="Distribution Rev.",VLOOKUP(L$4,'4. Billing Determinants'!$B$19:$Q$41,8,0)/'4. Billing Determinants'!$I$41*$D13, VLOOKUP(L$4,'4. Billing Determinants'!$B$19:$Q$41,3,0)/'4. Billing Determinants'!$D$41*$D13))))),0) -> 0 | M13: =IFERROR(IF(M$4="",0,IF($E13="kWh",VLOOKUP(M$4,'4. Billing Determinants'!$B$19:$Q$41,4,0)/'4. Billing Determinants'!$E$41*$D13,IF($E13="kW",VLOOKUP(M$4,'4. Billing Determinants'!$B$19:$Q$41,5,0)/'4. Billing Determinants'!$F$41*$D13,IF($E13="Non-RPP kWh",VLOOKUP(M$4,'4. Billing Determinants'!$B$19:$Q$41,6,0)/'4. Billing Determinants'!$G$41*$D13,IF($E13="Distribution Rev.",VLOOKUP(M$4,'4. Billing Determinants'!$B$19:$Q$41,8,0)/'4. Billing Determinants'!$I$41*$D13, VLOOKUP(M$4,'4. Billing Determinants'!$B$19:$Q$41,3,0)/'4. Billing Determinants'!$D$41*$D13))))),0) -> 0 | N13: =IFERROR(IF(N$4="",0,IF($E13="kWh",VLOOKUP(N$4,'4. Billing Determinants'!$B$19:$Q$41,4,0)/'4. Billing Determinants'!$E$41*$D13,IF($E13="kW",VLOOKUP(N$4,'4. Billing Determinants'!$B$19:$Q$41,5,0)/'4. Billing Determinants'!$F$41*$D13,IF($E13="Non-RPP kWh",VLOOKUP(N$4,'4. Billing Determinants'!$B$19:$Q$41,6,0)/'4. Billing Determinants'!$G$41*$D13,IF($E13="Distribution Rev.",VLOOKUP(N$4,'4. Billing Determinants'!$B$19:$Q$41,8,0)/'4. Billing Determinants'!$I$41*$D13, VLOOKUP(N$4,'4. Billing Determinants'!$B$19:$Q$41,3,0)/'4. Billing Determinants'!$D$41*$D13))))),0) -> 0 | O13: =IFERROR(IF(O$4="",0,IF($E13="kWh",VLOOKUP(O$4,'4. Billing Determinants'!$B$19:$Q$41,4,0)/'4. Billing Determinants'!$E$41*$D13,IF($E13="kW",VLOOKUP(O$4,'4. Billing Determinants'!$B$19:$Q$41,5,0)/'4. Billing Determinants'!$F$41*$D13,IF($E13="Non-RPP kWh",VLOOKUP(O$4,'4. Billing Determinants'!$B$19:$Q$41,6,0)/'4. Billing Determinants'!$G$41*$D13,IF($E13="Distribution Rev.",VLOOKUP(O$4,'4. Billing Determinants'!$B$19:$Q$41,8,0)/'4. Billing Determinants'!$I$41*$D13, VLOOKUP(O$4,'4. Billing Determinants'!$B$19:$Q$41,3,0)/'4. Billing Determinants'!$D$41*$D13))))),0) -> 0 | P13: =IFERROR(IF(P$4="",0,IF($E13="kWh",VLOOKUP(P$4,'4. Billing Determinants'!$B$19:$Q$41,4,0)/'4. Billing Determinants'!$E$41*$D13,IF($E13="kW",VLOOKUP(P$4,'4. Billing Determinants'!$B$19:$Q$41,5,0)/'4. Billing Determinants'!$F$41*$D13,IF($E13="Non-RPP kWh",VLOOKUP(P$4,'4. Billing Determinants'!$B$19:$Q$41,6,0)/'4. Billing Determinants'!$G$41*$D13,IF($E13="Distribution Rev.",VLOOKUP(P$4,'4. Billing Determinants'!$B$19:$Q$41,8,0)/'4. Billing Determinants'!$I$41*$D13, VLOOKUP(P$4,'4. Billing Determinants'!$B$19:$Q$41,3,0)/'4. Billing Determinants'!$D$41*$D13))))),0) -> 0 | Q13: =IFERROR(IF(Q$4="",0,IF($E13="kWh",VLOOKUP(Q$4,'4. Billing Determinants'!$B$19:$Q$41,4,0)/'4. Billing Determinants'!$E$41*$D13,IF($E13="kW",VLOOKUP(Q$4,'4. Billing Determinants'!$B$19:$Q$41,5,0)/'4. Billing Determinants'!$F$41*$D13,IF($E13="Non-RPP kWh",VLOOKUP(Q$4,'4. Billing Determinants'!$B$19:$Q$41,6,0)/'4. Billing Determinants'!$G$41*$D13,IF($E13="Distribution Rev.",VLOOKUP(Q$4,'4. Billing Determinants'!$B$19:$Q$41,8,0)/'4. Billing Determinants'!$I$41*$D13, VLOOKUP(Q$4,'4. Billing Determinants'!$B$19:$Q$41,3,0)/'4. Billing Determinants'!$D$41*$D13))))),0) -> 0 | R13: =IFERROR(IF(R$4="",0,IF($E13="kWh",VLOOKUP(R$4,'4. Billing Determinants'!$B$19:$Q$41,4,0)/'4. Billing Determinants'!$E$41*$D13,IF($E13="kW",VLOOKUP(R$4,'4. Billing Determinants'!$B$19:$Q$41,5,0)/'4. Billing Determinants'!$F$41*$D13,IF($E13="Non-RPP kWh",VLOOKUP(R$4,'4. Billing Determinants'!$B$19:$Q$41,6,0)/'4. Billing Determinants'!$G$41*$D13,IF($E13="Distribution Rev.",VLOOKUP(R$4,'4. Billing Determinants'!$B$19:$Q$41,8,0)/'4. Billing Determinants'!$I$41*$D13, VLOOKUP(R$4,'4. Billing Determinants'!$B$19:$Q$41,3,0)/'4. Billing Determinants'!$D$41*$D13))))),0) -> 0 | S13: =IFERROR(IF(S$4="",0,IF($E13="kWh",VLOOKUP(S$4,'4. Billing Determinants'!$B$19:$Q$41,4,0)/'4. Billing Determinants'!$E$41*$D13,IF($E13="kW",VLOOKUP(S$4,'4. Billing Determinants'!$B$19:$Q$41,5,0)/'4. Billing Determinants'!$F$41*$D13,IF($E13="Non-RPP kWh",VLOOKUP(S$4,'4. Billing Determinants'!$B$19:$Q$41,6,0)/'4. Billing Determinants'!$G$41*$D13,IF($E13="Distribution Rev.",VLOOKUP(S$4,'4. Billing Determinants'!$B$19:$Q$41,8,0)/'4. Billing Determinants'!$I$41*$D13, VLOOKUP(S$4,'4. Billing Determinants'!$B$19:$Q$41,3,0)/'4. Billing Determinants'!$D$41*$D13))))),0) -> 0 | T13: =IFERROR(IF(T$4="",0,IF($E13="kWh",VLOOKUP(T$4,'4. Billing Determinants'!$B$19:$Q$41,4,0)/'4. Billing Determinants'!$E$41*$D13,IF($E13="kW",VLOOKUP(T$4,'4. Billing Determinants'!$B$19:$Q$41,5,0)/'4. Billing Determinants'!$F$41*$D13,IF($E13="Non-RPP kWh",VLOOKUP(T$4,'4. Billing Determinants'!$B$19:$Q$41,6,0)/'4. Billing Determinants'!$G$41*$D13,IF($E13="Distribution Rev.",VLOOKUP(T$4,'4. Billing Determinants'!$B$19:$Q$41,8,0)/'4. Billing Determinants'!$I$41*$D13, VLOOKUP(T$4,'4. Billing Determinants'!$B$19:$Q$41,3,0)/'4. Billing Determinants'!$D$41*$D13))))),0) -> 0 | U13: =IFERROR(IF(U$4="",0,IF($E13="kWh",VLOOKUP(U$4,'4. Billing Determinants'!$B$19:$Q$41,4,0)/'4. Billing Determinants'!$E$41*$D13,IF($E13="kW",VLOOKUP(U$4,'4. Billing Determinants'!$B$19:$Q$41,5,0)/'4. Billing Determinants'!$F$41*$D13,IF($E13="Non-RPP kWh",VLOOKUP(U$4,'4. Billing Determinants'!$B$19:$Q$41,6,0)/'4. Billing Determinants'!$G$41*$D13,IF($E13="Distribution Rev.",VLOOKUP(U$4,'4. Billing Determinants'!$B$19:$Q$41,8,0)/'4. Billing Determinants'!$I$41*$D13, VLOOKUP(U$4,'4. Billing Determinants'!$B$19:$Q$41,3,0)/'4. Billing Determinants'!$D$41*$D13))))),0) -> 0 | V13: =IFERROR(IF(V$4="",0,IF($E13="kWh",VLOOKUP(V$4,'4. Billing Determinants'!$B$19:$Q$41,4,0)/'4. Billing Determinants'!$E$41*$D13,IF($E13="kW",VLOOKUP(V$4,'4. Billing Determinants'!$B$19:$Q$41,5,0)/'4. Billing Determinants'!$F$41*$D13,IF($E13="Non-RPP kWh",VLOOKUP(V$4,'4. Billing Determinants'!$B$19:$Q$41,6,0)/'4. Billing Determinants'!$G$41*$D13,IF($E13="Distribution Rev.",VLOOKUP(V$4,'4. Billing Determinants'!$B$19:$Q$41,8,0)/'4. Billing Determinants'!$I$41*$D13, VLOOKUP(V$4,'4. Billing Determinants'!$B$19:$Q$41,3,0)/'4. Billing Determinants'!$D$41*$D13))))),0) -> 0 | W13: =IFERROR(IF(W$4="",0,IF($E13="kWh",VLOOKUP(W$4,'4. Billing Determinants'!$B$19:$Q$41,4,0)/'4. Billing Determinants'!$E$41*$D13,IF($E13="kW",VLOOKUP(W$4,'4. Billing Determinants'!$B$19:$Q$41,5,0)/'4. Billing Determinants'!$F$41*$D13,IF($E13="Non-RPP kWh",VLOOKUP(W$4,'4. Billing Determinants'!$B$19:$Q$41,6,0)/'4. Billing Determinants'!$G$41*$D13,IF($E13="Distribution Rev.",VLOOKUP(W$4,'4. Billing Determinants'!$B$19:$Q$41,8,0)/'4. Billing Determinants'!$I$41*$D13, VLOOKUP(W$4,'4. Billing Determinants'!$B$19:$Q$41,3,0)/'4. Billing Determinants'!$D$41*$D13))))),0) -> 0 | X13: =IFERROR(IF(X$4="",0,IF($E13="kWh",VLOOKUP(X$4,'4. Billing Determinants'!$B$19:$Q$41,4,0)/'4. Billing Determinants'!$E$41*$D13,IF($E13="kW",VLOOKUP(X$4,'4. Billing Determinants'!$B$19:$Q$41,5,0)/'4. Billing Determinants'!$F$41*$D13,IF($E13="Non-RPP kWh",VLOOKUP(X$4,'4. Billing Determinants'!$B$19:$Q$41,6,0)/'4. Billing Determinants'!$G$41*$D13,IF($E13="Distribution Rev.",VLOOKUP(X$4,'4. Billing Determinants'!$B$19:$Q$41,8,0)/'4. Billing Determinants'!$I$41*$D13, VLOOKUP(X$4,'4. Billing Determinants'!$B$19:$Q$41,3,0)/'4. Billing Determinants'!$D$41*$D13))))),0) -> 0 | Y13: =IFERROR(IF(Y$4="",0,IF($E13="kWh",VLOOKUP(Y$4,'4. Billing Determinants'!$B$19:$Q$41,4,0)/'4. Billing Determinants'!$E$41*$D13,IF($E13="kW",VLOOKUP(Y$4,'4. Billing Determinants'!$B$19:$Q$41,5,0)/'4. Billing Determinants'!$F$41*$D13,IF($E13="Non-RPP kWh",VLOOKUP(Y$4,'4. Billing Determinants'!$B$19:$Q$41,6,0)/'4. Billing Determinants'!$G$41*$D13,IF($E13="Distribution Rev.",VLOOKUP(Y$4,'4. Billing Determinants'!$B$19:$Q$41,8,0)/'4. Billing Determinants'!$I$41*$D13, VLOOKUP(Y$4,'4. Billing Determinants'!$B$19:$Q$41,3,0)/'4. Billing Determinants'!$D$41*$D13))))),0) -> 0
B14: Disposition and Recovery/Refund of Regulatory Balances (2010) | C14: 1595 | D14: ='2. 2014 Continuity Schedule'!BU33 -> 855985.4497 | E14: % | F14: =IF(ISERROR($D14*VLOOKUP(F$4, '[4]4. Billing Determinants'!$B$19:$Q$41,12,0)), 0, $D14*VLOOKUP(F$4, '[4]4. Billing Determinants'!$B$19:$Q$41,12,0)) -> 266813.7692 | G14: =IF(ISERROR($D14*VLOOKUP(G$4, '[4]4. Billing Determinants'!$B$19:$Q$41,12,0)), 0, $D14*VLOOKUP(G$4, '[4]4. Billing Determinants'!$B$19:$Q$41,12,0)) -> 119624.9664 | H14: =IF(ISERROR($D14*VLOOKUP(H$4, '[4]4. Billing Determinants'!$B$19:$Q$41,12,0)), 0, $D14*VLOOKUP(H$4, '[4]4. Billing Determinants'!$B$19:$Q$41,12,0)) -> 405121.1262 | I14: =IF(ISERROR($D14*VLOOKUP(I$4, '[4]4. Billing Determinants'!$B$19:$Q$41,12,0)), 0, $D14*VLOOKUP(I$4, '[4]4. Billing Determinants'!$B$19:$Q$41,12,0)) -> 58180.52917 | J14: =IF(ISERROR($D14*VLOOKUP(J$4, '[4]4. Billing Determinants'!$B$19:$Q$41,12,0)), 0, $D14*VLOOKUP(J$4, '[4]4. Billing Determinants'!$B$19:$Q$41,12,0)) -> 1187.849839 | K14: =IF(ISERROR($D14*VLOOKUP(K$4, '[4]4. Billing Determinants'!$B$19:$Q$41,12,0)), 0, $D14*VLOOKUP(K$4, '[4]4. Billing Determinants'!$B$19:$Q$41,12,0)) -> 5057.208938 | L14: =IF(ISERROR($D14*VLOOKUP(L$4, '[4]4. Billing Determinants'!$B$19:$Q$41,12,0)), 0, $D14*VLOOKUP(L$4, '[4]4. Billing Determinants'!$B$19:$Q$41,12,0)) -> 0 | M14: =IF(ISERROR($D14*VLOOKUP(M$4, '[4]4. Billing Determinants'!$B$19:$Q$41,12,0)), 0, $D14*VLOOKUP(M$4, '[4]4. Billing Determinants'!$B$19:$Q$41,12,0)) -> 0 | N14: =IF(ISERROR($D14*VLOOKUP(N$4, '[4]4. Billing Determinants'!$B$19:$Q$41,12,0)), 0, $D14*VLOOKUP(N$4, '[4]4. Billing Determinants'!$B$19:$Q$41,12,0)) -> 0 | O14: =IF(ISERROR($D14*VLOOKUP(O$4, '[4]4. Billing Determinants'!$B$19:$Q$41,12,0)), 0, $D14*VLOOKUP(O$4, '[4]4. Billing Determinants'!$B$19:$Q$41,12,0)) -> 0 | P14: =IF(ISERROR($D14*VLOOKUP(P$4, '[4]4. Billing Determinants'!$B$19:$Q$41,12,0)), 0, $D14*VLOOKUP(P$4, '[4]4. Billing Determinants'!$B$19:$Q$41,12,0)) -> 0 | Q14: =IF(ISERROR($D14*VLOOKUP(Q$4, '[4]4. Billing Determinants'!$B$19:$Q$41,12,0)), 0, $D14*VLOOKUP(Q$4, '[4]4. Billing Determinants'!$B$19:$Q$41,12,0)) -> 0 | R14: =IF(ISERROR($D14*VLOOKUP(R$4, '[4]4. Billing Determinants'!$B$19:$Q$41,12,0)), 0, $D14*VLOOKUP(R$4, '[4]4. Billing Determinants'!$B$19:$Q$41,12,0)) -> 0 | S14: =IF(ISERROR($D14*VLOOKUP(S$4, '[4]4. Billing Determinants'!$B$19:$Q$41,12,0)), 0, $D14*VLOOKUP(S$4, '[4]4. Billing Determinants'!$B$19:$Q$41,12,0)) -> 0 | T14: =IF(ISERROR($D14*VLOOKUP(T$4, '[4]4. Billing Determinants'!$B$19:$Q$41,12,0)), 0, $D14*VLOOKUP(T$4, '[4]4. Billing Determinants'!$B$19:$Q$41,12,0)) -> 0 | U14: =IF(ISERROR($D14*VLOOKUP(U$4, '[4]4. Billing Determinants'!$B$19:$Q$41,12,0)), 0, $D14*VLOOKUP(U$4, '[4]4. Billing Determinants'!$B$19:$Q$41,12,0)) -> 0 | V14: =IF(ISERROR($D14*VLOOKUP(V$4, '[4]4. Billing Determinants'!$B$19:$Q$41,12,0)), 0, $D14*VLOOKUP(V$4, '[4]4. Billing Determinants'!$B$19:$Q$41,12,0)) -> 0 | W14: =IF(ISERROR($D14*VLOOKUP(W$4, '[4]4. Billing Determinants'!$B$19:$Q$41,12,0)), 0, $D14*VLOOKUP(W$4, '[4]4. Billing Determinants'!$B$19:$Q$41,12,0)) -> 0 | X14: =IF(ISERROR($D14*VLOOKUP(X$4, '[4]4. Billing Determinants'!$B$19:$Q$41,12,0)), 0, $D14*VLOOKUP(X$4, '[4]4. Billing Determinants'!$B$19:$Q$41,12,0)) -> 0 | Y14: =IF(ISERROR($D14*VLOOKUP(Y$4, '[4]4. Billing Determinants'!$B$19:$Q$41,12,0)), 0, $D14*VLOOKUP(Y$4, '[4]4. Billing Determinants'!$B$19:$Q$41,12,0)) -> 0
B15: Disposition and Recovery/Refund of Regulatory Balances (2011) | C15: 1595 | D15: ='2. 2014 Continuity Schedule'!BU34 -> 85725.94045 | E15: % | F15: =IF(ISERROR($D15*VLOOKUP(F$4, '[4]4. Billing Determinants'!$B$19:$Q$41,13,0)), 0, $D15*VLOOKUP(F$4, '[4]4. Billing Determinants'!$B$19:$Q$41,13,0)) -> 8671.315339 | G15: =IF(ISERROR($D15*VLOOKUP(G$4, '[4]4. Billing Determinants'!$B$19:$Q$41,13,0)), 0, $D15*VLOOKUP(G$4, '[4]4. Billing Determinants'!$B$19:$Q$41,13,0)) -> -976.2994301 | H15: =IF(ISERROR($D15*VLOOKUP(H$4, '[4]4. Billing Determinants'!$B$19:$Q$41,13,0)), 0, $D15*VLOOKUP(H$4, '[4]4. Billing Determinants'!$B$19:$Q$41,13,0)) -> 69409.73901 | I15: =IF(ISERROR($D15*VLOOKUP(I$4, '[4]4. Billing Determinants'!$B$19:$Q$41,13,0)), 0, $D15*VLOOKUP(I$4, '[4]4. Billing Determinants'!$B$19:$Q$41,13,0)) -> 7842.141459 | J15: =IF(ISERROR($D15*VLOOKUP(J$4, '[4]4. Billing Determinants'!$B$19:$Q$41,13,0)), 0, $D15*VLOOKUP(J$4, '[4]4. Billing Determinants'!$B$19:$Q$41,13,0)) -> 552.9881938 | K15: =IF(ISERROR($D15*VLOOKUP(K$4, '[4]4. Billing Determinants'!$B$19:$Q$41,13,0)), 0, $D15*VLOOKUP(K$4, '[4]4. Billing Determinants'!$B$19:$Q$41,13,0)) -> 226.0558835 | L15: =IF(ISERROR($D15*VLOOKUP(L$4, '[4]4. Billing Determinants'!$B$19:$Q$41,13,0)), 0, $D15*VLOOKUP(L$4, '[4]4. Billing Determinants'!$B$19:$Q$41,13,0)) -> 0 | M15: =IF(ISERROR($D15*VLOOKUP(M$4, '[4]4. Billing Determinants'!$B$19:$Q$41,13,0)), 0, $D15*VLOOKUP(M$4, '[4]4. Billing Determinants'!$B$19:$Q$41,13,0)) -> 0 | N15: =IF(ISERROR($D15*VLOOKUP(N$4, '[4]4. Billing Determinants'!$B$19:$Q$41,13,0)), 0, $D15*VLOOKUP(N$4, '[4]4. Billing Determinants'!$B$19:$Q$41,13,0)) -> 0 | O15: =IF(ISERROR($D15*VLOOKUP(O$4, '[4]4. Billing Determinants'!$B$19:$Q$41,13,0)), 0, $D15*VLOOKUP(O$4, '[4]4. Billing Determinants'!$B$19:$Q$41,13,0)) -> 0 | P15: =IF(ISERROR($D15*VLOOKUP(P$4, '[4]4. Billing Determinants'!$B$19:$Q$41,13,0)), 0, $D15*VLOOKUP(P$4, '[4]4. Billing Determinants'!$B$19:$Q$41,13,0)) -> 0 | Q15: =IF(ISERROR($D15*VLOOKUP(Q$4, '[4]4. Billing Determinants'!$B$19:$Q$41,13,0)), 0, $D15*VLOOKUP(Q$4, '[4]4. Billing Determinants'!$B$19:$Q$41,13,0)) -> 0 | R15: =IF(ISERROR($D15*VLOOKUP(R$4, '[4]4. Billing Determinants'!$B$19:$Q$41,13,0)), 0, $D15*VLOOKUP(R$4, '[4]4. Billing Determinants'!$B$19:$Q$41,13,0)) -> 0 | S15: =IF(ISERROR($D15*VLOOKUP(S$4, '[4]4. Billing Determinants'!$B$19:$Q$41,13,0)), 0, $D15*VLOOKUP(S$4, '[4]4. Billing Determinants'!$B$19:$Q$41,13,0)) -> 0 | T15: =IF(ISERROR($D15*VLOOKUP(T$4, '[4]4. Billing Determinants'!$B$19:$Q$41,13,0)), 0, $D15*VLOOKUP(T$4, '[4]4. Billing Determinants'!$B$19:$Q$41,13,0)) -> 0 | U15: =IF(ISERROR($D15*VLOOKUP(U$4, '[4]4. Billing Determinants'!$B$19:$Q$41,13,0)), 0, $D15*VLOOKUP(U$4, '[4]4. Billing Determinants'!$B$19:$Q$41,13,0)) -> 0 | V15: =IF(ISERROR($D15*VLOOKUP(V$4, '[4]4. Billing Determinants'!$B$19:$Q$41,13,0)), 0, $D15*VLOOKUP(V$4, '[4]4. Billing Determinants'!$B$19:$Q$41,13,0)) -> 0 | W15: =IF(ISERROR($D15*VLOOKUP(W$4, '[4]4. Billing Determinants'!$B$19:$Q$41,13,0)), 0, $D15*VLOOKUP(W$4, '[4]4. Billing Determinants'!$B$19:$Q$41,13,0)) -> 0 | X15: =IF(ISERROR($D15*VLOOKUP(X$4, '[4]4. Billing Determinants'!$B$19:$Q$41,13,0)), 0, $D15*VLOOKUP(X$4, '[4]4. Billing Determinants'!$B$19:$Q$41,13,0)) -> 0 | Y15: =IF(ISERROR($D15*VLOOKUP(Y$4, '[4]4. Billing Determinants'!$B$19:$Q$41,13,0)), 0, $D15*VLOOKUP(Y$4, '[4]4. Billing Determinants'!$B$19:$Q$41,13,0)) -> 0
B16: Disposition and Recovery/Refund of Regulatory Balances (2012) | C16: 1595 | D16: ='2. 2014 Continuity Schedule'!BU35 -> 390705.3575 | E16: % | F16: =IF(ISERROR($D16*VLOOKUP(F$4, '[4]4. Billing Determinants'!$B$19:$Q$41,14,0)), 0, $D16*VLOOKUP(F$4, '[4]4. Billing Determinants'!$B$19:$Q$41,14,0)) -> 102840.9562 | G16: =IF(ISERROR($D16*VLOOKUP(G$4, '[4]4. Billing Determinants'!$B$19:$Q$41,14,0)), 0, $D16*VLOOKUP(G$4, '[4]4. Billing Determinants'!$B$19:$Q$41,14,0)) -> 47140.91059 | H16: =IF(ISERROR($D16*VLOOKUP(H$4, '[4]4. Billing Determinants'!$B$19:$Q$41,14,0)), 0, $D16*VLOOKUP(H$4, '[4]4. Billing Determinants'!$B$19:$Q$41,14,0)) -> 206012.3856 | I16: =IF(ISERROR($D16*VLOOKUP(I$4, '[4]4. Billing Determinants'!$B$19:$Q$41,14,0)), 0, $D16*VLOOKUP(I$4, '[4]4. Billing Determinants'!$B$19:$Q$41,14,0)) -> 23475.47421 | J16: =IF(ISERROR($D16*VLOOKUP(J$4, '[4]4. Billing Determinants'!$B$19:$Q$41,14,0)), 0, $D16*VLOOKUP(J$4, '[4]4. Billing Determinants'!$B$19:$Q$41,14,0)) -> 439.0887211 | K16: =IF(ISERROR($D16*VLOOKUP(K$4, '[4]4. Billing Determinants'!$B$19:$Q$41,14,0)), 0, $D16*VLOOKUP(K$4, '[4]4. Billing Determinants'!$B$19:$Q$41,14,0)) -> 2281.391241 | L16: =IF(ISERROR($D16*VLOOKUP(L$4, '[4]4. Billing Determinants'!$B$19:$Q$41,14,0)), 0, $D16*VLOOKUP(L$4, '[4]4. Billing Determinants'!$B$19:$Q$41,14,0)) -> 8515.150994 | M16: =IF(ISERROR($D16*VLOOKUP(M$4, '[4]4. Billing Determinants'!$B$19:$Q$41,14,0)), 0, $D16*VLOOKUP(M$4, '[4]4. Billing Determinants'!$B$19:$Q$41,14,0)) -> 0 | N16: =IF(ISERROR($D16*VLOOKUP(N$4, '[4]4. Billing Determinants'!$B$19:$Q$41,14,0)), 0, $D16*VLOOKUP(N$4, '[4]4. Billing Determinants'!$B$19:$Q$41,14,0)) -> 0 | O16: =IF(ISERROR($D16*VLOOKUP(O$4, '[4]4. Billing Determinants'!$B$19:$Q$41,14,0)), 0, $D16*VLOOKUP(O$4, '[4]4. Billing Determinants'!$B$19:$Q$41,14,0)) -> 0 | P16: =IF(ISERROR($D16*VLOOKUP(P$4, '[4]4. Billing Determinants'!$B$19:$Q$41,14,0)), 0, $D16*VLOOKUP(P$4, '[4]4. Billing Determinants'!$B$19:$Q$41,14,0)) -> 0 | Q16: =IF(ISERROR($D16*VLOOKUP(Q$4, '[4]4. Billing Determinants'!$B$19:$Q$41,14,0)), 0, $D16*VLOOKUP(Q$4, '[4]4. Billing Determinants'!$B$19:$Q$41,14,0)) -> 0 | R16: =IF(ISERROR($D16*VLOOKUP(R$4, '[4]4. Billing Determinants'!$B$19:$Q$41,14,0)), 0, $D16*VLOOKUP(R$4, '[4]4. Billing Determinants'!$B$19:$Q$41,14,0)) -> 0 | S16: =IF(ISERROR($D16*VLOOKUP(S$4, '[4]4. Billing Determinants'!$B$19:$Q$41,14,0)), 0, $D16*VLOOKUP(S$4, '[4]4. Billing Determinants'!$B$19:$Q$41,14,0)) -> 0 | T16: =IF(ISERROR($D16*VLOOKUP(T$4, '[4]4. Billing Determinants'!$B$19:$Q$41,14,0)), 0, $D16*VLOOKUP(T$4, '[4]4. Billing Determinants'!$B$19:$Q$41,14,0)) -> 0 | U16: =IF(ISERROR($D16*VLOOKUP(U$4, '[4]4. Billing Determinants'!$B$19:$Q$41,14,0)), 0, $D16*VLOOKUP(U$4, '[4]4. Billing Determinants'!$B$19:$Q$41,14,0)) -> 0 | V16: =IF(ISERROR($D16*VLOOKUP(V$4, '[4]4. Billing Determinants'!$B$19:$Q$41,14,0)), 0, $D16*VLOOKUP(V$4, '[4]4. Billing Determinants'!$B$19:$Q$41,14,0)) -> 0 | W16: =IF(ISERROR($D16*VLOOKUP(W$4, '[4]4. Billing Determinants'!$B$19:$Q$41,14,0)), 0, $D16*VLOOKUP(W$4, '[4]4. Billing Determinants'!$B$19:$Q$41,14,0)) -> 0 | X16: =IF(ISERROR($D16*VLOOKUP(X$4, '[4]4. Billing Determinants'!$B$19:$Q$41,14,0)), 0, $D16*VLOOKUP(X$4, '[4]4. Billing Determinants'!$B$19:$Q$41,14,0)) -> 0 | Y16: =IF(ISERROR($D16*VLOOKUP(Y$4, '[4]4. Billing Determinants'!$B$19:$Q$41,14,0)), 0, $D16*VLOOKUP(Y$4, '[4]4. Billing Determinants'!$B$19:$Q$41,14,0)) -> 0
B17: Disposition and Recovery/Refund of Regulatory Balances (2013) | C17: 1595 | D17: ='2. 2014 Continuity Schedule'!BU36 -> 214771.0405 | E17: % | F17: =IF(ISERROR($D17*VLOOKUP(F$4, '[4]4. Billing Determinants'!$B$19:$Q$41,15,0)), 0, $D17*VLOOKUP(F$4, '[4]4. Billing Determinants'!$B$19:$Q$41,15,0)) -> 70184.1581 | G17: =IF(ISERROR($D17*VLOOKUP(G$4, '[4]4. Billing Determinants'!$B$19:$Q$41,15,0)), 0, $D17*VLOOKUP(G$4, '[4]4. Billing Determinants'!$B$19:$Q$41,15,0)) -> 31352.14195 | H17: =IF(ISERROR($D17*VLOOKUP(H$4, '[4]4. Billing Determinants'!$B$19:$Q$41,15,0)), 0, $D17*VLOOKUP(H$4, '[4]4. Billing Determinants'!$B$19:$Q$41,15,0)) -> 93745.86827 | I17: =IF(ISERROR($D17*VLOOKUP(I$4, '[4]4. Billing Determinants'!$B$19:$Q$41,15,0)), 0, $D17*VLOOKUP(I$4, '[4]4. Billing Determinants'!$B$19:$Q$41,15,0)) -> 14602.36469 | J17: =IF(ISERROR($D17*VLOOKUP(J$4, '[4]4. Billing Determinants'!$B$19:$Q$41,15,0)), 0, $D17*VLOOKUP(J$4, '[4]4. Billing Determinants'!$B$19:$Q$41,15,0)) -> 279.4776504 | K17: =IF(ISERROR($D17*VLOOKUP(K$4, '[4]4. Billing Determinants'!$B$19:$Q$41,15,0)), 0, $D17*VLOOKUP(K$4, '[4]4. Billing Determinants'!$B$19:$Q$41,15,0)) -> 1026.657279 | L17: =IF(ISERROR($D17*VLOOKUP(L$4, '[4]4. Billing Determinants'!$B$19:$Q$41,15,0)), 0, $D17*VLOOKUP(L$4, '[4]4. Billing Determinants'!$B$19:$Q$41,15,0)) -> 3580.372602 | M17: =IF(ISERROR($D17*VLOOKUP(M$4, '[4]4. Billing Determinants'!$B$19:$Q$41,15,0)), 0, $D17*VLOOKUP(M$4, '[4]4. Billing Determinants'!$B$19:$Q$41,15,0)) -> 0 | N17: =IF(ISERROR($D17*VLOOKUP(N$4, '[4]4. Billing Determinants'!$B$19:$Q$41,15,0)), 0, $D17*VLOOKUP(N$4, '[4]4. Billing Determinants'!$B$19:$Q$41,15,0)) -> 0 | O17: =IF(ISERROR($D17*VLOOKUP(O$4, '[4]4. Billing Determinants'!$B$19:$Q$41,15,0)), 0, $D17*VLOOKUP(O$4, '[4]4. Billing Determinants'!$B$19:$Q$41,15,0)) -> 0 | P17: =IF(ISERROR($D17*VLOOKUP(P$4, '[4]4. Billing Determinants'!$B$19:$Q$41,15,0)), 0, $D17*VLOOKUP(P$4, '[4]4. Billing Determinants'!$B$19:$Q$41,15,0)) -> 0 | Q17: =IF(ISERROR($D17*VLOOKUP(Q$4, '[4]4. Billing Determinants'!$B$19:$Q$41,15,0)), 0, $D17*VLOOKUP(Q$4, '[4]4. Billing Determinants'!$B$19:$Q$41,15,0)) -> 0 | R17: =IF(ISERROR($D17*VLOOKUP(R$4, '[4]4. Billing Determinants'!$B$19:$Q$41,15,0)), 0, $D17*VLOOKUP(R$4, '[4]4. Billing Determinants'!$B$19:$Q$41,15,0)) -> 0 | S17: =IF(ISERROR($D17*VLOOKUP(S$4, '[4]4. Billing Determinants'!$B$19:$Q$41,15,0)), 0, $D17*VLOOKUP(S$4, '[4]4. Billing Determinants'!$B$19:$Q$41,15,0)) -> 0 | T17: =IF(ISERROR($D17*VLOOKUP(T$4, '[4]4. Billing Determinants'!$B$19:$Q$41,15,0)), 0, $D17*VLOOKUP(T$4, '[4]4. Billing Determinants'!$B$19:$Q$41,15,0)) -> 0 | U17: =IF(ISERROR($D17*VLOOKUP(U$4, '[4]4. Billing Determinants'!$B$19:$Q$41,15,0)), 0, $D17*VLOOKUP(U$4, '[4]4. Billing Determinants'!$B$19:$Q$41,15,0)) -> 0 | V17: =IF(ISERROR($D17*VLOOKUP(V$4, '[4]4. Billing Determinants'!$B$19:$Q$41,15,0)), 0, $D17*VLOOKUP(V$4, '[4]4. Billing Determinants'!$B$19:$Q$41,15,0)) -> 0 | W17: =IF(ISERROR($D17*VLOOKUP(W$4, '[4]4. Billing Determinants'!$B$19:$Q$41,15,0)), 0, $D17*VLOOKUP(W$4, '[4]4. Billing Determinants'!$B$19:$Q$41,15,0)) -> 0 | X17: =IF(ISERROR($D17*VLOOKUP(X$4, '[4]4. Billing Determinants'!$B$19:$Q$41,15,0)), 0, $D17*VLOOKUP(X$4, '[4]4. Billing Determinants'!$B$19:$Q$41,15,0)) -> 0 | Y17: =IF(ISERROR($D17*VLOOKUP(Y$4, '[4]4. Billing Determinants'!$B$19:$Q$41,15,0)), 0, $D17*VLOOKUP(Y$4, '[4]4. Billing Determinants'!$B$19:$Q$41,15,0)) -> 0
B18: Total of Group 1 Accounts (excluding 1589) | D18: =SUM(D5:D17)-D11 -> 2233690.141 | F18: =SUM(F5:F17)-F11 -> 631787.857 | G18: 288675.4579 | H18: 1121880.096 | I18: 148809.2478 | J18: 3972.319916 | K18: 12250.14049 | L18: 27212.7037 | M18: =SUM(M5:M17)-M11 -> -897.1340811 | N18: =SUM(N5:N16)-N11 -> 0 | O18: 0 | P18: 0 | Q18: 0 | R18: 0 | S18: 0 | T18: 0 | U18: 0 | V18: 0 | W18: 0 | X18: 0 | Y18: 0
B20: Other Regulatory Assets - Sub-Account - Deferred IFRS Transition Costs | C20: 1508 | D20: ='2. 2014 Continuity Schedule'!BU43 -> 108815.8678 | E20: kWh | F20: =IFERROR(IF(F$4="",0,IF($E20="kWh",VLOOKUP(F$4,'4. Billing Determinants'!$B$19:$Q$41,4,0)/'4. Billing Determinants'!$E$41*$D20,IF($E20="kW",VLOOKUP(F$4,'4. Billing Determinants'!$B$19:$Q$41,5,0)/'4. Billing Determinants'!$F$41*$D20,IF($E20="Non-RPP kWh",VLOOKUP(F$4,'4. Billing Determinants'!$B$19:$Q$41,6,0)/'4. Billing Determinants'!$G$41*$D20,IF($E20="Distribution Rev.",VLOOKUP(F$4,'4. Billing Determinants'!$B$19:$Q$41,8,0)/'4. Billing Determinants'!$I$41*$D20, VLOOKUP(F$4,'4. Billing Determinants'!$B$19:$Q$41,3,0)/'4. Billing Determinants'!$D$41*$D20))))),0) -> 30057.40424 | G20: =IFERROR(IF(G$4="",0,IF($E20="kWh",VLOOKUP(G$4,'4. Billing Determinants'!$B$19:$Q$41,4,0)/'4. Billing Determinants'!$E$41*$D20,IF($E20="kW",VLOOKUP(G$4,'4. Billing Determinants'!$B$19:$Q$41,5,0)/'4. Billing Determinants'!$F$41*$D20,IF($E20="Non-RPP kWh",VLOOKUP(G$4,'4. Billing Determinants'!$B$19:$Q$41,6,0)/'4. Billing Determinants'!$G$41*$D20,IF($E20="Distribution Rev.",VLOOKUP(G$4,'4. Billing Determinants'!$B$19:$Q$41,8,0)/'4. Billing Determinants'!$I$41*$D20, VLOOKUP(G$4,'4. Billing Determinants'!$B$19:$Q$41,3,0)/'4. Billing Determinants'!$D$41*$D20))))),0) -> 14459.60458 | H20: =IFERROR(IF(H$4="",0,IF($E20="kWh",VLOOKUP(H$4,'4. Billing Determinants'!$B$19:$Q$41,4,0)/'4. Billing Determinants'!$E$41*$D20,IF($E20="kW",VLOOKUP(H$4,'4. Billing Determinants'!$B$19:$Q$41,5,0)/'4. Billing Determinants'!$F$41*$D20,IF($E20="Non-RPP kWh",VLOOKUP(H$4,'4. Billing Determinants'!$B$19:$Q$41,6,0)/'4. Billing Determinants'!$G$41*$D20,IF($E20="Distribution Rev.",VLOOKUP(H$4,'4. Billing Determinants'!$B$19:$Q$41,8,0)/'4. Billing Determinants'!$I$41*$D20, VLOOKUP(H$4,'4. Billing Determinants'!$B$19:$Q$41,3,0)/'4. Billing Determinants'!$D$41*$D20))))),0) -> 53633.95085 | I20: =IFERROR(IF(I$4="",0,IF($E20="kWh",VLOOKUP(I$4,'4. Billing Determinants'!$B$19:$Q$41,4,0)/'4. Billing Determinants'!$E$41*$D20,IF($E20="kW",VLOOKUP(I$4,'4. Billing Determinants'!$B$19:$Q$41,5,0)/'4. Billing Determinants'!$F$41*$D20,IF($E20="Non-RPP kWh",VLOOKUP(I$4,'4. Billing Determinants'!$B$19:$Q$41,6,0)/'4. Billing Determinants'!$G$41*$D20,IF($E20="Distribution Rev.",VLOOKUP(I$4,'4. Billing Determinants'!$B$19:$Q$41,8,0)/'4. Billing Determinants'!$I$41*$D20, VLOOKUP(I$4,'4. Billing Determinants'!$B$19:$Q$41,3,0)/'4. Billing Determinants'!$D$41*$D20))))),0) -> 6982.715586 | J20: =IFERROR(IF(J$4="",0,IF($E20="kWh",VLOOKUP(J$4,'4. Billing Determinants'!$B$19:$Q$41,4,0)/'4. Billing Determinants'!$E$41*$D20,IF($E20="kW",VLOOKUP(J$4,'4. Billing Determinants'!$B$19:$Q$41,5,0)/'4. Billing Determinants'!$F$41*$D20,IF($E20="Non-RPP kWh",VLOOKUP(J$4,'4. Billing Determinants'!$B$19:$Q$41,6,0)/'4. Billing Determinants'!$G$41*$D20,IF($E20="Distribution Rev.",VLOOKUP(J$4,'4. Billing Determinants'!$B$19:$Q$41,8,0)/'4. Billing Determinants'!$I$41*$D20, VLOOKUP(J$4,'4. Billing Determinants'!$B$19:$Q$41,3,0)/'4. Billing Determinants'!$D$41*$D20))))),0) -> 236.2906925 | K20: =IFERROR(IF(K$4="",0,IF($E20="kWh",VLOOKUP(K$4,'4. Billing Determinants'!$B$19:$Q$41,4,0)/'4. Billing Determinants'!$E$41*$D20,IF($E20="kW",VLOOKUP(K$4,'4. Billing Determinants'!$B$19:$Q$41,5,0)/'4. Billing Determinants'!$F$41*$D20,IF($E20="Non-RPP kWh",VLOOKUP(K$4,'4. Billing Determinants'!$B$19:$Q$41,6,0)/'4. Billing Determinants'!$G$41*$D20,IF($E20="Distribution Rev.",VLOOKUP(K$4,'4. Billing Determinants'!$B$19:$Q$41,8,0)/'4. Billing Determinants'!$I$41*$D20, VLOOKUP(K$4,'4. Billing Determinants'!$B$19:$Q$41,3,0)/'4. Billing Determinants'!$D$41*$D20))))),0) -> 571.4442045 | L20: =IFERROR(IF(L$4="",0,IF($E20="kWh",VLOOKUP(L$4,'4. Billing Determinants'!$B$19:$Q$41,4,0)/'4. Billing Determinants'!$E$41*$D20,IF($E20="kW",VLOOKUP(L$4,'4. Billing Determinants'!$B$19:$Q$41,5,0)/'4. Billing Determinants'!$F$41*$D20,IF($E20="Non-RPP kWh",VLOOKUP(L$4,'4. Billing Determinants'!$B$19:$Q$41,6,0)/'4. Billing Determinants'!$G$41*$D20,IF($E20="Distribution Rev.",VLOOKUP(L$4,'4. Billing Determinants'!$B$19:$Q$41,8,0)/'4. Billing Determinants'!$I$41*$D20, VLOOKUP(L$4,'4. Billing Determinants'!$B$19:$Q$41,3,0)/'4. Billing Determinants'!$D$41*$D20))))),0) -> 2361.036639 | M20: =IFERROR(IF(M$4="",0,IF($E20="kWh",VLOOKUP(M$4,'4. Billing Determinants'!$B$19:$Q$41,4,0)/'4. Billing Determinants'!$E$41*$D20,IF($E20="kW",VLOOKUP(M$4,'4. Billing Determinants'!$B$19:$Q$41,5,0)/'4. Billing Determinants'!$F$41*$D20,IF($E20="Non-RPP kWh",VLOOKUP(M$4,'4. Billing Determinants'!$B$19:$Q$41,6,0)/'4. Billing Determinants'!$G$41*$D20,IF($E20="Distribution Rev.",VLOOKUP(M$4,'4. Billing Determinants'!$B$19:$Q$41,8,0)/'4. Billing Determinants'!$I$41*$D20, VLOOKUP(M$4,'4. Billing Determinants'!$B$19:$Q$41,3,0)/'4. Billing Determinants'!$D$41*$D20))))),0) -> 513.4209751 | N20: =IFERROR(IF(N$4="",0,IF($E20="kWh",VLOOKUP(N$4,'4. Billing Determinants'!$B$19:$Q$41,4,0)/'4. Billing Determinants'!$E$41*$D20,IF($E20="kW",VLOOKUP(N$4,'4. Billing Determinants'!$B$19:$Q$41,5,0)/'4. Billing Determinants'!$F$41*$D20,IF($E20="Non-RPP kWh",VLOOKUP(N$4,'4. Billing Determinants'!$B$19:$Q$41,6,0)/'4. Billing Determinants'!$G$41*$D20,IF($E20="Distribution Rev.",VLOOKUP(N$4,'4. Billing Determinants'!$B$19:$Q$41,8,0)/'4. Billing Determinants'!$I$41*$D20, VLOOKUP(N$4,'4. Billing Determinants'!$B$19:$Q$41,3,0)/'4. Billing Determinants'!$D$41*$D20))))),0) -> 0 | O20: =IFERROR(IF(O$4="",0,IF($E20="kWh",VLOOKUP(O$4,'4. Billing Determinants'!$B$19:$Q$41,4,0)/'4. Billing Determinants'!$E$41*$D20,IF($E20="kW",VLOOKUP(O$4,'4. Billing Determinants'!$B$19:$Q$41,5,0)/'4. Billing Determinants'!$F$41*$D20,IF($E20="Non-RPP kWh",VLOOKUP(O$4,'4. Billing Determinants'!$B$19:$Q$41,6,0)/'4. Billing Determinants'!$G$41*$D20,IF($E20="Distribution Rev.",VLOOKUP(O$4,'4. Billing Determinants'!$B$19:$Q$41,8,0)/'4. Billing Determinants'!$I$41*$D20, VLOOKUP(O$4,'4. Billing Determinants'!$B$19:$Q$41,3,0)/'4. Billing Determinants'!$D$41*$D20))))),0) -> 0 | P20: =IFERROR(IF(P$4="",0,IF($E20="kWh",VLOOKUP(P$4,'4. Billing Determinants'!$B$19:$Q$41,4,0)/'4. Billing Determinants'!$E$41*$D20,IF($E20="kW",VLOOKUP(P$4,'4. Billing Determinants'!$B$19:$Q$41,5,0)/'4. Billing Determinants'!$F$41*$D20,IF($E20="Non-RPP kWh",VLOOKUP(P$4,'4. Billing Determinants'!$B$19:$Q$41,6,0)/'4. Billing Determinants'!$G$41*$D20,IF($E20="Distribution Rev.",VLOOKUP(P$4,'4. Billing Determinants'!$B$19:$Q$41,8,0)/'4. Billing Determinants'!$I$41*$D20, VLOOKUP(P$4,'4. Billing Determinants'!$B$19:$Q$41,3,0)/'4. Billing Determinants'!$D$41*$D20))))),0) -> 0 | Q20: =IFERROR(IF(Q$4="",0,IF($E20="kWh",VLOOKUP(Q$4,'4. Billing Determinants'!$B$19:$Q$41,4,0)/'4. Billing Determinants'!$E$41*$D20,IF($E20="kW",VLOOKUP(Q$4,'4. Billing Determinants'!$B$19:$Q$41,5,0)/'4. Billing Determinants'!$F$41*$D20,IF($E20="Non-RPP kWh",VLOOKUP(Q$4,'4. Billing Determinants'!$B$19:$Q$41,6,0)/'4. Billing Determinants'!$G$41*$D20,IF($E20="Distribution Rev.",VLOOKUP(Q$4,'4. Billing Determinants'!$B$19:$Q$41,8,0)/'4. Billing Determinants'!$I$41*$D20, VLOOKUP(Q$4,'4. Billing Determinants'!$B$19:$Q$41,3,0)/'4. Billing Determinants'!$D$41*$D20))))),0) -> 0 | R20: =IFERROR(IF(R$4="",0,IF($E20="kWh",VLOOKUP(R$4,'4. Billing Determinants'!$B$19:$Q$41,4,0)/'4. Billing Determinants'!$E$41*$D20,IF($E20="kW",VLOOKUP(R$4,'4. Billing Determinants'!$B$19:$Q$41,5,0)/'4. Billing Determinants'!$F$41*$D20,IF($E20="Non-RPP kWh",VLOOKUP(R$4,'4. Billing Determinants'!$B$19:$Q$41,6,0)/'4. Billing Determinants'!$G$41*$D20,IF($E20="Distribution Rev.",VLOOKUP(R$4,'4. Billing Determinants'!$B$19:$Q$41,8,0)/'4. Billing Determinants'!$I$41*$D20, VLOOKUP(R$4,'4. Billing Determinants'!$B$19:$Q$41,3,0)/'4. Billing Determinants'!$D$41*$D20))))),0) -> 0 | S20: =IFERROR(IF(S$4="",0,IF($E20="kWh",VLOOKUP(S$4,'4. Billing Determinants'!$B$19:$Q$41,4,0)/'4. Billing Determinants'!$E$41*$D20,IF($E20="kW",VLOOKUP(S$4,'4. Billing Determinants'!$B$19:$Q$41,5,0)/'4. Billing Determinants'!$F$41*$D20,IF($E20="Non-RPP kWh",VLOOKUP(S$4,'4. Billing Determinants'!$B$19:$Q$41,6,0)/'4. Billing Determinants'!$G$41*$D20,IF($E20="Distribution Rev.",VLOOKUP(S$4,'4. Billing Determinants'!$B$19:$Q$41,8,0)/'4. Billing Determinants'!$I$41*$D20, VLOOKUP(S$4,'4. Billing Determinants'!$B$19:$Q$41,3,0)/'4. Billing Determinants'!$D$41*$D20))))),0) -> 0 | T20: =IFERROR(IF(T$4="",0,IF($E20="kWh",VLOOKUP(T$4,'4. Billing Determinants'!$B$19:$Q$41,4,0)/'4. Billing Determinants'!$E$41*$D20,IF($E20="kW",VLOOKUP(T$4,'4. Billing Determinants'!$B$19:$Q$41,5,0)/'4. Billing Determinants'!$F$41*$D20,IF($E20="Non-RPP kWh",VLOOKUP(T$4,'4. Billing Determinants'!$B$19:$Q$41,6,0)/'4. Billing Determinants'!$G$41*$D20,IF($E20="Distribution Rev.",VLOOKUP(T$4,'4. Billing Determinants'!$B$19:$Q$41,8,0)/'4. Billing Determinants'!$I$41*$D20, VLOOKUP(T$4,'4. Billing Determinants'!$B$19:$Q$41,3,0)/'4. Billing Determinants'!$D$41*$D20))))),0) -> 0 | U20: =IFERROR(IF(U$4="",0,IF($E20="kWh",VLOOKUP(U$4,'4. Billing Determinants'!$B$19:$Q$41,4,0)/'4. Billing Determinants'!$E$41*$D20,IF($E20="kW",VLOOKUP(U$4,'4. Billing Determinants'!$B$19:$Q$41,5,0)/'4. Billing Determinants'!$F$41*$D20,IF($E20="Non-RPP kWh",VLOOKUP(U$4,'4. Billing Determinants'!$B$19:$Q$41,6,0)/'4. Billing Determinants'!$G$41*$D20,IF($E20="Distribution Rev.",VLOOKUP(U$4,'4. Billing Determinants'!$B$19:$Q$41,8,0)/'4. Billing Determinants'!$I$41*$D20, VLOOKUP(U$4,'4. Billing Determinants'!$B$19:$Q$41,3,0)/'4. Billing Determinants'!$D$41*$D20))))),0) -> 0 | V20: =IFERROR(IF(V$4="",0,IF($E20="kWh",VLOOKUP(V$4,'4. Billing Determinants'!$B$19:$Q$41,4,0)/'4. Billing Determinants'!$E$41*$D20,IF($E20="kW",VLOOKUP(V$4,'4. Billing Determinants'!$B$19:$Q$41,5,0)/'4. Billing Determinants'!$F$41*$D20,IF($E20="Non-RPP kWh",VLOOKUP(V$4,'4. Billing Determinants'!$B$19:$Q$41,6,0)/'4. Billing Determinants'!$G$41*$D20,IF($E20="Distribution Rev.",VLOOKUP(V$4,'4. Billing Determinants'!$B$19:$Q$41,8,0)/'4. Billing Determinants'!$I$41*$D20, VLOOKUP(V$4,'4. Billing Determinants'!$B$19:$Q$41,3,0)/'4. Billing Determinants'!$D$41*$D20))))),0) -> 0 | W20: =IFERROR(IF(W$4="",0,IF($E20="kWh",VLOOKUP(W$4,'4. Billing Determinants'!$B$19:$Q$41,4,0)/'4. Billing Determinants'!$E$41*$D20,IF($E20="kW",VLOOKUP(W$4,'4. Billing Determinants'!$B$19:$Q$41,5,0)/'4. Billing Determinants'!$F$41*$D20,IF($E20="Non-RPP kWh",VLOOKUP(W$4,'4. Billing Determinants'!$B$19:$Q$41,6,0)/'4. Billing Determinants'!$G$41*$D20,IF($E20="Distribution Rev.",VLOOKUP(W$4,'4. Billing Determinants'!$B$19:$Q$41,8,0)/'4. Billing Determinants'!$I$41*$D20, VLOOKUP(W$4,'4. Billing Determinants'!$B$19:$Q$41,3,0)/'4. Billing Determinants'!$D$41*$D20))))),0) -> 0 | X20: =IFERROR(IF(X$4="",0,IF($E20="kWh",VLOOKUP(X$4,'4. Billing Determinants'!$B$19:$Q$41,4,0)/'4. Billing Determinants'!$E$41*$D20,IF($E20="kW",VLOOKUP(X$4,'4. Billing Determinants'!$B$19:$Q$41,5,0)/'4. Billing Determinants'!$F$41*$D20,IF($E20="Non-RPP kWh",VLOOKUP(X$4,'4. Billing Determinants'!$B$19:$Q$41,6,0)/'4. Billing Determinants'!$G$41*$D20,IF($E20="Distribution Rev.",VLOOKUP(X$4,'4. Billing Determinants'!$B$19:$Q$41,8,0)/'4. Billing Determinants'!$I$41*$D20, VLOOKUP(X$4,'4. Billing Determinants'!$B$19:$Q$41,3,0)/'4. Billing Determinants'!$D$41*$D20))))),0) -> 0 | Y20: =IFERROR(IF(Y$4="",0,IF($E20="kWh",VLOOKUP(Y$4,'4. Billing Determinants'!$B$19:$Q$41,4,0)/'4. Billing Determinants'!$E$41*$D20,IF($E20="kW",VLOOKUP(Y$4,'4. Billing Determinants'!$B$19:$Q$41,5,0)/'4. Billing Determinants'!$F$41*$D20,IF($E20="Non-RPP kWh",VLOOKUP(Y$4,'4. Billing Determinants'!$B$19:$Q$41,6,0)/'4. Billing Determinants'!$G$41*$D20,IF($E20="Distribution Rev.",VLOOKUP(Y$4,'4. Billing Determinants'!$B$19:$Q$41,8,0)/'4. Billing Determinants'!$I$41*$D20, VLOOKUP(Y$4,'4. Billing Determinants'!$B$19:$Q$41,3,0)/'4. Billing Determinants'!$D$41*$D20))))),0) -> 0
B21: Other Regulatory Assets - Sub-Account - Incremental Capital Charges | C21: 1508 | D21: ='2. 2014 Continuity Schedule'!BU44 -> 2738.953373 | E21: kWh | F21: =IFERROR(IF(F$4="",0,IF($E21="kWh",VLOOKUP(F$4,'4. Billing Determinants'!$B$19:$Q$41,4,0)/'4. Billing Determinants'!$E$41*$D21,IF($E21="kW",VLOOKUP(F$4,'4. Billing Determinants'!$B$19:$Q$41,5,0)/'4. Billing Determinants'!$F$41*$D21,IF($E21="Non-RPP kWh",VLOOKUP(F$4,'4. Billing Determinants'!$B$19:$Q$41,6,0)/'4. Billing Determinants'!$G$41*$D21,IF($E21="Distribution Rev.",VLOOKUP(F$4,'4. Billing Determinants'!$B$19:$Q$41,8,0)/'4. Billing Determinants'!$I$41*$D21, VLOOKUP(F$4,'4. Billing Determinants'!$B$19:$Q$41,3,0)/'4. Billing Determinants'!$D$41*$D21))))),0) -> 756.5608805 | G21: =IFERROR(IF(G$4="",0,IF($E21="kWh",VLOOKUP(G$4,'4. Billing Determinants'!$B$19:$Q$41,4,0)/'4. Billing Determinants'!$E$41*$D21,IF($E21="kW",VLOOKUP(G$4,'4. Billing Determinants'!$B$19:$Q$41,5,0)/'4. Billing Determinants'!$F$41*$D21,IF($E21="Non-RPP kWh",VLOOKUP(G$4,'4. Billing Determinants'!$B$19:$Q$41,6,0)/'4. Billing Determinants'!$G$41*$D21,IF($E21="Distribution Rev.",VLOOKUP(G$4,'4. Billing Determinants'!$B$19:$Q$41,8,0)/'4. Billing Determinants'!$I$41*$D21, VLOOKUP(G$4,'4. Billing Determinants'!$B$19:$Q$41,3,0)/'4. Billing Determinants'!$D$41*$D21))))),0) -> 363.9559519 | H21: =IFERROR(IF(H$4="",0,IF($E21="kWh",VLOOKUP(H$4,'4. Billing Determinants'!$B$19:$Q$41,4,0)/'4. Billing Determinants'!$E$41*$D21,IF($E21="kW",VLOOKUP(H$4,'4. Billing Determinants'!$B$19:$Q$41,5,0)/'4. Billing Determinants'!$F$41*$D21,IF($E21="Non-RPP kWh",VLOOKUP(H$4,'4. Billing Determinants'!$B$19:$Q$41,6,0)/'4. Billing Determinants'!$G$41*$D21,IF($E21="Distribution Rev.",VLOOKUP(H$4,'4. Billing Determinants'!$B$19:$Q$41,8,0)/'4. Billing Determinants'!$I$41*$D21, VLOOKUP(H$4,'4. Billing Determinants'!$B$19:$Q$41,3,0)/'4. Billing Determinants'!$D$41*$D21))))),0) -> 1349.995121 | I21: =IFERROR(IF(I$4="",0,IF($E21="kWh",VLOOKUP(I$4,'4. Billing Determinants'!$B$19:$Q$41,4,0)/'4. Billing Determinants'!$E$41*$D21,IF($E21="kW",VLOOKUP(I$4,'4. Billing Determinants'!$B$19:$Q$41,5,0)/'4. Billing Determinants'!$F$41*$D21,IF($E21="Non-RPP kWh",VLOOKUP(I$4,'4. Billing Determinants'!$B$19:$Q$41,6,0)/'4. Billing Determinants'!$G$41*$D21,IF($E21="Distribution Rev.",VLOOKUP(I$4,'4. Billing Determinants'!$B$19:$Q$41,8,0)/'4. Billing Determinants'!$I$41*$D21, VLOOKUP(I$4,'4. Billing Determinants'!$B$19:$Q$41,3,0)/'4. Billing Determinants'!$D$41*$D21))))),0) -> 175.7586719 | J21: =IFERROR(IF(J$4="",0,IF($E21="kWh",VLOOKUP(J$4,'4. Billing Determinants'!$B$19:$Q$41,4,0)/'4. Billing Determinants'!$E$41*$D21,IF($E21="kW",VLOOKUP(J$4,'4. Billing Determinants'!$B$19:$Q$41,5,0)/'4. Billing Determinants'!$F$41*$D21,IF($E21="Non-RPP kWh",VLOOKUP(J$4,'4. Billing Determinants'!$B$19:$Q$41,6,0)/'4. Billing Determinants'!$G$41*$D21,IF($E21="Distribution Rev.",VLOOKUP(J$4,'4. Billing Determinants'!$B$19:$Q$41,8,0)/'4. Billing Determinants'!$I$41*$D21, VLOOKUP(J$4,'4. Billing Determinants'!$B$19:$Q$41,3,0)/'4. Billing Determinants'!$D$41*$D21))))),0) -> 5.947562635 | K21: =IFERROR(IF(K$4="",0,IF($E21="kWh",VLOOKUP(K$4,'4. Billing Determinants'!$B$19:$Q$41,4,0)/'4. Billing Determinants'!$E$41*$D21,IF($E21="kW",VLOOKUP(K$4,'4. Billing Determinants'!$B$19:$Q$41,5,0)/'4. Billing Determinants'!$F$41*$D21,IF($E21="Non-RPP kWh",VLOOKUP(K$4,'4. Billing Determinants'!$B$19:$Q$41,6,0)/'4. Billing Determinants'!$G$41*$D21,IF($E21="Distribution Rev.",VLOOKUP(K$4,'4. Billing Determinants'!$B$19:$Q$41,8,0)/'4. Billing Determinants'!$I$41*$D21, VLOOKUP(K$4,'4. Billing Determinants'!$B$19:$Q$41,3,0)/'4. Billing Determinants'!$D$41*$D21))))),0) -> 14.38355511 | L21: =IFERROR(IF(L$4="",0,IF($E21="kWh",VLOOKUP(L$4,'4. Billing Determinants'!$B$19:$Q$41,4,0)/'4. Billing Determinants'!$E$41*$D21,IF($E21="kW",VLOOKUP(L$4,'4. Billing Determinants'!$B$19:$Q$41,5,0)/'4. Billing Determinants'!$F$41*$D21,IF($E21="Non-RPP kWh",VLOOKUP(L$4,'4. Billing Determinants'!$B$19:$Q$41,6,0)/'4. Billing Determinants'!$G$41*$D21,IF($E21="Distribution Rev.",VLOOKUP(L$4,'4. Billing Determinants'!$B$19:$Q$41,8,0)/'4. Billing Determinants'!$I$41*$D21, VLOOKUP(L$4,'4. Billing Determinants'!$B$19:$Q$41,3,0)/'4. Billing Determinants'!$D$41*$D21))))),0) -> 59.42855026 | M21: =IFERROR(IF(M$4="",0,IF($E21="kWh",VLOOKUP(M$4,'4. Billing Determinants'!$B$19:$Q$41,4,0)/'4. Billing Determinants'!$E$41*$D21,IF($E21="kW",VLOOKUP(M$4,'4. Billing Determinants'!$B$19:$Q$41,5,0)/'4. Billing Determinants'!$F$41*$D21,IF($E21="Non-RPP kWh",VLOOKUP(M$4,'4. Billing Determinants'!$B$19:$Q$41,6,0)/'4. Billing Determinants'!$G$41*$D21,IF($E21="Distribution Rev.",VLOOKUP(M$4,'4. Billing Determinants'!$B$19:$Q$41,8,0)/'4. Billing Determinants'!$I$41*$D21, VLOOKUP(M$4,'4. Billing Determinants'!$B$19:$Q$41,3,0)/'4. Billing Determinants'!$D$41*$D21))))),0) -> 12.92307951 | N21: =IFERROR(IF(N$4="",0,IF($E21="kWh",VLOOKUP(N$4,'4. Billing Determinants'!$B$19:$Q$41,4,0)/'4. Billing Determinants'!$E$41*$D21,IF($E21="kW",VLOOKUP(N$4,'4. Billing Determinants'!$B$19:$Q$41,5,0)/'4. Billing Determinants'!$F$41*$D21,IF($E21="Non-RPP kWh",VLOOKUP(N$4,'4. Billing Determinants'!$B$19:$Q$41,6,0)/'4. Billing Determinants'!$G$41*$D21,IF($E21="Distribution Rev.",VLOOKUP(N$4,'4. Billing Determinants'!$B$19:$Q$41,8,0)/'4. Billing Determinants'!$I$41*$D21, VLOOKUP(N$4,'4. Billing Determinants'!$B$19:$Q$41,3,0)/'4. Billing Determinants'!$D$41*$D21))))),0) -> 0 | O21: =IFERROR(IF(O$4="",0,IF($E21="kWh",VLOOKUP(O$4,'4. Billing Determinants'!$B$19:$Q$41,4,0)/'4. Billing Determinants'!$E$41*$D21,IF($E21="kW",VLOOKUP(O$4,'4. Billing Determinants'!$B$19:$Q$41,5,0)/'4. Billing Determinants'!$F$41*$D21,IF($E21="Non-RPP kWh",VLOOKUP(O$4,'4. Billing Determinants'!$B$19:$Q$41,6,0)/'4. Billing Determinants'!$G$41*$D21,IF($E21="Distribution Rev.",VLOOKUP(O$4,'4. Billing Determinants'!$B$19:$Q$41,8,0)/'4. Billing Determinants'!$I$41*$D21, VLOOKUP(O$4,'4. Billing Determinants'!$B$19:$Q$41,3,0)/'4. Billing Determinants'!$D$41*$D21))))),0) -> 0 | P21: =IFERROR(IF(P$4="",0,IF($E21="kWh",VLOOKUP(P$4,'4. Billing Determinants'!$B$19:$Q$41,4,0)/'4. Billing Determinants'!$E$41*$D21,IF($E21="kW",VLOOKUP(P$4,'4. Billing Determinants'!$B$19:$Q$41,5,0)/'4. Billing Determinants'!$F$41*$D21,IF($E21="Non-RPP kWh",VLOOKUP(P$4,'4. Billing Determinants'!$B$19:$Q$41,6,0)/'4. Billing Determinants'!$G$41*$D21,IF($E21="Distribution Rev.",VLOOKUP(P$4,'4. Billing Determinants'!$B$19:$Q$41,8,0)/'4. Billing Determinants'!$I$41*$D21, VLOOKUP(P$4,'4. Billing Determinants'!$B$19:$Q$41,3,0)/'4. Billing Determinants'!$D$41*$D21))))),0) -> 0 | Q21: =IFERROR(IF(Q$4="",0,IF($E21="kWh",VLOOKUP(Q$4,'4. Billing Determinants'!$B$19:$Q$41,4,0)/'4. Billing Determinants'!$E$41*$D21,IF($E21="kW",VLOOKUP(Q$4,'4. Billing Determinants'!$B$19:$Q$41,5,0)/'4. Billing Determinants'!$F$41*$D21,IF($E21="Non-RPP kWh",VLOOKUP(Q$4,'4. Billing Determinants'!$B$19:$Q$41,6,0)/'4. Billing Determinants'!$G$41*$D21,IF($E21="Distribution Rev.",VLOOKUP(Q$4,'4. Billing Determinants'!$B$19:$Q$41,8,0)/'4. Billing Determinants'!$I$41*$D21, VLOOKUP(Q$4,'4. Billing Determinants'!$B$19:$Q$41,3,0)/'4. Billing Determinants'!$D$41*$D21))))),0) -> 0 | R21: =IFERROR(IF(R$4="",0,IF($E21="kWh",VLOOKUP(R$4,'4. Billing Determinants'!$B$19:$Q$41,4,0)/'4. Billing Determinants'!$E$41*$D21,IF($E21="kW",VLOOKUP(R$4,'4. Billing Determinants'!$B$19:$Q$41,5,0)/'4. Billing Determinants'!$F$41*$D21,IF($E21="Non-RPP kWh",VLOOKUP(R$4,'4. Billing Determinants'!$B$19:$Q$41,6,0)/'4. Billing Determinants'!$G$41*$D21,IF($E21="Distribution Rev.",VLOOKUP(R$4,'4. Billing Determinants'!$B$19:$Q$41,8,0)/'4. Billing Determinants'!$I$41*$D21, VLOOKUP(R$4,'4. Billing Determinants'!$B$19:$Q$41,3,0)/'4. Billing Determinants'!$D$41*$D21))))),0) -> 0 | S21: =IFERROR(IF(S$4="",0,IF($E21="kWh",VLOOKUP(S$4,'4. Billing Determinants'!$B$19:$Q$41,4,0)/'4. Billing Determinants'!$E$41*$D21,IF($E21="kW",VLOOKUP(S$4,'4. Billing Determinants'!$B$19:$Q$41,5,0)/'4. Billing Determinants'!$F$41*$D21,IF($E21="Non-RPP kWh",VLOOKUP(S$4,'4. Billing Determinants'!$B$19:$Q$41,6,0)/'4. Billing Determinants'!$G$41*$D21,IF($E21="Distribution Rev.",VLOOKUP(S$4,'4. Billing Determinants'!$B$19:$Q$41,8,0)/'4. Billing Determinants'!$I$41*$D21, VLOOKUP(S$4,'4. Billing Determinants'!$B$19:$Q$41,3,0)/'4. Billing Determinants'!$D$41*$D21))))),0) -> 0 | T21: =IFERROR(IF(T$4="",0,IF($E21="kWh",VLOOKUP(T$4,'4. Billing Determinants'!$B$19:$Q$41,4,0)/'4. Billing Determinants'!$E$41*$D21,IF($E21="kW",VLOOKUP(T$4,'4. Billing Determinants'!$B$19:$Q$41,5,0)/'4. Billing Determinants'!$F$41*$D21,IF($E21="Non-RPP kWh",VLOOKUP(T$4,'4. Billing Determinants'!$B$19:$Q$41,6,0)/'4. Billing Determinants'!$G$41*$D21,IF($E21="Distribution Rev.",VLOOKUP(T$4,'4. Billing Determinants'!$B$19:$Q$41,8,0)/'4. Billing Determinants'!$I$41*$D21, VLOOKUP(T$4,'4. Billing Determinants'!$B$19:$Q$41,3,0)/'4. Billing Determinants'!$D$41*$D21))))),0) -> 0 | U21: =IFERROR(IF(U$4="",0,IF($E21="kWh",VLOOKUP(U$4,'4. Billing Determinants'!$B$19:$Q$41,4,0)/'4. Billing Determinants'!$E$41*$D21,IF($E21="kW",VLOOKUP(U$4,'4. Billing Determinants'!$B$19:$Q$41,5,0)/'4. Billing Determinants'!$F$41*$D21,IF($E21="Non-RPP kWh",VLOOKUP(U$4,'4. Billing Determinants'!$B$19:$Q$41,6,0)/'4. Billing Determinants'!$G$41*$D21,IF($E21="Distribution Rev.",VLOOKUP(U$4,'4. Billing Determinants'!$B$19:$Q$41,8,0)/'4. Billing Determinants'!$I$41*$D21, VLOOKUP(U$4,'4. Billing Determinants'!$B$19:$Q$41,3,0)/'4. Billing Determinants'!$D$41*$D21))))),0) -> 0 | V21: =IFERROR(IF(V$4="",0,IF($E21="kWh",VLOOKUP(V$4,'4. Billing Determinants'!$B$19:$Q$41,4,0)/'4. Billing Determinants'!$E$41*$D21,IF($E21="kW",VLOOKUP(V$4,'4. Billing Determinants'!$B$19:$Q$41,5,0)/'4. Billing Determinants'!$F$41*$D21,IF($E21="Non-RPP kWh",VLOOKUP(V$4,'4. Billing Determinants'!$B$19:$Q$41,6,0)/'4. Billing Determinants'!$G$41*$D21,IF($E21="Distribution Rev.",VLOOKUP(V$4,'4. Billing Determinants'!$B$19:$Q$41,8,0)/'4. Billing Determinants'!$I$41*$D21, VLOOKUP(V$4,'4. Billing Determinants'!$B$19:$Q$41,3,0)/'4. Billing Determinants'!$D$41*$D21))))),0) -> 0 | W21: =IFERROR(IF(W$4="",0,IF($E21="kWh",VLOOKUP(W$4,'4. Billing Determinants'!$B$19:$Q$41,4,0)/'4. Billing Determinants'!$E$41*$D21,IF($E21="kW",VLOOKUP(W$4,'4. Billing Determinants'!$B$19:$Q$41,5,0)/'4. Billing Determinants'!$F$41*$D21,IF($E21="Non-RPP kWh",VLOOKUP(W$4,'4. Billing Determinants'!$B$19:$Q$41,6,0)/'4. Billing Determinants'!$G$41*$D21,IF($E21="Distribution Rev.",VLOOKUP(W$4,'4. Billing Determinants'!$B$19:$Q$41,8,0)/'4. Billing Determinants'!$I$41*$D21, VLOOKUP(W$4,'4. Billing Determinants'!$B$19:$Q$41,3,0)/'4. Billing Determinants'!$D$41*$D21))))),0) -> 0 | X21: =IFERROR(IF(X$4="",0,IF($E21="kWh",VLOOKUP(X$4,'4. Billing Determinants'!$B$19:$Q$41,4,0)/'4. Billing Determinants'!$E$41*$D21,IF($E21="kW",VLOOKUP(X$4,'4. Billing Determinants'!$B$19:$Q$41,5,0)/'4. Billing Determinants'!$F$41*$D21,IF($E21="Non-RPP kWh",VLOOKUP(X$4,'4. Billing Determinants'!$B$19:$Q$41,6,0)/'4. Billing Determinants'!$G$41*$D21,IF($E21="Distribution Rev.",VLOOKUP(X$4,'4. Billing Determinants'!$B$19:$Q$41,8,0)/'4. Billing Determinants'!$I$41*$D21, VLOOKUP(X$4,'4. Billing Determinants'!$B$19:$Q$41,3,0)/'4. Billing Determinants'!$D$41*$D21))))),0) -> 0 | Y21: =IFERROR(IF(Y$4="",0,IF($E21="kWh",VLOOKUP(Y$4,'4. Billing Determinants'!$B$19:$Q$41,4,0)/'4. Billing Determinants'!$E$41*$D21,IF($E21="kW",VLOOKUP(Y$4,'4. Billing Determinants'!$B$19:$Q$41,5,0)/'4. Billing Determinants'!$F$41*$D21,IF($E21="Non-RPP kWh",VLOOKUP(Y$4,'4. Billing Determinants'!$B$19:$Q$41,6,0)/'4. Billing Determinants'!$G$41*$D21,IF($E21="Distribution Rev.",VLOOKUP(Y$4,'4. Billing Determinants'!$B$19:$Q$41,8,0)/'4. Billing Determinants'!$I$41*$D21, VLOOKUP(Y$4,'4. Billing Determinants'!$B$19:$Q$41,3,0)/'4. Billing Determinants'!$D$41*$D21))))),0) -> 0
B22: Other Regulatory Assets - Sub-Account - Financial Assistance Payment and Recovery Variance - Ontario Clean Energy Benefit Act8 | C22: 1508 | D22: ='2. 2014 Continuity Schedule'!BU45 -> 0 | F22: =IFERROR(IF(F$4="",0,IF($E22="kWh",VLOOKUP(F$4,'4. Billing Determinants'!$B$19:$Q$41,4,0)/'4. Billing Determinants'!$E$41*$D22,IF($E22="kW",VLOOKUP(F$4,'4. Billing Determinants'!$B$19:$Q$41,5,0)/'4. Billing Determinants'!$F$41*$D22,IF($E22="Non-RPP kWh",VLOOKUP(F$4,'4. Billing Determinants'!$B$19:$Q$41,6,0)/'4. Billing Determinants'!$G$41*$D22,IF($E22="Distribution Rev.",VLOOKUP(F$4,'4. Billing Determinants'!$B$19:$Q$41,8,0)/'4. Billing Determinants'!$I$41*$D22, VLOOKUP(F$4,'4. Billing Determinants'!$B$19:$Q$41,3,0)/'4. Billing Determinants'!$D$41*$D22))))),0) -> 0 | G22: =IFERROR(IF(G$4="",0,IF($E22="kWh",VLOOKUP(G$4,'4. Billing Determinants'!$B$19:$Q$41,4,0)/'4. Billing Determinants'!$E$41*$D22,IF($E22="kW",VLOOKUP(G$4,'4. Billing Determinants'!$B$19:$Q$41,5,0)/'4. Billing Determinants'!$F$41*$D22,IF($E22="Non-RPP kWh",VLOOKUP(G$4,'4. Billing Determinants'!$B$19:$Q$41,6,0)/'4. Billing Determinants'!$G$41*$D22,IF($E22="Distribution Rev.",VLOOKUP(G$4,'4. Billing Determinants'!$B$19:$Q$41,8,0)/'4. Billing Determinants'!$I$41*$D22, VLOOKUP(G$4,'4. Billing Determinants'!$B$19:$Q$41,3,0)/'4. Billing Determinants'!$D$41*$D22))))),0) -> 0 | H22: =IFERROR(IF(H$4="",0,IF($E22="kWh",VLOOKUP(H$4,'4. Billing Determinants'!$B$19:$Q$41,4,0)/'4. Billing Determinants'!$E$41*$D22,IF($E22="kW",VLOOKUP(H$4,'4. Billing Determinants'!$B$19:$Q$41,5,0)/'4. Billing Determinants'!$F$41*$D22,IF($E22="Non-RPP kWh",VLOOKUP(H$4,'4. Billing Determinants'!$B$19:$Q$41,6,0)/'4. Billing Determinants'!$G$41*$D22,IF($E22="Distribution Rev.",VLOOKUP(H$4,'4. Billing Determinants'!$B$19:$Q$41,8,0)/'4. Billing Determinants'!$I$41*$D22, VLOOKUP(H$4,'4. Billing Determinants'!$B$19:$Q$41,3,0)/'4. Billing Determinants'!$D$41*$D22))))),0) -> 0 | I22: =IFERROR(IF(I$4="",0,IF($E22="kWh",VLOOKUP(I$4,'4. Billing Determinants'!$B$19:$Q$41,4,0)/'4. Billing Determinants'!$E$41*$D22,IF($E22="kW",VLOOKUP(I$4,'4. Billing Determinants'!$B$19:$Q$41,5,0)/'4. Billing Determinants'!$F$41*$D22,IF($E22="Non-RPP kWh",VLOOKUP(I$4,'4. Billing Determinants'!$B$19:$Q$41,6,0)/'4. Billing Determinants'!$G$41*$D22,IF($E22="Distribution Rev.",VLOOKUP(I$4,'4. Billing Determinants'!$B$19:$Q$41,8,0)/'4. Billing Determinants'!$I$41*$D22, VLOOKUP(I$4,'4. Billing Determinants'!$B$19:$Q$41,3,0)/'4. Billing Determinants'!$D$41*$D22))))),0) -> 0 | J22: =IFERROR(IF(J$4="",0,IF($E22="kWh",VLOOKUP(J$4,'4. Billing Determinants'!$B$19:$Q$41,4,0)/'4. Billing Determinants'!$E$41*$D22,IF($E22="kW",VLOOKUP(J$4,'4. Billing Determinants'!$B$19:$Q$41,5,0)/'4. Billing Determinants'!$F$41*$D22,IF($E22="Non-RPP kWh",VLOOKUP(J$4,'4. Billing Determinants'!$B$19:$Q$41,6,0)/'4. Billing Determinants'!$G$41*$D22,IF($E22="Distribution Rev.",VLOOKUP(J$4,'4. Billing Determinants'!$B$19:$Q$41,8,0)/'4. Billing Determinants'!$I$41*$D22, VLOOKUP(J$4,'4. Billing Determinants'!$B$19:$Q$41,3,0)/'4. Billing Determinants'!$D$41*$D22))))),0) -> 0 | K22: =IFERROR(IF(K$4="",0,IF($E22="kWh",VLOOKUP(K$4,'4. Billing Determinants'!$B$19:$Q$41,4,0)/'4. Billing Determinants'!$E$41*$D22,IF($E22="kW",VLOOKUP(K$4,'4. Billing Determinants'!$B$19:$Q$41,5,0)/'4. Billing Determinants'!$F$41*$D22,IF($E22="Non-RPP kWh",VLOOKUP(K$4,'4. Billing Determinants'!$B$19:$Q$41,6,0)/'4. Billing Determinants'!$G$41*$D22,IF($E22="Distribution Rev.",VLOOKUP(K$4,'4. Billing Determinants'!$B$19:$Q$41,8,0)/'4. Billing Determinants'!$I$41*$D22, VLOOKUP(K$4,'4. Billing Determinants'!$B$19:$Q$41,3,0)/'4. Billing Determinants'!$D$41*$D22))))),0) -> 0 | L22: =IFERROR(IF(L$4="",0,IF($E22="kWh",VLOOKUP(L$4,'4. Billing Determinants'!$B$19:$Q$41,4,0)/'4. Billing Determinants'!$E$41*$D22,IF($E22="kW",VLOOKUP(L$4,'4. Billing Determinants'!$B$19:$Q$41,5,0)/'4. Billing Determinants'!$F$41*$D22,IF($E22="Non-RPP kWh",VLOOKUP(L$4,'4. Billing Determinants'!$B$19:$Q$41,6,0)/'4. Billing Determinants'!$G$41*$D22,IF($E22="Distribution Rev.",VLOOKUP(L$4,'4. Billing Determinants'!$B$19:$Q$41,8,0)/'4. Billing Determinants'!$I$41*$D22, VLOOKUP(L$4,'4. Billing Determinants'!$B$19:$Q$41,3,0)/'4. Billing Determinants'!$D$41*$D22))))),0) -> 0 | M22: =IFERROR(IF(M$4="",0,IF($E22="kWh",VLOOKUP(M$4,'4. Billing Determinants'!$B$19:$Q$41,4,0)/'4. Billing Determinants'!$E$41*$D22,IF($E22="kW",VLOOKUP(M$4,'4. Billing Determinants'!$B$19:$Q$41,5,0)/'4. Billing Determinants'!$F$41*$D22,IF($E22="Non-RPP kWh",VLOOKUP(M$4,'4. Billing Determinants'!$B$19:$Q$41,6,0)/'4. Billing Determinants'!$G$41*$D22,IF($E22="Distribution Rev.",VLOOKUP(M$4,'4. Billing Determinants'!$B$19:$Q$41,8,0)/'4. Billing Determinants'!$I$41*$D22, VLOOKUP(M$4,'4. Billing Determinants'!$B$19:$Q$41,3,0)/'4. Billing Determinants'!$D$41*$D22))))),0) -> 0 | N22: =IFERROR(IF(N$4="",0,IF($E22="kWh",VLOOKUP(N$4,'4. Billing Determinants'!$B$19:$Q$41,4,0)/'4. Billing Determinants'!$E$41*$D22,IF($E22="kW",VLOOKUP(N$4,'4. Billing Determinants'!$B$19:$Q$41,5,0)/'4. Billing Determinants'!$F$41*$D22,IF($E22="Non-RPP kWh",VLOOKUP(N$4,'4. Billing Determinants'!$B$19:$Q$41,6,0)/'4. Billing Determinants'!$G$41*$D22,IF($E22="Distribution Rev.",VLOOKUP(N$4,'4. Billing Determinants'!$B$19:$Q$41,8,0)/'4. Billing Determinants'!$I$41*$D22, VLOOKUP(N$4,'4. Billing Determinants'!$B$19:$Q$41,3,0)/'4. Billing Determinants'!$D$41*$D22))))),0) -> 0 | O22: =IFERROR(IF(O$4="",0,IF($E22="kWh",VLOOKUP(O$4,'4. Billing Determinants'!$B$19:$Q$41,4,0)/'4. Billing Determinants'!$E$41*$D22,IF($E22="kW",VLOOKUP(O$4,'4. Billing Determinants'!$B$19:$Q$41,5,0)/'4. Billing Determinants'!$F$41*$D22,IF($E22="Non-RPP kWh",VLOOKUP(O$4,'4. Billing Determinants'!$B$19:$Q$41,6,0)/'4. Billing Determinants'!$G$41*$D22,IF($E22="Distribution Rev.",VLOOKUP(O$4,'4. Billing Determinants'!$B$19:$Q$41,8,0)/'4. Billing Determinants'!$I$41*$D22, VLOOKUP(O$4,'4. Billing Determinants'!$B$19:$Q$41,3,0)/'4. Billing Determinants'!$D$41*$D22))))),0) -> 0 | P22: =IFERROR(IF(P$4="",0,IF($E22="kWh",VLOOKUP(P$4,'4. Billing Determinants'!$B$19:$Q$41,4,0)/'4. Billing Determinants'!$E$41*$D22,IF($E22="kW",VLOOKUP(P$4,'4. Billing Determinants'!$B$19:$Q$41,5,0)/'4. Billing Determinants'!$F$41*$D22,IF($E22="Non-RPP kWh",VLOOKUP(P$4,'4. Billing Determinants'!$B$19:$Q$41,6,0)/'4. Billing Determinants'!$G$41*$D22,IF($E22="Distribution Rev.",VLOOKUP(P$4,'4. Billing Determinants'!$B$19:$Q$41,8,0)/'4. Billing Determinants'!$I$41*$D22, VLOOKUP(P$4,'4. Billing Determinants'!$B$19:$Q$41,3,0)/'4. Billing Determinants'!$D$41*$D22))))),0) -> 0 | Q22: =IFERROR(IF(Q$4="",0,IF($E22="kWh",VLOOKUP(Q$4,'4. Billing Determinants'!$B$19:$Q$41,4,0)/'4. Billing Determinants'!$E$41*$D22,IF($E22="kW",VLOOKUP(Q$4,'4. Billing Determinants'!$B$19:$Q$41,5,0)/'4. Billing Determinants'!$F$41*$D22,IF($E22="Non-RPP kWh",VLOOKUP(Q$4,'4. Billing Determinants'!$B$19:$Q$41,6,0)/'4. Billing Determinants'!$G$41*$D22,IF($E22="Distribution Rev.",VLOOKUP(Q$4,'4. Billing Determinants'!$B$19:$Q$41,8,0)/'4. Billing Determinants'!$I$41*$D22, VLOOKUP(Q$4,'4. Billing Determinants'!$B$19:$Q$41,3,0)/'4. Billing Determinants'!$D$41*$D22))))),0) -> 0 | R22: =IFERROR(IF(R$4="",0,IF($E22="kWh",VLOOKUP(R$4,'4. Billing Determinants'!$B$19:$Q$41,4,0)/'4. Billing Determinants'!$E$41*$D22,IF($E22="kW",VLOOKUP(R$4,'4. Billing Determinants'!$B$19:$Q$41,5,0)/'4. Billing Determinants'!$F$41*$D22,IF($E22="Non-RPP kWh",VLOOKUP(R$4,'4. Billing Determinants'!$B$19:$Q$41,6,0)/'4. Billing Determinants'!$G$41*$D22,IF($E22="Distribution Rev.",VLOOKUP(R$4,'4. Billing Determinants'!$B$19:$Q$41,8,0)/'4. Billing Determinants'!$I$41*$D22, VLOOKUP(R$4,'4. Billing Determinants'!$B$19:$Q$41,3,0)/'4. Billing Determinants'!$D$41*$D22))))),0) -> 0 | S22: =IFERROR(IF(S$4="",0,IF($E22="kWh",VLOOKUP(S$4,'4. Billing Determinants'!$B$19:$Q$41,4,0)/'4. Billing Determinants'!$E$41*$D22,IF($E22="kW",VLOOKUP(S$4,'4. Billing Determinants'!$B$19:$Q$41,5,0)/'4. Billing Determinants'!$F$41*$D22,IF($E22="Non-RPP kWh",VLOOKUP(S$4,'4. Billing Determinants'!$B$19:$Q$41,6,0)/'4. Billing Determinants'!$G$41*$D22,IF($E22="Distribution Rev.",VLOOKUP(S$4,'4. Billing Determinants'!$B$19:$Q$41,8,0)/'4. Billing Determinants'!$I$41*$D22, VLOOKUP(S$4,'4. Billing Determinants'!$B$19:$Q$41,3,0)/'4. Billing Determinants'!$D$41*$D22))))),0) -> 0 | T22: =IFERROR(IF(T$4="",0,IF($E22="kWh",VLOOKUP(T$4,'4. Billing Determinants'!$B$19:$Q$41,4,0)/'4. Billing Determinants'!$E$41*$D22,IF($E22="kW",VLOOKUP(T$4,'4. Billing Determinants'!$B$19:$Q$41,5,0)/'4. Billing Determinants'!$F$41*$D22,IF($E22="Non-RPP kWh",VLOOKUP(T$4,'4. Billing Determinants'!$B$19:$Q$41,6,0)/'4. Billing Determinants'!$G$41*$D22,IF($E22="Distribution Rev.",VLOOKUP(T$4,'4. Billing Determinants'!$B$19:$Q$41,8,0)/'4. Billing Determinants'!$I$41*$D22, VLOOKUP(T$4,'4. Billing Determinants'!$B$19:$Q$41,3,0)/'4. Billing Determinants'!$D$41*$D22))))),0) -> 0 | U22: =IFERROR(IF(U$4="",0,IF($E22="kWh",VLOOKUP(U$4,'4. Billing Determinants'!$B$19:$Q$41,4,0)/'4. Billing Determinants'!$E$41*$D22,IF($E22="kW",VLOOKUP(U$4,'4. Billing Determinants'!$B$19:$Q$41,5,0)/'4. Billing Determinants'!$F$41*$D22,IF($E22="Non-RPP kWh",VLOOKUP(U$4,'4. Billing Determinants'!$B$19:$Q$41,6,0)/'4. Billing Determinants'!$G$41*$D22,IF($E22="Distribution Rev.",VLOOKUP(U$4,'4. Billing Determinants'!$B$19:$Q$41,8,0)/'4. Billing Determinants'!$I$41*$D22, VLOOKUP(U$4,'4. Billing Determinants'!$B$19:$Q$41,3,0)/'4. Billing Determinants'!$D$41*$D22))))),0) -> 0 | V22: =IFERROR(IF(V$4="",0,IF($E22="kWh",VLOOKUP(V$4,'4. Billing Determinants'!$B$19:$Q$41,4,0)/'4. Billing Determinants'!$E$41*$D22,IF($E22="kW",VLOOKUP(V$4,'4. Billing Determinants'!$B$19:$Q$41,5,0)/'4. Billing Determinants'!$F$41*$D22,IF($E22="Non-RPP kWh",VLOOKUP(V$4,'4. Billing Determinants'!$B$19:$Q$41,6,0)/'4. Billing Determinants'!$G$41*$D22,IF($E22="Distribution Rev.",VLOOKUP(V$4,'4. Billing Determinants'!$B$19:$Q$41,8,0)/'4. Billing Determinants'!$I$41*$D22, VLOOKUP(V$4,'4. Billing Determinants'!$B$19:$Q$41,3,0)/'4. Billing Determinants'!$D$41*$D22))))),0) -> 0 | W22: =IFERROR(IF(W$4="",0,IF($E22="kWh",VLOOKUP(W$4,'4. Billing Determinants'!$B$19:$Q$41,4,0)/'4. Billing Determinants'!$E$41*$D22,IF($E22="kW",VLOOKUP(W$4,'4. Billing Determinants'!$B$19:$Q$41,5,0)/'4. Billing Determinants'!$F$41*$D22,IF($E22="Non-RPP kWh",VLOOKUP(W$4,'4. Billing Determinants'!$B$19:$Q$41,6,0)/'4. Billing Determinants'!$G$41*$D22,IF($E22="Distribution Rev.",VLOOKUP(W$4,'4. Billing Determinants'!$B$19:$Q$41,8,0)/'4. Billing Determinants'!$I$41*$D22, VLOOKUP(W$4,'4. Billing Determinants'!$B$19:$Q$41,3,0)/'4. Billing Determinants'!$D$41*$D22))))),0) -> 0 | X22: =IFERROR(IF(X$4="",0,IF($E22="kWh",VLOOKUP(X$4,'4. Billing Determinants'!$B$19:$Q$41,4,0)/'4. Billing Determinants'!$E$41*$D22,IF($E22="kW",VLOOKUP(X$4,'4. Billing Determinants'!$B$19:$Q$41,5,0)/'4. Billing Determinants'!$F$41*$D22,IF($E22="Non-RPP kWh",VLOOKUP(X$4,'4. Billing Determinants'!$B$19:$Q$41,6,0)/'4. Billing Determinants'!$G$41*$D22,IF($E22="Distribution Rev.",VLOOKUP(X$4,'4. Billing Determinants'!$B$19:$Q$41,8,0)/'4. Billing Determinants'!$I$41*$D22, VLOOKUP(X$4,'4. Billing Determinants'!$B$19:$Q$41,3,0)/'4. Billing Determinants'!$D$41*$D22))))),0) -> 0 | Y22: =IFERROR(IF(Y$4="",0,IF($E22="kWh",VLOOKUP(Y$4,'4. Billing Determinants'!$B$19:$Q$41,4,0)/'4. Billing Determinants'!$E$41*$D22,IF($E22="kW",VLOOKUP(Y$4,'4. Billing Determinants'!$B$19:$Q$41,5,0)/'4. Billing Determinants'!$F$41*$D22,IF($E22="Non-RPP kWh",VLOOKUP(Y$4,'4. Billing Determinants'!$B$19:$Q$41,6,0)/'4. Billing Determinants'!$G$41*$D22,IF($E22="Distribution Rev.",VLOOKUP(Y$4,'4. Billing Determinants'!$B$19:$Q$41,8,0)/'4. Billing Determinants'!$I$41*$D22, VLOOKUP(Y$4,'4. Billing Determinants'!$B$19:$Q$41,3,0)/'4. Billing Determinants'!$D$41*$D22))))),0) -> 0
B23: Other Regulatory Assets - Sub-Account - Financial Assistance Payment and Recovery Carrying Charges | C23: 1508 | D23: ='2. 2014 Continuity Schedule'!BU46 -> 0 | F23: =IFERROR(IF(F$4="",0,IF($E23="kWh",VLOOKUP(F$4,'4. Billing Determinants'!$B$19:$Q$41,4,0)/'4. Billing Determinants'!$E$41*$D23,IF($E23="kW",VLOOKUP(F$4,'4. Billing Determinants'!$B$19:$Q$41,5,0)/'4. Billing Determinants'!$F$41*$D23,IF($E23="Non-RPP kWh",VLOOKUP(F$4,'4. Billing Determinants'!$B$19:$Q$41,6,0)/'4. Billing Determinants'!$G$41*$D23,IF($E23="Distribution Rev.",VLOOKUP(F$4,'4. Billing Determinants'!$B$19:$Q$41,8,0)/'4. Billing Determinants'!$I$41*$D23, VLOOKUP(F$4,'4. Billing Determinants'!$B$19:$Q$41,3,0)/'4. Billing Determinants'!$D$41*$D23))))),0) -> 0 | G23: =IFERROR(IF(G$4="",0,IF($E23="kWh",VLOOKUP(G$4,'4. Billing Determinants'!$B$19:$Q$41,4,0)/'4. Billing Determinants'!$E$41*$D23,IF($E23="kW",VLOOKUP(G$4,'4. Billing Determinants'!$B$19:$Q$41,5,0)/'4. Billing Determinants'!$F$41*$D23,IF($E23="Non-RPP kWh",VLOOKUP(G$4,'4. Billing Determinants'!$B$19:$Q$41,6,0)/'4. Billing Determinants'!$G$41*$D23,IF($E23="Distribution Rev.",VLOOKUP(G$4,'4. Billing Determinants'!$B$19:$Q$41,8,0)/'4. Billing Determinants'!$I$41*$D23, VLOOKUP(G$4,'4. Billing Determinants'!$B$19:$Q$41,3,0)/'4. Billing Determinants'!$D$41*$D23))))),0) -> 0 | H23: =IFERROR(IF(H$4="",0,IF($E23="kWh",VLOOKUP(H$4,'4. Billing Determinants'!$B$19:$Q$41,4,0)/'4. Billing Determinants'!$E$41*$D23,IF($E23="kW",VLOOKUP(H$4,'4. Billing Determinants'!$B$19:$Q$41,5,0)/'4. Billing Determinants'!$F$41*$D23,IF($E23="Non-RPP kWh",VLOOKUP(H$4,'4. Billing Determinants'!$B$19:$Q$41,6,0)/'4. Billing Determinants'!$G$41*$D23,IF($E23="Distribution Rev.",VLOOKUP(H$4,'4. Billing Determinants'!$B$19:$Q$41,8,0)/'4. Billing Determinants'!$I$41*$D23, VLOOKUP(H$4,'4. Billing Determinants'!$B$19:$Q$41,3,0)/'4. Billing Determinants'!$D$41*$D23))))),0) -> 0 | I23: =IFERROR(IF(I$4="",0,IF($E23="kWh",VLOOKUP(I$4,'4. Billing Determinants'!$B$19:$Q$41,4,0)/'4. Billing Determinants'!$E$41*$D23,IF($E23="kW",VLOOKUP(I$4,'4. Billing Determinants'!$B$19:$Q$41,5,0)/'4. Billing Determinants'!$F$41*$D23,IF($E23="Non-RPP kWh",VLOOKUP(I$4,'4. Billing Determinants'!$B$19:$Q$41,6,0)/'4. Billing Determinants'!$G$41*$D23,IF($E23="Distribution Rev.",VLOOKUP(I$4,'4. Billing Determinants'!$B$19:$Q$41,8,0)/'4. Billing Determinants'!$I$41*$D23, VLOOKUP(I$4,'4. Billing Determinants'!$B$19:$Q$41,3,0)/'4. Billing Determinants'!$D$41*$D23))))),0) -> 0 | J23: =IFERROR(IF(J$4="",0,IF($E23="kWh",VLOOKUP(J$4,'4. Billing Determinants'!$B$19:$Q$41,4,0)/'4. Billing Determinants'!$E$41*$D23,IF($E23="kW",VLOOKUP(J$4,'4. Billing Determinants'!$B$19:$Q$41,5,0)/'4. Billing Determinants'!$F$41*$D23,IF($E23="Non-RPP kWh",VLOOKUP(J$4,'4. Billing Determinants'!$B$19:$Q$41,6,0)/'4. Billing Determinants'!$G$41*$D23,IF($E23="Distribution Rev.",VLOOKUP(J$4,'4. Billing Determinants'!$B$19:$Q$41,8,0)/'4. Billing Determinants'!$I$41*$D23, VLOOKUP(J$4,'4. Billing Determinants'!$B$19:$Q$41,3,0)/'4. Billing Determinants'!$D$41*$D23))))),0) -> 0 | K23: =IFERROR(IF(K$4="",0,IF($E23="kWh",VLOOKUP(K$4,'4. Billing Determinants'!$B$19:$Q$41,4,0)/'4. Billing Determinants'!$E$41*$D23,IF($E23="kW",VLOOKUP(K$4,'4. Billing Determinants'!$B$19:$Q$41,5,0)/'4. Billing Determinants'!$F$41*$D23,IF($E23="Non-RPP kWh",VLOOKUP(K$4,'4. Billing Determinants'!$B$19:$Q$41,6,0)/'4. Billing Determinants'!$G$41*$D23,IF($E23="Distribution Rev.",VLOOKUP(K$4,'4. Billing Determinants'!$B$19:$Q$41,8,0)/'4. Billing Determinants'!$I$41*$D23, VLOOKUP(K$4,'4. Billing Determinants'!$B$19:$Q$41,3,0)/'4. Billing Determinants'!$D$41*$D23))))),0) -> 0 | L23: =IFERROR(IF(L$4="",0,IF($E23="kWh",VLOOKUP(L$4,'4. Billing Determinants'!$B$19:$Q$41,4,0)/'4. Billing Determinants'!$E$41*$D23,IF($E23="kW",VLOOKUP(L$4,'4. Billing Determinants'!$B$19:$Q$41,5,0)/'4. Billing Determinants'!$F$41*$D23,IF($E23="Non-RPP kWh",VLOOKUP(L$4,'4. Billing Determinants'!$B$19:$Q$41,6,0)/'4. Billing Determinants'!$G$41*$D23,IF($E23="Distribution Rev.",VLOOKUP(L$4,'4. Billing Determinants'!$B$19:$Q$41,8,0)/'4. Billing Determinants'!$I$41*$D23, VLOOKUP(L$4,'4. Billing Determinants'!$B$19:$Q$41,3,0)/'4. Billing Determinants'!$D$41*$D23))))),0) -> 0 | M23: =IFERROR(IF(M$4="",0,IF($E23="kWh",VLOOKUP(M$4,'4. Billing Determinants'!$B$19:$Q$41,4,0)/'4. Billing Determinants'!$E$41*$D23,IF($E23="kW",VLOOKUP(M$4,'4. Billing Determinants'!$B$19:$Q$41,5,0)/'4. Billing Determinants'!$F$41*$D23,IF($E23="Non-RPP kWh",VLOOKUP(M$4,'4. Billing Determinants'!$B$19:$Q$41,6,0)/'4. Billing Determinants'!$G$41*$D23,IF($E23="Distribution Rev.",VLOOKUP(M$4,'4. Billing Determinants'!$B$19:$Q$41,8,0)/'4. Billing Determinants'!$I$41*$D23, VLOOKUP(M$4,'4. Billing Determinants'!$B$19:$Q$41,3,0)/'4. Billing Determinants'!$D$41*$D23))))),0) -> 0 | N23: =IFERROR(IF(N$4="",0,IF($E23="kWh",VLOOKUP(N$4,'4. Billing Determinants'!$B$19:$Q$41,4,0)/'4. Billing Determinants'!$E$41*$D23,IF($E23="kW",VLOOKUP(N$4,'4. Billing Determinants'!$B$19:$Q$41,5,0)/'4. Billing Determinants'!$F$41*$D23,IF($E23="Non-RPP kWh",VLOOKUP(N$4,'4. Billing Determinants'!$B$19:$Q$41,6,0)/'4. Billing Determinants'!$G$41*$D23,IF($E23="Distribution Rev.",VLOOKUP(N$4,'4. Billing Determinants'!$B$19:$Q$41,8,0)/'4. Billing Determinants'!$I$41*$D23, VLOOKUP(N$4,'4. Billing Determinants'!$B$19:$Q$41,3,0)/'4. Billing Determinants'!$D$41*$D23))))),0) -> 0 | O23: =IFERROR(IF(O$4="",0,IF($E23="kWh",VLOOKUP(O$4,'4. Billing Determinants'!$B$19:$Q$41,4,0)/'4. Billing Determinants'!$E$41*$D23,IF($E23="kW",VLOOKUP(O$4,'4. Billing Determinants'!$B$19:$Q$41,5,0)/'4. Billing Determinants'!$F$41*$D23,IF($E23="Non-RPP kWh",VLOOKUP(O$4,'4. Billing Determinants'!$B$19:$Q$41,6,0)/'4. Billing Determinants'!$G$41*$D23,IF($E23="Distribution Rev.",VLOOKUP(O$4,'4. Billing Determinants'!$B$19:$Q$41,8,0)/'4. Billing Determinants'!$I$41*$D23, VLOOKUP(O$4,'4. Billing Determinants'!$B$19:$Q$41,3,0)/'4. Billing Determinants'!$D$41*$D23))))),0) -> 0 | P23: =IFERROR(IF(P$4="",0,IF($E23="kWh",VLOOKUP(P$4,'4. Billing Determinants'!$B$19:$Q$41,4,0)/'4. Billing Determinants'!$E$41*$D23,IF($E23="kW",VLOOKUP(P$4,'4. Billing Determinants'!$B$19:$Q$41,5,0)/'4. Billing Determinants'!$F$41*$D23,IF($E23="Non-RPP kWh",VLOOKUP(P$4,'4. Billing Determinants'!$B$19:$Q$41,6,0)/'4. Billing Determinants'!$G$41*$D23,IF($E23="Distribution Rev.",VLOOKUP(P$4,'4. Billing Determinants'!$B$19:$Q$41,8,0)/'4. Billing Determinants'!$I$41*$D23, VLOOKUP(P$4,'4. Billing Determinants'!$B$19:$Q$41,3,0)/'4. Billing Determinants'!$D$41*$D23))))),0) -> 0 | Q23: =IFERROR(IF(Q$4="",0,IF($E23="kWh",VLOOKUP(Q$4,'4. Billing Determinants'!$B$19:$Q$41,4,0)/'4. Billing Determinants'!$E$41*$D23,IF($E23="kW",VLOOKUP(Q$4,'4. Billing Determinants'!$B$19:$Q$41,5,0)/'4. Billing Determinants'!$F$41*$D23,IF($E23="Non-RPP kWh",VLOOKUP(Q$4,'4. Billing Determinants'!$B$19:$Q$41,6,0)/'4. Billing Determinants'!$G$41*$D23,IF($E23="Distribution Rev.",VLOOKUP(Q$4,'4. Billing Determinants'!$B$19:$Q$41,8,0)/'4. Billing Determinants'!$I$41*$D23, VLOOKUP(Q$4,'4. Billing Determinants'!$B$19:$Q$41,3,0)/'4. Billing Determinants'!$D$41*$D23))))),0) -> 0 | R23: =IFERROR(IF(R$4="",0,IF($E23="kWh",VLOOKUP(R$4,'4. Billing Determinants'!$B$19:$Q$41,4,0)/'4. Billing Determinants'!$E$41*$D23,IF($E23="kW",VLOOKUP(R$4,'4. Billing Determinants'!$B$19:$Q$41,5,0)/'4. Billing Determinants'!$F$41*$D23,IF($E23="Non-RPP kWh",VLOOKUP(R$4,'4. Billing Determinants'!$B$19:$Q$41,6,0)/'4. Billing Determinants'!$G$41*$D23,IF($E23="Distribution Rev.",VLOOKUP(R$4,'4. Billing Determinants'!$B$19:$Q$41,8,0)/'4. Billing Determinants'!$I$41*$D23, VLOOKUP(R$4,'4. Billing Determinants'!$B$19:$Q$41,3,0)/'4. Billing Determinants'!$D$41*$D23))))),0) -> 0 | S23: =IFERROR(IF(S$4="",0,IF($E23="kWh",VLOOKUP(S$4,'4. Billing Determinants'!$B$19:$Q$41,4,0)/'4. Billing Determinants'!$E$41*$D23,IF($E23="kW",VLOOKUP(S$4,'4. Billing Determinants'!$B$19:$Q$41,5,0)/'4. Billing Determinants'!$F$41*$D23,IF($E23="Non-RPP kWh",VLOOKUP(S$4,'4. Billing Determinants'!$B$19:$Q$41,6,0)/'4. Billing Determinants'!$G$41*$D23,IF($E23="Distribution Rev.",VLOOKUP(S$4,'4. Billing Determinants'!$B$19:$Q$41,8,0)/'4. Billing Determinants'!$I$41*$D23, VLOOKUP(S$4,'4. Billing Determinants'!$B$19:$Q$41,3,0)/'4. Billing Determinants'!$D$41*$D23))))),0) -> 0 | T23: =IFERROR(IF(T$4="",0,IF($E23="kWh",VLOOKUP(T$4,'4. Billing Determinants'!$B$19:$Q$41,4,0)/'4. Billing Determinants'!$E$41*$D23,IF($E23="kW",VLOOKUP(T$4,'4. Billing Determinants'!$B$19:$Q$41,5,0)/'4. Billing Determinants'!$F$41*$D23,IF($E23="Non-RPP kWh",VLOOKUP(T$4,'4. Billing Determinants'!$B$19:$Q$41,6,0)/'4. Billing Determinants'!$G$41*$D23,IF($E23="Distribution Rev.",VLOOKUP(T$4,'4. Billing Determinants'!$B$19:$Q$41,8,0)/'4. Billing Determinants'!$I$41*$D23, VLOOKUP(T$4,'4. Billing Determinants'!$B$19:$Q$41,3,0)/'4. Billing Determinants'!$D$41*$D23))))),0) -> 0 | U23: =IFERROR(IF(U$4="",0,IF($E23="kWh",VLOOKUP(U$4,'4. Billing Determinants'!$B$19:$Q$41,4,0)/'4. Billing Determinants'!$E$41*$D23,IF($E23="kW",VLOOKUP(U$4,'4. Billing Determinants'!$B$19:$Q$41,5,0)/'4. Billing Determinants'!$F$41*$D23,IF($E23="Non-RPP kWh",VLOOKUP(U$4,'4. Billing Determinants'!$B$19:$Q$41,6,0)/'4. Billing Determinants'!$G$41*$D23,IF($E23="Distribution Rev.",VLOOKUP(U$4,'4. Billing Determinants'!$B$19:$Q$41,8,0)/'4. Billing Determinants'!$I$41*$D23, VLOOKUP(U$4,'4. Billing Determinants'!$B$19:$Q$41,3,0)/'4. Billing Determinants'!$D$41*$D23))))),0) -> 0 | V23: =IFERROR(IF(V$4="",0,IF($E23="kWh",VLOOKUP(V$4,'4. Billing Determinants'!$B$19:$Q$41,4,0)/'4. Billing Determinants'!$E$41*$D23,IF($E23="kW",VLOOKUP(V$4,'4. Billing Determinants'!$B$19:$Q$41,5,0)/'4. Billing Determinants'!$F$41*$D23,IF($E23="Non-RPP kWh",VLOOKUP(V$4,'4. Billing Determinants'!$B$19:$Q$41,6,0)/'4. Billing Determinants'!$G$41*$D23,IF($E23="Distribution Rev.",VLOOKUP(V$4,'4. Billing Determinants'!$B$19:$Q$41,8,0)/'4. Billing Determinants'!$I$41*$D23, VLOOKUP(V$4,'4. Billing Determinants'!$B$19:$Q$41,3,0)/'4. Billing Determinants'!$D$41*$D23))))),0) -> 0 | W23: =IFERROR(IF(W$4="",0,IF($E23="kWh",VLOOKUP(W$4,'4. Billing Determinants'!$B$19:$Q$41,4,0)/'4. Billing Determinants'!$E$41*$D23,IF($E23="kW",VLOOKUP(W$4,'4. Billing Determinants'!$B$19:$Q$41,5,0)/'4. Billing Determinants'!$F$41*$D23,IF($E23="Non-RPP kWh",VLOOKUP(W$4,'4. Billing Determinants'!$B$19:$Q$41,6,0)/'4. Billing Determinants'!$G$41*$D23,IF($E23="Distribution Rev.",VLOOKUP(W$4,'4. Billing Determinants'!$B$19:$Q$41,8,0)/'4. Billing Determinants'!$I$41*$D23, VLOOKUP(W$4,'4. Billing Determinants'!$B$19:$Q$41,3,0)/'4. Billing Determinants'!$D$41*$D23))))),0) -> 0 | X23: =IFERROR(IF(X$4="",0,IF($E23="kWh",VLOOKUP(X$4,'4. Billing Determinants'!$B$19:$Q$41,4,0)/'4. Billing Determinants'!$E$41*$D23,IF($E23="kW",VLOOKUP(X$4,'4. Billing Determinants'!$B$19:$Q$41,5,0)/'4. Billing Determinants'!$F$41*$D23,IF($E23="Non-RPP kWh",VLOOKUP(X$4,'4. Billing Determinants'!$B$19:$Q$41,6,0)/'4. Billing Determinants'!$G$41*$D23,IF($E23="Distribution Rev.",VLOOKUP(X$4,'4. Billing Determinants'!$B$19:$Q$41,8,0)/'4. Billing Determinants'!$I$41*$D23, VLOOKUP(X$4,'4. Billing Determinants'!$B$19:$Q$41,3,0)/'4. Billing Determinants'!$D$41*$D23))))),0) -> 0 | Y23: =IFERROR(IF(Y$4="",0,IF($E23="kWh",VLOOKUP(Y$4,'4. Billing Determinants'!$B$19:$Q$41,4,0)/'4. Billing Determinants'!$E$41*$D23,IF($E23="kW",VLOOKUP(Y$4,'4. Billing Determinants'!$B$19:$Q$41,5,0)/'4. Billing Determinants'!$F$41*$D23,IF($E23="Non-RPP kWh",VLOOKUP(Y$4,'4. Billing Determinants'!$B$19:$Q$41,6,0)/'4. Billing Determinants'!$G$41*$D23,IF($E23="Distribution Rev.",VLOOKUP(Y$4,'4. Billing Determinants'!$B$19:$Q$41,8,0)/'4. Billing Determinants'!$I$41*$D23, VLOOKUP(Y$4,'4. Billing Determinants'!$B$19:$Q$41,3,0)/'4. Billing Determinants'!$D$41*$D23))))),0) -> 0
B24: Other Regulatory Assets - Sub-Account - Other 4 OMERS Difference - 2011 COS Settlement Agreement Item | C24: 1508 | D24: ='2. 2014 Continuity Schedule'!BU47 -> 74677.45 | E24: kWh | F24: =IFERROR(IF(F$4="",0,IF($E24="kWh",VLOOKUP(F$4,'4. Billing Determinants'!$B$19:$Q$41,4,0)/'4. Billing Determinants'!$E$41*$D24,IF($E24="kW",VLOOKUP(F$4,'4. Billing Determinants'!$B$19:$Q$41,5,0)/'4. Billing Determinants'!$F$41*$D24,IF($E24="Non-RPP kWh",VLOOKUP(F$4,'4. Billing Determinants'!$B$19:$Q$41,6,0)/'4. Billing Determinants'!$G$41*$D24,IF($E24="Distribution Rev.",VLOOKUP(F$4,'4. Billing Determinants'!$B$19:$Q$41,8,0)/'4. Billing Determinants'!$I$41*$D24, VLOOKUP(F$4,'4. Billing Determinants'!$B$19:$Q$41,3,0)/'4. Billing Determinants'!$D$41*$D24))))),0) -> 20627.601 | G24: =IFERROR(IF(G$4="",0,IF($E24="kWh",VLOOKUP(G$4,'4. Billing Determinants'!$B$19:$Q$41,4,0)/'4. Billing Determinants'!$E$41*$D24,IF($E24="kW",VLOOKUP(G$4,'4. Billing Determinants'!$B$19:$Q$41,5,0)/'4. Billing Determinants'!$F$41*$D24,IF($E24="Non-RPP kWh",VLOOKUP(G$4,'4. Billing Determinants'!$B$19:$Q$41,6,0)/'4. Billing Determinants'!$G$41*$D24,IF($E24="Distribution Rev.",VLOOKUP(G$4,'4. Billing Determinants'!$B$19:$Q$41,8,0)/'4. Billing Determinants'!$I$41*$D24, VLOOKUP(G$4,'4. Billing Determinants'!$B$19:$Q$41,3,0)/'4. Billing Determinants'!$D$41*$D24))))),0) -> 9923.243919 | H24: =IFERROR(IF(H$4="",0,IF($E24="kWh",VLOOKUP(H$4,'4. Billing Determinants'!$B$19:$Q$41,4,0)/'4. Billing Determinants'!$E$41*$D24,IF($E24="kW",VLOOKUP(H$4,'4. Billing Determinants'!$B$19:$Q$41,5,0)/'4. Billing Determinants'!$F$41*$D24,IF($E24="Non-RPP kWh",VLOOKUP(H$4,'4. Billing Determinants'!$B$19:$Q$41,6,0)/'4. Billing Determinants'!$G$41*$D24,IF($E24="Distribution Rev.",VLOOKUP(H$4,'4. Billing Determinants'!$B$19:$Q$41,8,0)/'4. Billing Determinants'!$I$41*$D24, VLOOKUP(H$4,'4. Billing Determinants'!$B$19:$Q$41,3,0)/'4. Billing Determinants'!$D$41*$D24))))),0) -> 36807.56093 | I24: =IFERROR(IF(I$4="",0,IF($E24="kWh",VLOOKUP(I$4,'4. Billing Determinants'!$B$19:$Q$41,4,0)/'4. Billing Determinants'!$E$41*$D24,IF($E24="kW",VLOOKUP(I$4,'4. Billing Determinants'!$B$19:$Q$41,5,0)/'4. Billing Determinants'!$F$41*$D24,IF($E24="Non-RPP kWh",VLOOKUP(I$4,'4. Billing Determinants'!$B$19:$Q$41,6,0)/'4. Billing Determinants'!$G$41*$D24,IF($E24="Distribution Rev.",VLOOKUP(I$4,'4. Billing Determinants'!$B$19:$Q$41,8,0)/'4. Billing Determinants'!$I$41*$D24, VLOOKUP(I$4,'4. Billing Determinants'!$B$19:$Q$41,3,0)/'4. Billing Determinants'!$D$41*$D24))))),0) -> 4792.052894 | J24: =IFERROR(IF(J$4="",0,IF($E24="kWh",VLOOKUP(J$4,'4. Billing Determinants'!$B$19:$Q$41,4,0)/'4. Billing Determinants'!$E$41*$D24,IF($E24="kW",VLOOKUP(J$4,'4. Billing Determinants'!$B$19:$Q$41,5,0)/'4. Billing Determinants'!$F$41*$D24,IF($E24="Non-RPP kWh",VLOOKUP(J$4,'4. Billing Determinants'!$B$19:$Q$41,6,0)/'4. Billing Determinants'!$G$41*$D24,IF($E24="Distribution Rev.",VLOOKUP(J$4,'4. Billing Determinants'!$B$19:$Q$41,8,0)/'4. Billing Determinants'!$I$41*$D24, VLOOKUP(J$4,'4. Billing Determinants'!$B$19:$Q$41,3,0)/'4. Billing Determinants'!$D$41*$D24))))),0) -> 162.1600483 | K24: =IFERROR(IF(K$4="",0,IF($E24="kWh",VLOOKUP(K$4,'4. Billing Determinants'!$B$19:$Q$41,4,0)/'4. Billing Determinants'!$E$41*$D24,IF($E24="kW",VLOOKUP(K$4,'4. Billing Determinants'!$B$19:$Q$41,5,0)/'4. Billing Determinants'!$F$41*$D24,IF($E24="Non-RPP kWh",VLOOKUP(K$4,'4. Billing Determinants'!$B$19:$Q$41,6,0)/'4. Billing Determinants'!$G$41*$D24,IF($E24="Distribution Rev.",VLOOKUP(K$4,'4. Billing Determinants'!$B$19:$Q$41,8,0)/'4. Billing Determinants'!$I$41*$D24, VLOOKUP(K$4,'4. Billing Determinants'!$B$19:$Q$41,3,0)/'4. Billing Determinants'!$D$41*$D24))))),0) -> 392.167033 | L24: =IFERROR(IF(L$4="",0,IF($E24="kWh",VLOOKUP(L$4,'4. Billing Determinants'!$B$19:$Q$41,4,0)/'4. Billing Determinants'!$E$41*$D24,IF($E24="kW",VLOOKUP(L$4,'4. Billing Determinants'!$B$19:$Q$41,5,0)/'4. Billing Determinants'!$F$41*$D24,IF($E24="Non-RPP kWh",VLOOKUP(L$4,'4. Billing Determinants'!$B$19:$Q$41,6,0)/'4. Billing Determinants'!$G$41*$D24,IF($E24="Distribution Rev.",VLOOKUP(L$4,'4. Billing Determinants'!$B$19:$Q$41,8,0)/'4. Billing Determinants'!$I$41*$D24, VLOOKUP(L$4,'4. Billing Determinants'!$B$19:$Q$41,3,0)/'4. Billing Determinants'!$D$41*$D24))))),0) -> 1620.316956 | M24: =IFERROR(IF(M$4="",0,IF($E24="kWh",VLOOKUP(M$4,'4. Billing Determinants'!$B$19:$Q$41,4,0)/'4. Billing Determinants'!$E$41*$D24,IF($E24="kW",VLOOKUP(M$4,'4. Billing Determinants'!$B$19:$Q$41,5,0)/'4. Billing Determinants'!$F$41*$D24,IF($E24="Non-RPP kWh",VLOOKUP(M$4,'4. Billing Determinants'!$B$19:$Q$41,6,0)/'4. Billing Determinants'!$G$41*$D24,IF($E24="Distribution Rev.",VLOOKUP(M$4,'4. Billing Determinants'!$B$19:$Q$41,8,0)/'4. Billing Determinants'!$I$41*$D24, VLOOKUP(M$4,'4. Billing Determinants'!$B$19:$Q$41,3,0)/'4. Billing Determinants'!$D$41*$D24))))),0) -> 352.3472264 | N24: =IFERROR(IF(N$4="",0,IF($E24="kWh",VLOOKUP(N$4,'4. Billing Determinants'!$B$19:$Q$41,4,0)/'4. Billing Determinants'!$E$41*$D24,IF($E24="kW",VLOOKUP(N$4,'4. Billing Determinants'!$B$19:$Q$41,5,0)/'4. Billing Determinants'!$F$41*$D24,IF($E24="Non-RPP kWh",VLOOKUP(N$4,'4. Billing Determinants'!$B$19:$Q$41,6,0)/'4. Billing Determinants'!$G$41*$D24,IF($E24="Distribution Rev.",VLOOKUP(N$4,'4. Billing Determinants'!$B$19:$Q$41,8,0)/'4. Billing Determinants'!$I$41*$D24, VLOOKUP(N$4,'4. Billing Determinants'!$B$19:$Q$41,3,0)/'4. Billing Determinants'!$D$41*$D24))))),0) -> 0 | O24: =IFERROR(IF(O$4="",0,IF($E24="kWh",VLOOKUP(O$4,'4. Billing Determinants'!$B$19:$Q$41,4,0)/'4. Billing Determinants'!$E$41*$D24,IF($E24="kW",VLOOKUP(O$4,'4. Billing Determinants'!$B$19:$Q$41,5,0)/'4. Billing Determinants'!$F$41*$D24,IF($E24="Non-RPP kWh",VLOOKUP(O$4,'4. Billing Determinants'!$B$19:$Q$41,6,0)/'4. Billing Determinants'!$G$41*$D24,IF($E24="Distribution Rev.",VLOOKUP(O$4,'4. Billing Determinants'!$B$19:$Q$41,8,0)/'4. Billing Determinants'!$I$41*$D24, VLOOKUP(O$4,'4. Billing Determinants'!$B$19:$Q$41,3,0)/'4. Billing Determinants'!$D$41*$D24))))),0) -> 0 | P24: =IFERROR(IF(P$4="",0,IF($E24="kWh",VLOOKUP(P$4,'4. Billing Determinants'!$B$19:$Q$41,4,0)/'4. Billing Determinants'!$E$41*$D24,IF($E24="kW",VLOOKUP(P$4,'4. Billing Determinants'!$B$19:$Q$41,5,0)/'4. Billing Determinants'!$F$41*$D24,IF($E24="Non-RPP kWh",VLOOKUP(P$4,'4. Billing Determinants'!$B$19:$Q$41,6,0)/'4. Billing Determinants'!$G$41*$D24,IF($E24="Distribution Rev.",VLOOKUP(P$4,'4. Billing Determinants'!$B$19:$Q$41,8,0)/'4. Billing Determinants'!$I$41*$D24, VLOOKUP(P$4,'4. Billing Determinants'!$B$19:$Q$41,3,0)/'4. Billing Determinants'!$D$41*$D24))))),0) -> 0 | Q24: =IFERROR(IF(Q$4="",0,IF($E24="kWh",VLOOKUP(Q$4,'4. Billing Determinants'!$B$19:$Q$41,4,0)/'4. Billing Determinants'!$E$41*$D24,IF($E24="kW",VLOOKUP(Q$4,'4. Billing Determinants'!$B$19:$Q$41,5,0)/'4. Billing Determinants'!$F$41*$D24,IF($E24="Non-RPP kWh",VLOOKUP(Q$4,'4. Billing Determinants'!$B$19:$Q$41,6,0)/'4. Billing Determinants'!$G$41*$D24,IF($E24="Distribution Rev.",VLOOKUP(Q$4,'4. Billing Determinants'!$B$19:$Q$41,8,0)/'4. Billing Determinants'!$I$41*$D24, VLOOKUP(Q$4,'4. Billing Determinants'!$B$19:$Q$41,3,0)/'4. Billing Determinants'!$D$41*$D24))))),0) -> 0 | R24: =IFERROR(IF(R$4="",0,IF($E24="kWh",VLOOKUP(R$4,'4. Billing Determinants'!$B$19:$Q$41,4,0)/'4. Billing Determinants'!$E$41*$D24,IF($E24="kW",VLOOKUP(R$4,'4. Billing Determinants'!$B$19:$Q$41,5,0)/'4. Billing Determinants'!$F$41*$D24,IF($E24="Non-RPP kWh",VLOOKUP(R$4,'4. Billing Determinants'!$B$19:$Q$41,6,0)/'4. Billing Determinants'!$G$41*$D24,IF($E24="Distribution Rev.",VLOOKUP(R$4,'4. Billing Determinants'!$B$19:$Q$41,8,0)/'4. Billing Determinants'!$I$41*$D24, VLOOKUP(R$4,'4. Billing Determinants'!$B$19:$Q$41,3,0)/'4. Billing Determinants'!$D$41*$D24))))),0) -> 0 | S24: =IFERROR(IF(S$4="",0,IF($E24="kWh",VLOOKUP(S$4,'4. Billing Determinants'!$B$19:$Q$41,4,0)/'4. Billing Determinants'!$E$41*$D24,IF($E24="kW",VLOOKUP(S$4,'4. Billing Determinants'!$B$19:$Q$41,5,0)/'4. Billing Determinants'!$F$41*$D24,IF($E24="Non-RPP kWh",VLOOKUP(S$4,'4. Billing Determinants'!$B$19:$Q$41,6,0)/'4. Billing Determinants'!$G$41*$D24,IF($E24="Distribution Rev.",VLOOKUP(S$4,'4. Billing Determinants'!$B$19:$Q$41,8,0)/'4. Billing Determinants'!$I$41*$D24, VLOOKUP(S$4,'4. Billing Determinants'!$B$19:$Q$41,3,0)/'4. Billing Determinants'!$D$41*$D24))))),0) -> 0 | T24: =IFERROR(IF(T$4="",0,IF($E24="kWh",VLOOKUP(T$4,'4. Billing Determinants'!$B$19:$Q$41,4,0)/'4. Billing Determinants'!$E$41*$D24,IF($E24="kW",VLOOKUP(T$4,'4. Billing Determinants'!$B$19:$Q$41,5,0)/'4. Billing Determinants'!$F$41*$D24,IF($E24="Non-RPP kWh",VLOOKUP(T$4,'4. Billing Determinants'!$B$19:$Q$41,6,0)/'4. Billing Determinants'!$G$41*$D24,IF($E24="Distribution Rev.",VLOOKUP(T$4,'4. Billing Determinants'!$B$19:$Q$41,8,0)/'4. Billing Determinants'!$I$41*$D24, VLOOKUP(T$4,'4. Billing Determinants'!$B$19:$Q$41,3,0)/'4. Billing Determinants'!$D$41*$D24))))),0) -> 0 | U24: =IFERROR(IF(U$4="",0,IF($E24="kWh",VLOOKUP(U$4,'4. Billing Determinants'!$B$19:$Q$41,4,0)/'4. Billing Determinants'!$E$41*$D24,IF($E24="kW",VLOOKUP(U$4,'4. Billing Determinants'!$B$19:$Q$41,5,0)/'4. Billing Determinants'!$F$41*$D24,IF($E24="Non-RPP kWh",VLOOKUP(U$4,'4. Billing Determinants'!$B$19:$Q$41,6,0)/'4. Billing Determinants'!$G$41*$D24,IF($E24="Distribution Rev.",VLOOKUP(U$4,'4. Billing Determinants'!$B$19:$Q$41,8,0)/'4. Billing Determinants'!$I$41*$D24, VLOOKUP(U$4,'4. Billing Determinants'!$B$19:$Q$41,3,0)/'4. Billing Determinants'!$D$41*$D24))))),0) -> 0 | V24: =IFERROR(IF(V$4="",0,IF($E24="kWh",VLOOKUP(V$4,'4. Billing Determinants'!$B$19:$Q$41,4,0)/'4. Billing Determinants'!$E$41*$D24,IF($E24="kW",VLOOKUP(V$4,'4. Billing Determinants'!$B$19:$Q$41,5,0)/'4. Billing Determinants'!$F$41*$D24,IF($E24="Non-RPP kWh",VLOOKUP(V$4,'4. Billing Determinants'!$B$19:$Q$41,6,0)/'4. Billing Determinants'!$G$41*$D24,IF($E24="Distribution Rev.",VLOOKUP(V$4,'4. Billing Determinants'!$B$19:$Q$41,8,0)/'4. Billing Determinants'!$I$41*$D24, VLOOKUP(V$4,'4. Billing Determinants'!$B$19:$Q$41,3,0)/'4. Billing Determinants'!$D$41*$D24))))),0) -> 0 | W24: =IFERROR(IF(W$4="",0,IF($E24="kWh",VLOOKUP(W$4,'4. Billing Determinants'!$B$19:$Q$41,4,0)/'4. Billing Determinants'!$E$41*$D24,IF($E24="kW",VLOOKUP(W$4,'4. Billing Determinants'!$B$19:$Q$41,5,0)/'4. Billing Determinants'!$F$41*$D24,IF($E24="Non-RPP kWh",VLOOKUP(W$4,'4. Billing Determinants'!$B$19:$Q$41,6,0)/'4. Billing Determinants'!$G$41*$D24,IF($E24="Distribution Rev.",VLOOKUP(W$4,'4. Billing Determinants'!$B$19:$Q$41,8,0)/'4. Billing Determinants'!$I$41*$D24, VLOOKUP(W$4,'4. Billing Determinants'!$B$19:$Q$41,3,0)/'4. Billing Determinants'!$D$41*$D24))))),0) -> 0 | X24: =IFERROR(IF(X$4="",0,IF($E24="kWh",VLOOKUP(X$4,'4. Billing Determinants'!$B$19:$Q$41,4,0)/'4. Billing Determinants'!$E$41*$D24,IF($E24="kW",VLOOKUP(X$4,'4. Billing Determinants'!$B$19:$Q$41,5,0)/'4. Billing Determinants'!$F$41*$D24,IF($E24="Non-RPP kWh",VLOOKUP(X$4,'4. Billing Determinants'!$B$19:$Q$41,6,0)/'4. Billing Determinants'!$G$41*$D24,IF($E24="Distribution Rev.",VLOOKUP(X$4,'4. Billing Determinants'!$B$19:$Q$41,8,0)/'4. Billing Determinants'!$I$41*$D24, VLOOKUP(X$4,'4. Billing Determinants'!$B$19:$Q$41,3,0)/'4. Billing Determinants'!$D$41*$D24))))),0) -> 0 | Y24: =IFERROR(IF(Y$4="",0,IF($E24="kWh",VLOOKUP(Y$4,'4. Billing Determinants'!$B$19:$Q$41,4,0)/'4. Billing Determinants'!$E$41*$D24,IF($E24="kW",VLOOKUP(Y$4,'4. Billing Determinants'!$B$19:$Q$41,5,0)/'4. Billing Determinants'!$F$41*$D24,IF($E24="Non-RPP kWh",VLOOKUP(Y$4,'4. Billing Determinants'!$B$19:$Q$41,6,0)/'4. Billing Determinants'!$G$41*$D24,IF($E24="Distribution Rev.",VLOOKUP(Y$4,'4. Billing Determinants'!$B$19:$Q$41,8,0)/'4. Billing Determinants'!$I$41*$D24, VLOOKUP(Y$4,'4. Billing Determinants'!$B$19:$Q$41,3,0)/'4. Billing Determinants'!$D$41*$D24))))),0) -> 0
B25: Other Regulatory Assets - Sub-Account - Other 4 Capital Gain Variance - 2011 COS Settlement Agreement Item | C25: 1508 | D25: ='2. 2014 Continuity Schedule'!BU48 -> 415937.4501 | E25: kWh | F25: =IFERROR(IF(F$4="",0,IF($E25="kWh",VLOOKUP(F$4,'4. Billing Determinants'!$B$19:$Q$41,4,0)/'4. Billing Determinants'!$E$41*$D25,IF($E25="kW",VLOOKUP(F$4,'4. Billing Determinants'!$B$19:$Q$41,5,0)/'4. Billing Determinants'!$F$41*$D25,IF($E25="Non-RPP kWh",VLOOKUP(F$4,'4. Billing Determinants'!$B$19:$Q$41,6,0)/'4. Billing Determinants'!$G$41*$D25,IF($E25="Distribution Rev.",VLOOKUP(F$4,'4. Billing Determinants'!$B$19:$Q$41,8,0)/'4. Billing Determinants'!$I$41*$D25, VLOOKUP(F$4,'4. Billing Determinants'!$B$19:$Q$41,3,0)/'4. Billing Determinants'!$D$41*$D25))))),0) -> 114891.3328 | G25: =IFERROR(IF(G$4="",0,IF($E25="kWh",VLOOKUP(G$4,'4. Billing Determinants'!$B$19:$Q$41,4,0)/'4. Billing Determinants'!$E$41*$D25,IF($E25="kW",VLOOKUP(G$4,'4. Billing Determinants'!$B$19:$Q$41,5,0)/'4. Billing Determinants'!$F$41*$D25,IF($E25="Non-RPP kWh",VLOOKUP(G$4,'4. Billing Determinants'!$B$19:$Q$41,6,0)/'4. Billing Determinants'!$G$41*$D25,IF($E25="Distribution Rev.",VLOOKUP(G$4,'4. Billing Determinants'!$B$19:$Q$41,8,0)/'4. Billing Determinants'!$I$41*$D25, VLOOKUP(G$4,'4. Billing Determinants'!$B$19:$Q$41,3,0)/'4. Billing Determinants'!$D$41*$D25))))),0) -> 55270.34965 | H25: =IFERROR(IF(H$4="",0,IF($E25="kWh",VLOOKUP(H$4,'4. Billing Determinants'!$B$19:$Q$41,4,0)/'4. Billing Determinants'!$E$41*$D25,IF($E25="kW",VLOOKUP(H$4,'4. Billing Determinants'!$B$19:$Q$41,5,0)/'4. Billing Determinants'!$F$41*$D25,IF($E25="Non-RPP kWh",VLOOKUP(H$4,'4. Billing Determinants'!$B$19:$Q$41,6,0)/'4. Billing Determinants'!$G$41*$D25,IF($E25="Distribution Rev.",VLOOKUP(H$4,'4. Billing Determinants'!$B$19:$Q$41,8,0)/'4. Billing Determinants'!$I$41*$D25, VLOOKUP(H$4,'4. Billing Determinants'!$B$19:$Q$41,3,0)/'4. Billing Determinants'!$D$41*$D25))))),0) -> 205010.2546 | I25: =IFERROR(IF(I$4="",0,IF($E25="kWh",VLOOKUP(I$4,'4. Billing Determinants'!$B$19:$Q$41,4,0)/'4. Billing Determinants'!$E$41*$D25,IF($E25="kW",VLOOKUP(I$4,'4. Billing Determinants'!$B$19:$Q$41,5,0)/'4. Billing Determinants'!$F$41*$D25,IF($E25="Non-RPP kWh",VLOOKUP(I$4,'4. Billing Determinants'!$B$19:$Q$41,6,0)/'4. Billing Determinants'!$G$41*$D25,IF($E25="Distribution Rev.",VLOOKUP(I$4,'4. Billing Determinants'!$B$19:$Q$41,8,0)/'4. Billing Determinants'!$I$41*$D25, VLOOKUP(I$4,'4. Billing Determinants'!$B$19:$Q$41,3,0)/'4. Billing Determinants'!$D$41*$D25))))),0) -> 26690.71134 | J25: =IFERROR(IF(J$4="",0,IF($E25="kWh",VLOOKUP(J$4,'4. Billing Determinants'!$B$19:$Q$41,4,0)/'4. Billing Determinants'!$E$41*$D25,IF($E25="kW",VLOOKUP(J$4,'4. Billing Determinants'!$B$19:$Q$41,5,0)/'4. Billing Determinants'!$F$41*$D25,IF($E25="Non-RPP kWh",VLOOKUP(J$4,'4. Billing Determinants'!$B$19:$Q$41,6,0)/'4. Billing Determinants'!$G$41*$D25,IF($E25="Distribution Rev.",VLOOKUP(J$4,'4. Billing Determinants'!$B$19:$Q$41,8,0)/'4. Billing Determinants'!$I$41*$D25, VLOOKUP(J$4,'4. Billing Determinants'!$B$19:$Q$41,3,0)/'4. Billing Determinants'!$D$41*$D25))))),0) -> 903.1968421 | K25: =IFERROR(IF(K$4="",0,IF($E25="kWh",VLOOKUP(K$4,'4. Billing Determinants'!$B$19:$Q$41,4,0)/'4. Billing Determinants'!$E$41*$D25,IF($E25="kW",VLOOKUP(K$4,'4. Billing Determinants'!$B$19:$Q$41,5,0)/'4. Billing Determinants'!$F$41*$D25,IF($E25="Non-RPP kWh",VLOOKUP(K$4,'4. Billing Determinants'!$B$19:$Q$41,6,0)/'4. Billing Determinants'!$G$41*$D25,IF($E25="Distribution Rev.",VLOOKUP(K$4,'4. Billing Determinants'!$B$19:$Q$41,8,0)/'4. Billing Determinants'!$I$41*$D25, VLOOKUP(K$4,'4. Billing Determinants'!$B$19:$Q$41,3,0)/'4. Billing Determinants'!$D$41*$D25))))),0) -> 2184.286632 | L25: =IFERROR(IF(L$4="",0,IF($E25="kWh",VLOOKUP(L$4,'4. Billing Determinants'!$B$19:$Q$41,4,0)/'4. Billing Determinants'!$E$41*$D25,IF($E25="kW",VLOOKUP(L$4,'4. Billing Determinants'!$B$19:$Q$41,5,0)/'4. Billing Determinants'!$F$41*$D25,IF($E25="Non-RPP kWh",VLOOKUP(L$4,'4. Billing Determinants'!$B$19:$Q$41,6,0)/'4. Billing Determinants'!$G$41*$D25,IF($E25="Distribution Rev.",VLOOKUP(L$4,'4. Billing Determinants'!$B$19:$Q$41,8,0)/'4. Billing Determinants'!$I$41*$D25, VLOOKUP(L$4,'4. Billing Determinants'!$B$19:$Q$41,3,0)/'4. Billing Determinants'!$D$41*$D25))))),0) -> 9024.819446 | M25: =IFERROR(IF(M$4="",0,IF($E25="kWh",VLOOKUP(M$4,'4. Billing Determinants'!$B$19:$Q$41,4,0)/'4. Billing Determinants'!$E$41*$D25,IF($E25="kW",VLOOKUP(M$4,'4. Billing Determinants'!$B$19:$Q$41,5,0)/'4. Billing Determinants'!$F$41*$D25,IF($E25="Non-RPP kWh",VLOOKUP(M$4,'4. Billing Determinants'!$B$19:$Q$41,6,0)/'4. Billing Determinants'!$G$41*$D25,IF($E25="Distribution Rev.",VLOOKUP(M$4,'4. Billing Determinants'!$B$19:$Q$41,8,0)/'4. Billing Determinants'!$I$41*$D25, VLOOKUP(M$4,'4. Billing Determinants'!$B$19:$Q$41,3,0)/'4. Billing Determinants'!$D$41*$D25))))),0) -> 1962.498812
B26: Retail Cost Variance Account - Retail | C26: 1518 | D26: ='2. 2014 Continuity Schedule'!BU49 -> -137901.8698 | E26: # of Customers | F26: =IFERROR(IF(F$4="",0,IF($E26="kWh",VLOOKUP(F$4,'4. Billing Determinants'!$B$19:$Q$41,4,0)/'4. Billing Determinants'!$E$41*$D26,IF($E26="kW",VLOOKUP(F$4,'4. Billing Determinants'!$B$19:$Q$41,5,0)/'4. Billing Determinants'!$F$41*$D26,IF($E26="Non-RPP kWh",VLOOKUP(F$4,'4. Billing Determinants'!$B$19:$Q$41,6,0)/'4. Billing Determinants'!$G$41*$D26,IF($E26="Distribution Rev.",VLOOKUP(F$4,'4. Billing Determinants'!$B$19:$Q$41,8,0)/'4. Billing Determinants'!$I$41*$D26, VLOOKUP(F$4,'4. Billing Determinants'!$B$19:$Q$41,3,0)/'4. Billing Determinants'!$D$41*$D26))))),0) -> -122170.0451 | G26: =IFERROR(IF(G$4="",0,IF($E26="kWh",VLOOKUP(G$4,'4. Billing Determinants'!$B$19:$Q$41,4,0)/'4. Billing Determinants'!$E$41*$D26,IF($E26="kW",VLOOKUP(G$4,'4. Billing Determinants'!$B$19:$Q$41,5,0)/'4. Billing Determinants'!$F$41*$D26,IF($E26="Non-RPP kWh",VLOOKUP(G$4,'4. Billing Determinants'!$B$19:$Q$41,6,0)/'4. Billing Determinants'!$G$41*$D26,IF($E26="Distribution Rev.",VLOOKUP(G$4,'4. Billing Determinants'!$B$19:$Q$41,8,0)/'4. Billing Determinants'!$I$41*$D26, VLOOKUP(G$4,'4. Billing Determinants'!$B$19:$Q$41,3,0)/'4. Billing Determinants'!$D$41*$D26))))),0) -> -13955.21132 | H26: =IFERROR(IF(H$4="",0,IF($E26="kWh",VLOOKUP(H$4,'4. Billing Determinants'!$B$19:$Q$41,4,0)/'4. Billing Determinants'!$E$41*$D26,IF($E26="kW",VLOOKUP(H$4,'4. Billing Determinants'!$B$19:$Q$41,5,0)/'4. Billing Determinants'!$F$41*$D26,IF($E26="Non-RPP kWh",VLOOKUP(H$4,'4. Billing Determinants'!$B$19:$Q$41,6,0)/'4. Billing Determinants'!$G$41*$D26,IF($E26="Distribution Rev.",VLOOKUP(H$4,'4. Billing Determinants'!$B$19:$Q$41,8,0)/'4. Billing Determinants'!$I$41*$D26, VLOOKUP(H$4,'4. Billing Determinants'!$B$19:$Q$41,3,0)/'4. Billing Determinants'!$D$41*$D26))))),0) -> -1717.145143 | I26: =IFERROR(IF(I$4="",0,IF($E26="kWh",VLOOKUP(I$4,'4. Billing Determinants'!$B$19:$Q$41,4,0)/'4. Billing Determinants'!$E$41*$D26,IF($E26="kW",VLOOKUP(I$4,'4. Billing Determinants'!$B$19:$Q$41,5,0)/'4. Billing Determinants'!$F$41*$D26,IF($E26="Non-RPP kWh",VLOOKUP(I$4,'4. Billing Determinants'!$B$19:$Q$41,6,0)/'4. Billing Determinants'!$G$41*$D26,IF($E26="Distribution Rev.",VLOOKUP(I$4,'4. Billing Determinants'!$B$19:$Q$41,8,0)/'4. Billing Determinants'!$I$41*$D26, VLOOKUP(I$4,'4. Billing Determinants'!$B$19:$Q$41,3,0)/'4. Billing Determinants'!$D$41*$D26))))),0) -> -2.477842919 | J26: =IFERROR(IF(J$4="",0,IF($E26="kWh",VLOOKUP(J$4,'4. Billing Determinants'!$B$19:$Q$41,4,0)/'4. Billing Determinants'!$E$41*$D26,IF($E26="kW",VLOOKUP(J$4,'4. Billing Determinants'!$B$19:$Q$41,5,0)/'4. Billing Determinants'!$F$41*$D26,IF($E26="Non-RPP kWh",VLOOKUP(J$4,'4. Billing Determinants'!$B$19:$Q$41,6,0)/'4. Billing Determinants'!$G$41*$D26,IF($E26="Distribution Rev.",VLOOKUP(J$4,'4. Billing Determinants'!$B$19:$Q$41,8,0)/'4. Billing Determinants'!$I$41*$D26, VLOOKUP(J$4,'4. Billing Determinants'!$B$19:$Q$41,3,0)/'4. Billing Determinants'!$D$41*$D26))))),0) -> -34.68980086 | K26: =IFERROR(IF(K$4="",0,IF($E26="kWh",VLOOKUP(K$4,'4. Billing Determinants'!$B$19:$Q$41,4,0)/'4. Billing Determinants'!$E$41*$D26,IF($E26="kW",VLOOKUP(K$4,'4. Billing Determinants'!$B$19:$Q$41,5,0)/'4. Billing Determinants'!$F$41*$D26,IF($E26="Non-RPP kWh",VLOOKUP(K$4,'4. Billing Determinants'!$B$19:$Q$41,6,0)/'4. Billing Determinants'!$G$41*$D26,IF($E26="Distribution Rev.",VLOOKUP(K$4,'4. Billing Determinants'!$B$19:$Q$41,8,0)/'4. Billing Determinants'!$I$41*$D26, VLOOKUP(K$4,'4. Billing Determinants'!$B$19:$Q$41,3,0)/'4. Billing Determinants'!$D$41*$D26))))),0) -> -14.86705751 | L26: =IFERROR(IF(L$4="",0,IF($E26="kWh",VLOOKUP(L$4,'4. Billing Determinants'!$B$19:$Q$41,4,0)/'4. Billing Determinants'!$E$41*$D26,IF($E26="kW",VLOOKUP(L$4,'4. Billing Determinants'!$B$19:$Q$41,5,0)/'4. Billing Determinants'!$F$41*$D26,IF($E26="Non-RPP kWh",VLOOKUP(L$4,'4. Billing Determinants'!$B$19:$Q$41,6,0)/'4. Billing Determinants'!$G$41*$D26,IF($E26="Distribution Rev.",VLOOKUP(L$4,'4. Billing Determinants'!$B$19:$Q$41,8,0)/'4. Billing Determinants'!$I$41*$D26, VLOOKUP(L$4,'4. Billing Determinants'!$B$19:$Q$41,3,0)/'4. Billing Determinants'!$D$41*$D26))))),0) -> -2.477842919 | M26: =IFERROR(IF(M$4="",0,IF($E26="kWh",VLOOKUP(M$4,'4. Billing Determinants'!$B$19:$Q$41,4,0)/'4. Billing Determinants'!$E$41*$D26,IF($E26="kW",VLOOKUP(M$4,'4. Billing Determinants'!$B$19:$Q$41,5,0)/'4. Billing Determinants'!$F$41*$D26,IF($E26="Non-RPP kWh",VLOOKUP(M$4,'4. Billing Determinants'!$B$19:$Q$41,6,0)/'4. Billing Determinants'!$G$41*$D26,IF($E26="Distribution Rev.",VLOOKUP(M$4,'4. Billing Determinants'!$B$19:$Q$41,8,0)/'4. Billing Determinants'!$I$41*$D26, VLOOKUP(M$4,'4. Billing Determinants'!$B$19:$Q$41,3,0)/'4. Billing Determinants'!$D$41*$D26))))),0) -> -4.955685837 | N26: =IFERROR(IF(N$4="",0,IF($E26="kWh",VLOOKUP(N$4,'4. Billing Determinants'!$B$19:$Q$41,4,0)/'4. Billing Determinants'!$E$41*$D26,IF($E26="kW",VLOOKUP(N$4,'4. Billing Determinants'!$B$19:$Q$41,5,0)/'4. Billing Determinants'!$F$41*$D26,IF($E26="Non-RPP kWh",VLOOKUP(N$4,'4. Billing Determinants'!$B$19:$Q$41,6,0)/'4. Billing Determinants'!$G$41*$D26,IF($E26="Distribution Rev.",VLOOKUP(N$4,'4. Billing Determinants'!$B$19:$Q$41,8,0)/'4. Billing Determinants'!$I$41*$D26, VLOOKUP(N$4,'4. Billing Determinants'!$B$19:$Q$41,3,0)/'4. Billing Determinants'!$D$41*$D26))))),0) -> 0 | O26: =IFERROR(IF(O$4="",0,IF($E26="kWh",VLOOKUP(O$4,'4. Billing Determinants'!$B$19:$Q$41,4,0)/'4. Billing Determinants'!$E$41*$D26,IF($E26="kW",VLOOKUP(O$4,'4. Billing Determinants'!$B$19:$Q$41,5,0)/'4. Billing Determinants'!$F$41*$D26,IF($E26="Non-RPP kWh",VLOOKUP(O$4,'4. Billing Determinants'!$B$19:$Q$41,6,0)/'4. Billing Determinants'!$G$41*$D26,IF($E26="Distribution Rev.",VLOOKUP(O$4,'4. Billing Determinants'!$B$19:$Q$41,8,0)/'4. Billing Determinants'!$I$41*$D26, VLOOKUP(O$4,'4. Billing Determinants'!$B$19:$Q$41,3,0)/'4. Billing Determinants'!$D$41*$D26))))),0) -> 0 | P26: =IFERROR(IF(P$4="",0,IF($E26="kWh",VLOOKUP(P$4,'4. Billing Determinants'!$B$19:$Q$41,4,0)/'4. Billing Determinants'!$E$41*$D26,IF($E26="kW",VLOOKUP(P$4,'4. Billing Determinants'!$B$19:$Q$41,5,0)/'4. Billing Determinants'!$F$41*$D26,IF($E26="Non-RPP kWh",VLOOKUP(P$4,'4. Billing Determinants'!$B$19:$Q$41,6,0)/'4. Billing Determinants'!$G$41*$D26,IF($E26="Distribution Rev.",VLOOKUP(P$4,'4. Billing Determinants'!$B$19:$Q$41,8,0)/'4. Billing Determinants'!$I$41*$D26, VLOOKUP(P$4,'4. Billing Determinants'!$B$19:$Q$41,3,0)/'4. Billing Determinants'!$D$41*$D26))))),0) -> 0 | Q26: =IFERROR(IF(Q$4="",0,IF($E26="kWh",VLOOKUP(Q$4,'4. Billing Determinants'!$B$19:$Q$41,4,0)/'4. Billing Determinants'!$E$41*$D26,IF($E26="kW",VLOOKUP(Q$4,'4. Billing Determinants'!$B$19:$Q$41,5,0)/'4. Billing Determinants'!$F$41*$D26,IF($E26="Non-RPP kWh",VLOOKUP(Q$4,'4. Billing Determinants'!$B$19:$Q$41,6,0)/'4. Billing Determinants'!$G$41*$D26,IF($E26="Distribution Rev.",VLOOKUP(Q$4,'4. Billing Determinants'!$B$19:$Q$41,8,0)/'4. Billing Determinants'!$I$41*$D26, VLOOKUP(Q$4,'4. Billing Determinants'!$B$19:$Q$41,3,0)/'4. Billing Determinants'!$D$41*$D26))))),0) -> 0 | R26: =IFERROR(IF(R$4="",0,IF($E26="kWh",VLOOKUP(R$4,'4. Billing Determinants'!$B$19:$Q$41,4,0)/'4. Billing Determinants'!$E$41*$D26,IF($E26="kW",VLOOKUP(R$4,'4. Billing Determinants'!$B$19:$Q$41,5,0)/'4. Billing Determinants'!$F$41*$D26,IF($E26="Non-RPP kWh",VLOOKUP(R$4,'4. Billing Determinants'!$B$19:$Q$41,6,0)/'4. Billing Determinants'!$G$41*$D26,IF($E26="Distribution Rev.",VLOOKUP(R$4,'4. Billing Determinants'!$B$19:$Q$41,8,0)/'4. Billing Determinants'!$I$41*$D26, VLOOKUP(R$4,'4. Billing Determinants'!$B$19:$Q$41,3,0)/'4. Billing Determinants'!$D$41*$D26))))),0) -> 0 | S26: =IFERROR(IF(S$4="",0,IF($E26="kWh",VLOOKUP(S$4,'4. Billing Determinants'!$B$19:$Q$41,4,0)/'4. Billing Determinants'!$E$41*$D26,IF($E26="kW",VLOOKUP(S$4,'4. Billing Determinants'!$B$19:$Q$41,5,0)/'4. Billing Determinants'!$F$41*$D26,IF($E26="Non-RPP kWh",VLOOKUP(S$4,'4. Billing Determinants'!$B$19:$Q$41,6,0)/'4. Billing Determinants'!$G$41*$D26,IF($E26="Distribution Rev.",VLOOKUP(S$4,'4. Billing Determinants'!$B$19:$Q$41,8,0)/'4. Billing Determinants'!$I$41*$D26, VLOOKUP(S$4,'4. Billing Determinants'!$B$19:$Q$41,3,0)/'4. Billing Determinants'!$D$41*$D26))))),0) -> 0 | T26: =IFERROR(IF(T$4="",0,IF($E26="kWh",VLOOKUP(T$4,'4. Billing Determinants'!$B$19:$Q$41,4,0)/'4. Billing Determinants'!$E$41*$D26,IF($E26="kW",VLOOKUP(T$4,'4. Billing Determinants'!$B$19:$Q$41,5,0)/'4. Billing Determinants'!$F$41*$D26,IF($E26="Non-RPP kWh",VLOOKUP(T$4,'4. Billing Determinants'!$B$19:$Q$41,6,0)/'4. Billing Determinants'!$G$41*$D26,IF($E26="Distribution Rev.",VLOOKUP(T$4,'4. Billing Determinants'!$B$19:$Q$41,8,0)/'4. Billing Determinants'!$I$41*$D26, VLOOKUP(T$4,'4. Billing Determinants'!$B$19:$Q$41,3,0)/'4. Billing Determinants'!$D$41*$D26))))),0) -> 0 | U26: =IFERROR(IF(U$4="",0,IF($E26="kWh",VLOOKUP(U$4,'4. Billing Determinants'!$B$19:$Q$41,4,0)/'4. Billing Determinants'!$E$41*$D26,IF($E26="kW",VLOOKUP(U$4,'4. Billing Determinants'!$B$19:$Q$41,5,0)/'4. Billing Determinants'!$F$41*$D26,IF($E26="Non-RPP kWh",VLOOKUP(U$4,'4. Billing Determinants'!$B$19:$Q$41,6,0)/'4. Billing Determinants'!$G$41*$D26,IF($E26="Distribution Rev.",VLOOKUP(U$4,'4. Billing Determinants'!$B$19:$Q$41,8,0)/'4. Billing Determinants'!$I$41*$D26, VLOOKUP(U$4,'4. Billing Determinants'!$B$19:$Q$41,3,0)/'4. Billing Determinants'!$D$41*$D26))))),0) -> 0 | V26: =IFERROR(IF(V$4="",0,IF($E26="kWh",VLOOKUP(V$4,'4. Billing Determinants'!$B$19:$Q$41,4,0)/'4. Billing Determinants'!$E$41*$D26,IF($E26="kW",VLOOKUP(V$4,'4. Billing Determinants'!$B$19:$Q$41,5,0)/'4. Billing Determinants'!$F$41*$D26,IF($E26="Non-RPP kWh",VLOOKUP(V$4,'4. Billing Determinants'!$B$19:$Q$41,6,0)/'4. Billing Determinants'!$G$41*$D26,IF($E26="Distribution Rev.",VLOOKUP(V$4,'4. Billing Determinants'!$B$19:$Q$41,8,0)/'4. Billing Determinants'!$I$41*$D26, VLOOKUP(V$4,'4. Billing Determinants'!$B$19:$Q$41,3,0)/'4. Billing Determinants'!$D$41*$D26))))),0) -> 0 | W26: =IFERROR(IF(W$4="",0,IF($E26="kWh",VLOOKUP(W$4,'4. Billing Determinants'!$B$19:$Q$41,4,0)/'4. Billing Determinants'!$E$41*$D26,IF($E26="kW",VLOOKUP(W$4,'4. Billing Determinants'!$B$19:$Q$41,5,0)/'4. Billing Determinants'!$F$41*$D26,IF($E26="Non-RPP kWh",VLOOKUP(W$4,'4. Billing Determinants'!$B$19:$Q$41,6,0)/'4. Billing Determinants'!$G$41*$D26,IF($E26="Distribution Rev.",VLOOKUP(W$4,'4. Billing Determinants'!$B$19:$Q$41,8,0)/'4. Billing Determinants'!$I$41*$D26, VLOOKUP(W$4,'4. Billing Determinants'!$B$19:$Q$41,3,0)/'4. Billing Determinants'!$D$41*$D26))))),0) -> 0 | X26: =IFERROR(IF(X$4="",0,IF($E26="kWh",VLOOKUP(X$4,'4. Billing Determinants'!$B$19:$Q$41,4,0)/'4. Billing Determinants'!$E$41*$D26,IF($E26="kW",VLOOKUP(X$4,'4. Billing Determinants'!$B$19:$Q$41,5,0)/'4. Billing Determinants'!$F$41*$D26,IF($E26="Non-RPP kWh",VLOOKUP(X$4,'4. Billing Determinants'!$B$19:$Q$41,6,0)/'4. Billing Determinants'!$G$41*$D26,IF($E26="Distribution Rev.",VLOOKUP(X$4,'4. Billing Determinants'!$B$19:$Q$41,8,0)/'4. Billing Determinants'!$I$41*$D26, VLOOKUP(X$4,'4. Billing Determinants'!$B$19:$Q$41,3,0)/'4. Billing Determinants'!$D$41*$D26))))),0) -> 0 | Y26: =IFERROR(IF(Y$4="",0,IF($E26="kWh",VLOOKUP(Y$4,'4. Billing Determinants'!$B$19:$Q$41,4,0)/'4. Billing Determinants'!$E$41*$D26,IF($E26="kW",VLOOKUP(Y$4,'4. Billing Determinants'!$B$19:$Q$41,5,0)/'4. Billing Determinants'!$F$41*$D26,IF($E26="Non-RPP kWh",VLOOKUP(Y$4,'4. Billing Determinants'!$B$19:$Q$41,6,0)/'4. Billing Determinants'!$G$41*$D26,IF($E26="Distribution Rev.",VLOOKUP(Y$4,'4. Billing Determinants'!$B$19:$Q$41,8,0)/'4. Billing Determinants'!$I$41*$D26, VLOOKUP(Y$4,'4. Billing Determinants'!$B$19:$Q$41,3,0)/'4. Billing Determinants'!$D$41*$D26))))),0) -> 0
B27: Misc. Deferred Debits | C27: 1525 | D27: 0 | F27: =IFERROR(IF(F$4="",0,IF($E27="kWh",VLOOKUP(F$4,'4. Billing Determinants'!$B$19:$Q$41,4,0)/'4. Billing Determinants'!$E$41*$D27,IF($E27="kW",VLOOKUP(F$4,'4. Billing Determinants'!$B$19:$Q$41,5,0)/'4. Billing Determinants'!$F$41*$D27,IF($E27="Non-RPP kWh",VLOOKUP(F$4,'4. Billing Determinants'!$B$19:$Q$41,6,0)/'4. Billing Determinants'!$G$41*$D27,IF($E27="Distribution Rev.",VLOOKUP(F$4,'4. Billing Determinants'!$B$19:$Q$41,8,0)/'4. Billing Determinants'!$I$41*$D27, VLOOKUP(F$4,'4. Billing Determinants'!$B$19:$Q$41,3,0)/'4. Billing Determinants'!$D$41*$D27))))),0) -> 0 | G27: =IFERROR(IF(G$4="",0,IF($E27="kWh",VLOOKUP(G$4,'4. Billing Determinants'!$B$19:$Q$41,4,0)/'4. Billing Determinants'!$E$41*$D27,IF($E27="kW",VLOOKUP(G$4,'4. Billing Determinants'!$B$19:$Q$41,5,0)/'4. Billing Determinants'!$F$41*$D27,IF($E27="Non-RPP kWh",VLOOKUP(G$4,'4. Billing Determinants'!$B$19:$Q$41,6,0)/'4. Billing Determinants'!$G$41*$D27,IF($E27="Distribution Rev.",VLOOKUP(G$4,'4. Billing Determinants'!$B$19:$Q$41,8,0)/'4. Billing Determinants'!$I$41*$D27, VLOOKUP(G$4,'4. Billing Determinants'!$B$19:$Q$41,3,0)/'4. Billing Determinants'!$D$41*$D27))))),0) -> 0 | H27: =IFERROR(IF(H$4="",0,IF($E27="kWh",VLOOKUP(H$4,'4. Billing Determinants'!$B$19:$Q$41,4,0)/'4. Billing Determinants'!$E$41*$D27,IF($E27="kW",VLOOKUP(H$4,'4. Billing Determinants'!$B$19:$Q$41,5,0)/'4. Billing Determinants'!$F$41*$D27,IF($E27="Non-RPP kWh",VLOOKUP(H$4,'4. Billing Determinants'!$B$19:$Q$41,6,0)/'4. Billing Determinants'!$G$41*$D27,IF($E27="Distribution Rev.",VLOOKUP(H$4,'4. Billing Determinants'!$B$19:$Q$41,8,0)/'4. Billing Determinants'!$I$41*$D27, VLOOKUP(H$4,'4. Billing Determinants'!$B$19:$Q$41,3,0)/'4. Billing Determinants'!$D$41*$D27))))),0) -> 0 | I27: =IFERROR(IF(I$4="",0,IF($E27="kWh",VLOOKUP(I$4,'4. Billing Determinants'!$B$19:$Q$41,4,0)/'4. Billing Determinants'!$E$41*$D27,IF($E27="kW",VLOOKUP(I$4,'4. Billing Determinants'!$B$19:$Q$41,5,0)/'4. Billing Determinants'!$F$41*$D27,IF($E27="Non-RPP kWh",VLOOKUP(I$4,'4. Billing Determinants'!$B$19:$Q$41,6,0)/'4. Billing Determinants'!$G$41*$D27,IF($E27="Distribution Rev.",VLOOKUP(I$4,'4. Billing Determinants'!$B$19:$Q$41,8,0)/'4. Billing Determinants'!$I$41*$D27, VLOOKUP(I$4,'4. Billing Determinants'!$B$19:$Q$41,3,0)/'4. Billing Determinants'!$D$41*$D27))))),0) -> 0 | J27: =IFERROR(IF(J$4="",0,IF($E27="kWh",VLOOKUP(J$4,'4. Billing Determinants'!$B$19:$Q$41,4,0)/'4. Billing Determinants'!$E$41*$D27,IF($E27="kW",VLOOKUP(J$4,'4. Billing Determinants'!$B$19:$Q$41,5,0)/'4. Billing Determinants'!$F$41*$D27,IF($E27="Non-RPP kWh",VLOOKUP(J$4,'4. Billing Determinants'!$B$19:$Q$41,6,0)/'4. Billing Determinants'!$G$41*$D27,IF($E27="Distribution Rev.",VLOOKUP(J$4,'4. Billing Determinants'!$B$19:$Q$41,8,0)/'4. Billing Determinants'!$I$41*$D27, VLOOKUP(J$4,'4. Billing Determinants'!$B$19:$Q$41,3,0)/'4. Billing Determinants'!$D$41*$D27))))),0) -> 0 | K27: =IFERROR(IF(K$4="",0,IF($E27="kWh",VLOOKUP(K$4,'4. Billing Determinants'!$B$19:$Q$41,4,0)/'4. Billing Determinants'!$E$41*$D27,IF($E27="kW",VLOOKUP(K$4,'4. Billing Determinants'!$B$19:$Q$41,5,0)/'4. Billing Determinants'!$F$41*$D27,IF($E27="Non-RPP kWh",VLOOKUP(K$4,'4. Billing Determinants'!$B$19:$Q$41,6,0)/'4. Billing Determinants'!$G$41*$D27,IF($E27="Distribution Rev.",VLOOKUP(K$4,'4. Billing Determinants'!$B$19:$Q$41,8,0)/'4. Billing Determinants'!$I$41*$D27, VLOOKUP(K$4,'4. Billing Determinants'!$B$19:$Q$41,3,0)/'4. Billing Determinants'!$D$41*$D27))))),0) -> 0 | L27: =IFERROR(IF(L$4="",0,IF($E27="kWh",VLOOKUP(L$4,'4. Billing Determinants'!$B$19:$Q$41,4,0)/'4. Billing Determinants'!$E$41*$D27,IF($E27="kW",VLOOKUP(L$4,'4. Billing Determinants'!$B$19:$Q$41,5,0)/'4. Billing Determinants'!$F$41*$D27,IF($E27="Non-RPP kWh",VLOOKUP(L$4,'4. Billing Determinants'!$B$19:$Q$41,6,0)/'4. Billing Determinants'!$G$41*$D27,IF($E27="Distribution Rev.",VLOOKUP(L$4,'4. Billing Determinants'!$B$19:$Q$41,8,0)/'4. Billing Determinants'!$I$41*$D27, VLOOKUP(L$4,'4. Billing Determinants'!$B$19:$Q$41,3,0)/'4. Billing Determinants'!$D$41*$D27))))),0) -> 0 | M27: =IFERROR(IF(M$4="",0,IF($E27="kWh",VLOOKUP(M$4,'4. Billing Determinants'!$B$19:$Q$41,4,0)/'4. Billing Determinants'!$E$41*$D27,IF($E27="kW",VLOOKUP(M$4,'4. Billing Determinants'!$B$19:$Q$41,5,0)/'4. Billing Determinants'!$F$41*$D27,IF($E27="Non-RPP kWh",VLOOKUP(M$4,'4. Billing Determinants'!$B$19:$Q$41,6,0)/'4. Billing Determinants'!$G$41*$D27,IF($E27="Distribution Rev.",VLOOKUP(M$4,'4. Billing Determinants'!$B$19:$Q$41,8,0)/'4. Billing Determinants'!$I$41*$D27, VLOOKUP(M$4,'4. Billing Determinants'!$B$19:$Q$41,3,0)/'4. Billing Determinants'!$D$41*$D27))))),0) -> 0 | N27: =IFERROR(IF(N$4="",0,IF($E27="kWh",VLOOKUP(N$4,'4. Billing Determinants'!$B$19:$Q$41,4,0)/'4. Billing Determinants'!$E$41*$D27,IF($E27="kW",VLOOKUP(N$4,'4. Billing Determinants'!$B$19:$Q$41,5,0)/'4. Billing Determinants'!$F$41*$D27,IF($E27="Non-RPP kWh",VLOOKUP(N$4,'4. Billing Determinants'!$B$19:$Q$41,6,0)/'4. Billing Determinants'!$G$41*$D27,IF($E27="Distribution Rev.",VLOOKUP(N$4,'4. Billing Determinants'!$B$19:$Q$41,8,0)/'4. Billing Determinants'!$I$41*$D27, VLOOKUP(N$4,'4. Billing Determinants'!$B$19:$Q$41,3,0)/'4. Billing Determinants'!$D$41*$D27))))),0) -> 0 | O27: =IFERROR(IF(O$4="",0,IF($E27="kWh",VLOOKUP(O$4,'4. Billing Determinants'!$B$19:$Q$41,4,0)/'4. Billing Determinants'!$E$41*$D27,IF($E27="kW",VLOOKUP(O$4,'4. Billing Determinants'!$B$19:$Q$41,5,0)/'4. Billing Determinants'!$F$41*$D27,IF($E27="Non-RPP kWh",VLOOKUP(O$4,'4. Billing Determinants'!$B$19:$Q$41,6,0)/'4. Billing Determinants'!$G$41*$D27,IF($E27="Distribution Rev.",VLOOKUP(O$4,'4. Billing Determinants'!$B$19:$Q$41,8,0)/'4. Billing Determinants'!$I$41*$D27, VLOOKUP(O$4,'4. Billing Determinants'!$B$19:$Q$41,3,0)/'4. Billing Determinants'!$D$41*$D27))))),0) -> 0 | P27: =IFERROR(IF(P$4="",0,IF($E27="kWh",VLOOKUP(P$4,'4. Billing Determinants'!$B$19:$Q$41,4,0)/'4. Billing Determinants'!$E$41*$D27,IF($E27="kW",VLOOKUP(P$4,'4. Billing Determinants'!$B$19:$Q$41,5,0)/'4. Billing Determinants'!$F$41*$D27,IF($E27="Non-RPP kWh",VLOOKUP(P$4,'4. Billing Determinants'!$B$19:$Q$41,6,0)/'4. Billing Determinants'!$G$41*$D27,IF($E27="Distribution Rev.",VLOOKUP(P$4,'4. Billing Determinants'!$B$19:$Q$41,8,0)/'4. Billing Determinants'!$I$41*$D27, VLOOKUP(P$4,'4. Billing Determinants'!$B$19:$Q$41,3,0)/'4. Billing Determinants'!$D$41*$D27))))),0) -> 0 | Q27: =IFERROR(IF(Q$4="",0,IF($E27="kWh",VLOOKUP(Q$4,'4. Billing Determinants'!$B$19:$Q$41,4,0)/'4. Billing Determinants'!$E$41*$D27,IF($E27="kW",VLOOKUP(Q$4,'4. Billing Determinants'!$B$19:$Q$41,5,0)/'4. Billing Determinants'!$F$41*$D27,IF($E27="Non-RPP kWh",VLOOKUP(Q$4,'4. Billing Determinants'!$B$19:$Q$41,6,0)/'4. Billing Determinants'!$G$41*$D27,IF($E27="Distribution Rev.",VLOOKUP(Q$4,'4. Billing Determinants'!$B$19:$Q$41,8,0)/'4. Billing Determinants'!$I$41*$D27, VLOOKUP(Q$4,'4. Billing Determinants'!$B$19:$Q$41,3,0)/'4. Billing Determinants'!$D$41*$D27))))),0) -> 0 | R27: =IFERROR(IF(R$4="",0,IF($E27="kWh",VLOOKUP(R$4,'4. Billing Determinants'!$B$19:$Q$41,4,0)/'4. Billing Determinants'!$E$41*$D27,IF($E27="kW",VLOOKUP(R$4,'4. Billing Determinants'!$B$19:$Q$41,5,0)/'4. Billing Determinants'!$F$41*$D27,IF($E27="Non-RPP kWh",VLOOKUP(R$4,'4. Billing Determinants'!$B$19:$Q$41,6,0)/'4. Billing Determinants'!$G$41*$D27,IF($E27="Distribution Rev.",VLOOKUP(R$4,'4. Billing Determinants'!$B$19:$Q$41,8,0)/'4. Billing Determinants'!$I$41*$D27, VLOOKUP(R$4,'4. Billing Determinants'!$B$19:$Q$41,3,0)/'4. Billing Determinants'!$D$41*$D27))))),0) -> 0 | S27: =IFERROR(IF(S$4="",0,IF($E27="kWh",VLOOKUP(S$4,'4. Billing Determinants'!$B$19:$Q$41,4,0)/'4. Billing Determinants'!$E$41*$D27,IF($E27="kW",VLOOKUP(S$4,'4. Billing Determinants'!$B$19:$Q$41,5,0)/'4. Billing Determinants'!$F$41*$D27,IF($E27="Non-RPP kWh",VLOOKUP(S$4,'4. Billing Determinants'!$B$19:$Q$41,6,0)/'4. Billing Determinants'!$G$41*$D27,IF($E27="Distribution Rev.",VLOOKUP(S$4,'4. Billing Determinants'!$B$19:$Q$41,8,0)/'4. Billing Determinants'!$I$41*$D27, VLOOKUP(S$4,'4. Billing Determinants'!$B$19:$Q$41,3,0)/'4. Billing Determinants'!$D$41*$D27))))),0) -> 0 | T27: =IFERROR(IF(T$4="",0,IF($E27="kWh",VLOOKUP(T$4,'4. Billing Determinants'!$B$19:$Q$41,4,0)/'4. Billing Determinants'!$E$41*$D27,IF($E27="kW",VLOOKUP(T$4,'4. Billing Determinants'!$B$19:$Q$41,5,0)/'4. Billing Determinants'!$F$41*$D27,IF($E27="Non-RPP kWh",VLOOKUP(T$4,'4. Billing Determinants'!$B$19:$Q$41,6,0)/'4. Billing Determinants'!$G$41*$D27,IF($E27="Distribution Rev.",VLOOKUP(T$4,'4. Billing Determinants'!$B$19:$Q$41,8,0)/'4. Billing Determinants'!$I$41*$D27, VLOOKUP(T$4,'4. Billing Determinants'!$B$19:$Q$41,3,0)/'4. Billing Determinants'!$D$41*$D27))))),0) -> 0 | U27: =IFERROR(IF(U$4="",0,IF($E27="kWh",VLOOKUP(U$4,'4. Billing Determinants'!$B$19:$Q$41,4,0)/'4. Billing Determinants'!$E$41*$D27,IF($E27="kW",VLOOKUP(U$4,'4. Billing Determinants'!$B$19:$Q$41,5,0)/'4. Billing Determinants'!$F$41*$D27,IF($E27="Non-RPP kWh",VLOOKUP(U$4,'4. Billing Determinants'!$B$19:$Q$41,6,0)/'4. Billing Determinants'!$G$41*$D27,IF($E27="Distribution Rev.",VLOOKUP(U$4,'4. Billing Determinants'!$B$19:$Q$41,8,0)/'4. Billing Determinants'!$I$41*$D27, VLOOKUP(U$4,'4. Billing Determinants'!$B$19:$Q$41,3,0)/'4. Billing Determinants'!$D$41*$D27))))),0) -> 0 | V27: =IFERROR(IF(V$4="",0,IF($E27="kWh",VLOOKUP(V$4,'4. Billing Determinants'!$B$19:$Q$41,4,0)/'4. Billing Determinants'!$E$41*$D27,IF($E27="kW",VLOOKUP(V$4,'4. Billing Determinants'!$B$19:$Q$41,5,0)/'4. Billing Determinants'!$F$41*$D27,IF($E27="Non-RPP kWh",VLOOKUP(V$4,'4. Billing Determinants'!$B$19:$Q$41,6,0)/'4. Billing Determinants'!$G$41*$D27,IF($E27="Distribution Rev.",VLOOKUP(V$4,'4. Billing Determinants'!$B$19:$Q$41,8,0)/'4. Billing Determinants'!$I$41*$D27, VLOOKUP(V$4,'4. Billing Determinants'!$B$19:$Q$41,3,0)/'4. Billing Determinants'!$D$41*$D27))))),0) -> 0 | W27: =IFERROR(IF(W$4="",0,IF($E27="kWh",VLOOKUP(W$4,'4. Billing Determinants'!$B$19:$Q$41,4,0)/'4. Billing Determinants'!$E$41*$D27,IF($E27="kW",VLOOKUP(W$4,'4. Billing Determinants'!$B$19:$Q$41,5,0)/'4. Billing Determinants'!$F$41*$D27,IF($E27="Non-RPP kWh",VLOOKUP(W$4,'4. Billing Determinants'!$B$19:$Q$41,6,0)/'4. Billing Determinants'!$G$41*$D27,IF($E27="Distribution Rev.",VLOOKUP(W$4,'4. Billing Determinants'!$B$19:$Q$41,8,0)/'4. Billing Determinants'!$I$41*$D27, VLOOKUP(W$4,'4. Billing Determinants'!$B$19:$Q$41,3,0)/'4. Billing Determinants'!$D$41*$D27))))),0) -> 0 | X27: =IFERROR(IF(X$4="",0,IF($E27="kWh",VLOOKUP(X$4,'4. Billing Determinants'!$B$19:$Q$41,4,0)/'4. Billing Determinants'!$E$41*$D27,IF($E27="kW",VLOOKUP(X$4,'4. Billing Determinants'!$B$19:$Q$41,5,0)/'4. Billing Determinants'!$F$41*$D27,IF($E27="Non-RPP kWh",VLOOKUP(X$4,'4. Billing Determinants'!$B$19:$Q$41,6,0)/'4. Billing Determinants'!$G$41*$D27,IF($E27="Distribution Rev.",VLOOKUP(X$4,'4. Billing Determinants'!$B$19:$Q$41,8,0)/'4. Billing Determinants'!$I$41*$D27, VLOOKUP(X$4,'4. Billing Determinants'!$B$19:$Q$41,3,0)/'4. Billing Determinants'!$D$41*$D27))))),0) -> 0 | Y27: =IFERROR(IF(Y$4="",0,IF($E27="kWh",VLOOKUP(Y$4,'4. Billing Determinants'!$B$19:$Q$41,4,0)/'4. Billing Determinants'!$E$41*$D27,IF($E27="kW",VLOOKUP(Y$4,'4. Billing Determinants'!$B$19:$Q$41,5,0)/'4. Billing Determinants'!$F$41*$D27,IF($E27="Non-RPP kWh",VLOOKUP(Y$4,'4. Billing Determinants'!$B$19:$Q$41,6,0)/'4. Billing Determinants'!$G$41*$D27,IF($E27="Distribution Rev.",VLOOKUP(Y$4,'4. Billing Determinants'!$B$19:$Q$41,8,0)/'4. Billing Determinants'!$I$41*$D27, VLOOKUP(Y$4,'4. Billing Determinants'!$B$19:$Q$41,3,0)/'4. Billing Determinants'!$D$41*$D27))))),0) -> 0
B28: Renewable Generation Connection Capital Deferral Account | C28: 1531 | D28: ='2. 2014 Continuity Schedule'!BU51 -> 0 | F28: =IFERROR(IF(F$4="",0,IF($E28="kWh",VLOOKUP(F$4,'4. Billing Determinants'!$B$19:$Q$41,4,0)/'4. Billing Determinants'!$E$41*$D28,IF($E28="kW",VLOOKUP(F$4,'4. Billing Determinants'!$B$19:$Q$41,5,0)/'4. Billing Determinants'!$F$41*$D28,IF($E28="Non-RPP kWh",VLOOKUP(F$4,'4. Billing Determinants'!$B$19:$Q$41,6,0)/'4. Billing Determinants'!$G$41*$D28,IF($E28="Distribution Rev.",VLOOKUP(F$4,'4. Billing Determinants'!$B$19:$Q$41,8,0)/'4. Billing Determinants'!$I$41*$D28, VLOOKUP(F$4,'4. Billing Determinants'!$B$19:$Q$41,3,0)/'4. Billing Determinants'!$D$41*$D28))))),0) -> 0 | G28: =IFERROR(IF(G$4="",0,IF($E28="kWh",VLOOKUP(G$4,'4. Billing Determinants'!$B$19:$Q$41,4,0)/'4. Billing Determinants'!$E$41*$D28,IF($E28="kW",VLOOKUP(G$4,'4. Billing Determinants'!$B$19:$Q$41,5,0)/'4. Billing Determinants'!$F$41*$D28,IF($E28="Non-RPP kWh",VLOOKUP(G$4,'4. Billing Determinants'!$B$19:$Q$41,6,0)/'4. Billing Determinants'!$G$41*$D28,IF($E28="Distribution Rev.",VLOOKUP(G$4,'4. Billing Determinants'!$B$19:$Q$41,8,0)/'4. Billing Determinants'!$I$41*$D28, VLOOKUP(G$4,'4. Billing Determinants'!$B$19:$Q$41,3,0)/'4. Billing Determinants'!$D$41*$D28))))),0) -> 0 | H28: =IFERROR(IF(H$4="",0,IF($E28="kWh",VLOOKUP(H$4,'4. Billing Determinants'!$B$19:$Q$41,4,0)/'4. Billing Determinants'!$E$41*$D28,IF($E28="kW",VLOOKUP(H$4,'4. Billing Determinants'!$B$19:$Q$41,5,0)/'4. Billing Determinants'!$F$41*$D28,IF($E28="Non-RPP kWh",VLOOKUP(H$4,'4. Billing Determinants'!$B$19:$Q$41,6,0)/'4. Billing Determinants'!$G$41*$D28,IF($E28="Distribution Rev.",VLOOKUP(H$4,'4. Billing Determinants'!$B$19:$Q$41,8,0)/'4. Billing Determinants'!$I$41*$D28, VLOOKUP(H$4,'4. Billing Determinants'!$B$19:$Q$41,3,0)/'4. Billing Determinants'!$D$41*$D28))))),0) -> 0 | I28: =IFERROR(IF(I$4="",0,IF($E28="kWh",VLOOKUP(I$4,'4. Billing Determinants'!$B$19:$Q$41,4,0)/'4. Billing Determinants'!$E$41*$D28,IF($E28="kW",VLOOKUP(I$4,'4. Billing Determinants'!$B$19:$Q$41,5,0)/'4. Billing Determinants'!$F$41*$D28,IF($E28="Non-RPP kWh",VLOOKUP(I$4,'4. Billing Determinants'!$B$19:$Q$41,6,0)/'4. Billing Determinants'!$G$41*$D28,IF($E28="Distribution Rev.",VLOOKUP(I$4,'4. Billing Determinants'!$B$19:$Q$41,8,0)/'4. Billing Determinants'!$I$41*$D28, VLOOKUP(I$4,'4. Billing Determinants'!$B$19:$Q$41,3,0)/'4. Billing Determinants'!$D$41*$D28))))),0) -> 0 | J28: =IFERROR(IF(J$4="",0,IF($E28="kWh",VLOOKUP(J$4,'4. Billing Determinants'!$B$19:$Q$41,4,0)/'4. Billing Determinants'!$E$41*$D28,IF($E28="kW",VLOOKUP(J$4,'4. Billing Determinants'!$B$19:$Q$41,5,0)/'4. Billing Determinants'!$F$41*$D28,IF($E28="Non-RPP kWh",VLOOKUP(J$4,'4. Billing Determinants'!$B$19:$Q$41,6,0)/'4. Billing Determinants'!$G$41*$D28,IF($E28="Distribution Rev.",VLOOKUP(J$4,'4. Billing Determinants'!$B$19:$Q$41,8,0)/'4. Billing Determinants'!$I$41*$D28, VLOOKUP(J$4,'4. Billing Determinants'!$B$19:$Q$41,3,0)/'4. Billing Determinants'!$D$41*$D28))))),0) -> 0 | K28: =IFERROR(IF(K$4="",0,IF($E28="kWh",VLOOKUP(K$4,'4. Billing Determinants'!$B$19:$Q$41,4,0)/'4. Billing Determinants'!$E$41*$D28,IF($E28="kW",VLOOKUP(K$4,'4. Billing Determinants'!$B$19:$Q$41,5,0)/'4. Billing Determinants'!$F$41*$D28,IF($E28="Non-RPP kWh",VLOOKUP(K$4,'4. Billing Determinants'!$B$19:$Q$41,6,0)/'4. Billing Determinants'!$G$41*$D28,IF($E28="Distribution Rev.",VLOOKUP(K$4,'4. Billing Determinants'!$B$19:$Q$41,8,0)/'4. Billing Determinants'!$I$41*$D28, VLOOKUP(K$4,'4. Billing Determinants'!$B$19:$Q$41,3,0)/'4. Billing Determinants'!$D$41*$D28))))),0) -> 0 | L28: =IFERROR(IF(L$4="",0,IF($E28="kWh",VLOOKUP(L$4,'4. Billing Determinants'!$B$19:$Q$41,4,0)/'4. Billing Determinants'!$E$41*$D28,IF($E28="kW",VLOOKUP(L$4,'4. Billing Determinants'!$B$19:$Q$41,5,0)/'4. Billing Determinants'!$F$41*$D28,IF($E28="Non-RPP kWh",VLOOKUP(L$4,'4. Billing Determinants'!$B$19:$Q$41,6,0)/'4. Billing Determinants'!$G$41*$D28,IF($E28="Distribution Rev.",VLOOKUP(L$4,'4. Billing Determinants'!$B$19:$Q$41,8,0)/'4. Billing Determinants'!$I$41*$D28, VLOOKUP(L$4,'4. Billing Determinants'!$B$19:$Q$41,3,0)/'4. Billing Determinants'!$D$41*$D28))))),0) -> 0 | M28: =IFERROR(IF(M$4="",0,IF($E28="kWh",VLOOKUP(M$4,'4. Billing Determinants'!$B$19:$Q$41,4,0)/'4. Billing Determinants'!$E$41*$D28,IF($E28="kW",VLOOKUP(M$4,'4. Billing Determinants'!$B$19:$Q$41,5,0)/'4. Billing Determinants'!$F$41*$D28,IF($E28="Non-RPP kWh",VLOOKUP(M$4,'4. Billing Determinants'!$B$19:$Q$41,6,0)/'4. Billing Determinants'!$G$41*$D28,IF($E28="Distribution Rev.",VLOOKUP(M$4,'4. Billing Determinants'!$B$19:$Q$41,8,0)/'4. Billing Determinants'!$I$41*$D28, VLOOKUP(M$4,'4. Billing Determinants'!$B$19:$Q$41,3,0)/'4. Billing Determinants'!$D$41*$D28))))),0) -> 0 | N28: =IFERROR(IF(N$4="",0,IF($E28="kWh",VLOOKUP(N$4,'4. Billing Determinants'!$B$19:$Q$41,4,0)/'4. Billing Determinants'!$E$41*$D28,IF($E28="kW",VLOOKUP(N$4,'4. Billing Determinants'!$B$19:$Q$41,5,0)/'4. Billing Determinants'!$F$41*$D28,IF($E28="Non-RPP kWh",VLOOKUP(N$4,'4. Billing Determinants'!$B$19:$Q$41,6,0)/'4. Billing Determinants'!$G$41*$D28,IF($E28="Distribution Rev.",VLOOKUP(N$4,'4. Billing Determinants'!$B$19:$Q$41,8,0)/'4. Billing Determinants'!$I$41*$D28, VLOOKUP(N$4,'4. Billing Determinants'!$B$19:$Q$41,3,0)/'4. Billing Determinants'!$D$41*$D28))))),0) -> 0 | O28: =IFERROR(IF(O$4="",0,IF($E28="kWh",VLOOKUP(O$4,'4. Billing Determinants'!$B$19:$Q$41,4,0)/'4. Billing Determinants'!$E$41*$D28,IF($E28="kW",VLOOKUP(O$4,'4. Billing Determinants'!$B$19:$Q$41,5,0)/'4. Billing Determinants'!$F$41*$D28,IF($E28="Non-RPP kWh",VLOOKUP(O$4,'4. Billing Determinants'!$B$19:$Q$41,6,0)/'4. Billing Determinants'!$G$41*$D28,IF($E28="Distribution Rev.",VLOOKUP(O$4,'4. Billing Determinants'!$B$19:$Q$41,8,0)/'4. Billing Determinants'!$I$41*$D28, VLOOKUP(O$4,'4. Billing Determinants'!$B$19:$Q$41,3,0)/'4. Billing Determinants'!$D$41*$D28))))),0) -> 0 | P28: =IFERROR(IF(P$4="",0,IF($E28="kWh",VLOOKUP(P$4,'4. Billing Determinants'!$B$19:$Q$41,4,0)/'4. Billing Determinants'!$E$41*$D28,IF($E28="kW",VLOOKUP(P$4,'4. Billing Determinants'!$B$19:$Q$41,5,0)/'4. Billing Determinants'!$F$41*$D28,IF($E28="Non-RPP kWh",VLOOKUP(P$4,'4. Billing Determinants'!$B$19:$Q$41,6,0)/'4. Billing Determinants'!$G$41*$D28,IF($E28="Distribution Rev.",VLOOKUP(P$4,'4. Billing Determinants'!$B$19:$Q$41,8,0)/'4. Billing Determinants'!$I$41*$D28, VLOOKUP(P$4,'4. Billing Determinants'!$B$19:$Q$41,3,0)/'4. Billing Determinants'!$D$41*$D28))))),0) -> 0 | Q28: =IFERROR(IF(Q$4="",0,IF($E28="kWh",VLOOKUP(Q$4,'4. Billing Determinants'!$B$19:$Q$41,4,0)/'4. Billing Determinants'!$E$41*$D28,IF($E28="kW",VLOOKUP(Q$4,'4. Billing Determinants'!$B$19:$Q$41,5,0)/'4. Billing Determinants'!$F$41*$D28,IF($E28="Non-RPP kWh",VLOOKUP(Q$4,'4. Billing Determinants'!$B$19:$Q$41,6,0)/'4. Billing Determinants'!$G$41*$D28,IF($E28="Distribution Rev.",VLOOKUP(Q$4,'4. Billing Determinants'!$B$19:$Q$41,8,0)/'4. Billing Determinants'!$I$41*$D28, VLOOKUP(Q$4,'4. Billing Determinants'!$B$19:$Q$41,3,0)/'4. Billing Determinants'!$D$41*$D28))))),0) -> 0 | R28: =IFERROR(IF(R$4="",0,IF($E28="kWh",VLOOKUP(R$4,'4. Billing Determinants'!$B$19:$Q$41,4,0)/'4. Billing Determinants'!$E$41*$D28,IF($E28="kW",VLOOKUP(R$4,'4. Billing Determinants'!$B$19:$Q$41,5,0)/'4. Billing Determinants'!$F$41*$D28,IF($E28="Non-RPP kWh",VLOOKUP(R$4,'4. Billing Determinants'!$B$19:$Q$41,6,0)/'4. Billing Determinants'!$G$41*$D28,IF($E28="Distribution Rev.",VLOOKUP(R$4,'4. Billing Determinants'!$B$19:$Q$41,8,0)/'4. Billing Determinants'!$I$41*$D28, VLOOKUP(R$4,'4. Billing Determinants'!$B$19:$Q$41,3,0)/'4. Billing Determinants'!$D$41*$D28))))),0) -> 0 | S28: =IFERROR(IF(S$4="",0,IF($E28="kWh",VLOOKUP(S$4,'4. Billing Determinants'!$B$19:$Q$41,4,0)/'4. Billing Determinants'!$E$41*$D28,IF($E28="kW",VLOOKUP(S$4,'4. Billing Determinants'!$B$19:$Q$41,5,0)/'4. Billing Determinants'!$F$41*$D28,IF($E28="Non-RPP kWh",VLOOKUP(S$4,'4. Billing Determinants'!$B$19:$Q$41,6,0)/'4. Billing Determinants'!$G$41*$D28,IF($E28="Distribution Rev.",VLOOKUP(S$4,'4. Billing Determinants'!$B$19:$Q$41,8,0)/'4. Billing Determinants'!$I$41*$D28, VLOOKUP(S$4,'4. Billing Determinants'!$B$19:$Q$41,3,0)/'4. Billing Determinants'!$D$41*$D28))))),0) -> 0 | T28: =IFERROR(IF(T$4="",0,IF($E28="kWh",VLOOKUP(T$4,'4. Billing Determinants'!$B$19:$Q$41,4,0)/'4. Billing Determinants'!$E$41*$D28,IF($E28="kW",VLOOKUP(T$4,'4. Billing Determinants'!$B$19:$Q$41,5,0)/'4. Billing Determinants'!$F$41*$D28,IF($E28="Non-RPP kWh",VLOOKUP(T$4,'4. Billing Determinants'!$B$19:$Q$41,6,0)/'4. Billing Determinants'!$G$41*$D28,IF($E28="Distribution Rev.",VLOOKUP(T$4,'4. Billing Determinants'!$B$19:$Q$41,8,0)/'4. Billing Determinants'!$I$41*$D28, VLOOKUP(T$4,'4. Billing Determinants'!$B$19:$Q$41,3,0)/'4. Billing Determinants'!$D$41*$D28))))),0) -> 0 | U28: =IFERROR(IF(U$4="",0,IF($E28="kWh",VLOOKUP(U$4,'4. Billing Determinants'!$B$19:$Q$41,4,0)/'4. Billing Determinants'!$E$41*$D28,IF($E28="kW",VLOOKUP(U$4,'4. Billing Determinants'!$B$19:$Q$41,5,0)/'4. Billing Determinants'!$F$41*$D28,IF($E28="Non-RPP kWh",VLOOKUP(U$4,'4. Billing Determinants'!$B$19:$Q$41,6,0)/'4. Billing Determinants'!$G$41*$D28,IF($E28="Distribution Rev.",VLOOKUP(U$4,'4. Billing Determinants'!$B$19:$Q$41,8,0)/'4. Billing Determinants'!$I$41*$D28, VLOOKUP(U$4,'4. Billing Determinants'!$B$19:$Q$41,3,0)/'4. Billing Determinants'!$D$41*$D28))))),0) -> 0 | V28: =IFERROR(IF(V$4="",0,IF($E28="kWh",VLOOKUP(V$4,'4. Billing Determinants'!$B$19:$Q$41,4,0)/'4. Billing Determinants'!$E$41*$D28,IF($E28="kW",VLOOKUP(V$4,'4. Billing Determinants'!$B$19:$Q$41,5,0)/'4. Billing Determinants'!$F$41*$D28,IF($E28="Non-RPP kWh",VLOOKUP(V$4,'4. Billing Determinants'!$B$19:$Q$41,6,0)/'4. Billing Determinants'!$G$41*$D28,IF($E28="Distribution Rev.",VLOOKUP(V$4,'4. Billing Determinants'!$B$19:$Q$41,8,0)/'4. Billing Determinants'!$I$41*$D28, VLOOKUP(V$4,'4. Billing Determinants'!$B$19:$Q$41,3,0)/'4. Billing Determinants'!$D$41*$D28))))),0) -> 0 | W28: =IFERROR(IF(W$4="",0,IF($E28="kWh",VLOOKUP(W$4,'4. Billing Determinants'!$B$19:$Q$41,4,0)/'4. Billing Determinants'!$E$41*$D28,IF($E28="kW",VLOOKUP(W$4,'4. Billing Determinants'!$B$19:$Q$41,5,0)/'4. Billing Determinants'!$F$41*$D28,IF($E28="Non-RPP kWh",VLOOKUP(W$4,'4. Billing Determinants'!$B$19:$Q$41,6,0)/'4. Billing Determinants'!$G$41*$D28,IF($E28="Distribution Rev.",VLOOKUP(W$4,'4. Billing Determinants'!$B$19:$Q$41,8,0)/'4. Billing Determinants'!$I$41*$D28, VLOOKUP(W$4,'4. Billing Determinants'!$B$19:$Q$41,3,0)/'4. Billing Determinants'!$D$41*$D28))))),0) -> 0 | X28: =IFERROR(IF(X$4="",0,IF($E28="kWh",VLOOKUP(X$4,'4. Billing Determinants'!$B$19:$Q$41,4,0)/'4. Billing Determinants'!$E$41*$D28,IF($E28="kW",VLOOKUP(X$4,'4. Billing Determinants'!$B$19:$Q$41,5,0)/'4. Billing Determinants'!$F$41*$D28,IF($E28="Non-RPP kWh",VLOOKUP(X$4,'4. Billing Determinants'!$B$19:$Q$41,6,0)/'4. Billing Determinants'!$G$41*$D28,IF($E28="Distribution Rev.",VLOOKUP(X$4,'4. Billing Determinants'!$B$19:$Q$41,8,0)/'4. Billing Determinants'!$I$41*$D28, VLOOKUP(X$4,'4. Billing Determinants'!$B$19:$Q$41,3,0)/'4. Billing Determinants'!$D$41*$D28))))),0) -> 0 | Y28: =IFERROR(IF(Y$4="",0,IF($E28="kWh",VLOOKUP(Y$4,'4. Billing Determinants'!$B$19:$Q$41,4,0)/'4. Billing Determinants'!$E$41*$D28,IF($E28="kW",VLOOKUP(Y$4,'4. Billing Determinants'!$B$19:$Q$41,5,0)/'4. Billing Determinants'!$F$41*$D28,IF($E28="Non-RPP kWh",VLOOKUP(Y$4,'4. Billing Determinants'!$B$19:$Q$41,6,0)/'4. Billing Determinants'!$G$41*$D28,IF($E28="Distribution Rev.",VLOOKUP(Y$4,'4. Billing Determinants'!$B$19:$Q$41,8,0)/'4. Billing Determinants'!$I$41*$D28, VLOOKUP(Y$4,'4. Billing Determinants'!$B$19:$Q$41,3,0)/'4. Billing Determinants'!$D$41*$D28))))),0) -> 0
B29: Renewable Generation Connection OM&A Deferral Account | C29: 1532 | D29: ='2. 2014 Continuity Schedule'!BU52 -> 0 | F29: =IFERROR(IF(F$4="",0,IF($E29="kWh",VLOOKUP(F$4,'4. Billing Determinants'!$B$19:$Q$41,4,0)/'4. Billing Determinants'!$E$41*$D29,IF($E29="kW",VLOOKUP(F$4,'4. Billing Determinants'!$B$19:$Q$41,5,0)/'4. Billing Determinants'!$F$41*$D29,IF($E29="Non-RPP kWh",VLOOKUP(F$4,'4. Billing Determinants'!$B$19:$Q$41,6,0)/'4. Billing Determinants'!$G$41*$D29,IF($E29="Distribution Rev.",VLOOKUP(F$4,'4. Billing Determinants'!$B$19:$Q$41,8,0)/'4. Billing Determinants'!$I$41*$D29, VLOOKUP(F$4,'4. Billing Determinants'!$B$19:$Q$41,3,0)/'4. Billing Determinants'!$D$41*$D29))))),0) -> 0 | G29: =IFERROR(IF(G$4="",0,IF($E29="kWh",VLOOKUP(G$4,'4. Billing Determinants'!$B$19:$Q$41,4,0)/'4. Billing Determinants'!$E$41*$D29,IF($E29="kW",VLOOKUP(G$4,'4. Billing Determinants'!$B$19:$Q$41,5,0)/'4. Billing Determinants'!$F$41*$D29,IF($E29="Non-RPP kWh",VLOOKUP(G$4,'4. Billing Determinants'!$B$19:$Q$41,6,0)/'4. Billing Determinants'!$G$41*$D29,IF($E29="Distribution Rev.",VLOOKUP(G$4,'4. Billing Determinants'!$B$19:$Q$41,8,0)/'4. Billing Determinants'!$I$41*$D29, VLOOKUP(G$4,'4. Billing Determinants'!$B$19:$Q$41,3,0)/'4. Billing Determinants'!$D$41*$D29))))),0) -> 0 | H29: =IFERROR(IF(H$4="",0,IF($E29="kWh",VLOOKUP(H$4,'4. Billing Determinants'!$B$19:$Q$41,4,0)/'4. Billing Determinants'!$E$41*$D29,IF($E29="kW",VLOOKUP(H$4,'4. Billing Determinants'!$B$19:$Q$41,5,0)/'4. Billing Determinants'!$F$41*$D29,IF($E29="Non-RPP kWh",VLOOKUP(H$4,'4. Billing Determinants'!$B$19:$Q$41,6,0)/'4. Billing Determinants'!$G$41*$D29,IF($E29="Distribution Rev.",VLOOKUP(H$4,'4. Billing Determinants'!$B$19:$Q$41,8,0)/'4. Billing Determinants'!$I$41*$D29, VLOOKUP(H$4,'4. Billing Determinants'!$B$19:$Q$41,3,0)/'4. Billing Determinants'!$D$41*$D29))))),0) -> 0 | I29: =IFERROR(IF(I$4="",0,IF($E29="kWh",VLOOKUP(I$4,'4. Billing Determinants'!$B$19:$Q$41,4,0)/'4. Billing Determinants'!$E$41*$D29,IF($E29="kW",VLOOKUP(I$4,'4. Billing Determinants'!$B$19:$Q$41,5,0)/'4. Billing Determinants'!$F$41*$D29,IF($E29="Non-RPP kWh",VLOOKUP(I$4,'4. Billing Determinants'!$B$19:$Q$41,6,0)/'4. Billing Determinants'!$G$41*$D29,IF($E29="Distribution Rev.",VLOOKUP(I$4,'4. Billing Determinants'!$B$19:$Q$41,8,0)/'4. Billing Determinants'!$I$41*$D29, VLOOKUP(I$4,'4. Billing Determinants'!$B$19:$Q$41,3,0)/'4. Billing Determinants'!$D$41*$D29))))),0) -> 0 | J29: =IFERROR(IF(J$4="",0,IF($E29="kWh",VLOOKUP(J$4,'4. Billing Determinants'!$B$19:$Q$41,4,0)/'4. Billing Determinants'!$E$41*$D29,IF($E29="kW",VLOOKUP(J$4,'4. Billing Determinants'!$B$19:$Q$41,5,0)/'4. Billing Determinants'!$F$41*$D29,IF($E29="Non-RPP kWh",VLOOKUP(J$4,'4. Billing Determinants'!$B$19:$Q$41,6,0)/'4. Billing Determinants'!$G$41*$D29,IF($E29="Distribution Rev.",VLOOKUP(J$4,'4. Billing Determinants'!$B$19:$Q$41,8,0)/'4. Billing Determinants'!$I$41*$D29, VLOOKUP(J$4,'4. Billing Determinants'!$B$19:$Q$41,3,0)/'4. Billing Determinants'!$D$41*$D29))))),0) -> 0 | K29: =IFERROR(IF(K$4="",0,IF($E29="kWh",VLOOKUP(K$4,'4. Billing Determinants'!$B$19:$Q$41,4,0)/'4. Billing Determinants'!$E$41*$D29,IF($E29="kW",VLOOKUP(K$4,'4. Billing Determinants'!$B$19:$Q$41,5,0)/'4. Billing Determinants'!$F$41*$D29,IF($E29="Non-RPP kWh",VLOOKUP(K$4,'4. Billing Determinants'!$B$19:$Q$41,6,0)/'4. Billing Determinants'!$G$41*$D29,IF($E29="Distribution Rev.",VLOOKUP(K$4,'4. Billing Determinants'!$B$19:$Q$41,8,0)/'4. Billing Determinants'!$I$41*$D29, VLOOKUP(K$4,'4. Billing Determinants'!$B$19:$Q$41,3,0)/'4. Billing Determinants'!$D$41*$D29))))),0) -> 0 | L29: =IFERROR(IF(L$4="",0,IF($E29="kWh",VLOOKUP(L$4,'4. Billing Determinants'!$B$19:$Q$41,4,0)/'4. Billing Determinants'!$E$41*$D29,IF($E29="kW",VLOOKUP(L$4,'4. Billing Determinants'!$B$19:$Q$41,5,0)/'4. Billing Determinants'!$F$41*$D29,IF($E29="Non-RPP kWh",VLOOKUP(L$4,'4. Billing Determinants'!$B$19:$Q$41,6,0)/'4. Billing Determinants'!$G$41*$D29,IF($E29="Distribution Rev.",VLOOKUP(L$4,'4. Billing Determinants'!$B$19:$Q$41,8,0)/'4. Billing Determinants'!$I$41*$D29, VLOOKUP(L$4,'4. Billing Determinants'!$B$19:$Q$41,3,0)/'4. Billing Determinants'!$D$41*$D29))))),0) -> 0 | M29: =IFERROR(IF(M$4="",0,IF($E29="kWh",VLOOKUP(M$4,'4. Billing Determinants'!$B$19:$Q$41,4,0)/'4. Billing Determinants'!$E$41*$D29,IF($E29="kW",VLOOKUP(M$4,'4. Billing Determinants'!$B$19:$Q$41,5,0)/'4. Billing Determinants'!$F$41*$D29,IF($E29="Non-RPP kWh",VLOOKUP(M$4,'4. Billing Determinants'!$B$19:$Q$41,6,0)/'4. Billing Determinants'!$G$41*$D29,IF($E29="Distribution Rev.",VLOOKUP(M$4,'4. Billing Determinants'!$B$19:$Q$41,8,0)/'4. Billing Determinants'!$I$41*$D29, VLOOKUP(M$4,'4. Billing Determinants'!$B$19:$Q$41,3,0)/'4. Billing Determinants'!$D$41*$D29))))),0) -> 0 | N29: =IFERROR(IF(N$4="",0,IF($E29="kWh",VLOOKUP(N$4,'4. Billing Determinants'!$B$19:$Q$41,4,0)/'4. Billing Determinants'!$E$41*$D29,IF($E29="kW",VLOOKUP(N$4,'4. Billing Determinants'!$B$19:$Q$41,5,0)/'4. Billing Determinants'!$F$41*$D29,IF($E29="Non-RPP kWh",VLOOKUP(N$4,'4. Billing Determinants'!$B$19:$Q$41,6,0)/'4. Billing Determinants'!$G$41*$D29,IF($E29="Distribution Rev.",VLOOKUP(N$4,'4. Billing Determinants'!$B$19:$Q$41,8,0)/'4. Billing Determinants'!$I$41*$D29, VLOOKUP(N$4,'4. Billing Determinants'!$B$19:$Q$41,3,0)/'4. Billing Determinants'!$D$41*$D29))))),0) -> 0 | O29: =IFERROR(IF(O$4="",0,IF($E29="kWh",VLOOKUP(O$4,'4. Billing Determinants'!$B$19:$Q$41,4,0)/'4. Billing Determinants'!$E$41*$D29,IF($E29="kW",VLOOKUP(O$4,'4. Billing Determinants'!$B$19:$Q$41,5,0)/'4. Billing Determinants'!$F$41*$D29,IF($E29="Non-RPP kWh",VLOOKUP(O$4,'4. Billing Determinants'!$B$19:$Q$41,6,0)/'4. Billing Determinants'!$G$41*$D29,IF($E29="Distribution Rev.",VLOOKUP(O$4,'4. Billing Determinants'!$B$19:$Q$41,8,0)/'4. Billing Determinants'!$I$41*$D29, VLOOKUP(O$4,'4. Billing Determinants'!$B$19:$Q$41,3,0)/'4. Billing Determinants'!$D$41*$D29))))),0) -> 0 | P29: =IFERROR(IF(P$4="",0,IF($E29="kWh",VLOOKUP(P$4,'4. Billing Determinants'!$B$19:$Q$41,4,0)/'4. Billing Determinants'!$E$41*$D29,IF($E29="kW",VLOOKUP(P$4,'4. Billing Determinants'!$B$19:$Q$41,5,0)/'4. Billing Determinants'!$F$41*$D29,IF($E29="Non-RPP kWh",VLOOKUP(P$4,'4. Billing Determinants'!$B$19:$Q$41,6,0)/'4. Billing Determinants'!$G$41*$D29,IF($E29="Distribution Rev.",VLOOKUP(P$4,'4. Billing Determinants'!$B$19:$Q$41,8,0)/'4. Billing Determinants'!$I$41*$D29, VLOOKUP(P$4,'4. Billing Determinants'!$B$19:$Q$41,3,0)/'4. Billing Determinants'!$D$41*$D29))))),0) -> 0 | Q29: =IFERROR(IF(Q$4="",0,IF($E29="kWh",VLOOKUP(Q$4,'4. Billing Determinants'!$B$19:$Q$41,4,0)/'4. Billing Determinants'!$E$41*$D29,IF($E29="kW",VLOOKUP(Q$4,'4. Billing Determinants'!$B$19:$Q$41,5,0)/'4. Billing Determinants'!$F$41*$D29,IF($E29="Non-RPP kWh",VLOOKUP(Q$4,'4. Billing Determinants'!$B$19:$Q$41,6,0)/'4. Billing Determinants'!$G$41*$D29,IF($E29="Distribution Rev.",VLOOKUP(Q$4,'4. Billing Determinants'!$B$19:$Q$41,8,0)/'4. Billing Determinants'!$I$41*$D29, VLOOKUP(Q$4,'4. Billing Determinants'!$B$19:$Q$41,3,0)/'4. Billing Determinants'!$D$41*$D29))))),0) -> 0 | R29: =IFERROR(IF(R$4="",0,IF($E29="kWh",VLOOKUP(R$4,'4. Billing Determinants'!$B$19:$Q$41,4,0)/'4. Billing Determinants'!$E$41*$D29,IF($E29="kW",VLOOKUP(R$4,'4. Billing Determinants'!$B$19:$Q$41,5,0)/'4. Billing Determinants'!$F$41*$D29,IF($E29="Non-RPP kWh",VLOOKUP(R$4,'4. Billing Determinants'!$B$19:$Q$41,6,0)/'4. Billing Determinants'!$G$41*$D29,IF($E29="Distribution Rev.",VLOOKUP(R$4,'4. Billing Determinants'!$B$19:$Q$41,8,0)/'4. Billing Determinants'!$I$41*$D29, VLOOKUP(R$4,'4. Billing Determinants'!$B$19:$Q$41,3,0)/'4. Billing Determinants'!$D$41*$D29))))),0) -> 0 | S29: =IFERROR(IF(S$4="",0,IF($E29="kWh",VLOOKUP(S$4,'4. Billing Determinants'!$B$19:$Q$41,4,0)/'4. Billing Determinants'!$E$41*$D29,IF($E29="kW",VLOOKUP(S$4,'4. Billing Determinants'!$B$19:$Q$41,5,0)/'4. Billing Determinants'!$F$41*$D29,IF($E29="Non-RPP kWh",VLOOKUP(S$4,'4. Billing Determinants'!$B$19:$Q$41,6,0)/'4. Billing Determinants'!$G$41*$D29,IF($E29="Distribution Rev.",VLOOKUP(S$4,'4. Billing Determinants'!$B$19:$Q$41,8,0)/'4. Billing Determinants'!$I$41*$D29, VLOOKUP(S$4,'4. Billing Determinants'!$B$19:$Q$41,3,0)/'4. Billing Determinants'!$D$41*$D29))))),0) -> 0 | T29: =IFERROR(IF(T$4="",0,IF($E29="kWh",VLOOKUP(T$4,'4. Billing Determinants'!$B$19:$Q$41,4,0)/'4. Billing Determinants'!$E$41*$D29,IF($E29="kW",VLOOKUP(T$4,'4. Billing Determinants'!$B$19:$Q$41,5,0)/'4. Billing Determinants'!$F$41*$D29,IF($E29="Non-RPP kWh",VLOOKUP(T$4,'4. Billing Determinants'!$B$19:$Q$41,6,0)/'4. Billing Determinants'!$G$41*$D29,IF($E29="Distribution Rev.",VLOOKUP(T$4,'4. Billing Determinants'!$B$19:$Q$41,8,0)/'4. Billing Determinants'!$I$41*$D29, VLOOKUP(T$4,'4. Billing Determinants'!$B$19:$Q$41,3,0)/'4. Billing Determinants'!$D$41*$D29))))),0) -> 0 | U29: =IFERROR(IF(U$4="",0,IF($E29="kWh",VLOOKUP(U$4,'4. Billing Determinants'!$B$19:$Q$41,4,0)/'4. Billing Determinants'!$E$41*$D29,IF($E29="kW",VLOOKUP(U$4,'4. Billing Determinants'!$B$19:$Q$41,5,0)/'4. Billing Determinants'!$F$41*$D29,IF($E29="Non-RPP kWh",VLOOKUP(U$4,'4. Billing Determinants'!$B$19:$Q$41,6,0)/'4. Billing Determinants'!$G$41*$D29,IF($E29="Distribution Rev.",VLOOKUP(U$4,'4. Billing Determinants'!$B$19:$Q$41,8,0)/'4. Billing Determinants'!$I$41*$D29, VLOOKUP(U$4,'4. Billing Determinants'!$B$19:$Q$41,3,0)/'4. Billing Determinants'!$D$41*$D29))))),0) -> 0 | V29: =IFERROR(IF(V$4="",0,IF($E29="kWh",VLOOKUP(V$4,'4. Billing Determinants'!$B$19:$Q$41,4,0)/'4. Billing Determinants'!$E$41*$D29,IF($E29="kW",VLOOKUP(V$4,'4. Billing Determinants'!$B$19:$Q$41,5,0)/'4. Billing Determinants'!$F$41*$D29,IF($E29="Non-RPP kWh",VLOOKUP(V$4,'4. Billing Determinants'!$B$19:$Q$41,6,0)/'4. Billing Determinants'!$G$41*$D29,IF($E29="Distribution Rev.",VLOOKUP(V$4,'4. Billing Determinants'!$B$19:$Q$41,8,0)/'4. Billing Determinants'!$I$41*$D29, VLOOKUP(V$4,'4. Billing Determinants'!$B$19:$Q$41,3,0)/'4. Billing Determinants'!$D$41*$D29))))),0) -> 0 | W29: =IFERROR(IF(W$4="",0,IF($E29="kWh",VLOOKUP(W$4,'4. Billing Determinants'!$B$19:$Q$41,4,0)/'4. Billing Determinants'!$E$41*$D29,IF($E29="kW",VLOOKUP(W$4,'4. Billing Determinants'!$B$19:$Q$41,5,0)/'4. Billing Determinants'!$F$41*$D29,IF($E29="Non-RPP kWh",VLOOKUP(W$4,'4. Billing Determinants'!$B$19:$Q$41,6,0)/'4. Billing Determinants'!$G$41*$D29,IF($E29="Distribution Rev.",VLOOKUP(W$4,'4. Billing Determinants'!$B$19:$Q$41,8,0)/'4. Billing Determinants'!$I$41*$D29, VLOOKUP(W$4,'4. Billing Determinants'!$B$19:$Q$41,3,0)/'4. Billing Determinants'!$D$41*$D29))))),0) -> 0 | X29: =IFERROR(IF(X$4="",0,IF($E29="kWh",VLOOKUP(X$4,'4. Billing Determinants'!$B$19:$Q$41,4,0)/'4. Billing Determinants'!$E$41*$D29,IF($E29="kW",VLOOKUP(X$4,'4. Billing Determinants'!$B$19:$Q$41,5,0)/'4. Billing Determinants'!$F$41*$D29,IF($E29="Non-RPP kWh",VLOOKUP(X$4,'4. Billing Determinants'!$B$19:$Q$41,6,0)/'4. Billing Determinants'!$G$41*$D29,IF($E29="Distribution Rev.",VLOOKUP(X$4,'4. Billing Determinants'!$B$19:$Q$41,8,0)/'4. Billing Determinants'!$I$41*$D29, VLOOKUP(X$4,'4. Billing Determinants'!$B$19:$Q$41,3,0)/'4. Billing Determinants'!$D$41*$D29))))),0) -> 0 | Y29: =IFERROR(IF(Y$4="",0,IF($E29="kWh",VLOOKUP(Y$4,'4. Billing Determinants'!$B$19:$Q$41,4,0)/'4. Billing Determinants'!$E$41*$D29,IF($E29="kW",VLOOKUP(Y$4,'4. Billing Determinants'!$B$19:$Q$41,5,0)/'4. Billing Determinants'!$F$41*$D29,IF($E29="Non-RPP kWh",VLOOKUP(Y$4,'4. Billing Determinants'!$B$19:$Q$41,6,0)/'4. Billing Determinants'!$G$41*$D29,IF($E29="Distribution Rev.",VLOOKUP(Y$4,'4. Billing Determinants'!$B$19:$Q$41,8,0)/'4. Billing Determinants'!$I$41*$D29, VLOOKUP(Y$4,'4. Billing Determinants'!$B$19:$Q$41,3,0)/'4. Billing Determinants'!$D$41*$D29))))),0) -> 0
